Workbook

Sheet Cover

Sheet Index
B9: Map Details | G9: Programme of Care, Programme Subcategory, Commissioning for Value Pathway, Map Number, Map Title, Local Authority Tiers, Pathway Setting, Domain, Polarity
B11: Performance | G11: LA Value, Confidence Intervals, England Average, Similar 15 Average, 75th Percentile Average
B13: Benchmarking | G13: National Quintile Position, Best LA in Similar 15, Position against Peers, Statistical Significance Vs England / Similar 15 / 75th Percentile
B15: Opportunities | G15: Value Opportunity Vs England / Similar 15 / 75th Percentile
B17: Further Resources | G17: Guidance Note, Resource Links, Instant Atlas Tool Link, PDF Atlas Link
B19: Guidance & Screencasts | G19: Full Guidance PDF Document and Screencast Walkthroughs

Sheet Tool
B4: Map Details | L4: Performance | S4: Benchmarking | Z4: Opportunity | AD4: Further Resources
B5: Programme of Care | C5: Programme Subcategory | D5: Commissioning for Value Pathway | E5: Map Number | F5: Map Title | G5: Local Authority Tiers | H5: Pathway Setting | I5: Domain | J5: Polarity | L5: LA Value | M5: Lower CI | N5: Upper CI | O5: England | P5: Similar 15 | Q5: 75th Percentile | S5: National Quintile Position | T5: Best LA in Similar 15 | U5: Position against Peers | V5: Statistical Significance Vs England | W5: Statistical Significance Vs Similar 15 | X5: Statistical Significance Vs 75th Percentile | Z5: Vs England | AA5: Vs Similar 15 | AB5: Vs 75th Percentile | AD5: Guidance Note | AE5: Resource Links | AF5: Instant Atlas Tool Link | AG5: PDF Atlas Link
B6: ='Report '!C7 -> Infectious Diseases | C6: ='Report '!D7 -> No Subcategory | D6: ='Report '!F7 -> No Pathway | E6: ='Report '!H7 -> 3 | F6: ='Report '!I7 -> Map 3: Rate of tuberculosis incidence per 100,000 population by upper-tier local authority, 2011-2013 | G6: ='Report '!E7 -> Upper Tier | H6: ='Report '!G7 -> Prevention and Early Diagnosis | I6: ='Report '!J7 -> 1, 3 | J6: ='Report '!K7 -> Improvement Opportunity | L6: ='Report '!L7 -> 35.143 | M6: ='Report '!M7 -> 30.453 | N6: ='Report '!N7 -> 40.352 | O6: ='Report '!R7 -> 16.52628947 | P6: ='Report '!S7 -> 50.097125 | Q6: ='Report '!T7 -> 34.3235 | S6: ='Report '!O7 -> 5 | T6: ='Report '!Q7 -> Enfield | U6: ='Report '!P7 -> A | V6: ='Report '!U7 -> R | W6: ='Report '!V7 -> G | X6: ='Report '!W7 -> A | Z6: ='Report '!X7 -> 18.61671053 | AA6: ='Report '!Y7 ->  | AB6: ='Report '!Z7 -> 0.8195 | AD6: ='Report '!AC7 -> This indicator is not part of the pathways covered by Commissioning for Value. For more information around spend by programme budgeting category, please download the Programme Budgeting Benchmarking Tool. Spend for this area within the Programme Budgeting Benchmarking Tool may be included within 11X | AE6: http://www.england.nhs.uk/wp-content/uploads/2015/06/13-14-ccg-prog-bug-benchmarking-tool.xlsm http://pathways.nice.org.uk/pathways/tuberculosis | AF6: Click here | AG6: Click here
B7: ='Report '!C8 -> Infectious Diseases | C7: ='Report '!D8 -> No Subcategory | D7: ='Report '!F8 -> No Pathway | E7: ='Report '!H8 -> 4 | F7: ='Report '!I8 -> Map 4: Percentage of people with drug-sensitive tuberculosis who completed treatment within 12 months of treatment onset by upper-tier local authority, 2012 | G7: ='Report '!E8 -> Upper Tier | H7: ='Report '!G8 -> Secondary Care Treatment | I7: ='Report '!J8 -> 1, 3, 4 | J7: ='Report '!K8 -> Good | L7: ='Report '!L8 -> 91.9 | M7: ='Report '!M8 -> 82.47142792 | N7: ='Report '!N8 -> 96.50616455 | O7: ='Report '!R8 -> 82.21 | P7: ='Report '!S8 -> 85.8 | Q7: ='Report '!T8 -> 87.95 | S7: ='Report '!O8 -> 5 | T7: ='Report '!Q8 -> Waltham Forest | U7: ='Report '!P8 -> G | V7: ='Report '!U8 -> G | W7: ='Report '!V8 -> A | X7: ='Report '!W8 -> A | Z7: ='Report '!X8 ->  | AA7: ='Report '!Y8 ->  | AB7: ='Report '!Z8 ->  | AD7: ='Report '!AC8 -> This indicator is not part of the pathways covered by Commissioning for Value. For more information around spend by programme budgeting category, please download the Programme Budgeting Benchmarking Tool. Spend for this area within the Programme Budgeting Benchmarking Tool may be included within 11X | AE7: http://www.england.nhs.uk/wp-content/uploads/2015/06/13-14-ccg-prog-bug-benchmarking-tool.xlsm http://pathways.nice.org.uk/pathways/tuberculosis | AF7: Click here | AG7: Click here
B8: ='Report '!C9 -> Problems of the Gastro-Intestinal System | C8: ='Report '!D9 -> HepatoBiliary | D8: ='Report '!F9 -> No Pathway | E8: ='Report '!H9 -> 16 | F8: ='Report '!I9 -> Map 16: Rate of years of life lost (YLLs) in people aged under 75 years due to mortality from chronic liver disease including cirrhosis per 10,000 population by lower-tier local authority, 2010-2012 | G8: ='Report '!E9 -> Lower Tier | H8: ='Report '!G9 -> Outcomes | I8: ='Report '!J9 -> 1, 2 | J8: ='Report '!K9 -> Improvement Opportunity | L8: ='Report '!L9 -> 13.61 | M8: ='Report '!M9 -> 5.93 | N8: ='Report '!N9 -> 21.29 | O8: ='Report '!R9 -> 20.36608696 | P8: ='Report '!S9 -> 18.985625 | Q8: ='Report '!T9 -> 15.6825 | S8: ='Report '!O9 -> 2 | T8: ='Report '!Q9 -> Adur | U8: ='Report '!P9 -> G | V8: ='Report '!U9 -> A | W8: ='Report '!V9 -> A | X8: ='Report '!W9 -> A | Z8: ='Report '!X9 ->  | AA8: ='Report '!Y9 ->  | AB8: ='Report '!Z9 ->  | AD8: ='Report '!AC9 -> This indicator is not part of the pathways covered by Commissioning for Value. For more information around spend by programme budgeting category, please download the Programme Budgeting Benchmarking Tool. | AE8: http://www.england.nhs.uk/wp-content/uploads/2015/06/13-14-ccg-prog-bug-benchmarking-tool.xlsm | AF8: Click here | AG8: Click here
B9: ='Report '!C10 -> Problems of the Respiratory System | C9: ='Report '!D10 -> No Subcategory | D9: ='Report '!F10 -> Dementia and LTCs, Cancer, Respiratory | E9: ='Report '!H10 -> 20 | F9: ='Report '!I10 -> Map 20: Rate of successful smoking quitters at 4 weeks per 100,000 population of smokers aged 16 years and over by upper-tier local authority, 2013/14 | G9: ='Report '!E10 -> Upper Tier | H9: ='Report '!G10 -> Prevention and Early Diagnosis | I9: ='Report '!J10 -> 1 | J9: ='Report '!K10 -> Good | L9: ='Report '!L10 -> 3723.736493 | M9: ='Report '!M10 -> 3512.413565 | N9: ='Report '!N10 -> 3944.450387 | O9: ='Report '!R10 -> 3806.940253 | P9: ='Report '!S10 -> 3830.483666 | Q9: ='Report '!T10 -> 4342.163812 | S9: ='Report '!O10 -> 3 | T9: ='Report '!Q10 -> Greenwich | U9: ='Report '!P10 -> A | V9: ='Report '!U10 -> A | W9: ='Report '!V10 -> A | X9: ='Report '!W10 -> R | Z9: ='Report '!X10 -> 83.20376084 | AA9: ='Report '!Y10 -> 106.7471733 | AB9: ='Report '!Z10 -> 618.4273192 | AD9: ='Report '!AC10 -> To help understand how the management of smoking cessation affects expenditure and outcomes in the CCG across a number of pathways please visit the Commissioning for Value website and download a 2014 and a 2015 pack. | AE9: http://www.england.nhs.uk/resources/resources-for-ccgs/comm-for-value/ http://pathways.nice.org.uk/pathways/smoking http://pathways.nice.org.uk/pathways/chronic-obstructive-pulmonary-disease http://pathways.nice.org.uk/pathways/asthma http://pathways.nice.org.uk/pathways/suspected-cancer-recognition-and-referral/ http://pathways.nice.org.uk/pathways/dementia | AF9: Click here | AG9: Click here
B10: ='Report '!C11 -> Obesity | C10: ='Report '!D11 -> No Subcategory | D10: ='Report '!F11 -> Dementia and LTCs, Heart Disease, Cancer, Stroke | E10: ='Report '!H11 -> 24 | F10: ='Report '!I11 -> Map 24: Percentage of people aged 16 years and over who had a body mass index (BMI) greater than or equal to 30 kg/m2 by lower-tier local authority, 2012 | G10: ='Report '!E11 -> Lower Tier | H10: ='Report '!G11 -> Prevention and Early Diagnosis | I10: ='Report '!J11 -> 1 | J10: ='Report '!K11 -> Improvement Opportunity | L10: ='Report '!L11 -> 18.44501535 | M10: ='Report '!M11 -> 14.77050943 | N10: ='Report '!N11 -> 22.11952128 | O10: ='Report '!R11 -> 22.93137757 | P10: ='Report '!S11 -> 23.95456288 | Q10: ='Report '!T11 -> 21.10115901 | S10: ='Report '!O11 -> 1 | T10: ='Report '!Q11 -> Adur | U10: ='Report '!P11 -> G | V10: ='Report '!U11 -> G | W10: ='Report '!V11 -> G | X10: ='Report '!W11 -> A | Z10: ='Report '!X11 ->  | AA10: ='Report '!Y11 ->  | AB10: ='Report '!Z11 ->  | AD10: ='Report '!AC11 -> To help understand how the management of obesity affects expenditure and outcomes in the CCG across a number of pathways please visit the Commissioning for value webiste and download a 2014 and a 2015 pack. | AE10: http://www.england.nhs.uk/resources/resources-for-ccgs/comm-for-value/ http://pathways.nice.org.uk/pathways/hypertension http://pathways.nice.org.uk/pathways/cardiovascular-disease-prevention http://pathways.nice.org.uk/pathways/stroke http://pathways.nice.org.uk/pathways/suspected-cancer-recognition-and-referral/ http://pathways.nice.org.uk/pathways/dementia | AF10: Click here | AG10: Click here
B11: ='Report '!C12 -> Physical Activity | C11: ='Report '!D12 -> No Subcategory | D11: ='Report '!F12 -> Dementia and LTCs, Heart Disease, Cancer, Stroke | E11: ='Report '!H12 -> 25 | F11: ='Report '!I12 -> Map 25: Percentage of people aged 16 years and over who were classified as physically inactive by lower-tier local authority, 2013 | G11: ='Report '!E12 -> Lower Tier | H11: ='Report '!G12 -> Prevention and Early Diagnosis | I11: ='Report '!J12 -> 1 | J11: ='Report '!K12 -> Improvement Opportunity | L11: ='Report '!L12 -> 25.77965916 | M11: ='Report '!M12 -> 21.96829127 | N11: ='Report '!N12 -> 29.59102705 | O11: ='Report '!R12 -> 27.80924247 | P11: ='Report '!S12 -> 28.32031057 | Q11: ='Report '!T12 -> 26.17188695 | S11: ='Report '!O12 -> 2 | T11: ='Report '!Q12 -> Lewes | U11: ='Report '!P12 -> G | V11: ='Report '!U12 -> A | W11: ='Report '!V12 -> A | X11: ='Report '!W12 -> A | Z11: ='Report '!X12 ->  | AA11: ='Report '!Y12 ->  | AB11: ='Report '!Z12 ->  | AD11: ='Report '!AC12 -> To help understand how the management of obesity and physical inactivity affects expenditure and outcomes in the CCG across a number of pathways please visit the Commissioning for value webiste and download a 2014 and a 2015 pack. | AE11: http://www.england.nhs.uk/resources/resources-for-ccgs/comm-for-value/ http://pathways.nice.org.uk/pathways/hypertension http://pathways.nice.org.uk/pathways/cardiovascular-disease-prevention http://pathways.nice.org.uk/pathways/stroke http://pathways.nice.org.uk/pathways/suspected-cancer-recognition-and-referral/ http://pathways.nice.org.uk/pathways/dementia | AF11: Click here | AG11: Click here
B12: ='Report '!C13 -> Mental Health Disorders | C12: ='Report '!D13 -> Other Mental Health Disorders | D12: ='Report '!F13 -> Mental Health Problems - Common, Psychosis | E12: ='Report '!H13 -> 49 | F12: ='Report '!I13 -> Map 49: Standardised mortality ratio (SMR) in people aged 18-74 years in contact with mental health services by upper-tier local authority, 2012/13 | G12: ='Report '!E13 -> Upper Tier | H12: ='Report '!G13 -> Outcomes | I12: ='Report '!J13 -> 2 | J12: ='Report '!K13 -> Improvement Opportunity | L12: ='Report '!L13 -> 2.703 | M12: ='Report '!M13 -> 2.012 | N12: ='Report '!N13 -> 3.553 | O12: ='Report '!R13 -> 3.586483221 | P12: ='Report '!S13 -> 2.955 | Q12: ='Report '!T13 -> 2.73075 | S12: ='Report '!O13 -> 1 | T12: ='Report '!Q13 -> Redbridge | U12: ='Report '!P13 -> G | V12: ='Report '!U13 -> G | W12: ='Report '!V13 -> A | X12: ='Report '!W13 -> A | Z12: ='Report '!X13 ->  | AA12: ='Report '!Y13 ->  | AB12: ='Report '!Z13 ->  | AD12: ='Report '!AC13 -> To help understand how the management of psychosis and common mental health disorders affect expenditure and outcomes in the CCG please visit the Commissioning for Value website and download a 2014 pack. | AE12: http://www.england.nhs.uk/resources/resources-for-ccgs/comm-for-value/ http://pathways.nice.org.uk/pathways/psychosis-and-schizophrenia http://pathways.nice.org.uk/pathways/common-mental-health-disorders-in-primary-care | AF12: Click here | AG12: Click here
B13: ='Report '!C14 -> Care of Older People | C13: ='Report '!D14 -> No Subcategory | D13: ='Report '!F14 -> Dementia and LTCs | E13: ='Report '!H14 -> 63 | F13: ='Report '!I14 -> Map 63: Rate of council-supported permanent admissions of people aged 65 years and over to nursing home and residential care home settings per 100,000 population by upper-tier local authority, 2013/14 | G13: ='Report '!E14 -> Upper Tier | H13: ='Report '!G14 -> End of Life, Social Care & Rehabilitation | I13: ='Report '!J14 -> 2, 5 | J13: ='Report '!K14 -> Improvement Opportunity | L13: ='Report '!L14 -> 691.7755573 | M13: ='Report '!M14 -> 579.9987089 | N13: ='Report '!N14 -> 818.8077747 | O13: ='Report '!R14 -> 668.9414014 | P13: ='Report '!S14 -> 493.8974764 | Q13: ='Report '!T14 -> 362.9522549 | S13: ='Report '!O14 -> 3 | T13: ='Report '!Q14 -> Ealing | U13: ='Report '!P14 -> R | V13: ='Report '!U14 -> A | W13: ='Report '!V14 -> R | X13: ='Report '!W14 -> R | Z13: ='Report '!X14 -> 22.83415584 | AA13: ='Report '!Y14 -> 197.8780808 | AB13: ='Report '!Z14 -> 328.8233024 | AD13: ='Report '!AC14 -> To help understand how the management of dementia and long-term conditions affects expenditure and outcomes in the CCG please visit the Commissioning for Value website and download a 2015 pack. | AE13: http://www.england.nhs.uk/resources/resources-for-ccgs/comm-for-value/ http://pathways.nice.org.uk/pathways/dementia | AF13: Click here | AG13: Click here
B14: ='Report '!C15 -> Care of Older People | C14: ='Report '!D15 -> No Subcategory | D14: ='Report '!F15 -> Dementia and LTCs | E14: ='Report '!H15 -> 64 | F14: ='Report '!I15 -> Map 64: Percentage of people aged 65 years and over who were discharged from hospital into re-ablement/rehabilitation services by upper-tier local authority, 2013/14 | G14: ='Report '!E15 -> Upper Tier | H14: ='Report '!G15 -> End of Life, Social Care & Rehabilitation | I14: ='Report '!J15 -> 2, 3 | J14: ='Report '!K15 -> Good | L14: ='Report '!L15 -> 4.1 | M14: ='Report '!M15 -> No Data | N14: ='Report '!N15 -> No Data | O14: ='Report '!R15 -> 3.712 | P14: ='Report '!S15 -> 4.85 | Q14: ='Report '!T15 -> 5.05 | S14: ='Report '!O15 -> 4 | T14: ='Report '!Q15 -> Brent | U14: ='Report '!P15 -> A | V14: ='Report '!U15 ->  | W14: ='Report '!V15 ->  | X14: ='Report '!W15 ->  | Z14: ='Report '!X15 ->  | AA14: ='Report '!Y15 -> 0.75 | AB14: ='Report '!Z15 -> 0.95 | AD14: ='Report '!AC15 -> To help understand how the management of dementia and long-term conditions affects expenditure and outcomes in the CCG please visit the Commissioning for Value website and download a 2015 pack. | AE14: http://www.england.nhs.uk/resources/resources-for-ccgs/comm-for-value/ http://pathways.nice.org.uk/pathways/dementia | AF14: Click here | AG14: Click here
B15: ='Report '!C16 -> Care of Older People | C15: ='Report '!D16 -> No Subcategory | D15: ='Report '!F16 -> Dementia and LTCs | E15: ='Report '!H16 -> 65 | F15: ='Report '!I16 -> Map 65: Percentage of people aged 65 years and over who were still at home 91 days after discharge from hospital into re-ablement/rehabilitation services by upper-tier local authority, 2013/14 | G15: ='Report '!E16 -> Upper Tier | H15: ='Report '!G16 -> End of Life, Social Care & Rehabilitation | I15: ='Report '!J16 -> 2, 3 | J15: ='Report '!K16 -> Good | L15: ='Report '!L16 -> 88.3 | M15: ='Report '!M16 -> No Data | N15: ='Report '!N16 -> No Data | O15: ='Report '!R16 -> 83.53154362 | P15: ='Report '!S16 -> 87.975 | Q15: ='Report '!T16 -> 90.6 | S15: ='Report '!O16 -> 4 | T15: ='Report '!Q16 -> Lambeth | U15: ='Report '!P16 -> A | V15: ='Report '!U16 ->  | W15: ='Report '!V16 ->  | X15: ='Report '!W16 ->  | Z15: ='Report '!X16 ->  | AA15: ='Report '!Y16 ->  | AB15: ='Report '!Z16 -> 2.3 | AD15: ='Report '!AC16 -> To help understand how the management of dementia and long-term conditions affects expenditure and outcomes in the CCG please visit the Commissioning for Value website and download a 2015 pack. | AE15: http://www.england.nhs.uk/resources/resources-for-ccgs/comm-for-value/ http://pathways.nice.org.uk/pathways/dementia | AF15: Click here | AG15: Click here
B16: ='Report '!C17 -> End-of-Life Care | C16: ='Report '!D17 -> No Subcategory | D16: ='Report '!F17 -> Dementia and LTCs | E16: ='Report '!H17 -> 66 | F16: ='Report '!I17 -> Map 66: Percentage of all deaths in an area that occurred in hospital by upper-tier local authority, 2013 | G16: ='Report '!E17 -> Upper Tier | H16: ='Report '!G17 -> End of Life, Social Care & Rehabilitation | I16: ='Report '!J17 -> 4 | J16: ='Report '!K17 -> Improvement Opportunity | L16: ='Report '!L17 -> 60.2006689 | M16: ='Report '!M17 -> 57.39816869 | N16: ='Report '!N17 -> 62.93785139 | O16: ='Report '!R17 -> 49.81269361 | P16: ='Report '!S17 -> 57.71124755 | Q16: ='Report '!T17 -> 55.47313722 | S16: ='Report '!O17 -> 5 | T16: ='Report '!Q17 -> Greenwich | U16: ='Report '!P17 -> R | V16: ='Report '!U17 -> R | W16: ='Report '!V17 -> A | X16: ='Report '!W17 -> R | Z16: ='Report '!X17 -> 10.38797528 | AA16: ='Report '!Y17 -> 2.48942135 | AB16: ='Report '!Z17 -> 4.727531678 | AD16: ='Report '!AC17 -> To help understand how the management of dementia and long-term conditions affects expenditure and outcomes in the CCG please visit the Commissioning for Value website and download a 2015 pack. | AE16: http://www.england.nhs.uk/resources/resources-for-ccgs/comm-for-value/ http://pathways.nice.org.uk/pathways/dementia | AF16: Click here | AG16: Click here
B17: ='Report '!C18 -> Care of Mothers, Babies, Children and Young People | C17: ='Report '!D18 -> No Subcategory | D17: ='Report '!F18 -> Maternity and Early Years | E17: ='Report '!H18 -> 70 | F17: ='Report '!I18 -> Map 70: Rate of stillbirths and neonatal deaths (under 28 days) per 1,000 live-births and stillbirths by upper-tier local authority, 2012 | G17: ='Report '!E18 -> Upper Tier | H17: ='Report '!G18 -> Secondary Care Treatment | I17: ='Report '!J18 -> 1 | J17: ='Report '!K18 -> Improvement Opportunity | L17: ='Report '!L18 -> 9.53815261 | M17: ='Report '!M18 -> 6.749764469 | N17: ='Report '!N18 -> 13.09185967 | O17: ='Report '!R18 -> 7.541699935 | P17: ='Report '!S18 -> 9.416177755 | Q17: ='Report '!T18 -> 8.78824388 | S17: ='Report '!O18 -> 5 | T17: ='Report '!Q18 -> Lambeth | U17: ='Report '!P18 -> A | V17: ='Report '!U18 -> A | W17: ='Report '!V18 -> A | X17: ='Report '!W18 -> A | Z17: ='Report '!X18 -> 1.996452676 | AA17: ='Report '!Y18 -> 0.1219748558 | AB17: ='Report '!Z18 -> 0.7499087304 | AD17: ='Report '!AC18 -> To help understand how the management of maternity and early years affects expenditure and outcomes in the Local Authority please visit the Commissioning for Value website and download a 2015 pack. | AE17: http://www.england.nhs.uk/resources/resources-for-ccgs/comm-for-value/ http://pathways.nice.org.uk/ https://sustain.sharepoint.com/Documents/HCP%20Integrated%20Com%20and%20Del%20toolkit%20final.pdf | AF17: Click here | AG17: Click here
B18: ='Report '!C19 -> Care of Mothers, Babies, Children and Young People | C18: ='Report '!D19 -> No Subcategory | D18: ='Report '!F19 -> Maternity and Early Years | E18: ='Report '!H19 -> 72 | F18: ='Report '!I19 -> Map 72: Percentage of infants who were totally or partially breastfeeding at 6-8 weeks by upper-tier local authority, 2012/13 | G18: ='Report '!E19 -> Upper Tier | H18: ='Report '!G19 -> Prevention and Early Diagnosis | I18: ='Report '!J19 -> 4, 5 | J18: ='Report '!K19 -> Good | L18: ='Report '!L19 -> No Data | M18: ='Report '!M19 -> No Data | N18: ='Report '!N19 -> No Data | O18: ='Report '!R19 -> 45.18130456 | P18: ='Report '!S19 -> 36.44268315 | Q18: ='Report '!T19 -> 74.37091382 | S18: ='Report '!O19 -> No Data | T18: ='Report '!Q19 -> Hackney | U18: ='Report '!P19 ->  | V18: ='Report '!U19 ->  | W18: ='Report '!V19 ->  | X18: ='Report '!W19 ->  | Z18: ='Report '!X19 ->  | AA18: ='Report '!Y19 ->  | AB18: ='Report '!Z19 ->  | AD18: ='Report '!AC19 -> To help understand how the management of maternity and early years affects expenditure and outcomes in the Local Authority please visit the Commissioning for Value website and download a 2015 pack. | AE18: http://www.england.nhs.uk/resources/resources-for-ccgs/comm-for-value/ http://pathways.nice.org.uk/ https://sustain.sharepoint.com/Documents/HCP%20Integrated%20Com%20and%20Del%20toolkit%20final.pdf | AF18: Click here | AG18: Click here
B19: ='Report '!C20 -> Care of Mothers, Babies, Children and Young People | C19: ='Report '!D20 -> No Subcategory | D19: ='Report '!F20 -> Maternity and Early Years | E19: ='Report '!H20 -> 76 | F19: ='Report '!I20 -> Map 76: Percentage of immunisation completion for routine vaccinations against diphtheria, tetanus, pertussis, polio and Haemophilus influenzae type b (DTaP/IPV/Hib) at 2 years by upper-tier local authority, 2012/13 | G19: ='Report '!E20 -> Upper Tier | H19: ='Report '!G20 -> Prevention and Early Diagnosis | I19: ='Report '!J20 -> 1, 5 | J19: ='Report '!K20 -> Good | L19: ='Report '!L20 -> 94.19172449 | M19: ='Report '!M20 -> 93.41227651 | N19: ='Report '!N20 -> 94.8840004 | O19: ='Report '!R20 -> 96.33543803 | P19: ='Report '!S20 -> 93.79575799 | Q19: ='Report '!T20 -> 94.96303946 | S19: ='Report '!O20 -> 1 | T19: ='Report '!Q20 -> Tower Hamlets | U19: ='Report '!P20 -> A | V19: ='Report '!U20 -> R | W19: ='Report '!V20 -> A | X19: ='Report '!W20 -> R | Z19: ='Report '!X20 -> 2.143713533 | AA19: ='Report '!Y20 ->  | AB19: ='Report '!Z20 -> 0.7713149701 | AD19: ='Report '!AC20 -> To help understand how the management of maternity and early years affects expenditure and outcomes in the Local Authority please visit the Commissioning for Value website and download a 2015 pack. | AE19: http://www.england.nhs.uk/resources/resources-for-ccgs/comm-for-value/ http://pathways.nice.org.uk/ https://sustain.sharepoint.com/Documents/HCP%20Integrated%20Com%20and%20Del%20toolkit%20final.pdf | AF19: Click here | AG19: Click here
B20: ='Report '!C21 -> Care of Mothers, Babies, Children and Young People | C20: ='Report '!D21 -> No Subcategory | D20: ='Report '!F21 -> Maternity and Early Years | E20: ='Report '!H21 -> 77 | F20: ='Report '!I21 -> Map 77: Percentage of immunisation completion for routine vaccinations against pneumococcal disease (PCV) at 2 years by upper-tier local authority, 2012/13 | G20: ='Report '!E21 -> Upper Tier | H20: ='Report '!G21 -> Prevention and Early Diagnosis | I20: ='Report '!J21 -> 1, 5 | J20: ='Report '!K21 -> Good | L20: ='Report '!L21 -> 87.7152403 | M20: ='Report '!M21 -> 86.64645324 | N20: ='Report '!N21 -> 88.70963073 | O20: ='Report '!R21 -> 92.4131892 | P20: ='Report '!S21 -> 87.16466543 | Q20: ='Report '!T21 -> 88.8023782 | S20: ='Report '!O21 -> 1 | T20: ='Report '!Q21 -> Tower Hamlets | U20: ='Report '!P21 -> A | V20: ='Report '!U21 -> R | W20: ='Report '!V21 -> A | X20: ='Report '!W21 -> R | Z20: ='Report '!X21 -> 4.697948907 | AA20: ='Report '!Y21 ->  | AB20: ='Report '!Z21 -> 1.0871379 | AD20: ='Report '!AC21 -> To help understand how the management of maternity and early years affects expenditure and outcomes in the Local Authority please visit the Commissioning for Value website and download a 2015 pack. | AE20: http://www.england.nhs.uk/resources/resources-for-ccgs/comm-for-value/ http://pathways.nice.org.uk/ https://sustain.sharepoint.com/Documents/HCP%20Integrated%20Com%20and%20Del%20toolkit%20final.pdf | AF20: Click here | AG20: Click here
B21: ='Report '!C22 -> Care of Mothers, Babies, Children and Young People | C21: ='Report '!D22 -> No Subcategory | D21: ='Report '!F22 -> Maternity and Early Years | E21: ='Report '!H22 -> 78 | F21: ='Report '!I22 -> Map 78: Percentage of immunisation coverage for routine vaccinations against measles, mumps and rubella (MMR) at 2 years by upper-tier local authority, 2012/13 | G21: ='Report '!E22 -> Upper Tier | H21: ='Report '!G22 -> Prevention and Early Diagnosis | I21: ='Report '!J22 -> 1, 5 | J21: ='Report '!K22 -> Good | L21: ='Report '!L22 -> 88.53765099 | M21: ='Report '!M22 -> 87.49844991 | N21: ='Report '!N22 -> 89.50083316 | O21: ='Report '!R22 -> 92.34118894 | P21: ='Report '!S22 -> 87.72097845 | Q21: ='Report '!T22 -> 89.40729576 | S21: ='Report '!O22 -> 1 | T21: ='Report '!Q22 -> Tower Hamlets | U21: ='Report '!P22 -> A | V21: ='Report '!U22 -> R | W21: ='Report '!V22 -> A | X21: ='Report '!W22 -> A | Z21: ='Report '!X22 -> 3.803537954 | AA21: ='Report '!Y22 ->  | AB21: ='Report '!Z22 -> 0.8696447716 | AD21: ='Report '!AC22 -> To help understand how the management of maternity and early years affects expenditure and outcomes in the Local Authority please visit the Commissioning for Value website and download a 2015 pack. | AE21: http://www.england.nhs.uk/resources/resources-for-ccgs/comm-for-value/ http://pathways.nice.org.uk/ https://sustain.sharepoint.com/Documents/HCP%20Integrated%20Com%20and%20Del%20toolkit%20final.pdf | AF21: Click here | AG21: Click here
B22: ='Report '!C23 -> Care of Mothers, Babies, Children and Young People | C22: ='Report '!D23 -> No Subcategory | D22: ='Report '!F23 -> Dementia and LTCs | E22: ='Report '!H23 -> 80 | F22: ='Report '!I23 -> Map 80: Percentage of pupils in school Reception Year (aged 4-5 years) with healthy weight by upper-tier local authority, Academic year 2013/14 | G22: ='Report '!E23 -> Upper Tier | H22: ='Report '!G23 -> Prevention and Early Diagnosis | I22: ='Report '!J23 -> 1, 2 | J22: ='Report '!K23 -> Good | L22: ='Report '!L23 -> 72.3379 | M22: ='Report '!M23 -> 70.801 | N22: ='Report '!N23 -> 73.8238 | O22: ='Report '!R23 -> 76.18058944 | P22: ='Report '!S23 -> 74.08856177 | Q22: ='Report '!T23 -> 75.515225 | S22: ='Report '!O23 -> 1 | T22: ='Report '!Q23 -> Haringey | U22: ='Report '!P23 -> R | V22: ='Report '!U23 -> R | W22: ='Report '!V23 -> R | X22: ='Report '!W23 -> R | Z22: ='Report '!X23 -> 3.842689443 | AA22: ='Report '!Y23 -> 1.750661772 | AB22: ='Report '!Z23 -> 3.177325 | AD22: ='Report '!AC23 -> To help understand how the management of dementia and long-term conditions affects expenditure and outcomes in the CCG please visit the Commissioning for Value website and download a 2015 pack. | AE22: http://www.england.nhs.uk/resources/resources-for-ccgs/comm-for-value/ http://pathways.nice.org.uk/pathways/dementia | AF22: Click here | AG22: Click here
B23: ='Report '!C24 -> Care of Mothers, Babies, Children and Young People | C23: ='Report '!D24 -> No Subcategory | D23: ='Report '!F24 -> Endocrine, Nutritional and Metabolic problems - Diabetes | E23: ='Report '!H24 -> 81 | F23: ='Report '!I24 -> Map 81: Percentage of pupils in school Year 6 (aged 10-11 years) with healthy weight by upper-tier local authority, Academic year 2013/14 | G23: ='Report '!E24 -> Upper Tier | H23: ='Report '!G24 -> Prevention and Early Diagnosis | I23: ='Report '!J24 -> 1, 5 | J23: ='Report '!K24 -> Good | L23: ='Report '!L24 -> 56.0832 | M23: ='Report '!M24 -> 54.1485 | N23: ='Report '!N24 -> 57.9996 | O23: ='Report '!R24 -> 64.51219269 | P23: ='Report '!S24 -> 58.37337036 | Q23: ='Report '!T24 -> 59.43775 | S23: ='Report '!O24 -> 1 | T23: ='Report '!Q24 -> Haringey | U23: ='Report '!P24 -> R | V23: ='Report '!U24 -> R | W23: ='Report '!V24 -> R | X23: ='Report '!W24 -> R | Z23: ='Report '!X24 -> 8.428992687 | AA23: ='Report '!Y24 -> 2.29017036 | AB23: ='Report '!Z24 -> 3.35455 | AD23: ='Report '!AC24 -> To help understand how the management of diabetes affects expenditure and outcomes in the CCG please visit the Commissioning for Value webiste and download a 2014 pack. | AE23: http://www.england.nhs.uk/resources/resources-for-ccgs/comm-for-value/ http://pathways.nice.org.uk/pathways/diabetes | AF23: Click here | AG23: Click here
B24: ='Report '!C25 -> Care of Mothers, Babies, Children and Young People | C24: ='Report '!D25 -> No Subcategory | D24: ='Report '!F25 -> Mental Health Problems - Common, Psychosis | E24: ='Report '!H25 -> 85 | F24: ='Report '!I25 -> Map 85: Rate of admission to hospital for self-harm in children and young people aged 10-24 years per 100,000 population by upper-tier local authority, 2012/13 | G24: ='Report '!E25 -> Upper Tier | H24: ='Report '!G25 -> Prevention and Early Diagnosis | I24: ='Report '!J25 -> 2, 4, 5 | J24: ='Report '!K25 -> Improvement Opportunity | L24: ='Report '!L25 -> 231.992486 | M24: ='Report '!M25 -> 186.0362835 | N24: ='Report '!N25 -> 285.854604 | O24: ='Report '!R25 -> 358.5203538 | P24: ='Report '!S25 -> 209.4404779 | Q24: ='Report '!T25 -> 165.0795312 | S24: ='Report '!O25 -> 2 | T24: ='Report '!Q25 -> Brent | U24: ='Report '!P25 -> A | V24: ='Report '!U25 -> G | W24: ='Report '!V25 -> A | X24: ='Report '!W25 -> R | Z24: ='Report '!X25 ->  | AA24: ='Report '!Y25 -> 22.55200818 | AB24: ='Report '!Z25 -> 66.91295483 | AD24: ='Report '!AC25 -> To help understand how the management of psychosis and common mental health disorders affect expenditure and outcomes in the CCG please visit the Commissioning for Value website and download a 2014 pack. | AE24: http://www.england.nhs.uk/resources/resources-for-ccgs/comm-for-value/ http://pathways.nice.org.uk/pathways/psychosis-and-schizophrenia http://pathways.nice.org.uk/pathways/common-mental-health-disorders-in-primary-care | AF24: Click here | AG24: Click here
B25: ='Report '!C26 -> Care of Mothers, Babies, Children and Young People | C25: ='Report '!D26 -> No Subcategory | D25: ='Report '!F26 -> Maternity and Early Years | E25: ='Report '!H26 -> 90 | F25: ='Report '!I26 -> Map 90: Rate of mortality in infants aged under one year per 1,000 live-births by upper-tier local authority, 2010-2012 | G25: ='Report '!E26 -> Upper Tier | H25: ='Report '!G26 -> Outcomes | I25: ='Report '!J26 -> 1 | J25: ='Report '!K26 -> Improvement Opportunity | L25: ='Report '!L26 -> 4.044311588 | M25: ='Report '!M26 -> 3.033616698 | N25: ='Report '!N26 -> 5.389914176 | O25: ='Report '!R26 -> 4.18768249 | P25: ='Report '!S26 -> 4.689998499 | Q25: ='Report '!T26 -> 4.039651427 | S25: ='Report '!O26 -> 3 | T25: ='Report '!Q26 -> Ealing | U25: ='Report '!P26 -> G | V25: ='Report '!U26 -> A | W25: ='Report '!V26 -> A | X25: ='Report '!W26 -> A | Z25: ='Report '!X26 ->  | AA25: ='Report '!Y26 ->  | AB25: ='Report '!Z26 -> 0.004660160669 | AD25: ='Report '!AC26 -> To help understand how the management of maternity and early years affects expenditure and outcomes in the Local Authority please visit the Commissioning for Value website and download a 2015 pack. | AE25: http://www.england.nhs.uk/resources/resources-for-ccgs/comm-for-value/ http://pathways.nice.org.uk/ https://sustain.sharepoint.com/Documents/HCP%20Integrated%20Com%20and%20Del%20toolkit%20final.pdf | AF25: Click here | AG25: Click here
B26: ='Report '!C27 -> Care of Mothers, Babies, Children and Young People | C26: ='Report '!D27 -> No Subcategory | D26: ='Report '!F27 -> Maternity and Early Years | E26: ='Report '!H27 -> 91 | F26: ='Report '!I27 -> Map 91: Rate of mortality in children aged 1-17 years per 100,000 population by upper-tier local authority, 2010-2012 | G26: ='Report '!E27 -> Upper Tier | H26: ='Report '!G27 -> Outcomes | I26: ='Report '!J27 -> 1 | J26: ='Report '!K27 -> Improvement Opportunity | L26: ='Report '!L27 -> 16.17494574 | M26: ='Report '!M27 -> 10.36151926 | N26: ='Report '!N27 -> 24.02053572 | O26: ='Report '!R27 -> 12.66737015 | P26: ='Report '!S27 -> 14.24516084 | Q26: ='Report '!T27 -> 11.93377273 | S26: ='Report '!O27 -> 5 | T26: ='Report '!Q27 -> Redbridge | U26: ='Report '!P27 -> R | V26: ='Report '!U27 -> A | W26: ='Report '!V27 -> A | X26: ='Report '!W27 -> A | Z26: ='Report '!X27 -> 3.507575591 | AA26: ='Report '!Y27 -> 1.9297849 | AB26: ='Report '!Z27 -> 4.241173012 | AD26: ='Report '!AC27 -> To help understand how the management of maternity and early years affects expenditure and outcomes in the Local Authority please visit the Commissioning for Value website and download a 2015 pack. | AE26: http://www.england.nhs.uk/resources/resources-for-ccgs/comm-for-value/ http://pathways.nice.org.uk/ https://sustain.sharepoint.com/Documents/HCP%20Integrated%20Com%20and%20Del%20toolkit%20final.pdf | AF26: Click here | AG26: Click here
B27: ='Report '!C28 -> Care of Alcohol-Related Conditions | C27: ='Report '!D28 -> No Subcategory | D27: ='Report '!F28 -> Dementia and LTCs | E27: ='Report '!H28 -> 96 | F27: ='Report '!I28 -> Map 96: Rate of admission to hospital for alcohol-related causes (broad measure) per 100,000 population by lower-tier local authority, 2012/13 | G27: ='Report '!E28 -> Lower Tier | H27: ='Report '!G28 -> Prevention and Early Diagnosis | I27: ='Report '!J28 -> 1, 3 | J27: ='Report '!K28 -> Improvement Opportunity | L27: ='Report '!L28 -> 2127.752833 | M27: ='Report '!M28 -> 2015.835979 | N27: ='Report '!N28 -> 2244.221435 | O27: ='Report '!R28 -> 1949.221139 | P27: ='Report '!S28 -> 1854.856084 | Q27: ='Report '!T28 -> 1647.651763 | S27: ='Report '!O28 -> 4 | T27: ='Report '!Q28 -> Lewes | U27: ='Report '!P28 -> R | V27: ='Report '!U28 -> R | W27: ='Report '!V28 -> R | X27: ='Report '!W28 -> R | Z27: ='Report '!X28 -> 178.5316942 | AA27: ='Report '!Y28 -> 272.8967492 | AB27: ='Report '!Z28 -> 480.1010703 | AD27: ='Report '!AC28 -> To help understand how the management of dementia and long-term conditions affects expenditure and outcomes in the CCG please visit the Commissioning for Value website and download a 2015 pack. | AE27: http://www.england.nhs.uk/resources/resources-for-ccgs/comm-for-value/ http://pathways.nice.org.uk/pathways/dementia | AF27: Click here | AG27: Click here

Sheet Guidance & Screencasts

Sheet Drop-Down Menus (hidden)
A1: Drop-Down Menus
B3: Purpose : Store information for drop-down LA menus which will drive displays in charts
C13: ="Upper Tier LA - "&C18 -> Upper Tier LA - Barking and Dagenham | F13: ="Lower Tier LA - "&F18 -> Lower Tier LA - Adur
C15: UTLA List | F15: LTLA List
C17: 1 | F17: 1
C18: =OFFSET(C20,C17,0) -> Barking and Dagenham | F18: =OFFSET(F20,F17,0) -> Adur
C20: SELECT UTLA | F20: SELECT LTLA
B21: 1 | C21: Barking and Dagenham | E21: 1 | F21: Adur
B22: 2 | C22: Barnet | E22: 2 | F22: Allerdale
B23: 3 | C23: Barnsley | E23: 3 | F23: Amber Valley
B24: 4 | C24: Bath and North East Somerset | E24: 4 | F24: Arun
B25: 5 | C25: Bedford | E25: 5 | F25: Ashfield
B26: 6 | C26: Bexley | E26: 6 | F26: Ashford
B27: 7 | C27: Birmingham | E27: 7 | F27: Aylesbury Vale
B28: 8 | C28: Blackburn with Darwen | E28: 8 | F28: Babergh
B29: 9 | C29: Blackpool | E29: 9 | F29: Barking and Dagenham
B30: 10 | C30: Bolton | E30: 10 | F30: Barnet
B31: 11 | C31: Bournemouth | E31: 11 | F31: Barnsley
B32: 12 | C32: Bracknell Forest | E32: 12 | F32: Barrow-in-Furness
B33: 13 | C33: Bradford | E33: 13 | F33: Basildon
B34: 14 | C34: Brent | E34: 14 | F34: Basingstoke and Deane
B35: 15 | C35: Brighton and Hove | E35: 15 | F35: Bassetlaw
B36: 16 | C36: Bristol | E36: 16 | F36: Bath and North East Somerset
B37: 17 | C37: Bromley | E37: 17 | F37: Bedford
B38: 18 | C38: Buckinghamshire | E38: 18 | F38: Bexley
B39: 19 | C39: Bury | E39: 19 | F39: Birmingham
B40: 20 | C40: Calderdale | E40: 20 | F40: Blaby
B41: 21 | C41: Cambridgeshire | E41: 21 | F41: Blackburn with Darwen
B42: 22 | C42: Camden | E42: 22 | F42: Blackpool
B43: 23 | C43: Central Bedfordshire | E43: 23 | F43: Bolsover
B44: 24 | C44: Cheshire East | E44: 24 | F44: Bolton
B45: 25 | C45: Cheshire West and Chester | E45: 25 | F45: Boston
B46: 26 | C46: City of London | E46: 26 | F46: Bournemouth
B47: 27 | C47: Cornwall | E47: 27 | F47: Bracknell Forest
B48: 28 | C48: County Durham | E48: 28 | F48: Bradford
B49: 29 | C49: Coventry | E49: 29 | F49: Braintree
B50: 30 | C50: Croydon | E50: 30 | F50: Breckland
B51: 31 | C51: Cumbria | E51: 31 | F51: Brent
B52: 32 | C52: Darlington | E52: 32 | F52: Brentwood
B53: 33 | C53: Derby | E53: 33 | F53: Brighton and Hove
B54: 34 | C54: Derbyshire | E54: 34 | F54: Bristol
B55: 35 | C55: Devon | E55: 35 | F55: Broadland
B56: 36 | C56: Doncaster | E56: 36 | F56: Bromley
B57: 37 | C57: Dorset | E57: 37 | F57: Bromsgrove
B58: 38 | C58: Dudley | E58: 38 | F58: Broxbourne
B59: 39 | C59: Ealing | E59: 39 | F59: Broxtowe
B60: 40 | C60: East Riding of Yorkshire | E60: 40 | F60: Burnley
B61: 41 | C61: East Sussex | E61: 41 | F61: Bury
B62: 42 | C62: Enfield | E62: 42 | F62: Calderdale
B63: 43 | C63: Essex | E63: 43 | F63: Cambridge
B64: 44 | C64: Gateshead | E64: 44 | F64: Camden
B65: 45 | C65: Gloucestershire | E65: 45 | F65: Cannock Chase
B66: 46 | C66: Greenwich | E66: 46 | F66: Canterbury
B67: 47 | C67: Hackney | E67: 47 | F67: Carlisle
B68: 48 | C68: Halton | E68: 48 | F68: Castle Point
B69: 49 | C69: Hammersmith and Fulham | E69: 49 | F69: Central Bedfordshire
B70: 50 | C70: Hampshire | E70: 50 | F70: Charnwood
B71: 51 | C71: Haringey | E71: 51 | F71: Chelmsford
B72: 52 | C72: Harrow | E72: 52 | F72: Cheltenham
B73: 53 | C73: Hartlepool | E73: 53 | F73: Cherwell
B74: 54 | C74: Havering | E74: 54 | F74: Cheshire East
B75: 55 | C75: Herefordshire | E75: 55 | F75: Cheshire West and Chester
B76: 56 | C76: Hertfordshire | E76: 56 | F76: Chesterfield
B77: 57 | C77: Hillingdon | E77: 57 | F77: Chichester
B78: 58 | C78: Hounslow | E78: 58 | F78: Chiltern
B79: 59 | C79: Isle of Wight | E79: 59 | F79: Chorley
B80: 60 | C80: Isles of Scilly | E80: 60 | F80: Christchurch
B81: 61 | C81: Islington | E81: 61 | F81: City of London
B82: 62 | C82: Kensington and Chelsea | E82: 62 | F82: Colchester
B83: 63 | C83: Kent | E83: 63 | F83: Copeland
B84: 64 | C84: Kingston upon Hull | E84: 64 | F84: Corby
B85: 65 | C85: Kingston upon Thames | E85: 65 | F85: Cornwall
B86: 66 | C86: Kirklees | E86: 66 | F86: Cotswold
B87: 67 | C87: Knowsley | E87: 67 | F87: County Durham
B88: 68 | C88: Lambeth | E88: 68 | F88: Coventry
B89: 69 | C89: Lancashire | E89: 69 | F89: Craven
B90: 70 | C90: Leeds | E90: 70 | F90: Crawley
B91: 71 | C91: Leicester | E91: 71 | F91: Croydon
B92: 72 | C92: Leicestershire | E92: 72 | F92: Dacorum
B93: 73 | C93: Lewisham | E93: 73 | F93: Darlington
B94: 74 | C94: Lincolnshire | E94: 74 | F94: Dartford
B95: 75 | C95: Liverpool | E95: 75 | F95: Daventry
B96: 76 | C96: Luton | E96: 76 | F96: Derby
B97: 77 | C97: Manchester | E97: 77 | F97: Derbyshire Dales
B98: 78 | C98: Medway | E98: 78 | F98: Doncaster
B99: 79 | C99: Merton | E99: 79 | F99: Dover
B100: 80 | C100: Middlesbrough | E100: 80 | F100: Dudley
B101: 81 | C101: Milton Keynes | E101: 81 | F101: Ealing
B102: 82 | C102: Newcastle upon Tyne | E102: 82 | F102: East Cambridgeshire
B103: 83 | C103: Newham | E103: 83 | F103: East Devon
B104: 84 | C104: Norfolk | E104: 84 | F104: East Dorset
B105: 85 | C105: North East Lincolnshire | E105: 85 | F105: East Hampshire
B106: 86 | C106: North Lincolnshire | E106: 86 | F106: East Hertfordshire
B107: 87 | C107: North Somerset | E107: 87 | F107: East Lindsey
B108: 88 | C108: North Tyneside | E108: 88 | F108: East Northamptonshire
B109: 89 | C109: North Yorkshire | E109: 89 | F109: East Riding of Yorkshire
B110: 90 | C110: Northamptonshire | E110: 90 | F110: East Staffordshire
B111: 91 | C111: Northumberland | E111: 91 | F111: Eastbourne
B112: 92 | C112: Nottingham | E112: 92 | F112: Eastleigh
B113: 93 | C113: Nottinghamshire | E113: 93 | F113: Eden
B114: 94 | C114: Oldham | E114: 94 | F114: Elmbridge
B115: 95 | C115: Oxfordshire | E115: 95 | F115: Enfield
B116: 96 | C116: Peterborough | E116: 96 | F116: Epping Forest
B117: 97 | C117: Plymouth | E117: 97 | F117: Epsom and Ewell
B118: 98 | C118: Poole | E118: 98 | F118: Erewash
B119: 99 | C119: Portsmouth | E119: 99 | F119: Exeter
B120: 100 | C120: Reading | E120: 100 | F120: Fareham
B121: 101 | C121: Redbridge | E121: 101 | F121: Fenland
B122: 102 | C122: Redcar and Cleveland | E122: 102 | F122: Forest Heath
B123: 103 | C123: Richmond upon Thames | E123: 103 | F123: Forest of Dean
B124: 104 | C124: Rochdale | E124: 104 | F124: Fylde
B125: 105 | C125: Rotherham | E125: 105 | F125: Gateshead
B126: 106 | C126: Rutland | E126: 106 | F126: Gedling
B127: 107 | C127: Salford | E127: 107 | F127: Gloucester
B128: 108 | C128: Sandwell | E128: 108 | F128: Gosport
B129: 109 | C129: Sefton | E129: 109 | F129: Gravesham
B130: 110 | C130: Sheffield | E130: 110 | F130: Great Yarmouth
B131: 111 | C131: Shropshire | E131: 111 | F131: Greenwich
B132: 112 | C132: Slough | E132: 112 | F132: Guildford
B133: 113 | C133: Solihull | E133: 113 | F133: Hackney
B134: 114 | C134: Somerset | E134: 114 | F134: Halton
B135: 115 | C135: South Gloucestershire | E135: 115 | F135: Hambleton
B136: 116 | C136: South Tyneside | E136: 116 | F136: Hammersmith and Fulham
B137: 117 | C137: Southampton | E137: 117 | F137: Harborough
B138: 118 | C138: Southend-on-Sea | E138: 118 | F138: Haringey
B139: 119 | C139: Southwark | E139: 119 | F139: Harlow
B140: 120 | C140: St. Helens | E140: 120 | F140: Harrogate
B141: 121 | C141: Staffordshire | E141: 121 | F141: Harrow
B142: 122 | C142: Stockport | E142: 122 | F142: Hart
B143: 123 | C143: Stockton-on-Tees | E143: 123 | F143: Hartlepool
B144: 124 | C144: Stoke-on-Trent | E144: 124 | F144: Hastings
B145: 125 | C145: Suffolk | E145: 125 | F145: Havant
B146: 126 | C146: Sunderland | E146: 126 | F146: Havering
B147: 127 | C147: Surrey | E147: 127 | F147: Herefordshire
B148: 128 | C148: Sutton | E148: 128 | F148: Hertsmere
B149: 129 | C149: Swindon | E149: 129 | F149: High Peak
B150: 130 | C150: Tameside | E150: 130 | F150: Hillingdon
B151: 131 | C151: Telford and Wrekin | E151: 131 | F151: Hinckley and Bosworth
B152: 132 | C152: Thurrock | E152: 132 | F152: Horsham
B153: 133 | C153: Torbay | E153: 133 | F153: Hounslow
B154: 134 | C154: Tower Hamlets | E154: 134 | F154: Huntingdonshire
B155: 135 | C155: Trafford | E155: 135 | F155: Hyndburn
B156: 136 | C156: Wakefield | E156: 136 | F156: Ipswich
B157: 137 | C157: Walsall | E157: 137 | F157: Isle of Wight
B158: 138 | C158: Waltham Forest | E158: 138 | F158: Isles of Scilly
B159: 139 | C159: Wandsworth | E159: 139 | F159: Islington
B160: 140 | C160: Warrington | E160: 140 | F160: Kensington and Chelsea
B161: 141 | C161: Warwickshire | E161: 141 | F161: Kettering
B162: 142 | C162: West Berkshire | E162: 142 | F162: King's Lynn and West Norfolk
B163: 143 | C163: West Sussex | E163: 143 | F163: Kingston upon Hull
B164: 144 | C164: Westminster | E164: 144 | F164: Kingston upon Thames
B165: 145 | C165: Wigan | E165: 145 | F165: Kirklees
B166: 146 | C166: Wiltshire | E166: 146 | F166: Knowsley
B167: 147 | C167: Windsor and Maidenhead | E167: 147 | F167: Lambeth
B168: 148 | C168: Wirral | E168: 148 | F168: Lancaster
B169: 149 | C169: Wokingham | E169: 149 | F169: Leeds
B170: 150 | C170: Wolverhampton | E170: 150 | F170: Leicester
B171: 151 | C171: Worcestershire | E171: 151 | F171: Lewes
B172: 152 | C172: York | E172: 152 | F172: Lewisham
E173: 153 | F173: Lichfield
E174: 154 | F174: Lincoln
E175: 155 | F175: Liverpool
E176: 156 | F176: Luton
E177: 157 | F177: Maidstone
E178: 158 | F178: Maldon
E179: 159 | F179: Malvern Hills
E180: 160 | F180: Manchester
E181: 161 | F181: Mansfield
E182: 162 | F182: Medway
E183: 163 | F183: Melton
E184: 164 | F184: Mendip
E185: 165 | F185: Merton
E186: 166 | F186: Mid Devon
E187: 167 | F187: Mid Suffolk
E188: 168 | F188: Mid Sussex
E189: 169 | F189: Middlesbrough
E190: 170 | F190: Milton Keynes
E191: 171 | F191: Mole Valley
E192: 172 | F192: New Forest
E193: 173 | F193: Newark and Sherwood
E194: 174 | F194: Newcastle upon Tyne
E195: 175 | F195: Newcastle-under-Lyme
E196: 176 | F196: Newham
E197: 177 | F197: North Devon
E198: 178 | F198: North Dorset
E199: 179 | F199: North East Derbyshire
E200: 180 | F200: North East Lincolnshire
E201: 181 | F201: North Hertfordshire
E202: 182 | F202: North Kesteven
E203: 183 | F203: North Lincolnshire
E204: 184 | F204: North Norfolk
E205: 185 | F205: North Somerset
E206: 186 | F206: North Tyneside
E207: 187 | F207: North Warwickshire
E208: 188 | F208: North West Leicestershire
E209: 189 | F209: Northampton
E210: 190 | F210: Northumberland
E211: 191 | F211: Norwich
E212: 192 | F212: Nottingham
E213: 193 | F213: Nuneaton and Bedworth
... 133 more rows

Sheet Report (hidden)
C2: Local Authority | E2: Upper Tier Maps | F2: ='Drop-Down Menus'!$C$18 -> Barking and Dagenham
E3: Lower Tier Maps | F3: ='Drop-Down Menus'!$F$18 -> Adur
A4: Hide | H4: ='Rules & Lookups'!B2 -> 0.75 | M4: Hide? | N4: Hide? | P4: map sync req!
C5: MAP DESCRIPTION | L5: PERFORMANCE | O5: BENCHMARKING | X5: OPPORTUNITIES | AA5: IMPACT | AC5: FURTHER RESOURCES
A6: Lookup | B6: Lookup2 | C6: Programme of Care | D6: Programme Subcategory | E6: Local Authority Tiers | F6: Pathway (From Ben Williams lookup) | G6: Pathway Settings | H6: Map # | I6: Map Title | J6: Domain | K6: Polarity - Based on Perform, High is: | L6: Value | M6: 95% LL | N6: 95% UL | O6: Quintile - Population (National England) | P6: Position against Peers (Highest # Ranks 1) | Q6: Best in cluster group | R6: England (unweighted CCG average) | S6: CCG+10 Similar (unweighted average) | T6: ="CCG+10 Similar "&$H$4*100&"th percentile value (user defined)" -> CCG+10 Similar 75th percentile value (user defined) | U6: Significantly worse than England average at 95% level? | V6: Significantly worse than 'Similar CCGs' average at 95% level? | W6: ="Significantly worse than 'Similar CCGs"&'Rules & Lookups'!$B$2*100&"th"&" Percentile at 95% level?" -> Significantly worse than 'Similar CCGs75th Percentile at 95% level? | X6: Opportunity VS. England Avg | Y6: Opportunity VS. CCG+10 Similar (unweighted average) | Z6: ="Opportunity VS."&"CCG+10 Similar "&$H$4*100&"th percentile value (user defined)" -> Opportunity VS.CCG+10 Similar 75th percentile value (user defined) | AA6: Speed of Implementation (In a well managed system) | AB6: Speed of Impact (rate of return) | AC6: CFV Guidance note on where to look and options for action | AD6: Links to Commissioning for Value, tools and decision aids | AE6: Map details: eg - Options for Action + Tools & Decision Aids etc
A7: =H7&$F$2 -> 3Barking and Dagenham | B7: =VLOOKUP('Report '!$F$2,'Rules & Lookups'!$B$7:$C$158,2,FALSE) -> E09000002 | C7: =VLOOKUP(H7,'Map lookups'!$B$2:$P$104,7,FALSE) -> Infectious Diseases | D7: =VLOOKUP(H7,'Map lookups'!$B$2:$P$104,8,FALSE) -> No Subcategory | E7: Upper Tier | F7: =VLOOKUP(H7,'Map lookups'!$B$2:$P$104,10,FALSE) -> No Pathway | G7: =VLOOKUP($H7,'Map lookups'!$B$2:$P$104,5,FALSE) -> Prevention and Early Diagnosis | H7: 3 | I7: =VLOOKUP($H7,'Map lookups'!$B$2:$P$104,4,FALSE) -> Map 3: Rate of tuberculosis incidence per 100,000 population by upper-tier local authority, 2011-2013 | J7: =VLOOKUP(H7,'Map lookups'!$B$2:$P$104,6,FALSE) -> 1, 3 | K7: =IF(VLOOKUP($H7,'Master Database'!$C$4:$E$4043,3,FALSE)="Bad","Improvement Opportunity",VLOOKUP($H7,'Master Database'!$C$4:$E$4043,3,FALSE)) -> Improvement Opportunity | L7: =IF(OR(VLOOKUP($A7,'Master Database'!$D$4:$Q$4043,3,FALSE)="-",VLOOKUP($A7,'Master Database'!$D$4:$Q$4043,3,FALSE)="",VLOOKUP($A7,'Master Database'!$D$4:$Q$4043,3,FALSE)=0),"No Data",VLOOKUP($A7,'Master Database'!$D$4:$Q$4043,3,FALSE)) -> 35.143 | M7: =IF(OR(VLOOKUP($A7,'Master Database'!$D$4:$Q$4043,4,FALSE)="-",VLOOKUP($A7,'Master Database'!$D$4:$Q$4043,4,FALSE)="",VLOOKUP($A7,'Master Database'!$D$4:$Q$4043,4,FALSE)=0),"No Data",VLOOKUP($A7,'Master Database'!$D$4:$Q$4043,4,FALSE)) -> 30.453 | N7: =IF(OR(VLOOKUP($A7,'Master Database'!$D$4:$Q$4043,5,FALSE)="-",VLOOKUP($A7,'Master Database'!$D$4:$Q$4043,5,FALSE)="",VLOOKUP($A7,'Master Database'!$D$4:$Q$4043,5,FALSE)=0),"No Data",VLOOKUP($A7,'Master Database'!$D$4:$Q$4043,5,FALSE)) -> 40.352 | O7: =IF(VLOOKUP(A7,Quintiles!$A$3:$E$4042,5,FALSE)=6,"No Data",VLOOKUP(A7,Quintiles!$A$3:$E$4042,5,FALSE)) -> 5 | P7: =IFERROR(INDEX('Colour Calculation'!$AC$20:$AX$21,1,MATCH('Report '!$H7,'Colour Calculation'!$AC$21:$AX$21,0)),"") -> A | Q7: =IFERROR(INDEX('Best performing LA code'!$AD$7:$AK$28,MATCH("Map_"&'Report '!$H7,'Best performing LA code'!$AD$7:$AD$28,0),8),"") -> Enfield | R7: =IFERROR(IF(OR(VLOOKUP($A7,'Master Database'!$D$4:$Q$4043,6,FALSE)="",VLOOKUP($A7,'Master Database'!$D$4:$Q$4043,6,FALSE)="-",VLOOKUP($A7,'Master Database'!$D$4:$Q$4043,6,FALSE)=0),"",VLOOKUP($A7,'Master Database'!$D$4:$Q$4043,6,FALSE)),"") -> 16.52628947 | S7: =IFERROR(IF(OR(VLOOKUP($A7,'Master Database'!$D$4:$Q$4043,7,FALSE)="",VLOOKUP($A7,'Master Database'!$D$4:$Q$4043,7,FALSE)="-",VLOOKUP($A7,'Master Database'!$D$4:$Q$4043,7,FALSE)=0),"",VLOOKUP($A7,'Master Database'!$D$4:$Q$4043,7,FALSE)),"") -> 50.097125 | T7: =IFERROR(IF(OR(VLOOKUP($A7,'Master Database'!$D$4:$Q$4043,8,FALSE)="",VLOOKUP($A7,'Master Database'!$D$4:$Q$4043,8,FALSE)="-",VLOOKUP($A7,'Master Database'!$D$4:$Q$4043,8,FALSE)=0),"",VLOOKUP($A7,'Master Database'!$D$4:$Q$4043,8,FALSE)),"") -> 34.3235 | U7: =IFERROR(VLOOKUP($A7,'Master Database'!$D$4:$Q$4043,9,FALSE),"") -> R | V7: =IFERROR(VLOOKUP($A7,'Master Database'!$D$4:$Q$4043,10,FALSE),"") -> G | W7: =IFERROR(VLOOKUP($A7,'Master Database'!$D$4:$Q$4043,11,FALSE),"") -> A | X7: =IFERROR(IF($L7="No Data","",IF(VLOOKUP($A7,'Master Database'!$D$4:$Q$4043,12,FALSE)=0,"",VLOOKUP($A7,'Master Database'!$D$4:$Q$4043,12,FALSE))),"") -> 18.61671053 | Y7: =IFERROR(IF($L7="No Data","",IF(VLOOKUP($A7,'Master Database'!$D$4:$Q$4043,13,FALSE)=0,"",VLOOKUP($A7,'Master Database'!$D$4:$Q$4043,13,FALSE))),"") ->  | Z7: =IFERROR(IF($L7="No Data","",IF(VLOOKUP($A7,'Master Database'!$D$4:$Q$4043,14,FALSE)=0,"",VLOOKUP($A7,'Master Database'!$D$4:$Q$4043,14,FALSE))),"") -> 0.8195 | AC7: =VLOOKUP(H7,'Map lookups'!$B$2:$O$104,12,FALSE) -> This indicator is not part of the pathways covered by Commissioning for Value. For more information around spend by programme budgeting category, please download the Programme Budgeting Benchmarking Tool. Spend for this area within the Programme Budgeting Benchmarking Tool may be included within 11X | AD7: =VLOOKUP(H7,'Map lookups'!$B$2:$O$104,13,FALSE) -> http://www.england.nhs.uk/wp-content/uploads/2015/06/13-14-ccg-prog-bug-benchmarking-tool.xlsm http://pathways.nice.org.uk/pathways/tuberculosis | AE7: =VLOOKUP(H7,'Map lookups'!$B$2:$O$104,14,FALSE) -> No Data
A8: 4Barking and Dagenham | B8: =VLOOKUP('Report '!$F$2,'Rules & Lookups'!$B$7:$C$158,2,FALSE) -> E09000002 | C8: =VLOOKUP(H8,'Map lookups'!$B$2:$P$104,7,FALSE) -> Infectious Diseases | D8: =VLOOKUP(H8,'Map lookups'!$B$2:$P$104,8,FALSE) -> No Subcategory | E8: Upper Tier | F8: =VLOOKUP(H8,'Map lookups'!$B$2:$P$104,10,FALSE) -> No Pathway | G8: =VLOOKUP($H8,'Map lookups'!$B$2:$P$104,5,FALSE) -> Secondary Care Treatment | H8: 4 | I8: =VLOOKUP($H8,'Map lookups'!$B$2:$P$104,4,FALSE) -> Map 4: Percentage of people with drug-sensitive tuberculosis who completed treatment within 12 months of treatment onset by upper-tier local authority, 2012 | J8: =VLOOKUP(H8,'Map lookups'!$B$2:$P$104,6,FALSE) -> 1, 3, 4 | K8: =IF(VLOOKUP($H8,'Master Database'!$C$4:$E$4043,3,FALSE)="Bad","Improvement Opportunity",VLOOKUP($H8,'Master Database'!$C$4:$E$4043,3,FALSE)) -> Good | L8: =IF(OR(VLOOKUP($A8,'Master Database'!$D$4:$Q$4043,3,FALSE)="-",VLOOKUP($A8,'Master Database'!$D$4:$Q$4043,3,FALSE)="",VLOOKUP($A8,'Master Database'!$D$4:$Q$4043,3,FALSE)=0),"No Data",VLOOKUP($A8,'Master Database'!$D$4:$Q$4043,3,FALSE)) -> 91.9 | M8: =IF(OR(VLOOKUP($A8,'Master Database'!$D$4:$Q$4043,4,FALSE)="-",VLOOKUP($A8,'Master Database'!$D$4:$Q$4043,4,FALSE)="",VLOOKUP($A8,'Master Database'!$D$4:$Q$4043,4,FALSE)=0),"No Data",VLOOKUP($A8,'Master Database'!$D$4:$Q$4043,4,FALSE)) -> 82.47142792 | N8: =IF(OR(VLOOKUP($A8,'Master Database'!$D$4:$Q$4043,5,FALSE)="-",VLOOKUP($A8,'Master Database'!$D$4:$Q$4043,5,FALSE)="",VLOOKUP($A8,'Master Database'!$D$4:$Q$4043,5,FALSE)=0),"No Data",VLOOKUP($A8,'Master Database'!$D$4:$Q$4043,5,FALSE)) -> 96.50616455 | O8: =IF(VLOOKUP(A8,Quintiles!$A$3:$E$4042,5,FALSE)=6,"No Data",VLOOKUP(A8,Quintiles!$A$3:$E$4042,5,FALSE)) -> 5 | P8: =IFERROR(INDEX('Colour Calculation'!$AC$20:$AX$21,1,MATCH('Report '!$H8,'Colour Calculation'!$AC$21:$AX$21,0)),"") -> G | Q8: =IFERROR(INDEX('Best performing LA code'!$AD$7:$AK$28,MATCH("Map_"&'Report '!$H8,'Best performing LA code'!$AD$7:$AD$28,0),8),"") -> Waltham Forest | R8: =IFERROR(IF(OR(VLOOKUP($A8,'Master Database'!$D$4:$Q$4043,6,FALSE)="",VLOOKUP($A8,'Master Database'!$D$4:$Q$4043,6,FALSE)="-",VLOOKUP($A8,'Master Database'!$D$4:$Q$4043,6,FALSE)=0),"",VLOOKUP($A8,'Master Database'!$D$4:$Q$4043,6,FALSE)),"") -> 82.21 | S8: =IFERROR(IF(OR(VLOOKUP($A8,'Master Database'!$D$4:$Q$4043,7,FALSE)="",VLOOKUP($A8,'Master Database'!$D$4:$Q$4043,7,FALSE)="-",VLOOKUP($A8,'Master Database'!$D$4:$Q$4043,7,FALSE)=0),"",VLOOKUP($A8,'Master Database'!$D$4:$Q$4043,7,FALSE)),"") -> 85.8 | T8: =IFERROR(IF(OR(VLOOKUP($A8,'Master Database'!$D$4:$Q$4043,8,FALSE)="",VLOOKUP($A8,'Master Database'!$D$4:$Q$4043,8,FALSE)="-",VLOOKUP($A8,'Master Database'!$D$4:$Q$4043,8,FALSE)=0),"",VLOOKUP($A8,'Master Database'!$D$4:$Q$4043,8,FALSE)),"") -> 87.95 | U8: =IFERROR(VLOOKUP($A8,'Master Database'!$D$4:$Q$4043,9,FALSE),"") -> G | V8: =IFERROR(VLOOKUP($A8,'Master Database'!$D$4:$Q$4043,10,FALSE),"") -> A | W8: =IFERROR(VLOOKUP($A8,'Master Database'!$D$4:$Q$4043,11,FALSE),"") -> A | X8: =IFERROR(IF($L8="No Data","",IF(VLOOKUP($A8,'Master Database'!$D$4:$Q$4043,12,FALSE)=0,"",VLOOKUP($A8,'Master Database'!$D$4:$Q$4043,12,FALSE))),"") ->  | Y8: =IFERROR(IF($L8="No Data","",IF(VLOOKUP($A8,'Master Database'!$D$4:$Q$4043,13,FALSE)=0,"",VLOOKUP($A8,'Master Database'!$D$4:$Q$4043,13,FALSE))),"") ->  | Z8: =IFERROR(IF($L8="No Data","",IF(VLOOKUP($A8,'Master Database'!$D$4:$Q$4043,14,FALSE)=0,"",VLOOKUP($A8,'Master Database'!$D$4:$Q$4043,14,FALSE))),"") ->  | AC8: =VLOOKUP(H8,'Map lookups'!$B$2:$O$104,12,FALSE) -> This indicator is not part of the pathways covered by Commissioning for Value. For more information around spend by programme budgeting category, please download the Programme Budgeting Benchmarking Tool. Spend for this area within the Programme Budgeting Benchmarking Tool may be included within 11X | AD8: =VLOOKUP(H8,'Map lookups'!$B$2:$O$104,13,FALSE) -> http://www.england.nhs.uk/wp-content/uploads/2015/06/13-14-ccg-prog-bug-benchmarking-tool.xlsm http://pathways.nice.org.uk/pathways/tuberculosis | AE8: =VLOOKUP(H8,'Map lookups'!$B$2:$O$104,14,FALSE) -> No Data
A9: =H9&$F$3 -> 16Adur | B9: =VLOOKUP('Report '!$F$2,'Rules & Lookups'!$B$7:$C$158,2,FALSE) -> E09000002 | C9: =VLOOKUP(H9,'Map lookups'!$B$2:$P$104,7,FALSE) -> Problems of the Gastro-Intestinal System | D9: =VLOOKUP(H9,'Map lookups'!$B$2:$P$104,8,FALSE) -> HepatoBiliary | E9: Lower Tier | F9: =VLOOKUP(H9,'Map lookups'!$B$2:$P$104,10,FALSE) -> No Pathway | G9: =VLOOKUP($H9,'Map lookups'!$B$2:$P$104,5,FALSE) -> Outcomes | H9: 16 | I9: =VLOOKUP($H9,'Map lookups'!$B$2:$P$104,4,FALSE) -> Map 16: Rate of years of life lost (YLLs) in people aged under 75 years due to mortality from chronic liver disease including cirrhosis per 10,000 population by lower-tier local authority, 2010-2012 | J9: =VLOOKUP(H9,'Map lookups'!$B$2:$P$104,6,FALSE) -> 1, 2 | K9: =IF(VLOOKUP($H9,'Master Database'!$C$4:$E$4043,3,FALSE)="Bad","Improvement Opportunity",VLOOKUP($H9,'Master Database'!$C$4:$E$4043,3,FALSE)) -> Improvement Opportunity | L9: =IF(OR(VLOOKUP($A9,'Master Database'!$D$4:$Q$4043,3,FALSE)="-",VLOOKUP($A9,'Master Database'!$D$4:$Q$4043,3,FALSE)="",VLOOKUP($A9,'Master Database'!$D$4:$Q$4043,3,FALSE)=0),"No Data",VLOOKUP($A9,'Master Database'!$D$4:$Q$4043,3,FALSE)) -> 13.61 | M9: =IF(OR(VLOOKUP($A9,'Master Database'!$D$4:$Q$4043,4,FALSE)="-",VLOOKUP($A9,'Master Database'!$D$4:$Q$4043,4,FALSE)="",VLOOKUP($A9,'Master Database'!$D$4:$Q$4043,4,FALSE)=0),"No Data",VLOOKUP($A9,'Master Database'!$D$4:$Q$4043,4,FALSE)) -> 5.93 | N9: =IF(OR(VLOOKUP($A9,'Master Database'!$D$4:$Q$4043,5,FALSE)="-",VLOOKUP($A9,'Master Database'!$D$4:$Q$4043,5,FALSE)="",VLOOKUP($A9,'Master Database'!$D$4:$Q$4043,5,FALSE)=0),"No Data",VLOOKUP($A9,'Master Database'!$D$4:$Q$4043,5,FALSE)) -> 21.29 | O9: =IF(VLOOKUP(A9,Quintiles!$A$3:$E$4042,5,FALSE)=6,"No Data",VLOOKUP(A9,Quintiles!$A$3:$E$4042,5,FALSE)) -> 2 | P9: =IFERROR(INDEX('Colour Calculation'!$AC$20:$AX$21,1,MATCH('Report '!$H9,'Colour Calculation'!$AC$21:$AX$21,0)),"") -> G | Q9: =IFERROR(INDEX('Best performing LA code'!$AD$7:$AK$28,MATCH("Map_"&'Report '!$H9,'Best performing LA code'!$AD$7:$AD$28,0),8),"") -> Adur | R9: =IFERROR(IF(OR(VLOOKUP($A9,'Master Database'!$D$4:$Q$4043,6,FALSE)="",VLOOKUP($A9,'Master Database'!$D$4:$Q$4043,6,FALSE)="-",VLOOKUP($A9,'Master Database'!$D$4:$Q$4043,6,FALSE)=0),"",VLOOKUP($A9,'Master Database'!$D$4:$Q$4043,6,FALSE)),"") -> 20.36608696 | S9: =IFERROR(IF(OR(VLOOKUP($A9,'Master Database'!$D$4:$Q$4043,7,FALSE)="",VLOOKUP($A9,'Master Database'!$D$4:$Q$4043,7,FALSE)="-",VLOOKUP($A9,'Master Database'!$D$4:$Q$4043,7,FALSE)=0),"",VLOOKUP($A9,'Master Database'!$D$4:$Q$4043,7,FALSE)),"") -> 18.985625 | T9: =IFERROR(IF(OR(VLOOKUP($A9,'Master Database'!$D$4:$Q$4043,8,FALSE)="",VLOOKUP($A9,'Master Database'!$D$4:$Q$4043,8,FALSE)="-",VLOOKUP($A9,'Master Database'!$D$4:$Q$4043,8,FALSE)=0),"",VLOOKUP($A9,'Master Database'!$D$4:$Q$4043,8,FALSE)),"") -> 15.6825 | U9: =IFERROR(VLOOKUP($A9,'Master Database'!$D$4:$Q$4043,9,FALSE),"") -> A | V9: =IFERROR(VLOOKUP($A9,'Master Database'!$D$4:$Q$4043,10,FALSE),"") -> A | W9: =IFERROR(VLOOKUP($A9,'Master Database'!$D$4:$Q$4043,11,FALSE),"") -> A | X9: =IFERROR(IF($L9="No Data","",IF(VLOOKUP($A9,'Master Database'!$D$4:$Q$4043,12,FALSE)=0,"",VLOOKUP($A9,'Master Database'!$D$4:$Q$4043,12,FALSE))),"") ->  | Y9: =IFERROR(IF($L9="No Data","",IF(VLOOKUP($A9,'Master Database'!$D$4:$Q$4043,13,FALSE)=0,"",VLOOKUP($A9,'Master Database'!$D$4:$Q$4043,13,FALSE))),"") ->  | Z9: =IFERROR(IF($L9="No Data","",IF(VLOOKUP($A9,'Master Database'!$D$4:$Q$4043,14,FALSE)=0,"",VLOOKUP($A9,'Master Database'!$D$4:$Q$4043,14,FALSE))),"") ->  | AC9: =VLOOKUP(H9,'Map lookups'!$B$2:$O$104,12,FALSE) -> This indicator is not part of the pathways covered by Commissioning for Value. For more information around spend by programme budgeting category, please download the Programme Budgeting Benchmarking Tool. | AD9: =VLOOKUP(H9,'Map lookups'!$B$2:$O$104,13,FALSE) -> http://www.england.nhs.uk/wp-content/uploads/2015/06/13-14-ccg-prog-bug-benchmarking-tool.xlsm | AE9: =VLOOKUP(H9,'Map lookups'!$B$2:$O$104,14,FALSE) -> No Data
A10: 20Barking and Dagenham | B10: =VLOOKUP('Report '!$F$2,'Rules & Lookups'!$B$7:$C$158,2,FALSE) -> E09000002 | C10: =VLOOKUP(H10,'Map lookups'!$B$2:$P$104,7,FALSE) -> Problems of the Respiratory System | D10: =VLOOKUP(H10,'Map lookups'!$B$2:$P$104,8,FALSE) -> No Subcategory | E10: Upper Tier | F10: =VLOOKUP(H10,'Map lookups'!$B$2:$P$104,10,FALSE) -> Dementia and LTCs, Cancer, Respiratory | G10: =VLOOKUP($H10,'Map lookups'!$B$2:$P$104,5,FALSE) -> Prevention and Early Diagnosis | H10: 20 | I10: =VLOOKUP($H10,'Map lookups'!$B$2:$P$104,4,FALSE) -> Map 20: Rate of successful smoking quitters at 4 weeks per 100,000 population of smokers aged 16 years and over by upper-tier local authority, 2013/14 | J10: =VLOOKUP(H10,'Map lookups'!$B$2:$P$104,6,FALSE) -> 1 | K10: =IF(VLOOKUP($H10,'Master Database'!$C$4:$E$4043,3,FALSE)="Bad","Improvement Opportunity",VLOOKUP($H10,'Master Database'!$C$4:$E$4043,3,FALSE)) -> Good | L10: =IF(OR(VLOOKUP($A10,'Master Database'!$D$4:$Q$4043,3,FALSE)="-",VLOOKUP($A10,'Master Database'!$D$4:$Q$4043,3,FALSE)="",VLOOKUP($A10,'Master Database'!$D$4:$Q$4043,3,FALSE)=0),"No Data",VLOOKUP($A10,'Master Database'!$D$4:$Q$4043,3,FALSE)) -> 3723.736493 | M10: =IF(OR(VLOOKUP($A10,'Master Database'!$D$4:$Q$4043,4,FALSE)="-",VLOOKUP($A10,'Master Database'!$D$4:$Q$4043,4,FALSE)="",VLOOKUP($A10,'Master Database'!$D$4:$Q$4043,4,FALSE)=0),"No Data",VLOOKUP($A10,'Master Database'!$D$4:$Q$4043,4,FALSE)) -> 3512.413565 | N10: =IF(OR(VLOOKUP($A10,'Master Database'!$D$4:$Q$4043,5,FALSE)="-",VLOOKUP($A10,'Master Database'!$D$4:$Q$4043,5,FALSE)="",VLOOKUP($A10,'Master Database'!$D$4:$Q$4043,5,FALSE)=0),"No Data",VLOOKUP($A10,'Master Database'!$D$4:$Q$4043,5,FALSE)) -> 3944.450387 | O10: =IF(VLOOKUP(A10,Quintiles!$A$3:$E$4042,5,FALSE)=6,"No Data",VLOOKUP(A10,Quintiles!$A$3:$E$4042,5,FALSE)) -> 3 | P10: =IFERROR(INDEX('Colour Calculation'!$AC$20:$AX$21,1,MATCH('Report '!$H10,'Colour Calculation'!$AC$21:$AX$21,0)),"") -> A | Q10: =IFERROR(INDEX('Best performing LA code'!$AD$7:$AK$28,MATCH("Map_"&'Report '!$H10,'Best performing LA code'!$AD$7:$AD$28,0),8),"") -> Greenwich | R10: =IFERROR(IF(OR(VLOOKUP($A10,'Master Database'!$D$4:$Q$4043,6,FALSE)="",VLOOKUP($A10,'Master Database'!$D$4:$Q$4043,6,FALSE)="-",VLOOKUP($A10,'Master Database'!$D$4:$Q$4043,6,FALSE)=0),"",VLOOKUP($A10,'Master Database'!$D$4:$Q$4043,6,FALSE)),"") -> 3806.940253 | S10: =IFERROR(IF(OR(VLOOKUP($A10,'Master Database'!$D$4:$Q$4043,7,FALSE)="",VLOOKUP($A10,'Master Database'!$D$4:$Q$4043,7,FALSE)="-",VLOOKUP($A10,'Master Database'!$D$4:$Q$4043,7,FALSE)=0),"",VLOOKUP($A10,'Master Database'!$D$4:$Q$4043,7,FALSE)),"") -> 3830.483666 | T10: =IFERROR(IF(OR(VLOOKUP($A10,'Master Database'!$D$4:$Q$4043,8,FALSE)="",VLOOKUP($A10,'Master Database'!$D$4:$Q$4043,8,FALSE)="-",VLOOKUP($A10,'Master Database'!$D$4:$Q$4043,8,FALSE)=0),"",VLOOKUP($A10,'Master Database'!$D$4:$Q$4043,8,FALSE)),"") -> 4342.163812 | U10: =IFERROR(VLOOKUP($A10,'Master Database'!$D$4:$Q$4043,9,FALSE),"") -> A | V10: =IFERROR(VLOOKUP($A10,'Master Database'!$D$4:$Q$4043,10,FALSE),"") -> A | W10: =IFERROR(VLOOKUP($A10,'Master Database'!$D$4:$Q$4043,11,FALSE),"") -> R | X10: =IFERROR(IF($L10="No Data","",IF(VLOOKUP($A10,'Master Database'!$D$4:$Q$4043,12,FALSE)=0,"",VLOOKUP($A10,'Master Database'!$D$4:$Q$4043,12,FALSE))),"") -> 83.20376084 | Y10: =IFERROR(IF($L10="No Data","",IF(VLOOKUP($A10,'Master Database'!$D$4:$Q$4043,13,FALSE)=0,"",VLOOKUP($A10,'Master Database'!$D$4:$Q$4043,13,FALSE))),"") -> 106.7471733 | Z10: =IFERROR(IF($L10="No Data","",IF(VLOOKUP($A10,'Master Database'!$D$4:$Q$4043,14,FALSE)=0,"",VLOOKUP($A10,'Master Database'!$D$4:$Q$4043,14,FALSE))),"") -> 618.4273192 | AC10: =VLOOKUP(H10,'Map lookups'!$B$2:$O$104,12,FALSE) -> To help understand how the management of smoking cessation affects expenditure and outcomes in the CCG across a number of pathways please visit the Commissioning for Value website and download a 2014 and a 2015 pack. | AD10: =VLOOKUP(H10,'Map lookups'!$B$2:$O$104,13,FALSE) -> http://www.england.nhs.uk/resources/resources-for-ccgs/comm-for-value/ http://pathways.nice.org.uk/pathways/smoking http://pathways.nice.org.uk/pathways/chronic-obstructive-pulmonary-disease http://pathways.nice.org.uk/pathways/asthma http://pathways.nice.org.uk/pathways/suspected-cancer-recognition-and-referral/ http://pathways.nice.org.uk/pathways/dementia | AE10: =VLOOKUP(H10,'Map lookups'!$B$2:$O$104,14,FALSE) -> No Data
A11: =H11&$F$3 -> 24Adur | B11: =VLOOKUP('Report '!$F$2,'Rules & Lookups'!$B$7:$C$158,2,FALSE) -> E09000002 | C11: =VLOOKUP(H11,'Map lookups'!$B$2:$P$104,7,FALSE) -> Obesity | D11: =VLOOKUP(H11,'Map lookups'!$B$2:$P$104,8,FALSE) -> No Subcategory | E11: Lower Tier | F11: =VLOOKUP(H11,'Map lookups'!$B$2:$P$104,10,FALSE) -> Dementia and LTCs, Heart Disease, Cancer, Stroke | G11: =VLOOKUP($H11,'Map lookups'!$B$2:$P$104,5,FALSE) -> Prevention and Early Diagnosis | H11: 24 | I11: =VLOOKUP($H11,'Map lookups'!$B$2:$P$104,4,FALSE) -> Map 24: Percentage of people aged 16 years and over who had a body mass index (BMI) greater than or equal to 30 kg/m2 by lower-tier local authority, 2012 | J11: =VLOOKUP(H11,'Map lookups'!$B$2:$P$104,6,FALSE) -> 1 | K11: =IF(VLOOKUP($H11,'Master Database'!$C$4:$E$4043,3,FALSE)="Bad","Improvement Opportunity",VLOOKUP($H11,'Master Database'!$C$4:$E$4043,3,FALSE)) -> Improvement Opportunity | L11: =IF(OR(VLOOKUP($A11,'Master Database'!$D$4:$Q$4043,3,FALSE)="-",VLOOKUP($A11,'Master Database'!$D$4:$Q$4043,3,FALSE)="",VLOOKUP($A11,'Master Database'!$D$4:$Q$4043,3,FALSE)=0),"No Data",VLOOKUP($A11,'Master Database'!$D$4:$Q$4043,3,FALSE)) -> 18.44501535 | M11: =IF(OR(VLOOKUP($A11,'Master Database'!$D$4:$Q$4043,4,FALSE)="-",VLOOKUP($A11,'Master Database'!$D$4:$Q$4043,4,FALSE)="",VLOOKUP($A11,'Master Database'!$D$4:$Q$4043,4,FALSE)=0),"No Data",VLOOKUP($A11,'Master Database'!$D$4:$Q$4043,4,FALSE)) -> 14.77050943 | N11: =IF(OR(VLOOKUP($A11,'Master Database'!$D$4:$Q$4043,5,FALSE)="-",VLOOKUP($A11,'Master Database'!$D$4:$Q$4043,5,FALSE)="",VLOOKUP($A11,'Master Database'!$D$4:$Q$4043,5,FALSE)=0),"No Data",VLOOKUP($A11,'Master Database'!$D$4:$Q$4043,5,FALSE)) -> 22.11952128 | O11: =IF(VLOOKUP(A11,Quintiles!$A$3:$E$4042,5,FALSE)=6,"No Data",VLOOKUP(A11,Quintiles!$A$3:$E$4042,5,FALSE)) -> 1 | P11: =IFERROR(INDEX('Colour Calculation'!$AC$20:$AX$21,1,MATCH('Report '!$H11,'Colour Calculation'!$AC$21:$AX$21,0)),"") -> G | Q11: =IFERROR(INDEX('Best performing LA code'!$AD$7:$AK$28,MATCH("Map_"&'Report '!$H11,'Best performing LA code'!$AD$7:$AD$28,0),8),"") -> Adur | R11: =IFERROR(IF(OR(VLOOKUP($A11,'Master Database'!$D$4:$Q$4043,6,FALSE)="",VLOOKUP($A11,'Master Database'!$D$4:$Q$4043,6,FALSE)="-",VLOOKUP($A11,'Master Database'!$D$4:$Q$4043,6,FALSE)=0),"",VLOOKUP($A11,'Master Database'!$D$4:$Q$4043,6,FALSE)),"") -> 22.93137757 | S11: =IFERROR(IF(OR(VLOOKUP($A11,'Master Database'!$D$4:$Q$4043,7,FALSE)="",VLOOKUP($A11,'Master Database'!$D$4:$Q$4043,7,FALSE)="-",VLOOKUP($A11,'Master Database'!$D$4:$Q$4043,7,FALSE)=0),"",VLOOKUP($A11,'Master Database'!$D$4:$Q$4043,7,FALSE)),"") -> 23.95456288 | T11: =IFERROR(IF(OR(VLOOKUP($A11,'Master Database'!$D$4:$Q$4043,8,FALSE)="",VLOOKUP($A11,'Master Database'!$D$4:$Q$4043,8,FALSE)="-",VLOOKUP($A11,'Master Database'!$D$4:$Q$4043,8,FALSE)=0),"",VLOOKUP($A11,'Master Database'!$D$4:$Q$4043,8,FALSE)),"") -> 21.10115901 | U11: =IFERROR(VLOOKUP($A11,'Master Database'!$D$4:$Q$4043,9,FALSE),"") -> G | V11: =IFERROR(VLOOKUP($A11,'Master Database'!$D$4:$Q$4043,10,FALSE),"") -> G | W11: =IFERROR(VLOOKUP($A11,'Master Database'!$D$4:$Q$4043,11,FALSE),"") -> A | X11: =IFERROR(IF($L11="No Data","",IF(VLOOKUP($A11,'Master Database'!$D$4:$Q$4043,12,FALSE)=0,"",VLOOKUP($A11,'Master Database'!$D$4:$Q$4043,12,FALSE))),"") ->  | Y11: =IFERROR(IF($L11="No Data","",IF(VLOOKUP($A11,'Master Database'!$D$4:$Q$4043,13,FALSE)=0,"",VLOOKUP($A11,'Master Database'!$D$4:$Q$4043,13,FALSE))),"") ->  | Z11: =IFERROR(IF($L11="No Data","",IF(VLOOKUP($A11,'Master Database'!$D$4:$Q$4043,14,FALSE)=0,"",VLOOKUP($A11,'Master Database'!$D$4:$Q$4043,14,FALSE))),"") ->  | AC11: =VLOOKUP(H11,'Map lookups'!$B$2:$O$104,12,FALSE) -> To help understand how the management of obesity affects expenditure and outcomes in the CCG across a number of pathways please visit the Commissioning for value webiste and download a 2014 and a 2015 pack. | AD11: =VLOOKUP(H11,'Map lookups'!$B$2:$O$104,13,FALSE) -> http://www.england.nhs.uk/resources/resources-for-ccgs/comm-for-value/ http://pathways.nice.org.uk/pathways/hypertension http://pathways.nice.org.uk/pathways/cardiovascular-disease-prevention http://pathways.nice.org.uk/pathways/stroke http://pathways.nice.org.uk/pathways/suspected-cancer-recognition-and-referral/ http://pathways.nice.org.uk/pathways/dementia | AE11: =VLOOKUP(H11,'Map lookups'!$B$2:$O$104,14,FALSE) -> No Data
A12: =H12&$F$3 -> 25Adur | B12: =VLOOKUP('Report '!$F$2,'Rules & Lookups'!$B$7:$C$158,2,FALSE) -> E09000002 | C12: =VLOOKUP(H12,'Map lookups'!$B$2:$P$104,7,FALSE) -> Physical Activity | D12: =VLOOKUP(H12,'Map lookups'!$B$2:$P$104,8,FALSE) -> No Subcategory | E12: Lower Tier | F12: =VLOOKUP(H12,'Map lookups'!$B$2:$P$104,10,FALSE) -> Dementia and LTCs, Heart Disease, Cancer, Stroke | G12: =VLOOKUP($H12,'Map lookups'!$B$2:$P$104,5,FALSE) -> Prevention and Early Diagnosis | H12: 25 | I12: =VLOOKUP($H12,'Map lookups'!$B$2:$P$104,4,FALSE) -> Map 25: Percentage of people aged 16 years and over who were classified as physically inactive by lower-tier local authority, 2013 | J12: =VLOOKUP(H12,'Map lookups'!$B$2:$P$104,6,FALSE) -> 1 | K12: =IF(VLOOKUP($H12,'Master Database'!$C$4:$E$4043,3,FALSE)="Bad","Improvement Opportunity",VLOOKUP($H12,'Master Database'!$C$4:$E$4043,3,FALSE)) -> Improvement Opportunity | L12: =IF(OR(VLOOKUP($A12,'Master Database'!$D$4:$Q$4043,3,FALSE)="-",VLOOKUP($A12,'Master Database'!$D$4:$Q$4043,3,FALSE)="",VLOOKUP($A12,'Master Database'!$D$4:$Q$4043,3,FALSE)=0),"No Data",VLOOKUP($A12,'Master Database'!$D$4:$Q$4043,3,FALSE)) -> 25.77965916 | M12: =IF(OR(VLOOKUP($A12,'Master Database'!$D$4:$Q$4043,4,FALSE)="-",VLOOKUP($A12,'Master Database'!$D$4:$Q$4043,4,FALSE)="",VLOOKUP($A12,'Master Database'!$D$4:$Q$4043,4,FALSE)=0),"No Data",VLOOKUP($A12,'Master Database'!$D$4:$Q$4043,4,FALSE)) -> 21.96829127 | N12: =IF(OR(VLOOKUP($A12,'Master Database'!$D$4:$Q$4043,5,FALSE)="-",VLOOKUP($A12,'Master Database'!$D$4:$Q$4043,5,FALSE)="",VLOOKUP($A12,'Master Database'!$D$4:$Q$4043,5,FALSE)=0),"No Data",VLOOKUP($A12,'Master Database'!$D$4:$Q$4043,5,FALSE)) -> 29.59102705 | O12: =IF(VLOOKUP(A12,Quintiles!$A$3:$E$4042,5,FALSE)=6,"No Data",VLOOKUP(A12,Quintiles!$A$3:$E$4042,5,FALSE)) -> 2 | P12: =IFERROR(INDEX('Colour Calculation'!$AC$20:$AX$21,1,MATCH('Report '!$H12,'Colour Calculation'!$AC$21:$AX$21,0)),"") -> G | Q12: =IFERROR(INDEX('Best performing LA code'!$AD$7:$AK$28,MATCH("Map_"&'Report '!$H12,'Best performing LA code'!$AD$7:$AD$28,0),8),"") -> Lewes | R12: =IFERROR(IF(OR(VLOOKUP($A12,'Master Database'!$D$4:$Q$4043,6,FALSE)="",VLOOKUP($A12,'Master Database'!$D$4:$Q$4043,6,FALSE)="-",VLOOKUP($A12,'Master Database'!$D$4:$Q$4043,6,FALSE)=0),"",VLOOKUP($A12,'Master Database'!$D$4:$Q$4043,6,FALSE)),"") -> 27.80924247 | S12: =IFERROR(IF(OR(VLOOKUP($A12,'Master Database'!$D$4:$Q$4043,7,FALSE)="",VLOOKUP($A12,'Master Database'!$D$4:$Q$4043,7,FALSE)="-",VLOOKUP($A12,'Master Database'!$D$4:$Q$4043,7,FALSE)=0),"",VLOOKUP($A12,'Master Database'!$D$4:$Q$4043,7,FALSE)),"") -> 28.32031057 | T12: =IFERROR(IF(OR(VLOOKUP($A12,'Master Database'!$D$4:$Q$4043,8,FALSE)="",VLOOKUP($A12,'Master Database'!$D$4:$Q$4043,8,FALSE)="-",VLOOKUP($A12,'Master Database'!$D$4:$Q$4043,8,FALSE)=0),"",VLOOKUP($A12,'Master Database'!$D$4:$Q$4043,8,FALSE)),"") -> 26.17188695 | U12: =IFERROR(VLOOKUP($A12,'Master Database'!$D$4:$Q$4043,9,FALSE),"") -> A | V12: =IFERROR(VLOOKUP($A12,'Master Database'!$D$4:$Q$4043,10,FALSE),"") -> A | W12: =IFERROR(VLOOKUP($A12,'Master Database'!$D$4:$Q$4043,11,FALSE),"") -> A | X12: =IFERROR(IF($L12="No Data","",IF(VLOOKUP($A12,'Master Database'!$D$4:$Q$4043,12,FALSE)=0,"",VLOOKUP($A12,'Master Database'!$D$4:$Q$4043,12,FALSE))),"") ->  | Y12: =IFERROR(IF($L12="No Data","",IF(VLOOKUP($A12,'Master Database'!$D$4:$Q$4043,13,FALSE)=0,"",VLOOKUP($A12,'Master Database'!$D$4:$Q$4043,13,FALSE))),"") ->  | Z12: =IFERROR(IF($L12="No Data","",IF(VLOOKUP($A12,'Master Database'!$D$4:$Q$4043,14,FALSE)=0,"",VLOOKUP($A12,'Master Database'!$D$4:$Q$4043,14,FALSE))),"") ->  | AC12: =VLOOKUP(H12,'Map lookups'!$B$2:$O$104,12,FALSE) -> To help understand how the management of obesity and physical inactivity affects expenditure and outcomes in the CCG across a number of pathways please visit the Commissioning for value webiste and download a 2014 and a 2015 pack. | AD12: =VLOOKUP(H12,'Map lookups'!$B$2:$O$104,13,FALSE) -> http://www.england.nhs.uk/resources/resources-for-ccgs/comm-for-value/ http://pathways.nice.org.uk/pathways/hypertension http://pathways.nice.org.uk/pathways/cardiovascular-disease-prevention http://pathways.nice.org.uk/pathways/stroke http://pathways.nice.org.uk/pathways/suspected-cancer-recognition-and-referral/ http://pathways.nice.org.uk/pathways/dementia | AE12: =VLOOKUP(H12,'Map lookups'!$B$2:$O$104,14,FALSE) -> No Data
A13: 49Barking and Dagenham | B13: =VLOOKUP('Report '!$F$2,'Rules & Lookups'!$B$7:$C$158,2,FALSE) -> E09000002 | C13: =VLOOKUP(H13,'Map lookups'!$B$2:$P$104,7,FALSE) -> Mental Health Disorders | D13: =VLOOKUP(H13,'Map lookups'!$B$2:$P$104,8,FALSE) -> Other Mental Health Disorders | E13: Upper Tier | F13: =VLOOKUP(H13,'Map lookups'!$B$2:$P$104,10,FALSE) -> Mental Health Problems - Common, Psychosis | G13: =VLOOKUP($H13,'Map lookups'!$B$2:$P$104,5,FALSE) -> Outcomes | H13: 49 | I13: =VLOOKUP($H13,'Map lookups'!$B$2:$P$104,4,FALSE) -> Map 49: Standardised mortality ratio (SMR) in people aged 18-74 years in contact with mental health services by upper-tier local authority, 2012/13 | J13: =VLOOKUP(H13,'Map lookups'!$B$2:$P$104,6,FALSE) -> 2 | K13: =IF(VLOOKUP($H13,'Master Database'!$C$4:$E$4043,3,FALSE)="Bad","Improvement Opportunity",VLOOKUP($H13,'Master Database'!$C$4:$E$4043,3,FALSE)) -> Improvement Opportunity | L13: =IF(OR(VLOOKUP($A13,'Master Database'!$D$4:$Q$4043,3,FALSE)="-",VLOOKUP($A13,'Master Database'!$D$4:$Q$4043,3,FALSE)="",VLOOKUP($A13,'Master Database'!$D$4:$Q$4043,3,FALSE)=0),"No Data",VLOOKUP($A13,'Master Database'!$D$4:$Q$4043,3,FALSE)) -> 2.703 | M13: =IF(OR(VLOOKUP($A13,'Master Database'!$D$4:$Q$4043,4,FALSE)="-",VLOOKUP($A13,'Master Database'!$D$4:$Q$4043,4,FALSE)="",VLOOKUP($A13,'Master Database'!$D$4:$Q$4043,4,FALSE)=0),"No Data",VLOOKUP($A13,'Master Database'!$D$4:$Q$4043,4,FALSE)) -> 2.012 | N13: =IF(OR(VLOOKUP($A13,'Master Database'!$D$4:$Q$4043,5,FALSE)="-",VLOOKUP($A13,'Master Database'!$D$4:$Q$4043,5,FALSE)="",VLOOKUP($A13,'Master Database'!$D$4:$Q$4043,5,FALSE)=0),"No Data",VLOOKUP($A13,'Master Database'!$D$4:$Q$4043,5,FALSE)) -> 3.553 | O13: =IF(VLOOKUP(A13,Quintiles!$A$3:$E$4042,5,FALSE)=6,"No Data",VLOOKUP(A13,Quintiles!$A$3:$E$4042,5,FALSE)) -> 1 | P13: =IFERROR(INDEX('Colour Calculation'!$AC$20:$AX$21,1,MATCH('Report '!$H13,'Colour Calculation'!$AC$21:$AX$21,0)),"") -> G | Q13: =IFERROR(INDEX('Best performing LA code'!$AD$7:$AK$28,MATCH("Map_"&'Report '!$H13,'Best performing LA code'!$AD$7:$AD$28,0),8),"") -> Redbridge | R13: =IFERROR(IF(OR(VLOOKUP($A13,'Master Database'!$D$4:$Q$4043,6,FALSE)="",VLOOKUP($A13,'Master Database'!$D$4:$Q$4043,6,FALSE)="-",VLOOKUP($A13,'Master Database'!$D$4:$Q$4043,6,FALSE)=0),"",VLOOKUP($A13,'Master Database'!$D$4:$Q$4043,6,FALSE)),"") -> 3.586483221 | S13: =IFERROR(IF(OR(VLOOKUP($A13,'Master Database'!$D$4:$Q$4043,7,FALSE)="",VLOOKUP($A13,'Master Database'!$D$4:$Q$4043,7,FALSE)="-",VLOOKUP($A13,'Master Database'!$D$4:$Q$4043,7,FALSE)=0),"",VLOOKUP($A13,'Master Database'!$D$4:$Q$4043,7,FALSE)),"") -> 2.955 | T13: =IFERROR(IF(OR(VLOOKUP($A13,'Master Database'!$D$4:$Q$4043,8,FALSE)="",VLOOKUP($A13,'Master Database'!$D$4:$Q$4043,8,FALSE)="-",VLOOKUP($A13,'Master Database'!$D$4:$Q$4043,8,FALSE)=0),"",VLOOKUP($A13,'Master Database'!$D$4:$Q$4043,8,FALSE)),"") -> 2.73075 | U13: =IFERROR(VLOOKUP($A13,'Master Database'!$D$4:$Q$4043,9,FALSE),"") -> G | V13: =IFERROR(VLOOKUP($A13,'Master Database'!$D$4:$Q$4043,10,FALSE),"") -> A | W13: =IFERROR(VLOOKUP($A13,'Master Database'!$D$4:$Q$4043,11,FALSE),"") -> A | X13: =IFERROR(IF($L13="No Data","",IF(VLOOKUP($A13,'Master Database'!$D$4:$Q$4043,12,FALSE)=0,"",VLOOKUP($A13,'Master Database'!$D$4:$Q$4043,12,FALSE))),"") ->  | Y13: =IFERROR(IF($L13="No Data","",IF(VLOOKUP($A13,'Master Database'!$D$4:$Q$4043,13,FALSE)=0,"",VLOOKUP($A13,'Master Database'!$D$4:$Q$4043,13,FALSE))),"") ->  | Z13: =IFERROR(IF($L13="No Data","",IF(VLOOKUP($A13,'Master Database'!$D$4:$Q$4043,14,FALSE)=0,"",VLOOKUP($A13,'Master Database'!$D$4:$Q$4043,14,FALSE))),"") ->  | AC13: =VLOOKUP(H13,'Map lookups'!$B$2:$O$104,12,FALSE) -> To help understand how the management of psychosis and common mental health disorders affect expenditure and outcomes in the CCG please visit the Commissioning for Value website and download a 2014 pack. | AD13: =VLOOKUP(H13,'Map lookups'!$B$2:$O$104,13,FALSE) -> http://www.england.nhs.uk/resources/resources-for-ccgs/comm-for-value/ http://pathways.nice.org.uk/pathways/psychosis-and-schizophrenia http://pathways.nice.org.uk/pathways/common-mental-health-disorders-in-primary-care | AE13: =VLOOKUP(H13,'Map lookups'!$B$2:$O$104,14,FALSE) -> No Data
A14: 63Barking and Dagenham | B14: =VLOOKUP('Report '!$F$2,'Rules & Lookups'!$B$7:$C$158,2,FALSE) -> E09000002 | C14: =VLOOKUP(H14,'Map lookups'!$B$2:$P$104,7,FALSE) -> Care of Older People | D14: =VLOOKUP(H14,'Map lookups'!$B$2:$P$104,8,FALSE) -> No Subcategory | E14: Upper Tier | F14: =VLOOKUP(H14,'Map lookups'!$B$2:$P$104,10,FALSE) -> Dementia and LTCs | G14: =VLOOKUP($H14,'Map lookups'!$B$2:$P$104,5,FALSE) -> End of Life, Social Care & Rehabilitation | H14: 63 | I14: =VLOOKUP($H14,'Map lookups'!$B$2:$P$104,4,FALSE) -> Map 63: Rate of council-supported permanent admissions of people aged 65 years and over to nursing home and residential care home settings per 100,000 population by upper-tier local authority, 2013/14 | J14: =VLOOKUP(H14,'Map lookups'!$B$2:$P$104,6,FALSE) -> 2, 5 | K14: =IF(VLOOKUP($H14,'Master Database'!$C$4:$E$4043,3,FALSE)="Bad","Improvement Opportunity",VLOOKUP($H14,'Master Database'!$C$4:$E$4043,3,FALSE)) -> Improvement Opportunity | L14: =IF(OR(VLOOKUP($A14,'Master Database'!$D$4:$Q$4043,3,FALSE)="-",VLOOKUP($A14,'Master Database'!$D$4:$Q$4043,3,FALSE)="",VLOOKUP($A14,'Master Database'!$D$4:$Q$4043,3,FALSE)=0),"No Data",VLOOKUP($A14,'Master Database'!$D$4:$Q$4043,3,FALSE)) -> 691.7755573 | M14: =IF(OR(VLOOKUP($A14,'Master Database'!$D$4:$Q$4043,4,FALSE)="-",VLOOKUP($A14,'Master Database'!$D$4:$Q$4043,4,FALSE)="",VLOOKUP($A14,'Master Database'!$D$4:$Q$4043,4,FALSE)=0),"No Data",VLOOKUP($A14,'Master Database'!$D$4:$Q$4043,4,FALSE)) -> 579.9987089 | N14: =IF(OR(VLOOKUP($A14,'Master Database'!$D$4:$Q$4043,5,FALSE)="-",VLOOKUP($A14,'Master Database'!$D$4:$Q$4043,5,FALSE)="",VLOOKUP($A14,'Master Database'!$D$4:$Q$4043,5,FALSE)=0),"No Data",VLOOKUP($A14,'Master Database'!$D$4:$Q$4043,5,FALSE)) -> 818.8077747 | O14: =IF(VLOOKUP(A14,Quintiles!$A$3:$E$4042,5,FALSE)=6,"No Data",VLOOKUP(A14,Quintiles!$A$3:$E$4042,5,FALSE)) -> 3 | P14: =IFERROR(INDEX('Colour Calculation'!$AC$20:$AX$21,1,MATCH('Report '!$H14,'Colour Calculation'!$AC$21:$AX$21,0)),"") -> R | Q14: =IFERROR(INDEX('Best performing LA code'!$AD$7:$AK$28,MATCH("Map_"&'Report '!$H14,'Best performing LA code'!$AD$7:$AD$28,0),8),"") -> Ealing | R14: =IFERROR(IF(OR(VLOOKUP($A14,'Master Database'!$D$4:$Q$4043,6,FALSE)="",VLOOKUP($A14,'Master Database'!$D$4:$Q$4043,6,FALSE)="-",VLOOKUP($A14,'Master Database'!$D$4:$Q$4043,6,FALSE)=0),"",VLOOKUP($A14,'Master Database'!$D$4:$Q$4043,6,FALSE)),"") -> 668.9414014 | S14: =IFERROR(IF(OR(VLOOKUP($A14,'Master Database'!$D$4:$Q$4043,7,FALSE)="",VLOOKUP($A14,'Master Database'!$D$4:$Q$4043,7,FALSE)="-",VLOOKUP($A14,'Master Database'!$D$4:$Q$4043,7,FALSE)=0),"",VLOOKUP($A14,'Master Database'!$D$4:$Q$4043,7,FALSE)),"") -> 493.8974764 | T14: =IFERROR(IF(OR(VLOOKUP($A14,'Master Database'!$D$4:$Q$4043,8,FALSE)="",VLOOKUP($A14,'Master Database'!$D$4:$Q$4043,8,FALSE)="-",VLOOKUP($A14,'Master Database'!$D$4:$Q$4043,8,FALSE)=0),"",VLOOKUP($A14,'Master Database'!$D$4:$Q$4043,8,FALSE)),"") -> 362.9522549 | U14: =IFERROR(VLOOKUP($A14,'Master Database'!$D$4:$Q$4043,9,FALSE),"") -> A | V14: =IFERROR(VLOOKUP($A14,'Master Database'!$D$4:$Q$4043,10,FALSE),"") -> R | W14: =IFERROR(VLOOKUP($A14,'Master Database'!$D$4:$Q$4043,11,FALSE),"") -> R | X14: =IFERROR(IF($L14="No Data","",IF(VLOOKUP($A14,'Master Database'!$D$4:$Q$4043,12,FALSE)=0,"",VLOOKUP($A14,'Master Database'!$D$4:$Q$4043,12,FALSE))),"") -> 22.83415584 | Y14: =IFERROR(IF($L14="No Data","",IF(VLOOKUP($A14,'Master Database'!$D$4:$Q$4043,13,FALSE)=0,"",VLOOKUP($A14,'Master Database'!$D$4:$Q$4043,13,FALSE))),"") -> 197.8780808 | Z14: =IFERROR(IF($L14="No Data","",IF(VLOOKUP($A14,'Master Database'!$D$4:$Q$4043,14,FALSE)=0,"",VLOOKUP($A14,'Master Database'!$D$4:$Q$4043,14,FALSE))),"") -> 328.8233024 | AC14: =VLOOKUP(H14,'Map lookups'!$B$2:$O$104,12,FALSE) -> To help understand how the management of dementia and long-term conditions affects expenditure and outcomes in the CCG please visit the Commissioning for Value website and download a 2015 pack. | AD14: =VLOOKUP(H14,'Map lookups'!$B$2:$O$104,13,FALSE) -> http://www.england.nhs.uk/resources/resources-for-ccgs/comm-for-value/ http://pathways.nice.org.uk/pathways/dementia | AE14: =VLOOKUP(H14,'Map lookups'!$B$2:$O$104,14,FALSE) -> No Data
A15: 64Barking and Dagenham | B15: =VLOOKUP('Report '!$F$2,'Rules & Lookups'!$B$7:$C$158,2,FALSE) -> E09000002 | C15: =VLOOKUP(H15,'Map lookups'!$B$2:$P$104,7,FALSE) -> Care of Older People | D15: =VLOOKUP(H15,'Map lookups'!$B$2:$P$104,8,FALSE) -> No Subcategory | E15: Upper Tier | F15: =VLOOKUP(H15,'Map lookups'!$B$2:$P$104,10,FALSE) -> Dementia and LTCs | G15: =VLOOKUP($H15,'Map lookups'!$B$2:$P$104,5,FALSE) -> End of Life, Social Care & Rehabilitation | H15: 64 | I15: =VLOOKUP($H15,'Map lookups'!$B$2:$P$104,4,FALSE) -> Map 64: Percentage of people aged 65 years and over who were discharged from hospital into re-ablement/rehabilitation services by upper-tier local authority, 2013/14 | J15: =VLOOKUP(H15,'Map lookups'!$B$2:$P$104,6,FALSE) -> 2, 3 | K15: =IF(VLOOKUP($H15,'Master Database'!$C$4:$E$4043,3,FALSE)="Bad","Improvement Opportunity",VLOOKUP($H15,'Master Database'!$C$4:$E$4043,3,FALSE)) -> Good | L15: =IF(OR(VLOOKUP($A15,'Master Database'!$D$4:$Q$4043,3,FALSE)="-",VLOOKUP($A15,'Master Database'!$D$4:$Q$4043,3,FALSE)="",VLOOKUP($A15,'Master Database'!$D$4:$Q$4043,3,FALSE)=0),"No Data",VLOOKUP($A15,'Master Database'!$D$4:$Q$4043,3,FALSE)) -> 4.1 | M15: =IF(OR(VLOOKUP($A15,'Master Database'!$D$4:$Q$4043,4,FALSE)="-",VLOOKUP($A15,'Master Database'!$D$4:$Q$4043,4,FALSE)="",VLOOKUP($A15,'Master Database'!$D$4:$Q$4043,4,FALSE)=0),"No Data",VLOOKUP($A15,'Master Database'!$D$4:$Q$4043,4,FALSE)) -> No Data | N15: =IF(OR(VLOOKUP($A15,'Master Database'!$D$4:$Q$4043,5,FALSE)="-",VLOOKUP($A15,'Master Database'!$D$4:$Q$4043,5,FALSE)="",VLOOKUP($A15,'Master Database'!$D$4:$Q$4043,5,FALSE)=0),"No Data",VLOOKUP($A15,'Master Database'!$D$4:$Q$4043,5,FALSE)) -> No Data | O15: =IF(VLOOKUP(A15,Quintiles!$A$3:$E$4042,5,FALSE)=6,"No Data",VLOOKUP(A15,Quintiles!$A$3:$E$4042,5,FALSE)) -> 4 | P15: =IFERROR(INDEX('Colour Calculation'!$AC$20:$AX$21,1,MATCH('Report '!$H15,'Colour Calculation'!$AC$21:$AX$21,0)),"") -> A | Q15: =IFERROR(INDEX('Best performing LA code'!$AD$7:$AK$28,MATCH("Map_"&'Report '!$H15,'Best performing LA code'!$AD$7:$AD$28,0),8),"") -> Brent | R15: =IFERROR(IF(OR(VLOOKUP($A15,'Master Database'!$D$4:$Q$4043,6,FALSE)="",VLOOKUP($A15,'Master Database'!$D$4:$Q$4043,6,FALSE)="-",VLOOKUP($A15,'Master Database'!$D$4:$Q$4043,6,FALSE)=0),"",VLOOKUP($A15,'Master Database'!$D$4:$Q$4043,6,FALSE)),"") -> 3.712 | S15: =IFERROR(IF(OR(VLOOKUP($A15,'Master Database'!$D$4:$Q$4043,7,FALSE)="",VLOOKUP($A15,'Master Database'!$D$4:$Q$4043,7,FALSE)="-",VLOOKUP($A15,'Master Database'!$D$4:$Q$4043,7,FALSE)=0),"",VLOOKUP($A15,'Master Database'!$D$4:$Q$4043,7,FALSE)),"") -> 4.85 | T15: =IFERROR(IF(OR(VLOOKUP($A15,'Master Database'!$D$4:$Q$4043,8,FALSE)="",VLOOKUP($A15,'Master Database'!$D$4:$Q$4043,8,FALSE)="-",VLOOKUP($A15,'Master Database'!$D$4:$Q$4043,8,FALSE)=0),"",VLOOKUP($A15,'Master Database'!$D$4:$Q$4043,8,FALSE)),"") -> 5.05 | U15: =IFERROR(VLOOKUP($A15,'Master Database'!$D$4:$Q$4043,9,FALSE),"") ->  | V15: =IFERROR(VLOOKUP($A15,'Master Database'!$D$4:$Q$4043,10,FALSE),"") ->  | W15: =IFERROR(VLOOKUP($A15,'Master Database'!$D$4:$Q$4043,11,FALSE),"") ->  | X15: =IFERROR(IF($L15="No Data","",IF(VLOOKUP($A15,'Master Database'!$D$4:$Q$4043,12,FALSE)=0,"",VLOOKUP($A15,'Master Database'!$D$4:$Q$4043,12,FALSE))),"") ->  | Y15: =IFERROR(IF($L15="No Data","",IF(VLOOKUP($A15,'Master Database'!$D$4:$Q$4043,13,FALSE)=0,"",VLOOKUP($A15,'Master Database'!$D$4:$Q$4043,13,FALSE))),"") -> 0.75 | Z15: =IFERROR(IF($L15="No Data","",IF(VLOOKUP($A15,'Master Database'!$D$4:$Q$4043,14,FALSE)=0,"",VLOOKUP($A15,'Master Database'!$D$4:$Q$4043,14,FALSE))),"") -> 0.95 | AC15: =VLOOKUP(H15,'Map lookups'!$B$2:$O$104,12,FALSE) -> To help understand how the management of dementia and long-term conditions affects expenditure and outcomes in the CCG please visit the Commissioning for Value website and download a 2015 pack. | AD15: =VLOOKUP(H15,'Map lookups'!$B$2:$O$104,13,FALSE) -> http://www.england.nhs.uk/resources/resources-for-ccgs/comm-for-value/ http://pathways.nice.org.uk/pathways/dementia | AE15: =VLOOKUP(H15,'Map lookups'!$B$2:$O$104,14,FALSE) -> No Data
A16: 65Barking and Dagenham | B16: =VLOOKUP('Report '!$F$2,'Rules & Lookups'!$B$7:$C$158,2,FALSE) -> E09000002 | C16: =VLOOKUP(H16,'Map lookups'!$B$2:$P$104,7,FALSE) -> Care of Older People | D16: =VLOOKUP(H16,'Map lookups'!$B$2:$P$104,8,FALSE) -> No Subcategory | E16: Upper Tier | F16: =VLOOKUP(H16,'Map lookups'!$B$2:$P$104,10,FALSE) -> Dementia and LTCs | G16: =VLOOKUP($H16,'Map lookups'!$B$2:$P$104,5,FALSE) -> End of Life, Social Care & Rehabilitation | H16: 65 | I16: =VLOOKUP($H16,'Map lookups'!$B$2:$P$104,4,FALSE) -> Map 65: Percentage of people aged 65 years and over who were still at home 91 days after discharge from hospital into re-ablement/rehabilitation services by upper-tier local authority, 2013/14 | J16: =VLOOKUP(H16,'Map lookups'!$B$2:$P$104,6,FALSE) -> 2, 3 | K16: =IF(VLOOKUP($H16,'Master Database'!$C$4:$E$4043,3,FALSE)="Bad","Improvement Opportunity",VLOOKUP($H16,'Master Database'!$C$4:$E$4043,3,FALSE)) -> Good | L16: =IF(OR(VLOOKUP($A16,'Master Database'!$D$4:$Q$4043,3,FALSE)="-",VLOOKUP($A16,'Master Database'!$D$4:$Q$4043,3,FALSE)="",VLOOKUP($A16,'Master Database'!$D$4:$Q$4043,3,FALSE)=0),"No Data",VLOOKUP($A16,'Master Database'!$D$4:$Q$4043,3,FALSE)) -> 88.3 | M16: =IF(OR(VLOOKUP($A16,'Master Database'!$D$4:$Q$4043,4,FALSE)="-",VLOOKUP($A16,'Master Database'!$D$4:$Q$4043,4,FALSE)="",VLOOKUP($A16,'Master Database'!$D$4:$Q$4043,4,FALSE)=0),"No Data",VLOOKUP($A16,'Master Database'!$D$4:$Q$4043,4,FALSE)) -> No Data | N16: =IF(OR(VLOOKUP($A16,'Master Database'!$D$4:$Q$4043,5,FALSE)="-",VLOOKUP($A16,'Master Database'!$D$4:$Q$4043,5,FALSE)="",VLOOKUP($A16,'Master Database'!$D$4:$Q$4043,5,FALSE)=0),"No Data",VLOOKUP($A16,'Master Database'!$D$4:$Q$4043,5,FALSE)) -> No Data | O16: =IF(VLOOKUP(A16,Quintiles!$A$3:$E$4042,5,FALSE)=6,"No Data",VLOOKUP(A16,Quintiles!$A$3:$E$4042,5,FALSE)) -> 4 | P16: =IFERROR(INDEX('Colour Calculation'!$AC$20:$AX$21,1,MATCH('Report '!$H16,'Colour Calculation'!$AC$21:$AX$21,0)),"") -> A | Q16: =IFERROR(INDEX('Best performing LA code'!$AD$7:$AK$28,MATCH("Map_"&'Report '!$H16,'Best performing LA code'!$AD$7:$AD$28,0),8),"") -> Lambeth | R16: =IFERROR(IF(OR(VLOOKUP($A16,'Master Database'!$D$4:$Q$4043,6,FALSE)="",VLOOKUP($A16,'Master Database'!$D$4:$Q$4043,6,FALSE)="-",VLOOKUP($A16,'Master Database'!$D$4:$Q$4043,6,FALSE)=0),"",VLOOKUP($A16,'Master Database'!$D$4:$Q$4043,6,FALSE)),"") -> 83.53154362 | S16: =IFERROR(IF(OR(VLOOKUP($A16,'Master Database'!$D$4:$Q$4043,7,FALSE)="",VLOOKUP($A16,'Master Database'!$D$4:$Q$4043,7,FALSE)="-",VLOOKUP($A16,'Master Database'!$D$4:$Q$4043,7,FALSE)=0),"",VLOOKUP($A16,'Master Database'!$D$4:$Q$4043,7,FALSE)),"") -> 87.975 | T16: =IFERROR(IF(OR(VLOOKUP($A16,'Master Database'!$D$4:$Q$4043,8,FALSE)="",VLOOKUP($A16,'Master Database'!$D$4:$Q$4043,8,FALSE)="-",VLOOKUP($A16,'Master Database'!$D$4:$Q$4043,8,FALSE)=0),"",VLOOKUP($A16,'Master Database'!$D$4:$Q$4043,8,FALSE)),"") -> 90.6 | U16: =IFERROR(VLOOKUP($A16,'Master Database'!$D$4:$Q$4043,9,FALSE),"") ->  | V16: =IFERROR(VLOOKUP($A16,'Master Database'!$D$4:$Q$4043,10,FALSE),"") ->  | W16: =IFERROR(VLOOKUP($A16,'Master Database'!$D$4:$Q$4043,11,FALSE),"") ->  | X16: =IFERROR(IF($L16="No Data","",IF(VLOOKUP($A16,'Master Database'!$D$4:$Q$4043,12,FALSE)=0,"",VLOOKUP($A16,'Master Database'!$D$4:$Q$4043,12,FALSE))),"") ->  | Y16: =IFERROR(IF($L16="No Data","",IF(VLOOKUP($A16,'Master Database'!$D$4:$Q$4043,13,FALSE)=0,"",VLOOKUP($A16,'Master Database'!$D$4:$Q$4043,13,FALSE))),"") ->  | Z16: =IFERROR(IF($L16="No Data","",IF(VLOOKUP($A16,'Master Database'!$D$4:$Q$4043,14,FALSE)=0,"",VLOOKUP($A16,'Master Database'!$D$4:$Q$4043,14,FALSE))),"") -> 2.3 | AC16: =VLOOKUP(H16,'Map lookups'!$B$2:$O$104,12,FALSE) -> To help understand how the management of dementia and long-term conditions affects expenditure and outcomes in the CCG please visit the Commissioning for Value website and download a 2015 pack. | AD16: =VLOOKUP(H16,'Map lookups'!$B$2:$O$104,13,FALSE) -> http://www.england.nhs.uk/resources/resources-for-ccgs/comm-for-value/ http://pathways.nice.org.uk/pathways/dementia | AE16: =VLOOKUP(H16,'Map lookups'!$B$2:$O$104,14,FALSE) -> No Data
A17: 66Barking and Dagenham | B17: =VLOOKUP('Report '!$F$2,'Rules & Lookups'!$B$7:$C$158,2,FALSE) -> E09000002 | C17: =VLOOKUP(H17,'Map lookups'!$B$2:$P$104,7,FALSE) -> End-of-Life Care | D17: =VLOOKUP(H17,'Map lookups'!$B$2:$P$104,8,FALSE) -> No Subcategory | E17: Upper Tier | F17: =VLOOKUP(H17,'Map lookups'!$B$2:$P$104,10,FALSE) -> Dementia and LTCs | G17: =VLOOKUP($H17,'Map lookups'!$B$2:$P$104,5,FALSE) -> End of Life, Social Care & Rehabilitation | H17: 66 | I17: =VLOOKUP($H17,'Map lookups'!$B$2:$P$104,4,FALSE) -> Map 66: Percentage of all deaths in an area that occurred in hospital by upper-tier local authority, 2013 | J17: =VLOOKUP(H17,'Map lookups'!$B$2:$P$104,6,FALSE) -> 4 | K17: =IF(VLOOKUP($H17,'Master Database'!$C$4:$E$4043,3,FALSE)="Bad","Improvement Opportunity",VLOOKUP($H17,'Master Database'!$C$4:$E$4043,3,FALSE)) -> Improvement Opportunity | L17: =IF(OR(VLOOKUP($A17,'Master Database'!$D$4:$Q$4043,3,FALSE)="-",VLOOKUP($A17,'Master Database'!$D$4:$Q$4043,3,FALSE)="",VLOOKUP($A17,'Master Database'!$D$4:$Q$4043,3,FALSE)=0),"No Data",VLOOKUP($A17,'Master Database'!$D$4:$Q$4043,3,FALSE)) -> 60.2006689 | M17: =IF(OR(VLOOKUP($A17,'Master Database'!$D$4:$Q$4043,4,FALSE)="-",VLOOKUP($A17,'Master Database'!$D$4:$Q$4043,4,FALSE)="",VLOOKUP($A17,'Master Database'!$D$4:$Q$4043,4,FALSE)=0),"No Data",VLOOKUP($A17,'Master Database'!$D$4:$Q$4043,4,FALSE)) -> 57.39816869 | N17: =IF(OR(VLOOKUP($A17,'Master Database'!$D$4:$Q$4043,5,FALSE)="-",VLOOKUP($A17,'Master Database'!$D$4:$Q$4043,5,FALSE)="",VLOOKUP($A17,'Master Database'!$D$4:$Q$4043,5,FALSE)=0),"No Data",VLOOKUP($A17,'Master Database'!$D$4:$Q$4043,5,FALSE)) -> 62.93785139 | O17: =IF(VLOOKUP(A17,Quintiles!$A$3:$E$4042,5,FALSE)=6,"No Data",VLOOKUP(A17,Quintiles!$A$3:$E$4042,5,FALSE)) -> 5 | P17: =IFERROR(INDEX('Colour Calculation'!$AC$20:$AX$21,1,MATCH('Report '!$H17,'Colour Calculation'!$AC$21:$AX$21,0)),"") -> R | Q17: =IFERROR(INDEX('Best performing LA code'!$AD$7:$AK$28,MATCH("Map_"&'Report '!$H17,'Best performing LA code'!$AD$7:$AD$28,0),8),"") -> Greenwich | R17: =IFERROR(IF(OR(VLOOKUP($A17,'Master Database'!$D$4:$Q$4043,6,FALSE)="",VLOOKUP($A17,'Master Database'!$D$4:$Q$4043,6,FALSE)="-",VLOOKUP($A17,'Master Database'!$D$4:$Q$4043,6,FALSE)=0),"",VLOOKUP($A17,'Master Database'!$D$4:$Q$4043,6,FALSE)),"") -> 49.81269361 | S17: =IFERROR(IF(OR(VLOOKUP($A17,'Master Database'!$D$4:$Q$4043,7,FALSE)="",VLOOKUP($A17,'Master Database'!$D$4:$Q$4043,7,FALSE)="-",VLOOKUP($A17,'Master Database'!$D$4:$Q$4043,7,FALSE)=0),"",VLOOKUP($A17,'Master Database'!$D$4:$Q$4043,7,FALSE)),"") -> 57.71124755 | T17: =IFERROR(IF(OR(VLOOKUP($A17,'Master Database'!$D$4:$Q$4043,8,FALSE)="",VLOOKUP($A17,'Master Database'!$D$4:$Q$4043,8,FALSE)="-",VLOOKUP($A17,'Master Database'!$D$4:$Q$4043,8,FALSE)=0),"",VLOOKUP($A17,'Master Database'!$D$4:$Q$4043,8,FALSE)),"") -> 55.47313722 | U17: =IFERROR(VLOOKUP($A17,'Master Database'!$D$4:$Q$4043,9,FALSE),"") -> R | V17: =IFERROR(VLOOKUP($A17,'Master Database'!$D$4:$Q$4043,10,FALSE),"") -> A | W17: =IFERROR(VLOOKUP($A17,'Master Database'!$D$4:$Q$4043,11,FALSE),"") -> R | X17: =IFERROR(IF($L17="No Data","",IF(VLOOKUP($A17,'Master Database'!$D$4:$Q$4043,12,FALSE)=0,"",VLOOKUP($A17,'Master Database'!$D$4:$Q$4043,12,FALSE))),"") -> 10.38797528 | Y17: =IFERROR(IF($L17="No Data","",IF(VLOOKUP($A17,'Master Database'!$D$4:$Q$4043,13,FALSE)=0,"",VLOOKUP($A17,'Master Database'!$D$4:$Q$4043,13,FALSE))),"") -> 2.48942135 | Z17: =IFERROR(IF($L17="No Data","",IF(VLOOKUP($A17,'Master Database'!$D$4:$Q$4043,14,FALSE)=0,"",VLOOKUP($A17,'Master Database'!$D$4:$Q$4043,14,FALSE))),"") -> 4.727531678 | AC17: =VLOOKUP(H17,'Map lookups'!$B$2:$O$104,12,FALSE) -> To help understand how the management of dementia and long-term conditions affects expenditure and outcomes in the CCG please visit the Commissioning for Value website and download a 2015 pack. | AD17: =VLOOKUP(H17,'Map lookups'!$B$2:$O$104,13,FALSE) -> http://www.england.nhs.uk/resources/resources-for-ccgs/comm-for-value/ http://pathways.nice.org.uk/pathways/dementia | AE17: =VLOOKUP(H17,'Map lookups'!$B$2:$O$104,14,FALSE) -> No Data
A18: 70Barking and Dagenham | B18: =VLOOKUP('Report '!$F$2,'Rules & Lookups'!$B$7:$C$158,2,FALSE) -> E09000002 | C18: =VLOOKUP(H18,'Map lookups'!$B$2:$P$104,7,FALSE) -> Care of Mothers, Babies, Children and Young People | D18: =VLOOKUP(H18,'Map lookups'!$B$2:$P$104,8,FALSE) -> No Subcategory | E18: Upper Tier | F18: =VLOOKUP(H18,'Map lookups'!$B$2:$P$104,10,FALSE) -> Maternity and Early Years | G18: =VLOOKUP($H18,'Map lookups'!$B$2:$P$104,5,FALSE) -> Secondary Care Treatment | H18: 70 | I18: =VLOOKUP($H18,'Map lookups'!$B$2:$P$104,4,FALSE) -> Map 70: Rate of stillbirths and neonatal deaths (under 28 days) per 1,000 live-births and stillbirths by upper-tier local authority, 2012 | J18: =VLOOKUP(H18,'Map lookups'!$B$2:$P$104,6,FALSE) -> 1 | K18: =IF(VLOOKUP($H18,'Master Database'!$C$4:$E$4043,3,FALSE)="Bad","Improvement Opportunity",VLOOKUP($H18,'Master Database'!$C$4:$E$4043,3,FALSE)) -> Improvement Opportunity | L18: =IF(OR(VLOOKUP($A18,'Master Database'!$D$4:$Q$4043,3,FALSE)="-",VLOOKUP($A18,'Master Database'!$D$4:$Q$4043,3,FALSE)="",VLOOKUP($A18,'Master Database'!$D$4:$Q$4043,3,FALSE)=0),"No Data",VLOOKUP($A18,'Master Database'!$D$4:$Q$4043,3,FALSE)) -> 9.53815261 | M18: =IF(OR(VLOOKUP($A18,'Master Database'!$D$4:$Q$4043,4,FALSE)="-",VLOOKUP($A18,'Master Database'!$D$4:$Q$4043,4,FALSE)="",VLOOKUP($A18,'Master Database'!$D$4:$Q$4043,4,FALSE)=0),"No Data",VLOOKUP($A18,'Master Database'!$D$4:$Q$4043,4,FALSE)) -> 6.749764469 | N18: =IF(OR(VLOOKUP($A18,'Master Database'!$D$4:$Q$4043,5,FALSE)="-",VLOOKUP($A18,'Master Database'!$D$4:$Q$4043,5,FALSE)="",VLOOKUP($A18,'Master Database'!$D$4:$Q$4043,5,FALSE)=0),"No Data",VLOOKUP($A18,'Master Database'!$D$4:$Q$4043,5,FALSE)) -> 13.09185967 | O18: =IF(VLOOKUP(A18,Quintiles!$A$3:$E$4042,5,FALSE)=6,"No Data",VLOOKUP(A18,Quintiles!$A$3:$E$4042,5,FALSE)) -> 5 | P18: =IFERROR(INDEX('Colour Calculation'!$AC$20:$AX$21,1,MATCH('Report '!$H18,'Colour Calculation'!$AC$21:$AX$21,0)),"") -> A | Q18: =IFERROR(INDEX('Best performing LA code'!$AD$7:$AK$28,MATCH("Map_"&'Report '!$H18,'Best performing LA code'!$AD$7:$AD$28,0),8),"") -> Lambeth | R18: =IFERROR(IF(OR(VLOOKUP($A18,'Master Database'!$D$4:$Q$4043,6,FALSE)="",VLOOKUP($A18,'Master Database'!$D$4:$Q$4043,6,FALSE)="-",VLOOKUP($A18,'Master Database'!$D$4:$Q$4043,6,FALSE)=0),"",VLOOKUP($A18,'Master Database'!$D$4:$Q$4043,6,FALSE)),"") -> 7.541699935 | S18: =IFERROR(IF(OR(VLOOKUP($A18,'Master Database'!$D$4:$Q$4043,7,FALSE)="",VLOOKUP($A18,'Master Database'!$D$4:$Q$4043,7,FALSE)="-",VLOOKUP($A18,'Master Database'!$D$4:$Q$4043,7,FALSE)=0),"",VLOOKUP($A18,'Master Database'!$D$4:$Q$4043,7,FALSE)),"") -> 9.416177755 | T18: =IFERROR(IF(OR(VLOOKUP($A18,'Master Database'!$D$4:$Q$4043,8,FALSE)="",VLOOKUP($A18,'Master Database'!$D$4:$Q$4043,8,FALSE)="-",VLOOKUP($A18,'Master Database'!$D$4:$Q$4043,8,FALSE)=0),"",VLOOKUP($A18,'Master Database'!$D$4:$Q$4043,8,FALSE)),"") -> 8.78824388 | U18: =IFERROR(VLOOKUP($A18,'Master Database'!$D$4:$Q$4043,9,FALSE),"") -> A | V18: =IFERROR(VLOOKUP($A18,'Master Database'!$D$4:$Q$4043,10,FALSE),"") -> A | W18: =IFERROR(VLOOKUP($A18,'Master Database'!$D$4:$Q$4043,11,FALSE),"") -> A | X18: =IFERROR(IF($L18="No Data","",IF(VLOOKUP($A18,'Master Database'!$D$4:$Q$4043,12,FALSE)=0,"",VLOOKUP($A18,'Master Database'!$D$4:$Q$4043,12,FALSE))),"") -> 1.996452676 | Y18: =IFERROR(IF($L18="No Data","",IF(VLOOKUP($A18,'Master Database'!$D$4:$Q$4043,13,FALSE)=0,"",VLOOKUP($A18,'Master Database'!$D$4:$Q$4043,13,FALSE))),"") -> 0.1219748558 | Z18: =IFERROR(IF($L18="No Data","",IF(VLOOKUP($A18,'Master Database'!$D$4:$Q$4043,14,FALSE)=0,"",VLOOKUP($A18,'Master Database'!$D$4:$Q$4043,14,FALSE))),"") -> 0.7499087304 | AC18: =VLOOKUP(H18,'Map lookups'!$B$2:$O$104,12,FALSE) -> To help understand how the management of maternity and early years affects expenditure and outcomes in the Local Authority please visit the Commissioning for Value website and download a 2015 pack. | AD18: =VLOOKUP(H18,'Map lookups'!$B$2:$O$104,13,FALSE) -> http://www.england.nhs.uk/resources/resources-for-ccgs/comm-for-value/ http://pathways.nice.org.uk/ https://sustain.sharepoint.com/Documents/HCP%20Integrated%20Com%20and%20Del%20toolkit%20final.pdf | AE18: =VLOOKUP(H18,'Map lookups'!$B$2:$O$104,14,FALSE) -> No Data
A19: 72Barking and Dagenham | B19: =VLOOKUP('Report '!$F$2,'Rules & Lookups'!$B$7:$C$158,2,FALSE) -> E09000002 | C19: =VLOOKUP(H19,'Map lookups'!$B$2:$P$104,7,FALSE) -> Care of Mothers, Babies, Children and Young People | D19: =VLOOKUP(H19,'Map lookups'!$B$2:$P$104,8,FALSE) -> No Subcategory | E19: Upper Tier | F19: =VLOOKUP(H19,'Map lookups'!$B$2:$P$104,10,FALSE) -> Maternity and Early Years | G19: =VLOOKUP($H19,'Map lookups'!$B$2:$P$104,5,FALSE) -> Prevention and Early Diagnosis | H19: 72 | I19: =VLOOKUP($H19,'Map lookups'!$B$2:$P$104,4,FALSE) -> Map 72: Percentage of infants who were totally or partially breastfeeding at 6-8 weeks by upper-tier local authority, 2012/13 | J19: =VLOOKUP(H19,'Map lookups'!$B$2:$P$104,6,FALSE) -> 4, 5 | K19: =IF(VLOOKUP($H19,'Master Database'!$C$4:$E$4043,3,FALSE)="Bad","Improvement Opportunity",VLOOKUP($H19,'Master Database'!$C$4:$E$4043,3,FALSE)) -> Good | L19: =IF(OR(VLOOKUP($A19,'Master Database'!$D$4:$Q$4043,3,FALSE)="-",VLOOKUP($A19,'Master Database'!$D$4:$Q$4043,3,FALSE)="",VLOOKUP($A19,'Master Database'!$D$4:$Q$4043,3,FALSE)=0),"No Data",VLOOKUP($A19,'Master Database'!$D$4:$Q$4043,3,FALSE)) -> No Data | M19: =IF(OR(VLOOKUP($A19,'Master Database'!$D$4:$Q$4043,4,FALSE)="-",VLOOKUP($A19,'Master Database'!$D$4:$Q$4043,4,FALSE)="",VLOOKUP($A19,'Master Database'!$D$4:$Q$4043,4,FALSE)=0),"No Data",VLOOKUP($A19,'Master Database'!$D$4:$Q$4043,4,FALSE)) -> No Data | N19: =IF(OR(VLOOKUP($A19,'Master Database'!$D$4:$Q$4043,5,FALSE)="-",VLOOKUP($A19,'Master Database'!$D$4:$Q$4043,5,FALSE)="",VLOOKUP($A19,'Master Database'!$D$4:$Q$4043,5,FALSE)=0),"No Data",VLOOKUP($A19,'Master Database'!$D$4:$Q$4043,5,FALSE)) -> No Data | O19: =IF(VLOOKUP(A19,Quintiles!$A$3:$E$4042,5,FALSE)=6,"No Data",VLOOKUP(A19,Quintiles!$A$3:$E$4042,5,FALSE)) -> No Data | P19: =IFERROR(INDEX('Colour Calculation'!$AC$20:$AX$21,1,MATCH('Report '!$H19,'Colour Calculation'!$AC$21:$AX$21,0)),"") ->  | Q19: =IFERROR(INDEX('Best performing LA code'!$AD$7:$AK$28,MATCH("Map_"&'Report '!$H19,'Best performing LA code'!$AD$7:$AD$28,0),8),"") -> Hackney | R19: =IFERROR(IF(OR(VLOOKUP($A19,'Master Database'!$D$4:$Q$4043,6,FALSE)="",VLOOKUP($A19,'Master Database'!$D$4:$Q$4043,6,FALSE)="-",VLOOKUP($A19,'Master Database'!$D$4:$Q$4043,6,FALSE)=0),"",VLOOKUP($A19,'Master Database'!$D$4:$Q$4043,6,FALSE)),"") -> 45.18130456 | S19: =IFERROR(IF(OR(VLOOKUP($A19,'Master Database'!$D$4:$Q$4043,7,FALSE)="",VLOOKUP($A19,'Master Database'!$D$4:$Q$4043,7,FALSE)="-",VLOOKUP($A19,'Master Database'!$D$4:$Q$4043,7,FALSE)=0),"",VLOOKUP($A19,'Master Database'!$D$4:$Q$4043,7,FALSE)),"") -> 36.44268315 | T19: =IFERROR(IF(OR(VLOOKUP($A19,'Master Database'!$D$4:$Q$4043,8,FALSE)="",VLOOKUP($A19,'Master Database'!$D$4:$Q$4043,8,FALSE)="-",VLOOKUP($A19,'Master Database'!$D$4:$Q$4043,8,FALSE)=0),"",VLOOKUP($A19,'Master Database'!$D$4:$Q$4043,8,FALSE)),"") -> 74.37091382 | U19: =IFERROR(VLOOKUP($A19,'Master Database'!$D$4:$Q$4043,9,FALSE),"") ->  | V19: =IFERROR(VLOOKUP($A19,'Master Database'!$D$4:$Q$4043,10,FALSE),"") ->  | W19: =IFERROR(VLOOKUP($A19,'Master Database'!$D$4:$Q$4043,11,FALSE),"") ->  | X19: =IFERROR(IF($L19="No Data","",IF(VLOOKUP($A19,'Master Database'!$D$4:$Q$4043,12,FALSE)=0,"",VLOOKUP($A19,'Master Database'!$D$4:$Q$4043,12,FALSE))),"") ->  | Y19: =IFERROR(IF($L19="No Data","",IF(VLOOKUP($A19,'Master Database'!$D$4:$Q$4043,13,FALSE)=0,"",VLOOKUP($A19,'Master Database'!$D$4:$Q$4043,13,FALSE))),"") ->  | Z19: =IFERROR(IF($L19="No Data","",IF(VLOOKUP($A19,'Master Database'!$D$4:$Q$4043,14,FALSE)=0,"",VLOOKUP($A19,'Master Database'!$D$4:$Q$4043,14,FALSE))),"") ->  | AC19: =VLOOKUP(H19,'Map lookups'!$B$2:$O$104,12,FALSE) -> To help understand how the management of maternity and early years affects expenditure and outcomes in the Local Authority please visit the Commissioning for Value website and download a 2015 pack. | AD19: =VLOOKUP(H19,'Map lookups'!$B$2:$O$104,13,FALSE) -> http://www.england.nhs.uk/resources/resources-for-ccgs/comm-for-value/ http://pathways.nice.org.uk/ https://sustain.sharepoint.com/Documents/HCP%20Integrated%20Com%20and%20Del%20toolkit%20final.pdf | AE19: =VLOOKUP(H19,'Map lookups'!$B$2:$O$104,14,FALSE) -> No Data
A20: 76Barking and Dagenham | B20: =VLOOKUP('Report '!$F$2,'Rules & Lookups'!$B$7:$C$158,2,FALSE) -> E09000002 | C20: =VLOOKUP(H20,'Map lookups'!$B$2:$P$104,7,FALSE) -> Care of Mothers, Babies, Children and Young People | D20: =VLOOKUP(H20,'Map lookups'!$B$2:$P$104,8,FALSE) -> No Subcategory | E20: Upper Tier | F20: =VLOOKUP(H20,'Map lookups'!$B$2:$P$104,10,FALSE) -> Maternity and Early Years | G20: =VLOOKUP($H20,'Map lookups'!$B$2:$P$104,5,FALSE) -> Prevention and Early Diagnosis | H20: 76 | I20: =VLOOKUP($H20,'Map lookups'!$B$2:$P$104,4,FALSE) -> Map 76: Percentage of immunisation completion for routine vaccinations against diphtheria, tetanus, pertussis, polio and Haemophilus influenzae type b (DTaP/IPV/Hib) at 2 years by upper-tier local authority, 2012/13 | J20: =VLOOKUP(H20,'Map lookups'!$B$2:$P$104,6,FALSE) -> 1, 5 | K20: =IF(VLOOKUP($H20,'Master Database'!$C$4:$E$4043,3,FALSE)="Bad","Improvement Opportunity",VLOOKUP($H20,'Master Database'!$C$4:$E$4043,3,FALSE)) -> Good | L20: =IF(OR(VLOOKUP($A20,'Master Database'!$D$4:$Q$4043,3,FALSE)="-",VLOOKUP($A20,'Master Database'!$D$4:$Q$4043,3,FALSE)="",VLOOKUP($A20,'Master Database'!$D$4:$Q$4043,3,FALSE)=0),"No Data",VLOOKUP($A20,'Master Database'!$D$4:$Q$4043,3,FALSE)) -> 94.19172449 | M20: =IF(OR(VLOOKUP($A20,'Master Database'!$D$4:$Q$4043,4,FALSE)="-",VLOOKUP($A20,'Master Database'!$D$4:$Q$4043,4,FALSE)="",VLOOKUP($A20,'Master Database'!$D$4:$Q$4043,4,FALSE)=0),"No Data",VLOOKUP($A20,'Master Database'!$D$4:$Q$4043,4,FALSE)) -> 93.41227651 | N20: =IF(OR(VLOOKUP($A20,'Master Database'!$D$4:$Q$4043,5,FALSE)="-",VLOOKUP($A20,'Master Database'!$D$4:$Q$4043,5,FALSE)="",VLOOKUP($A20,'Master Database'!$D$4:$Q$4043,5,FALSE)=0),"No Data",VLOOKUP($A20,'Master Database'!$D$4:$Q$4043,5,FALSE)) -> 94.8840004 | O20: =IF(VLOOKUP(A20,Quintiles!$A$3:$E$4042,5,FALSE)=6,"No Data",VLOOKUP(A20,Quintiles!$A$3:$E$4042,5,FALSE)) -> 1 | P20: =IFERROR(INDEX('Colour Calculation'!$AC$20:$AX$21,1,MATCH('Report '!$H20,'Colour Calculation'!$AC$21:$AX$21,0)),"") -> A | Q20: =IFERROR(INDEX('Best performing LA code'!$AD$7:$AK$28,MATCH("Map_"&'Report '!$H20,'Best performing LA code'!$AD$7:$AD$28,0),8),"") -> Tower Hamlets | R20: =IFERROR(IF(OR(VLOOKUP($A20,'Master Database'!$D$4:$Q$4043,6,FALSE)="",VLOOKUP($A20,'Master Database'!$D$4:$Q$4043,6,FALSE)="-",VLOOKUP($A20,'Master Database'!$D$4:$Q$4043,6,FALSE)=0),"",VLOOKUP($A20,'Master Database'!$D$4:$Q$4043,6,FALSE)),"") -> 96.33543803 | S20: =IFERROR(IF(OR(VLOOKUP($A20,'Master Database'!$D$4:$Q$4043,7,FALSE)="",VLOOKUP($A20,'Master Database'!$D$4:$Q$4043,7,FALSE)="-",VLOOKUP($A20,'Master Database'!$D$4:$Q$4043,7,FALSE)=0),"",VLOOKUP($A20,'Master Database'!$D$4:$Q$4043,7,FALSE)),"") -> 93.79575799 | T20: =IFERROR(IF(OR(VLOOKUP($A20,'Master Database'!$D$4:$Q$4043,8,FALSE)="",VLOOKUP($A20,'Master Database'!$D$4:$Q$4043,8,FALSE)="-",VLOOKUP($A20,'Master Database'!$D$4:$Q$4043,8,FALSE)=0),"",VLOOKUP($A20,'Master Database'!$D$4:$Q$4043,8,FALSE)),"") -> 94.96303946 | U20: =IFERROR(VLOOKUP($A20,'Master Database'!$D$4:$Q$4043,9,FALSE),"") -> R | V20: =IFERROR(VLOOKUP($A20,'Master Database'!$D$4:$Q$4043,10,FALSE),"") -> A | W20: =IFERROR(VLOOKUP($A20,'Master Database'!$D$4:$Q$4043,11,FALSE),"") -> R | X20: =IFERROR(IF($L20="No Data","",IF(VLOOKUP($A20,'Master Database'!$D$4:$Q$4043,12,FALSE)=0,"",VLOOKUP($A20,'Master Database'!$D$4:$Q$4043,12,FALSE))),"") -> 2.143713533 | Y20: =IFERROR(IF($L20="No Data","",IF(VLOOKUP($A20,'Master Database'!$D$4:$Q$4043,13,FALSE)=0,"",VLOOKUP($A20,'Master Database'!$D$4:$Q$4043,13,FALSE))),"") ->  | Z20: =IFERROR(IF($L20="No Data","",IF(VLOOKUP($A20,'Master Database'!$D$4:$Q$4043,14,FALSE)=0,"",VLOOKUP($A20,'Master Database'!$D$4:$Q$4043,14,FALSE))),"") -> 0.7713149701 | AC20: =VLOOKUP(H20,'Map lookups'!$B$2:$O$104,12,FALSE) -> To help understand how the management of maternity and early years affects expenditure and outcomes in the Local Authority please visit the Commissioning for Value website and download a 2015 pack. | AD20: =VLOOKUP(H20,'Map lookups'!$B$2:$O$104,13,FALSE) -> http://www.england.nhs.uk/resources/resources-for-ccgs/comm-for-value/ http://pathways.nice.org.uk/ https://sustain.sharepoint.com/Documents/HCP%20Integrated%20Com%20and%20Del%20toolkit%20final.pdf | AE20: =VLOOKUP(H20,'Map lookups'!$B$2:$O$104,14,FALSE) -> No Data
A21: 77Barking and Dagenham | B21: =VLOOKUP('Report '!$F$2,'Rules & Lookups'!$B$7:$C$158,2,FALSE) -> E09000002 | C21: =VLOOKUP(H21,'Map lookups'!$B$2:$P$104,7,FALSE) -> Care of Mothers, Babies, Children and Young People | D21: =VLOOKUP(H21,'Map lookups'!$B$2:$P$104,8,FALSE) -> No Subcategory | E21: Upper Tier | F21: =VLOOKUP(H21,'Map lookups'!$B$2:$P$104,10,FALSE) -> Maternity and Early Years | G21: =VLOOKUP($H21,'Map lookups'!$B$2:$P$104,5,FALSE) -> Prevention and Early Diagnosis | H21: 77 | I21: =VLOOKUP($H21,'Map lookups'!$B$2:$P$104,4,FALSE) -> Map 77: Percentage of immunisation completion for routine vaccinations against pneumococcal disease (PCV) at 2 years by upper-tier local authority, 2012/13 | J21: =VLOOKUP(H21,'Map lookups'!$B$2:$P$104,6,FALSE) -> 1, 5 | K21: =IF(VLOOKUP($H21,'Master Database'!$C$4:$E$4043,3,FALSE)="Bad","Improvement Opportunity",VLOOKUP($H21,'Master Database'!$C$4:$E$4043,3,FALSE)) -> Good | L21: =IF(OR(VLOOKUP($A21,'Master Database'!$D$4:$Q$4043,3,FALSE)="-",VLOOKUP($A21,'Master Database'!$D$4:$Q$4043,3,FALSE)="",VLOOKUP($A21,'Master Database'!$D$4:$Q$4043,3,FALSE)=0),"No Data",VLOOKUP($A21,'Master Database'!$D$4:$Q$4043,3,FALSE)) -> 87.7152403 | M21: =IF(OR(VLOOKUP($A21,'Master Database'!$D$4:$Q$4043,4,FALSE)="-",VLOOKUP($A21,'Master Database'!$D$4:$Q$4043,4,FALSE)="",VLOOKUP($A21,'Master Database'!$D$4:$Q$4043,4,FALSE)=0),"No Data",VLOOKUP($A21,'Master Database'!$D$4:$Q$4043,4,FALSE)) -> 86.64645324 | N21: =IF(OR(VLOOKUP($A21,'Master Database'!$D$4:$Q$4043,5,FALSE)="-",VLOOKUP($A21,'Master Database'!$D$4:$Q$4043,5,FALSE)="",VLOOKUP($A21,'Master Database'!$D$4:$Q$4043,5,FALSE)=0),"No Data",VLOOKUP($A21,'Master Database'!$D$4:$Q$4043,5,FALSE)) -> 88.70963073 | O21: =IF(VLOOKUP(A21,Quintiles!$A$3:$E$4042,5,FALSE)=6,"No Data",VLOOKUP(A21,Quintiles!$A$3:$E$4042,5,FALSE)) -> 1 | P21: =IFERROR(INDEX('Colour Calculation'!$AC$20:$AX$21,1,MATCH('Report '!$H21,'Colour Calculation'!$AC$21:$AX$21,0)),"") -> A | Q21: =IFERROR(INDEX('Best performing LA code'!$AD$7:$AK$28,MATCH("Map_"&'Report '!$H21,'Best performing LA code'!$AD$7:$AD$28,0),8),"") -> Tower Hamlets | R21: =IFERROR(IF(OR(VLOOKUP($A21,'Master Database'!$D$4:$Q$4043,6,FALSE)="",VLOOKUP($A21,'Master Database'!$D$4:$Q$4043,6,FALSE)="-",VLOOKUP($A21,'Master Database'!$D$4:$Q$4043,6,FALSE)=0),"",VLOOKUP($A21,'Master Database'!$D$4:$Q$4043,6,FALSE)),"") -> 92.4131892 | S21: =IFERROR(IF(OR(VLOOKUP($A21,'Master Database'!$D$4:$Q$4043,7,FALSE)="",VLOOKUP($A21,'Master Database'!$D$4:$Q$4043,7,FALSE)="-",VLOOKUP($A21,'Master Database'!$D$4:$Q$4043,7,FALSE)=0),"",VLOOKUP($A21,'Master Database'!$D$4:$Q$4043,7,FALSE)),"") -> 87.16466543 | T21: =IFERROR(IF(OR(VLOOKUP($A21,'Master Database'!$D$4:$Q$4043,8,FALSE)="",VLOOKUP($A21,'Master Database'!$D$4:$Q$4043,8,FALSE)="-",VLOOKUP($A21,'Master Database'!$D$4:$Q$4043,8,FALSE)=0),"",VLOOKUP($A21,'Master Database'!$D$4:$Q$4043,8,FALSE)),"") -> 88.8023782 | U21: =IFERROR(VLOOKUP($A21,'Master Database'!$D$4:$Q$4043,9,FALSE),"") -> R | V21: =IFERROR(VLOOKUP($A21,'Master Database'!$D$4:$Q$4043,10,FALSE),"") -> A | W21: =IFERROR(VLOOKUP($A21,'Master Database'!$D$4:$Q$4043,11,FALSE),"") -> R | X21: =IFERROR(IF($L21="No Data","",IF(VLOOKUP($A21,'Master Database'!$D$4:$Q$4043,12,FALSE)=0,"",VLOOKUP($A21,'Master Database'!$D$4:$Q$4043,12,FALSE))),"") -> 4.697948907 | Y21: =IFERROR(IF($L21="No Data","",IF(VLOOKUP($A21,'Master Database'!$D$4:$Q$4043,13,FALSE)=0,"",VLOOKUP($A21,'Master Database'!$D$4:$Q$4043,13,FALSE))),"") ->  | Z21: =IFERROR(IF($L21="No Data","",IF(VLOOKUP($A21,'Master Database'!$D$4:$Q$4043,14,FALSE)=0,"",VLOOKUP($A21,'Master Database'!$D$4:$Q$4043,14,FALSE))),"") -> 1.0871379 | AC21: =VLOOKUP(H21,'Map lookups'!$B$2:$O$104,12,FALSE) -> To help understand how the management of maternity and early years affects expenditure and outcomes in the Local Authority please visit the Commissioning for Value website and download a 2015 pack. | AD21: =VLOOKUP(H21,'Map lookups'!$B$2:$O$104,13,FALSE) -> http://www.england.nhs.uk/resources/resources-for-ccgs/comm-for-value/ http://pathways.nice.org.uk/ https://sustain.sharepoint.com/Documents/HCP%20Integrated%20Com%20and%20Del%20toolkit%20final.pdf | AE21: =VLOOKUP(H21,'Map lookups'!$B$2:$O$104,14,FALSE) -> No Data
A22: 78Barking and Dagenham | B22: =VLOOKUP('Report '!$F$2,'Rules & Lookups'!$B$7:$C$158,2,FALSE) -> E09000002 | C22: =VLOOKUP(H22,'Map lookups'!$B$2:$P$104,7,FALSE) -> Care of Mothers, Babies, Children and Young People | D22: =VLOOKUP(H22,'Map lookups'!$B$2:$P$104,8,FALSE) -> No Subcategory | E22: Upper Tier | F22: =VLOOKUP(H22,'Map lookups'!$B$2:$P$104,10,FALSE) -> Maternity and Early Years | G22: =VLOOKUP($H22,'Map lookups'!$B$2:$P$104,5,FALSE) -> Prevention and Early Diagnosis | H22: 78 | I22: =VLOOKUP($H22,'Map lookups'!$B$2:$P$104,4,FALSE) -> Map 78: Percentage of immunisation coverage for routine vaccinations against measles, mumps and rubella (MMR) at 2 years by upper-tier local authority, 2012/13 | J22: =VLOOKUP(H22,'Map lookups'!$B$2:$P$104,6,FALSE) -> 1, 5 | K22: =IF(VLOOKUP($H22,'Master Database'!$C$4:$E$4043,3,FALSE)="Bad","Improvement Opportunity",VLOOKUP($H22,'Master Database'!$C$4:$E$4043,3,FALSE)) -> Good | L22: =IF(OR(VLOOKUP($A22,'Master Database'!$D$4:$Q$4043,3,FALSE)="-",VLOOKUP($A22,'Master Database'!$D$4:$Q$4043,3,FALSE)="",VLOOKUP($A22,'Master Database'!$D$4:$Q$4043,3,FALSE)=0),"No Data",VLOOKUP($A22,'Master Database'!$D$4:$Q$4043,3,FALSE)) -> 88.53765099 | M22: =IF(OR(VLOOKUP($A22,'Master Database'!$D$4:$Q$4043,4,FALSE)="-",VLOOKUP($A22,'Master Database'!$D$4:$Q$4043,4,FALSE)="",VLOOKUP($A22,'Master Database'!$D$4:$Q$4043,4,FALSE)=0),"No Data",VLOOKUP($A22,'Master Database'!$D$4:$Q$4043,4,FALSE)) -> 87.49844991 | N22: =IF(OR(VLOOKUP($A22,'Master Database'!$D$4:$Q$4043,5,FALSE)="-",VLOOKUP($A22,'Master Database'!$D$4:$Q$4043,5,FALSE)="",VLOOKUP($A22,'Master Database'!$D$4:$Q$4043,5,FALSE)=0),"No Data",VLOOKUP($A22,'Master Database'!$D$4:$Q$4043,5,FALSE)) -> 89.50083316 | O22: =IF(VLOOKUP(A22,Quintiles!$A$3:$E$4042,5,FALSE)=6,"No Data",VLOOKUP(A22,Quintiles!$A$3:$E$4042,5,FALSE)) -> 1 | P22: =IFERROR(INDEX('Colour Calculation'!$AC$20:$AX$21,1,MATCH('Report '!$H22,'Colour Calculation'!$AC$21:$AX$21,0)),"") -> A | Q22: =IFERROR(INDEX('Best performing LA code'!$AD$7:$AK$28,MATCH("Map_"&'Report '!$H22,'Best performing LA code'!$AD$7:$AD$28,0),8),"") -> Tower Hamlets | R22: =IFERROR(IF(OR(VLOOKUP($A22,'Master Database'!$D$4:$Q$4043,6,FALSE)="",VLOOKUP($A22,'Master Database'!$D$4:$Q$4043,6,FALSE)="-",VLOOKUP($A22,'Master Database'!$D$4:$Q$4043,6,FALSE)=0),"",VLOOKUP($A22,'Master Database'!$D$4:$Q$4043,6,FALSE)),"") -> 92.34118894 | S22: =IFERROR(IF(OR(VLOOKUP($A22,'Master Database'!$D$4:$Q$4043,7,FALSE)="",VLOOKUP($A22,'Master Database'!$D$4:$Q$4043,7,FALSE)="-",VLOOKUP($A22,'Master Database'!$D$4:$Q$4043,7,FALSE)=0),"",VLOOKUP($A22,'Master Database'!$D$4:$Q$4043,7,FALSE)),"") -> 87.72097845 | T22: =IFERROR(IF(OR(VLOOKUP($A22,'Master Database'!$D$4:$Q$4043,8,FALSE)="",VLOOKUP($A22,'Master Database'!$D$4:$Q$4043,8,FALSE)="-",VLOOKUP($A22,'Master Database'!$D$4:$Q$4043,8,FALSE)=0),"",VLOOKUP($A22,'Master Database'!$D$4:$Q$4043,8,FALSE)),"") -> 89.40729576 | U22: =IFERROR(VLOOKUP($A22,'Master Database'!$D$4:$Q$4043,9,FALSE),"") -> R | V22: =IFERROR(VLOOKUP($A22,'Master Database'!$D$4:$Q$4043,10,FALSE),"") -> A | W22: =IFERROR(VLOOKUP($A22,'Master Database'!$D$4:$Q$4043,11,FALSE),"") -> A | X22: =IFERROR(IF($L22="No Data","",IF(VLOOKUP($A22,'Master Database'!$D$4:$Q$4043,12,FALSE)=0,"",VLOOKUP($A22,'Master Database'!$D$4:$Q$4043,12,FALSE))),"") -> 3.803537954 | Y22: =IFERROR(IF($L22="No Data","",IF(VLOOKUP($A22,'Master Database'!$D$4:$Q$4043,13,FALSE)=0,"",VLOOKUP($A22,'Master Database'!$D$4:$Q$4043,13,FALSE))),"") ->  | Z22: =IFERROR(IF($L22="No Data","",IF(VLOOKUP($A22,'Master Database'!$D$4:$Q$4043,14,FALSE)=0,"",VLOOKUP($A22,'Master Database'!$D$4:$Q$4043,14,FALSE))),"") -> 0.8696447716 | AC22: =VLOOKUP(H22,'Map lookups'!$B$2:$O$104,12,FALSE) -> To help understand how the management of maternity and early years affects expenditure and outcomes in the Local Authority please visit the Commissioning for Value website and download a 2015 pack. | AD22: =VLOOKUP(H22,'Map lookups'!$B$2:$O$104,13,FALSE) -> http://www.england.nhs.uk/resources/resources-for-ccgs/comm-for-value/ http://pathways.nice.org.uk/ https://sustain.sharepoint.com/Documents/HCP%20Integrated%20Com%20and%20Del%20toolkit%20final.pdf | AE22: =VLOOKUP(H22,'Map lookups'!$B$2:$O$104,14,FALSE) -> No Data
A23: 80Barking and Dagenham | B23: =VLOOKUP('Report '!$F$2,'Rules & Lookups'!$B$7:$C$158,2,FALSE) -> E09000002 | C23: =VLOOKUP(H23,'Map lookups'!$B$2:$P$104,7,FALSE) -> Care of Mothers, Babies, Children and Young People | D23: =VLOOKUP(H23,'Map lookups'!$B$2:$P$104,8,FALSE) -> No Subcategory | E23: Upper Tier | F23: =VLOOKUP(H23,'Map lookups'!$B$2:$P$104,10,FALSE) -> Dementia and LTCs | G23: =VLOOKUP($H23,'Map lookups'!$B$2:$P$104,5,FALSE) -> Prevention and Early Diagnosis | H23: 80 | I23: =VLOOKUP($H23,'Map lookups'!$B$2:$P$104,4,FALSE) -> Map 80: Percentage of pupils in school Reception Year (aged 4-5 years) with healthy weight by upper-tier local authority, Academic year 2013/14 | J23: =VLOOKUP(H23,'Map lookups'!$B$2:$P$104,6,FALSE) -> 1, 2 | K23: =IF(VLOOKUP($H23,'Master Database'!$C$4:$E$4043,3,FALSE)="Bad","Improvement Opportunity",VLOOKUP($H23,'Master Database'!$C$4:$E$4043,3,FALSE)) -> Good | L23: =IF(OR(VLOOKUP($A23,'Master Database'!$D$4:$Q$4043,3,FALSE)="-",VLOOKUP($A23,'Master Database'!$D$4:$Q$4043,3,FALSE)="",VLOOKUP($A23,'Master Database'!$D$4:$Q$4043,3,FALSE)=0),"No Data",VLOOKUP($A23,'Master Database'!$D$4:$Q$4043,3,FALSE)) -> 72.3379 | M23: =IF(OR(VLOOKUP($A23,'Master Database'!$D$4:$Q$4043,4,FALSE)="-",VLOOKUP($A23,'Master Database'!$D$4:$Q$4043,4,FALSE)="",VLOOKUP($A23,'Master Database'!$D$4:$Q$4043,4,FALSE)=0),"No Data",VLOOKUP($A23,'Master Database'!$D$4:$Q$4043,4,FALSE)) -> 70.801 | N23: =IF(OR(VLOOKUP($A23,'Master Database'!$D$4:$Q$4043,5,FALSE)="-",VLOOKUP($A23,'Master Database'!$D$4:$Q$4043,5,FALSE)="",VLOOKUP($A23,'Master Database'!$D$4:$Q$4043,5,FALSE)=0),"No Data",VLOOKUP($A23,'Master Database'!$D$4:$Q$4043,5,FALSE)) -> 73.8238 | O23: =IF(VLOOKUP(A23,Quintiles!$A$3:$E$4042,5,FALSE)=6,"No Data",VLOOKUP(A23,Quintiles!$A$3:$E$4042,5,FALSE)) -> 1 | P23: =IFERROR(INDEX('Colour Calculation'!$AC$20:$AX$21,1,MATCH('Report '!$H23,'Colour Calculation'!$AC$21:$AX$21,0)),"") -> R | Q23: =IFERROR(INDEX('Best performing LA code'!$AD$7:$AK$28,MATCH("Map_"&'Report '!$H23,'Best performing LA code'!$AD$7:$AD$28,0),8),"") -> Haringey | R23: =IFERROR(IF(OR(VLOOKUP($A23,'Master Database'!$D$4:$Q$4043,6,FALSE)="",VLOOKUP($A23,'Master Database'!$D$4:$Q$4043,6,FALSE)="-",VLOOKUP($A23,'Master Database'!$D$4:$Q$4043,6,FALSE)=0),"",VLOOKUP($A23,'Master Database'!$D$4:$Q$4043,6,FALSE)),"") -> 76.18058944 | S23: =IFERROR(IF(OR(VLOOKUP($A23,'Master Database'!$D$4:$Q$4043,7,FALSE)="",VLOOKUP($A23,'Master Database'!$D$4:$Q$4043,7,FALSE)="-",VLOOKUP($A23,'Master Database'!$D$4:$Q$4043,7,FALSE)=0),"",VLOOKUP($A23,'Master Database'!$D$4:$Q$4043,7,FALSE)),"") -> 74.08856177 | T23: =IFERROR(IF(OR(VLOOKUP($A23,'Master Database'!$D$4:$Q$4043,8,FALSE)="",VLOOKUP($A23,'Master Database'!$D$4:$Q$4043,8,FALSE)="-",VLOOKUP($A23,'Master Database'!$D$4:$Q$4043,8,FALSE)=0),"",VLOOKUP($A23,'Master Database'!$D$4:$Q$4043,8,FALSE)),"") -> 75.515225 | U23: =IFERROR(VLOOKUP($A23,'Master Database'!$D$4:$Q$4043,9,FALSE),"") -> R | V23: =IFERROR(VLOOKUP($A23,'Master Database'!$D$4:$Q$4043,10,FALSE),"") -> R | W23: =IFERROR(VLOOKUP($A23,'Master Database'!$D$4:$Q$4043,11,FALSE),"") -> R | X23: =IFERROR(IF($L23="No Data","",IF(VLOOKUP($A23,'Master Database'!$D$4:$Q$4043,12,FALSE)=0,"",VLOOKUP($A23,'Master Database'!$D$4:$Q$4043,12,FALSE))),"") -> 3.842689443 | Y23: =IFERROR(IF($L23="No Data","",IF(VLOOKUP($A23,'Master Database'!$D$4:$Q$4043,13,FALSE)=0,"",VLOOKUP($A23,'Master Database'!$D$4:$Q$4043,13,FALSE))),"") -> 1.750661772 | Z23: =IFERROR(IF($L23="No Data","",IF(VLOOKUP($A23,'Master Database'!$D$4:$Q$4043,14,FALSE)=0,"",VLOOKUP($A23,'Master Database'!$D$4:$Q$4043,14,FALSE))),"") -> 3.177325 | AC23: =VLOOKUP(H23,'Map lookups'!$B$2:$O$104,12,FALSE) -> To help understand how the management of dementia and long-term conditions affects expenditure and outcomes in the CCG please visit the Commissioning for Value website and download a 2015 pack. | AD23: =VLOOKUP(H23,'Map lookups'!$B$2:$O$104,13,FALSE) -> http://www.england.nhs.uk/resources/resources-for-ccgs/comm-for-value/ http://pathways.nice.org.uk/pathways/dementia | AE23: =VLOOKUP(H23,'Map lookups'!$B$2:$O$104,14,FALSE) -> No Data
A24: 81Barking and Dagenham | B24: =VLOOKUP('Report '!$F$2,'Rules & Lookups'!$B$7:$C$158,2,FALSE) -> E09000002 | C24: =VLOOKUP(H24,'Map lookups'!$B$2:$P$104,7,FALSE) -> Care of Mothers, Babies, Children and Young People | D24: =VLOOKUP(H24,'Map lookups'!$B$2:$P$104,8,FALSE) -> No Subcategory | E24: Upper Tier | F24: =VLOOKUP(H24,'Map lookups'!$B$2:$P$104,10,FALSE) -> Endocrine, Nutritional and Metabolic problems - Diabetes | G24: =VLOOKUP($H24,'Map lookups'!$B$2:$P$104,5,FALSE) -> Prevention and Early Diagnosis | H24: 81 | I24: =VLOOKUP($H24,'Map lookups'!$B$2:$P$104,4,FALSE) -> Map 81: Percentage of pupils in school Year 6 (aged 10-11 years) with healthy weight by upper-tier local authority, Academic year 2013/14 | J24: =VLOOKUP(H24,'Map lookups'!$B$2:$P$104,6,FALSE) -> 1, 5 | K24: =IF(VLOOKUP($H24,'Master Database'!$C$4:$E$4043,3,FALSE)="Bad","Improvement Opportunity",VLOOKUP($H24,'Master Database'!$C$4:$E$4043,3,FALSE)) -> Good | L24: =IF(OR(VLOOKUP($A24,'Master Database'!$D$4:$Q$4043,3,FALSE)="-",VLOOKUP($A24,'Master Database'!$D$4:$Q$4043,3,FALSE)="",VLOOKUP($A24,'Master Database'!$D$4:$Q$4043,3,FALSE)=0),"No Data",VLOOKUP($A24,'Master Database'!$D$4:$Q$4043,3,FALSE)) -> 56.0832 | M24: =IF(OR(VLOOKUP($A24,'Master Database'!$D$4:$Q$4043,4,FALSE)="-",VLOOKUP($A24,'Master Database'!$D$4:$Q$4043,4,FALSE)="",VLOOKUP($A24,'Master Database'!$D$4:$Q$4043,4,FALSE)=0),"No Data",VLOOKUP($A24,'Master Database'!$D$4:$Q$4043,4,FALSE)) -> 54.1485 | N24: =IF(OR(VLOOKUP($A24,'Master Database'!$D$4:$Q$4043,5,FALSE)="-",VLOOKUP($A24,'Master Database'!$D$4:$Q$4043,5,FALSE)="",VLOOKUP($A24,'Master Database'!$D$4:$Q$4043,5,FALSE)=0),"No Data",VLOOKUP($A24,'Master Database'!$D$4:$Q$4043,5,FALSE)) -> 57.9996 | O24: =IF(VLOOKUP(A24,Quintiles!$A$3:$E$4042,5,FALSE)=6,"No Data",VLOOKUP(A24,Quintiles!$A$3:$E$4042,5,FALSE)) -> 1 | P24: =IFERROR(INDEX('Colour Calculation'!$AC$20:$AX$21,1,MATCH('Report '!$H24,'Colour Calculation'!$AC$21:$AX$21,0)),"") -> R | Q24: =IFERROR(INDEX('Best performing LA code'!$AD$7:$AK$28,MATCH("Map_"&'Report '!$H24,'Best performing LA code'!$AD$7:$AD$28,0),8),"") -> Haringey | R24: =IFERROR(IF(OR(VLOOKUP($A24,'Master Database'!$D$4:$Q$4043,6,FALSE)="",VLOOKUP($A24,'Master Database'!$D$4:$Q$4043,6,FALSE)="-",VLOOKUP($A24,'Master Database'!$D$4:$Q$4043,6,FALSE)=0),"",VLOOKUP($A24,'Master Database'!$D$4:$Q$4043,6,FALSE)),"") -> 64.51219269 | S24: =IFERROR(IF(OR(VLOOKUP($A24,'Master Database'!$D$4:$Q$4043,7,FALSE)="",VLOOKUP($A24,'Master Database'!$D$4:$Q$4043,7,FALSE)="-",VLOOKUP($A24,'Master Database'!$D$4:$Q$4043,7,FALSE)=0),"",VLOOKUP($A24,'Master Database'!$D$4:$Q$4043,7,FALSE)),"") -> 58.37337036 | T24: =IFERROR(IF(OR(VLOOKUP($A24,'Master Database'!$D$4:$Q$4043,8,FALSE)="",VLOOKUP($A24,'Master Database'!$D$4:$Q$4043,8,FALSE)="-",VLOOKUP($A24,'Master Database'!$D$4:$Q$4043,8,FALSE)=0),"",VLOOKUP($A24,'Master Database'!$D$4:$Q$4043,8,FALSE)),"") -> 59.43775 | U24: =IFERROR(VLOOKUP($A24,'Master Database'!$D$4:$Q$4043,9,FALSE),"") -> R | V24: =IFERROR(VLOOKUP($A24,'Master Database'!$D$4:$Q$4043,10,FALSE),"") -> R | W24: =IFERROR(VLOOKUP($A24,'Master Database'!$D$4:$Q$4043,11,FALSE),"") -> R | X24: =IFERROR(IF($L24="No Data","",IF(VLOOKUP($A24,'Master Database'!$D$4:$Q$4043,12,FALSE)=0,"",VLOOKUP($A24,'Master Database'!$D$4:$Q$4043,12,FALSE))),"") -> 8.428992687 | Y24: =IFERROR(IF($L24="No Data","",IF(VLOOKUP($A24,'Master Database'!$D$4:$Q$4043,13,FALSE)=0,"",VLOOKUP($A24,'Master Database'!$D$4:$Q$4043,13,FALSE))),"") -> 2.29017036 | Z24: =IFERROR(IF($L24="No Data","",IF(VLOOKUP($A24,'Master Database'!$D$4:$Q$4043,14,FALSE)=0,"",VLOOKUP($A24,'Master Database'!$D$4:$Q$4043,14,FALSE))),"") -> 3.35455 | AC24: =VLOOKUP(H24,'Map lookups'!$B$2:$O$104,12,FALSE) -> To help understand how the management of diabetes affects expenditure and outcomes in the CCG please visit the Commissioning for Value webiste and download a 2014 pack. | AD24: =VLOOKUP(H24,'Map lookups'!$B$2:$O$104,13,FALSE) -> http://www.england.nhs.uk/resources/resources-for-ccgs/comm-for-value/ http://pathways.nice.org.uk/pathways/diabetes | AE24: =VLOOKUP(H24,'Map lookups'!$B$2:$O$104,14,FALSE) -> No Data
A25: =H25&$F$2 -> 85Barking and Dagenham | B25: =VLOOKUP('Report '!$F$3,'Rules & Lookups'!$E$7:$F$332,2,FALSE) -> E07000223 | C25: =VLOOKUP(H25,'Map lookups'!$B$2:$P$104,7,FALSE) -> Care of Mothers, Babies, Children and Young People | D25: =VLOOKUP(H25,'Map lookups'!$B$2:$P$104,8,FALSE) -> No Subcategory | E25: Upper Tier | F25: =VLOOKUP(H25,'Map lookups'!$B$2:$P$104,10,FALSE) -> Mental Health Problems - Common, Psychosis | G25: =VLOOKUP($H25,'Map lookups'!$B$2:$P$104,5,FALSE) -> Prevention and Early Diagnosis | H25: 85 | I25: =VLOOKUP($H25,'Map lookups'!$B$2:$P$104,4,FALSE) -> Map 85: Rate of admission to hospital for self-harm in children and young people aged 10-24 years per 100,000 population by upper-tier local authority, 2012/13 | J25: =VLOOKUP(H25,'Map lookups'!$B$2:$P$104,6,FALSE) -> 2, 4, 5 | K25: =IF(VLOOKUP($H25,'Master Database'!$C$4:$E$4043,3,FALSE)="Bad","Improvement Opportunity",VLOOKUP($H25,'Master Database'!$C$4:$E$4043,3,FALSE)) -> Improvement Opportunity | L25: =IF(OR(VLOOKUP($A25,'Master Database'!$D$4:$Q$4043,3,FALSE)="-",VLOOKUP($A25,'Master Database'!$D$4:$Q$4043,3,FALSE)="",VLOOKUP($A25,'Master Database'!$D$4:$Q$4043,3,FALSE)=0),"No Data",VLOOKUP($A25,'Master Database'!$D$4:$Q$4043,3,FALSE)) -> 231.992486 | M25: =IF(OR(VLOOKUP($A25,'Master Database'!$D$4:$Q$4043,4,FALSE)="-",VLOOKUP($A25,'Master Database'!$D$4:$Q$4043,4,FALSE)="",VLOOKUP($A25,'Master Database'!$D$4:$Q$4043,4,FALSE)=0),"No Data",VLOOKUP($A25,'Master Database'!$D$4:$Q$4043,4,FALSE)) -> 186.0362835 | N25: =IF(OR(VLOOKUP($A25,'Master Database'!$D$4:$Q$4043,5,FALSE)="-",VLOOKUP($A25,'Master Database'!$D$4:$Q$4043,5,FALSE)="",VLOOKUP($A25,'Master Database'!$D$4:$Q$4043,5,FALSE)=0),"No Data",VLOOKUP($A25,'Master Database'!$D$4:$Q$4043,5,FALSE)) -> 285.854604 | O25: =IF(VLOOKUP(A25,Quintiles!$A$3:$E$4042,5,FALSE)=6,"No Data",VLOOKUP(A25,Quintiles!$A$3:$E$4042,5,FALSE)) -> 2 | P25: =IFERROR(INDEX('Colour Calculation'!$AC$20:$AX$21,1,MATCH('Report '!$H25,'Colour Calculation'!$AC$21:$AX$21,0)),"") -> A | Q25: =IFERROR(INDEX('Best performing LA code'!$AD$7:$AK$28,MATCH("Map_"&'Report '!$H25,'Best performing LA code'!$AD$7:$AD$28,0),8),"") -> Brent | R25: =IFERROR(IF(OR(VLOOKUP($A25,'Master Database'!$D$4:$Q$4043,6,FALSE)="",VLOOKUP($A25,'Master Database'!$D$4:$Q$4043,6,FALSE)="-",VLOOKUP($A25,'Master Database'!$D$4:$Q$4043,6,FALSE)=0),"",VLOOKUP($A25,'Master Database'!$D$4:$Q$4043,6,FALSE)),"") -> 358.5203538 | S25: =IFERROR(IF(OR(VLOOKUP($A25,'Master Database'!$D$4:$Q$4043,7,FALSE)="",VLOOKUP($A25,'Master Database'!$D$4:$Q$4043,7,FALSE)="-",VLOOKUP($A25,'Master Database'!$D$4:$Q$4043,7,FALSE)=0),"",VLOOKUP($A25,'Master Database'!$D$4:$Q$4043,7,FALSE)),"") -> 209.4404779 | T25: =IFERROR(IF(OR(VLOOKUP($A25,'Master Database'!$D$4:$Q$4043,8,FALSE)="",VLOOKUP($A25,'Master Database'!$D$4:$Q$4043,8,FALSE)="-",VLOOKUP($A25,'Master Database'!$D$4:$Q$4043,8,FALSE)=0),"",VLOOKUP($A25,'Master Database'!$D$4:$Q$4043,8,FALSE)),"") -> 165.0795312 | U25: =IFERROR(VLOOKUP($A25,'Master Database'!$D$4:$Q$4043,9,FALSE),"") -> G | V25: =IFERROR(VLOOKUP($A25,'Master Database'!$D$4:$Q$4043,10,FALSE),"") -> A | W25: =IFERROR(VLOOKUP($A25,'Master Database'!$D$4:$Q$4043,11,FALSE),"") -> R | X25: =IFERROR(IF($L25="No Data","",IF(VLOOKUP($A25,'Master Database'!$D$4:$Q$4043,12,FALSE)=0,"",VLOOKUP($A25,'Master Database'!$D$4:$Q$4043,12,FALSE))),"") ->  | Y25: =IFERROR(IF($L25="No Data","",IF(VLOOKUP($A25,'Master Database'!$D$4:$Q$4043,13,FALSE)=0,"",VLOOKUP($A25,'Master Database'!$D$4:$Q$4043,13,FALSE))),"") -> 22.55200818 | Z25: =IFERROR(IF($L25="No Data","",IF(VLOOKUP($A25,'Master Database'!$D$4:$Q$4043,14,FALSE)=0,"",VLOOKUP($A25,'Master Database'!$D$4:$Q$4043,14,FALSE))),"") -> 66.91295483 | AC25: =VLOOKUP(H25,'Map lookups'!$B$2:$O$104,12,FALSE) -> To help understand how the management of psychosis and common mental health disorders affect expenditure and outcomes in the CCG please visit the Commissioning for Value website and download a 2014 pack. | AD25: =VLOOKUP(H25,'Map lookups'!$B$2:$O$104,13,FALSE) -> http://www.england.nhs.uk/resources/resources-for-ccgs/comm-for-value/ http://pathways.nice.org.uk/pathways/psychosis-and-schizophrenia http://pathways.nice.org.uk/pathways/common-mental-health-disorders-in-primary-care | AE25: =VLOOKUP(H25,'Map lookups'!$B$2:$O$104,14,FALSE) -> No Data
A26: =H26&$F$2 -> 90Barking and Dagenham | B26: =VLOOKUP('Report '!$F$3,'Rules & Lookups'!$E$7:$F$332,2,FALSE) -> E07000223 | C26: =VLOOKUP(H26,'Map lookups'!$B$2:$P$104,7,FALSE) -> Care of Mothers, Babies, Children and Young People | D26: =VLOOKUP(H26,'Map lookups'!$B$2:$P$104,8,FALSE) -> No Subcategory | E26: Upper Tier | F26: =VLOOKUP(H26,'Map lookups'!$B$2:$P$104,10,FALSE) -> Maternity and Early Years | G26: =VLOOKUP($H26,'Map lookups'!$B$2:$P$104,5,FALSE) -> Outcomes | H26: 90 | I26: =VLOOKUP($H26,'Map lookups'!$B$2:$P$104,4,FALSE) -> Map 90: Rate of mortality in infants aged under one year per 1,000 live-births by upper-tier local authority, 2010-2012 | J26: =VLOOKUP(H26,'Map lookups'!$B$2:$P$104,6,FALSE) -> 1 | K26: =IF(VLOOKUP($H26,'Master Database'!$C$4:$E$4043,3,FALSE)="Bad","Improvement Opportunity",VLOOKUP($H26,'Master Database'!$C$4:$E$4043,3,FALSE)) -> Improvement Opportunity | L26: =IF(OR(VLOOKUP($A26,'Master Database'!$D$4:$Q$4043,3,FALSE)="-",VLOOKUP($A26,'Master Database'!$D$4:$Q$4043,3,FALSE)="",VLOOKUP($A26,'Master Database'!$D$4:$Q$4043,3,FALSE)=0),"No Data",VLOOKUP($A26,'Master Database'!$D$4:$Q$4043,3,FALSE)) -> 4.044311588 | M26: =IF(OR(VLOOKUP($A26,'Master Database'!$D$4:$Q$4043,4,FALSE)="-",VLOOKUP($A26,'Master Database'!$D$4:$Q$4043,4,FALSE)="",VLOOKUP($A26,'Master Database'!$D$4:$Q$4043,4,FALSE)=0),"No Data",VLOOKUP($A26,'Master Database'!$D$4:$Q$4043,4,FALSE)) -> 3.033616698 | N26: =IF(OR(VLOOKUP($A26,'Master Database'!$D$4:$Q$4043,5,FALSE)="-",VLOOKUP($A26,'Master Database'!$D$4:$Q$4043,5,FALSE)="",VLOOKUP($A26,'Master Database'!$D$4:$Q$4043,5,FALSE)=0),"No Data",VLOOKUP($A26,'Master Database'!$D$4:$Q$4043,5,FALSE)) -> 5.389914176 | O26: =IF(VLOOKUP(A26,Quintiles!$A$3:$E$4042,5,FALSE)=6,"No Data",VLOOKUP(A26,Quintiles!$A$3:$E$4042,5,FALSE)) -> 3 | P26: =IFERROR(INDEX('Colour Calculation'!$AC$20:$AX$21,1,MATCH('Report '!$H26,'Colour Calculation'!$AC$21:$AX$21,0)),"") -> G | Q26: =IFERROR(INDEX('Best performing LA code'!$AD$7:$AK$28,MATCH("Map_"&'Report '!$H26,'Best performing LA code'!$AD$7:$AD$28,0),8),"") -> Ealing | R26: =IFERROR(IF(OR(VLOOKUP($A26,'Master Database'!$D$4:$Q$4043,6,FALSE)="",VLOOKUP($A26,'Master Database'!$D$4:$Q$4043,6,FALSE)="-",VLOOKUP($A26,'Master Database'!$D$4:$Q$4043,6,FALSE)=0),"",VLOOKUP($A26,'Master Database'!$D$4:$Q$4043,6,FALSE)),"") -> 4.18768249 | S26: =IFERROR(IF(OR(VLOOKUP($A26,'Master Database'!$D$4:$Q$4043,7,FALSE)="",VLOOKUP($A26,'Master Database'!$D$4:$Q$4043,7,FALSE)="-",VLOOKUP($A26,'Master Database'!$D$4:$Q$4043,7,FALSE)=0),"",VLOOKUP($A26,'Master Database'!$D$4:$Q$4043,7,FALSE)),"") -> 4.689998499 | T26: =IFERROR(IF(OR(VLOOKUP($A26,'Master Database'!$D$4:$Q$4043,8,FALSE)="",VLOOKUP($A26,'Master Database'!$D$4:$Q$4043,8,FALSE)="-",VLOOKUP($A26,'Master Database'!$D$4:$Q$4043,8,FALSE)=0),"",VLOOKUP($A26,'Master Database'!$D$4:$Q$4043,8,FALSE)),"") -> 4.039651427 | U26: =IFERROR(VLOOKUP($A26,'Master Database'!$D$4:$Q$4043,9,FALSE),"") -> A | V26: =IFERROR(VLOOKUP($A26,'Master Database'!$D$4:$Q$4043,10,FALSE),"") -> A | W26: =IFERROR(VLOOKUP($A26,'Master Database'!$D$4:$Q$4043,11,FALSE),"") -> A | X26: =IFERROR(IF($L26="No Data","",IF(VLOOKUP($A26,'Master Database'!$D$4:$Q$4043,12,FALSE)=0,"",VLOOKUP($A26,'Master Database'!$D$4:$Q$4043,12,FALSE))),"") ->  | Y26: =IFERROR(IF($L26="No Data","",IF(VLOOKUP($A26,'Master Database'!$D$4:$Q$4043,13,FALSE)=0,"",VLOOKUP($A26,'Master Database'!$D$4:$Q$4043,13,FALSE))),"") ->  | Z26: =IFERROR(IF($L26="No Data","",IF(VLOOKUP($A26,'Master Database'!$D$4:$Q$4043,14,FALSE)=0,"",VLOOKUP($A26,'Master Database'!$D$4:$Q$4043,14,FALSE))),"") -> 0.004660160669 | AC26: =VLOOKUP(H26,'Map lookups'!$B$2:$O$104,12,FALSE) -> To help understand how the management of maternity and early years affects expenditure and outcomes in the Local Authority please visit the Commissioning for Value website and download a 2015 pack. | AD26: =VLOOKUP(H26,'Map lookups'!$B$2:$O$104,13,FALSE) -> http://www.england.nhs.uk/resources/resources-for-ccgs/comm-for-value/ http://pathways.nice.org.uk/ https://sustain.sharepoint.com/Documents/HCP%20Integrated%20Com%20and%20Del%20toolkit%20final.pdf | AE26: =VLOOKUP(H26,'Map lookups'!$B$2:$O$104,14,FALSE) -> No Data
A27: =H27&$F$2 -> 91Barking and Dagenham | B27: =VLOOKUP('Report '!$F$3,'Rules & Lookups'!$E$7:$F$332,2,FALSE) -> E07000223 | C27: =VLOOKUP(H27,'Map lookups'!$B$2:$P$104,7,FALSE) -> Care of Mothers, Babies, Children and Young People | D27: =VLOOKUP(H27,'Map lookups'!$B$2:$P$104,8,FALSE) -> No Subcategory | E27: Upper Tier | F27: =VLOOKUP(H27,'Map lookups'!$B$2:$P$104,10,FALSE) -> Maternity and Early Years | G27: =VLOOKUP($H27,'Map lookups'!$B$2:$P$104,5,FALSE) -> Outcomes | H27: 91 | I27: =VLOOKUP($H27,'Map lookups'!$B$2:$P$104,4,FALSE) -> Map 91: Rate of mortality in children aged 1-17 years per 100,000 population by upper-tier local authority, 2010-2012 | J27: =VLOOKUP(H27,'Map lookups'!$B$2:$P$104,6,FALSE) -> 1 | K27: =IF(VLOOKUP($H27,'Master Database'!$C$4:$E$4043,3,FALSE)="Bad","Improvement Opportunity",VLOOKUP($H27,'Master Database'!$C$4:$E$4043,3,FALSE)) -> Improvement Opportunity | L27: =IF(OR(VLOOKUP($A27,'Master Database'!$D$4:$Q$4043,3,FALSE)="-",VLOOKUP($A27,'Master Database'!$D$4:$Q$4043,3,FALSE)="",VLOOKUP($A27,'Master Database'!$D$4:$Q$4043,3,FALSE)=0),"No Data",VLOOKUP($A27,'Master Database'!$D$4:$Q$4043,3,FALSE)) -> 16.17494574 | M27: =IF(OR(VLOOKUP($A27,'Master Database'!$D$4:$Q$4043,4,FALSE)="-",VLOOKUP($A27,'Master Database'!$D$4:$Q$4043,4,FALSE)="",VLOOKUP($A27,'Master Database'!$D$4:$Q$4043,4,FALSE)=0),"No Data",VLOOKUP($A27,'Master Database'!$D$4:$Q$4043,4,FALSE)) -> 10.36151926 | N27: =IF(OR(VLOOKUP($A27,'Master Database'!$D$4:$Q$4043,5,FALSE)="-",VLOOKUP($A27,'Master Database'!$D$4:$Q$4043,5,FALSE)="",VLOOKUP($A27,'Master Database'!$D$4:$Q$4043,5,FALSE)=0),"No Data",VLOOKUP($A27,'Master Database'!$D$4:$Q$4043,5,FALSE)) -> 24.02053572 | O27: =IF(VLOOKUP(A27,Quintiles!$A$3:$E$4042,5,FALSE)=6,"No Data",VLOOKUP(A27,Quintiles!$A$3:$E$4042,5,FALSE)) -> 5 | P27: =IFERROR(INDEX('Colour Calculation'!$AC$20:$AX$21,1,MATCH('Report '!$H27,'Colour Calculation'!$AC$21:$AX$21,0)),"") -> R | Q27: =IFERROR(INDEX('Best performing LA code'!$AD$7:$AK$28,MATCH("Map_"&'Report '!$H27,'Best performing LA code'!$AD$7:$AD$28,0),8),"") -> Redbridge | R27: =IFERROR(IF(OR(VLOOKUP($A27,'Master Database'!$D$4:$Q$4043,6,FALSE)="",VLOOKUP($A27,'Master Database'!$D$4:$Q$4043,6,FALSE)="-",VLOOKUP($A27,'Master Database'!$D$4:$Q$4043,6,FALSE)=0),"",VLOOKUP($A27,'Master Database'!$D$4:$Q$4043,6,FALSE)),"") -> 12.66737015 | S27: =IFERROR(IF(OR(VLOOKUP($A27,'Master Database'!$D$4:$Q$4043,7,FALSE)="",VLOOKUP($A27,'Master Database'!$D$4:$Q$4043,7,FALSE)="-",VLOOKUP($A27,'Master Database'!$D$4:$Q$4043,7,FALSE)=0),"",VLOOKUP($A27,'Master Database'!$D$4:$Q$4043,7,FALSE)),"") -> 14.24516084 | T27: =IFERROR(IF(OR(VLOOKUP($A27,'Master Database'!$D$4:$Q$4043,8,FALSE)="",VLOOKUP($A27,'Master Database'!$D$4:$Q$4043,8,FALSE)="-",VLOOKUP($A27,'Master Database'!$D$4:$Q$4043,8,FALSE)=0),"",VLOOKUP($A27,'Master Database'!$D$4:$Q$4043,8,FALSE)),"") -> 11.93377273 | U27: =IFERROR(VLOOKUP($A27,'Master Database'!$D$4:$Q$4043,9,FALSE),"") -> A | V27: =IFERROR(VLOOKUP($A27,'Master Database'!$D$4:$Q$4043,10,FALSE),"") -> A | W27: =IFERROR(VLOOKUP($A27,'Master Database'!$D$4:$Q$4043,11,FALSE),"") -> A | X27: =IFERROR(IF($L27="No Data","",IF(VLOOKUP($A27,'Master Database'!$D$4:$Q$4043,12,FALSE)=0,"",VLOOKUP($A27,'Master Database'!$D$4:$Q$4043,12,FALSE))),"") -> 3.507575591 | Y27: =IFERROR(IF($L27="No Data","",IF(VLOOKUP($A27,'Master Database'!$D$4:$Q$4043,13,FALSE)=0,"",VLOOKUP($A27,'Master Database'!$D$4:$Q$4043,13,FALSE))),"") -> 1.9297849 | Z27: =IFERROR(IF($L27="No Data","",IF(VLOOKUP($A27,'Master Database'!$D$4:$Q$4043,14,FALSE)=0,"",VLOOKUP($A27,'Master Database'!$D$4:$Q$4043,14,FALSE))),"") -> 4.241173012 | AC27: =VLOOKUP(H27,'Map lookups'!$B$2:$O$104,12,FALSE) -> To help understand how the management of maternity and early years affects expenditure and outcomes in the Local Authority please visit the Commissioning for Value website and download a 2015 pack. | AD27: =VLOOKUP(H27,'Map lookups'!$B$2:$O$104,13,FALSE) -> http://www.england.nhs.uk/resources/resources-for-ccgs/comm-for-value/ http://pathways.nice.org.uk/ https://sustain.sharepoint.com/Documents/HCP%20Integrated%20Com%20and%20Del%20toolkit%20final.pdf | AE27: =VLOOKUP(H27,'Map lookups'!$B$2:$O$104,14,FALSE) -> No Data
A28: =H28&$F$3 -> 96Adur | B28: =VLOOKUP('Report '!$F$3,'Rules & Lookups'!$E$7:$F$332,2,FALSE) -> E07000223 | C28: =VLOOKUP(H28,'Map lookups'!$B$2:$P$104,7,FALSE) -> Care of Alcohol-Related Conditions | D28: =VLOOKUP(H28,'Map lookups'!$B$2:$P$104,8,FALSE) -> No Subcategory | E28: Lower Tier | F28: =VLOOKUP(H28,'Map lookups'!$B$2:$P$104,10,FALSE) -> Dementia and LTCs | G28: =VLOOKUP($H28,'Map lookups'!$B$2:$P$104,5,FALSE) -> Prevention and Early Diagnosis | H28: 96 | I28: =VLOOKUP($H28,'Map lookups'!$B$2:$P$104,4,FALSE) -> Map 96: Rate of admission to hospital for alcohol-related causes (broad measure) per 100,000 population by lower-tier local authority, 2012/13 | J28: =VLOOKUP(H28,'Map lookups'!$B$2:$P$104,6,FALSE) -> 1, 3 | K28: =IF(VLOOKUP($H28,'Master Database'!$C$4:$E$4043,3,FALSE)="Bad","Improvement Opportunity",VLOOKUP($H28,'Master Database'!$C$4:$E$4043,3,FALSE)) -> Improvement Opportunity | L28: =IF(OR(VLOOKUP($A28,'Master Database'!$D$4:$Q$4043,3,FALSE)="-",VLOOKUP($A28,'Master Database'!$D$4:$Q$4043,3,FALSE)="",VLOOKUP($A28,'Master Database'!$D$4:$Q$4043,3,FALSE)=0),"No Data",VLOOKUP($A28,'Master Database'!$D$4:$Q$4043,3,FALSE)) -> 2127.752833 | M28: =IF(OR(VLOOKUP($A28,'Master Database'!$D$4:$Q$4043,4,FALSE)="-",VLOOKUP($A28,'Master Database'!$D$4:$Q$4043,4,FALSE)="",VLOOKUP($A28,'Master Database'!$D$4:$Q$4043,4,FALSE)=0),"No Data",VLOOKUP($A28,'Master Database'!$D$4:$Q$4043,4,FALSE)) -> 2015.835979 | N28: =IF(OR(VLOOKUP($A28,'Master Database'!$D$4:$Q$4043,5,FALSE)="-",VLOOKUP($A28,'Master Database'!$D$4:$Q$4043,5,FALSE)="",VLOOKUP($A28,'Master Database'!$D$4:$Q$4043,5,FALSE)=0),"No Data",VLOOKUP($A28,'Master Database'!$D$4:$Q$4043,5,FALSE)) -> 2244.221435 | O28: =IF(VLOOKUP(A28,Quintiles!$A$3:$E$4042,5,FALSE)=6,"No Data",VLOOKUP(A28,Quintiles!$A$3:$E$4042,5,FALSE)) -> 4 | P28: =IFERROR(INDEX('Colour Calculation'!$AC$20:$AX$21,1,MATCH('Report '!$H28,'Colour Calculation'!$AC$21:$AX$21,0)),"") -> R | Q28: =IFERROR(INDEX('Best performing LA code'!$AD$7:$AK$28,MATCH("Map_"&'Report '!$H28,'Best performing LA code'!$AD$7:$AD$28,0),8),"") -> Lewes | R28: =IFERROR(IF(OR(VLOOKUP($A28,'Master Database'!$D$4:$Q$4043,6,FALSE)="",VLOOKUP($A28,'Master Database'!$D$4:$Q$4043,6,FALSE)="-",VLOOKUP($A28,'Master Database'!$D$4:$Q$4043,6,FALSE)=0),"",VLOOKUP($A28,'Master Database'!$D$4:$Q$4043,6,FALSE)),"") -> 1949.221139 | S28: =IFERROR(IF(OR(VLOOKUP($A28,'Master Database'!$D$4:$Q$4043,7,FALSE)="",VLOOKUP($A28,'Master Database'!$D$4:$Q$4043,7,FALSE)="-",VLOOKUP($A28,'Master Database'!$D$4:$Q$4043,7,FALSE)=0),"",VLOOKUP($A28,'Master Database'!$D$4:$Q$4043,7,FALSE)),"") -> 1854.856084 | T28: =IFERROR(IF(OR(VLOOKUP($A28,'Master Database'!$D$4:$Q$4043,8,FALSE)="",VLOOKUP($A28,'Master Database'!$D$4:$Q$4043,8,FALSE)="-",VLOOKUP($A28,'Master Database'!$D$4:$Q$4043,8,FALSE)=0),"",VLOOKUP($A28,'Master Database'!$D$4:$Q$4043,8,FALSE)),"") -> 1647.651763 | U28: =IFERROR(VLOOKUP($A28,'Master Database'!$D$4:$Q$4043,9,FALSE),"") -> R | V28: =IFERROR(VLOOKUP($A28,'Master Database'!$D$4:$Q$4043,10,FALSE),"") -> R | W28: =IFERROR(VLOOKUP($A28,'Master Database'!$D$4:$Q$4043,11,FALSE),"") -> R | X28: =IFERROR(IF($L28="No Data","",IF(VLOOKUP($A28,'Master Database'!$D$4:$Q$4043,12,FALSE)=0,"",VLOOKUP($A28,'Master Database'!$D$4:$Q$4043,12,FALSE))),"") -> 178.5316942 | Y28: =IFERROR(IF($L28="No Data","",IF(VLOOKUP($A28,'Master Database'!$D$4:$Q$4043,13,FALSE)=0,"",VLOOKUP($A28,'Master Database'!$D$4:$Q$4043,13,FALSE))),"") -> 272.8967492 | Z28: =IFERROR(IF($L28="No Data","",IF(VLOOKUP($A28,'Master Database'!$D$4:$Q$4043,14,FALSE)=0,"",VLOOKUP($A28,'Master Database'!$D$4:$Q$4043,14,FALSE))),"") -> 480.1010703 | AC28: =VLOOKUP(H28,'Map lookups'!$B$2:$O$104,12,FALSE) -> To help understand how the management of dementia and long-term conditions affects expenditure and outcomes in the CCG please visit the Commissioning for Value website and download a 2015 pack. | AD28: =VLOOKUP(H28,'Map lookups'!$B$2:$O$104,13,FALSE) -> http://www.england.nhs.uk/resources/resources-for-ccgs/comm-for-value/ http://pathways.nice.org.uk/pathways/dementia | AE28: =VLOOKUP(H28,'Map lookups'!$B$2:$O$104,14,FALSE) -> No Data

Sheet Rules & Lookups (hidden)
B1: Percentile Calc
B2: 0.75 | E2: Can have diff tools for diff percentiles eg one for 75% one for 90% and one for 100%
E3: You would keep the master
E4: For the three set up with diff percentiles - copy past special values the master database tab then can delete all the maps and hide the lookup tabs
B5: Upper Tier | E5: Lower Tier
B6: UTLAName | C6: UTLA | E6: LTLAName | F6: LTLA
B7: Barking and Dagenham | C7: E09000002 | E7: Adur | F7: E07000223
B8: Barnet | C8: E09000003 | E8: Allerdale | F8: E07000026
B9: Barnsley | C9: E08000016 | E9: Amber Valley | F9: E07000032
B10: Bath and North East Somerset | C10: E06000022 | E10: Arun | F10: E07000224
B11: Bedford | C11: E06000055 | E11: Ashfield | F11: E07000170
B12: Bexley | C12: E09000004 | E12: Ashford | F12: E07000105
B13: Birmingham | C13: E08000025 | E13: Aylesbury Vale | F13: E07000004
B14: Blackburn with Darwen | C14: E06000008 | E14: Babergh | F14: E07000200
B15: Blackpool | C15: E06000009 | E15: Barking and Dagenham | F15: E09000002
B16: Bolton | C16: E08000001 | E16: Barnet | F16: E09000003
B17: Bournemouth | C17: E06000028 | E17: Barnsley | F17: E08000016
B18: Bracknell Forest | C18: E06000036 | E18: Barrow-in-Furness | F18: E07000027
B19: Bradford | C19: E08000032 | E19: Basildon | F19: E07000066
B20: Brent | C20: E09000005 | E20: Basingstoke and Deane | F20: E07000084
B21: Brighton and Hove | C21: E06000043 | E21: Bassetlaw | F21: E07000171
B22: Bristol | C22: E06000023 | E22: Bath and North East Somerset | F22: E06000022
B23: Bromley | C23: E09000006 | E23: Bedford | F23: E06000055
B24: Buckinghamshire | C24: E10000002 | E24: Bexley | F24: E09000004
B25: Bury | C25: E08000002 | E25: Birmingham | F25: E08000025
B26: Calderdale | C26: E08000033 | E26: Blaby | F26: E07000129
B27: Cambridgeshire | C27: E10000003 | E27: Blackburn with Darwen | F27: E06000008
B28: Camden | C28: E09000007 | E28: Blackpool | F28: E06000009
B29: Central Bedfordshire | C29: E06000056 | E29: Bolsover | F29: E07000033
B30: Cheshire East | C30: E06000049 | E30: Bolton | F30: E08000001
B31: Cheshire West and Chester | C31: E06000050 | E31: Boston | F31: E07000136
B32: City of London | C32: E09000001 | E32: Bournemouth | F32: E06000028
B33: Cornwall | C33: E06000052 | E33: Bracknell Forest | F33: E06000036
B34: County Durham | C34: E06000047 | E34: Bradford | F34: E08000032
B35: Coventry | C35: E08000026 | E35: Braintree | F35: E07000067
B36: Croydon | C36: E09000008 | E36: Breckland | F36: E07000143
B37: Cumbria | C37: E10000006 | E37: Brent | F37: E09000005
B38: Darlington | C38: E06000005 | E38: Brentwood | F38: E07000068
B39: Derby | C39: E06000015 | E39: Brighton and Hove | F39: E06000043
B40: Derbyshire | C40: E10000007 | E40: Bristol | F40: E06000023
B41: Devon | C41: E10000008 | E41: Broadland | F41: E07000144
B42: Doncaster | C42: E08000017 | E42: Bromley | F42: E09000006
B43: Dorset | C43: E10000009 | E43: Bromsgrove | F43: E07000234
B44: Dudley | C44: E08000027 | E44: Broxbourne | F44: E07000095
B45: Ealing | C45: E09000009 | E45: Broxtowe | F45: E07000172
B46: East Riding of Yorkshire | C46: E06000011 | E46: Burnley | F46: E07000117
B47: East Sussex | C47: E10000011 | E47: Bury | F47: E08000002
B48: Enfield | C48: E09000010 | E48: Calderdale | F48: E08000033
B49: Essex | C49: E10000012 | E49: Cambridge | F49: E07000008
B50: Gateshead | C50: E08000020 | E50: Camden | F50: E09000007
B51: Gloucestershire | C51: E10000013 | E51: Cannock Chase | F51: E07000192
B52: Greenwich | C52: E09000011 | E52: Canterbury | F52: E07000106
B53: Hackney | C53: E09000012 | E53: Carlisle | F53: E07000028
B54: Halton | C54: E06000006 | E54: Castle Point | F54: E07000069
B55: Hammersmith and Fulham | C55: E09000013 | E55: Central Bedfordshire | F55: E06000056
B56: Hampshire | C56: E10000014 | E56: Charnwood | F56: E07000130
B57: Haringey | C57: E09000014 | E57: Chelmsford | F57: E07000070
B58: Harrow | C58: E09000015 | E58: Cheltenham | F58: E07000078
B59: Hartlepool | C59: E06000001 | E59: Cherwell | F59: E07000177
B60: Havering | C60: E09000016 | E60: Cheshire East | F60: E06000049
B61: Herefordshire | C61: E06000019 | E61: Cheshire West and Chester | F61: E06000050
B62: Hertfordshire | C62: E10000015 | E62: Chesterfield | F62: E07000034
B63: Hillingdon | C63: E09000017 | E63: Chichester | F63: E07000225
B64: Hounslow | C64: E09000018 | E64: Chiltern | F64: E07000005
B65: Isle of Wight | C65: E06000046 | E65: Chorley | F65: E07000118
B66: Isles of Scilly | C66: E06000053 | E66: Christchurch | F66: E07000048
B67: Islington | C67: E09000019 | E67: City of London | F67: E09000001
B68: Kensington and Chelsea | C68: E09000020 | E68: Colchester | F68: E07000071
B69: Kent | C69: E10000016 | E69: Copeland | F69: E07000029
B70: Kingston upon Hull | C70: E06000010 | E70: Corby | F70: E07000150
B71: Kingston upon Thames | C71: E09000021 | E71: Cornwall | F71: E06000052
B72: Kirklees | C72: E08000034 | E72: Cotswold | F72: E07000079
B73: Knowsley | C73: E08000011 | E73: County Durham | F73: E06000047
B74: Lambeth | C74: E09000022 | E74: Coventry | F74: E08000026
B75: Lancashire | C75: E10000017 | E75: Craven | F75: E07000163
B76: Leeds | C76: E08000035 | E76: Crawley | F76: E07000226
B77: Leicester | C77: E06000016 | E77: Croydon | F77: E09000008
B78: Leicestershire | C78: E10000018 | E78: Dacorum | F78: E07000096
B79: Lewisham | C79: E09000023 | E79: Darlington | F79: E06000005
B80: Lincolnshire | C80: E10000019 | E80: Dartford | F80: E07000107
B81: Liverpool | C81: E08000012 | E81: Daventry | F81: E07000151
B82: Luton | C82: E06000032 | E82: Derby | F82: E06000015
B83: Manchester | C83: E08000003 | E83: Derbyshire Dales | F83: E07000035
B84: Medway | C84: E06000035 | E84: Doncaster | F84: E08000017
B85: Merton | C85: E09000024 | E85: Dover | F85: E07000108
B86: Middlesbrough | C86: E06000002 | E86: Dudley | F86: E08000027
B87: Milton Keynes | C87: E06000042 | E87: Ealing | F87: E09000009
B88: Newcastle upon Tyne | C88: E08000021 | E88: East Cambridgeshire | F88: E07000009
B89: Newham | C89: E09000025 | E89: East Devon | F89: E07000040
B90: Norfolk | C90: E10000020 | E90: East Dorset | F90: E07000049
B91: North East Lincolnshire | C91: E06000012 | E91: East Hampshire | F91: E07000085
B92: North Lincolnshire | C92: E06000013 | E92: East Hertfordshire | F92: E07000242
B93: North Somerset | C93: E06000024 | E93: East Lindsey | F93: E07000137
B94: North Tyneside | C94: E08000022 | E94: East Northamptonshire | F94: E07000152
B95: North Yorkshire | C95: E10000023 | E95: East Riding of Yorkshire | F95: E06000011
B96: Northamptonshire | C96: E10000021 | E96: East Staffordshire | F96: E07000193
B97: Northumberland | C97: E06000048 | E97: Eastbourne | F97: E07000061
B98: Nottingham | C98: E06000018 | E98: Eastleigh | F98: E07000086
B99: Nottinghamshire | C99: E10000024 | E99: Eden | F99: E07000030
B100: Oldham | C100: E08000004 | E100: Elmbridge | F100: E07000207
B101: Oxfordshire | C101: E10000025 | E101: Enfield | F101: E09000010
B102: Peterborough | C102: E06000031 | E102: Epping Forest | F102: E07000072
B103: Plymouth | C103: E06000026 | E103: Epsom and Ewell | F103: E07000208
B104: Poole | C104: E06000029 | E104: Erewash | F104: E07000036
B105: Portsmouth | C105: E06000044 | E105: Exeter | F105: E07000041
B106: Reading | C106: E06000038 | E106: Fareham | F106: E07000087
B107: Redbridge | C107: E09000026 | E107: Fenland | F107: E07000010
B108: Redcar and Cleveland | C108: E06000003 | E108: Forest Heath | F108: E07000201
B109: Richmond upon Thames | C109: E09000027 | E109: Forest of Dean | F109: E07000080
B110: Rochdale | C110: E08000005 | E110: Fylde | F110: E07000119
B111: Rotherham | C111: E08000018 | E111: Gateshead | F111: E08000037
B112: Rutland | C112: E06000017 | E112: Gedling | F112: E07000173
B113: Salford | C113: E08000006 | E113: Gloucester | F113: E07000081
B114: Sandwell | C114: E08000028 | E114: Gosport | F114: E07000088
B115: Sefton | C115: E08000014 | E115: Gravesham | F115: E07000109
B116: Sheffield | C116: E08000019 | E116: Great Yarmouth | F116: E07000145
B117: Shropshire | C117: E06000051 | E117: Greenwich | F117: E09000011
B118: Slough | C118: E06000039 | E118: Guildford | F118: E07000209
B119: Solihull | C119: E08000029 | E119: Hackney | F119: E09000012
B120: Somerset | C120: E10000027 | E120: Halton | F120: E06000006
B121: South Gloucestershire | C121: E06000025 | E121: Hambleton | F121: E07000164
B122: South Tyneside | C122: E08000023 | E122: Hammersmith and Fulham | F122: E09000013
B123: Southampton | C123: E06000045 | E123: Harborough | F123: E07000131
B124: Southend-on-Sea | C124: E06000033 | E124: Haringey | F124: E09000014
B125: Southwark | C125: E09000028 | E125: Harlow | F125: E07000073
B126: St. Helens | C126: E08000013 | E126: Harrogate | F126: E07000165
B127: Staffordshire | C127: E10000028 | E127: Harrow | F127: E09000015
B128: Stockport | C128: E08000007 | E128: Hart | F128: E07000089
B129: Stockton-on-Tees | C129: E06000004 | E129: Hartlepool | F129: E06000001
B130: Stoke-on-Trent | C130: E06000021 | E130: Hastings | F130: E07000062
B131: Suffolk | C131: E10000029 | E131: Havant | F131: E07000090
B132: Sunderland | C132: E08000024 | E132: Havering | F132: E09000016
B133: Surrey | C133: E10000030 | E133: Herefordshire | F133: E06000019
B134: Sutton | C134: E09000029 | E134: Hertsmere | F134: E07000098
B135: Swindon | C135: E06000030 | E135: High Peak | F135: E07000037
B136: Tameside | C136: E08000008 | E136: Hillingdon | F136: E09000017
B137: Telford and Wrekin | C137: E06000020 | E137: Hinckley and Bosworth | F137: E07000132
B138: Thurrock | C138: E06000034 | E138: Horsham | F138: E07000227
B139: Torbay | C139: E06000027 | E139: Hounslow | F139: E09000018
B140: Tower Hamlets | C140: E09000030 | E140: Huntingdonshire | F140: E07000011
B141: Trafford | C141: E08000009 | E141: Hyndburn | F141: E07000120
B142: Wakefield | C142: E08000036 | E142: Ipswich | F142: E07000202
B143: Walsall | C143: E08000030 | E143: Isle of Wight | F143: E06000046
B144: Waltham Forest | C144: E09000031 | E144: Isles of Scilly | F144: E06000053
B145: Wandsworth | C145: E09000032 | E145: Islington | F145: E09000019
B146: Warrington | C146: E06000007 | E146: Kensington and Chelsea | F146: E09000020
B147: Warwickshire | C147: E10000031 | E147: Kettering | F147: E07000153
B148: West Berkshire | C148: E06000037 | E148: King's Lynn and West Norfolk | F148: E07000146
B149: West Sussex | C149: E10000032 | E149: Kingston upon Hull | F149: E06000010
B150: Westminster | C150: E09000033 | E150: Kingston upon Thames | F150: E09000021
B151: Wigan | C151: E08000010 | E151: Kirklees | F151: E08000034
B152: Wiltshire | C152: E06000054 | E152: Knowsley | F152: E08000011
B153: Windsor and Maidenhead | C153: E06000040 | E153: Lambeth | F153: E09000022
B154: Wirral | C154: E08000015 | E154: Lancaster | F154: E07000121
B155: Wokingham | C155: E06000041 | E155: Leeds | F155: E08000035
B156: Wolverhampton | C156: E08000031 | E156: Leicester | F156: E06000016
B157: Worcestershire | C157: E10000034 | E157: Lewes | F157: E07000063
B158: York | C158: E06000014 | E158: Lewisham | F158: E09000023
E159: Lichfield | F159: E07000194
E160: Lincoln | F160: E07000138
E161: Liverpool | F161: E08000012
E162: Luton | F162: E06000032
E163: Maidstone | F163: E07000110
E164: Maldon | F164: E07000074
E165: Malvern Hills | F165: E07000235
E166: Manchester | F166: E08000003
E167: Mansfield | F167: E07000174
E168: Medway | F168: E06000035
E169: Melton | F169: E07000133
E170: Mendip | F170: E07000187
E171: Merton | F171: E09000024
E172: Mid Devon | F172: E07000042
E173: Mid Suffolk | F173: E07000203
E174: Mid Sussex | F174: E07000228
E175: Middlesbrough | F175: E06000002
E176: Milton Keynes | F176: E06000042
E177: Mole Valley | F177: E07000210
E178: New Forest | F178: E07000091
E179: Newark and Sherwood | F179: E07000175
E180: Newcastle upon Tyne | F180: E08000021
E181: Newcastle-under-Lyme | F181: E07000195
E182: Newham | F182: E09000025
E183: North Devon | F183: E07000043
E184: North Dorset | F184: E07000050
E185: North East Derbyshire | F185: E07000038
E186: North East Lincolnshire | F186: E06000012
E187: North Hertfordshire | F187: E07000099
E188: North Kesteven | F188: E07000139
E189: North Lincolnshire | F189: E06000013
E190: North Norfolk | F190: E07000147
E191: North Somerset | F191: E06000024
E192: North Tyneside | F192: E08000022
E193: North Warwickshire | F193: E07000218
E194: North West Leicestershire | F194: E07000134
E195: Northampton | F195: E07000154
E196: Northumberland | F196: E06000057
E197: Norwich | F197: E07000148
E198: Nottingham | F198: E06000018
E199: Nuneaton and Bedworth | F199: E07000219
E200: Oadby and Wigston | F200: E07000135
... 132 more rows

Sheet Colour Calculation (hidden)
A1: Chosen UTLA: | B1: ='Drop-Down Menus'!$C$18 -> Barking and Dagenham | W1: Polarity = 0 | Z1: Polarity = 1 | AC1: Map_3 | AD1: Map_4 | AE1: Map_20 | AF1: Map_49 | AG1: Map_63 | AH1: Map_64 | AI1: Map_65 | AJ1: Map_66 | AK1: Map_72 | AL1: Map_70 | AM1: Map_76 | AN1: Map_77 | AO1: Map_78 | AP1: Map_81 | AQ1: Map_80 | AR1: Map_85 | AS1: Map_90 | AT1: Map_91 | AU1: Map_16 | AV1: Map_24 | AW1: Map_25 | AX1: Map_96
A2: Code: | B2: =VLOOKUP(B1,'Rules & Lookups'!$B$7:$C$158,2,FALSE) -> E09000002 | F2: Upper Tier | V2: 16Top1 | W2: 16 | Y2: 16Top1 | Z2: 1 | AB2: Polarity | AC2: =INDEX($A$8:$T$29,MATCH(AC$1,$C$8:$C$29,0),4) -> 0 | AD2: =INDEX($A$8:$T$29,MATCH(AD$1,$C$8:$C$29,0),4) -> 1 | AE2: 1 | AF2: 0 | AG2: 0 | AH2: 1 | AI2: 1 | AJ2: 0 | AK2: 1 | AL2: 0 | AM2: 1 | AN2: 1 | AO2: 1 | AP2: 1 | AQ2: 1 | AR2: 0 | AS2: 0 | AT2: 0 | AU2: 0 | AV2: 0 | AW2: 0 | AX2: 0
A3: Chosen LTLA: | B3: ='Drop-Down Menus'!$F$18 -> Adur | F3: Lower Tier | V3: 16Top2 | W3: 15 | Y3: 16Top2 | Z3: 2 | AB3: Min Rank | AC3: =INDEX($A$8:$T$29,MATCH(AC$1,$C$8:$C$29,0),1) -> 16 | AD3: =INDEX($A$8:$T$29,MATCH(AD$1,$C$8:$C$29,0),1) -> 16 | AE3: 16 | AF3: 16 | AG3: 16 | AH3: 16 | AI3: 16 | AJ3: 16 | AK3: 8 | AL3: 16 | AM3: 16 | AN3: 16 | AO3: 16 | AP3: 16 | AQ3: 16 | AR3: 16 | AS3: 16 | AT3: 16 | AU3: 16 | AV3: 16 | AW3: 16 | AX3: 16
A4: Code: | B4: =VLOOKUP(B3,'Rules & Lookups'!$E$7:$F$332,2,FALSE) -> E07000223 | V4: 16Top3 | W4: 14 | Y4: 16Top3 | Z4: 3 | AB4: LA | AC4: =INDEX($A$8:$T$29,MATCH(AC$1,$C$8:$C$29,0),5) -> 11 | AD4: =INDEX($A$8:$T$29,MATCH(AD$1,$C$8:$C$29,0),5) -> 2 | AE4: 9 | AF4: 13 | AG4: 3 | AH4: 8 | AI4: 8 | AJ4: 4 | AL4: 6 | AM4: 8 | AN4: 7 | AO4: 7 | AP4: 14 | AQ4: 12 | AR4: 6 | AS4: 12 | AT4: 4 | AU4: 16 | AV4: 16 | AW4: 13 | AX4: 3
V5: 16Top4 | W5: 13 | Y5: 16Top4 | Z5: 4 | AB5: Position (16) | AC5: =IF(AC$2=2,"",IF(AND(AC$2=0,AC$3=16),INDEX($V$2:$W$18,MATCH(AC$4,$W$2:$W$18,0),1),IF(AND(AC$2=1,AC$3=16),INDEX($Y$2:$Z$18,MATCH(AC$4,$Z$2:$Z$18,0),1),""))) -> 16Middle1 | AD5: =IF(AD$2=2,"",IF(AND(AD$2=0,AD$3=16),INDEX($V$2:$W$18,MATCH(AD$4,$W$2:$W$18,0),1),IF(AND(AD$2=1,AD$3=16),INDEX($Y$2:$Z$18,MATCH(AD$4,$Z$2:$Z$18,0),1),""))) -> 16Top2 | AE5: 16Middle4 | AF5: 16Top4 | AG5: 16Bottom3 | AH5: 16Middle3 | AI5: 16Middle3 | AJ5: 16Bottom2 | AL5: 16Middle6 | AM5: 16Middle3 | AN5: 16Middle2 | AO5: 16Middle2 | AP5: 16Bottom3 | AQ5: 16Bottom1 | AR5: 16Middle6 | AS5: 16Top5 | AT5: 16Bottom2 | AU5: 16Top1 | AV5: 16Top1 | AW5: 16Top4 | AX5: 16Bottom3
V6: 16Top5 | W6: 12 | Y6: 16Top5 | Z6: 5 | AB6: Position (15) | AC6: =IF(AC$2=2,"",IF(AND(AC$2=0,AC$3=15),INDEX($V$20:$W$36,MATCH(AC$4,$W$20:$W$36,0),1),IF(AND(AC$2=1,AC$3=15),INDEX($Y$20:$Z$36,MATCH(AC$4,$Z$20:$Z$36,0),1),""))) ->  | AD6: =IF(AD$2=2,"",IF(AND(AD$2=0,AD$3=15),INDEX($V$20:$W$36,MATCH(AD$4,$W$20:$W$36,0),1),IF(AND(AD$2=1,AD$3=15),INDEX($Y$20:$Z$36,MATCH(AD$4,$Z$20:$Z$36,0),1),""))) -> 
A7: Min Rank | B7: Map Number | C7: Reference | D7: Polarity | E7: 1 | F7: 2 | G7: 3 | H7: 4 | I7: 5 | J7: 6 | K7: 7 | L7: 8 | M7: 9 | N7: 10 | O7: 11 | P7: 12 | Q7: 13 | R7: 14 | S7: 15 | T7: 16 | V7: 16Middle1 | W7: 11 | Y7: 16Middle1 | Z7: 6 | AB7: Position (14) | AC7: =IF(AC$2=2,"",IF(AND(AC$2=0,AC$3=14),INDEX($V$38:$W$54,MATCH(AC$4,$W$38:$W$54,0),1),IF(AND(AC$2=1,AC$3=14),INDEX($Y$38:$Z$54,MATCH(AC$4,$Z$38:$Z$54,0),1),""))) ->  | AD7: =IF(AD$2=2,"",IF(AND(AD$2=0,AD$3=14),INDEX($V$38:$W$54,MATCH(AD$4,$W$38:$W$54,0),1),IF(AND(AD$2=1,AD$3=14),INDEX($Y$38:$Z$54,MATCH(AD$4,$Z$38:$Z$54,0),1),""))) -> 
A8: =IFERROR(MAX($E8:$T8),"") -> 16 | B8: 3 | C8: ="Map_"&B8 -> Map_3 | D8: =IF(VLOOKUP(B8,'Map lookups'!$B$2:$J$104,9,FALSE)="Bad",0,IF(VLOOKUP(B8,'Map lookups'!$B$2:$J$104,9,FALSE)="Good",1,2)) -> 0 | E8: =IFERROR(INDEX(INDIRECT($C8),E$7,MATCH($B$2,'similar LAs'!$MR$2:$AAE$2,0)),"") -> 11 | F8: =IFERROR(INDEX(INDIRECT($C8),F$7,MATCH($B$2,'similar LAs'!$MR$2:$AAE$2,0)),"") -> 6 | G8: =IFERROR(INDEX(INDIRECT($C8),G$7,MATCH($B$2,'similar LAs'!$MR$2:$AAE$2,0)),"") -> 8 | H8: =IFERROR(INDEX(INDIRECT($C8),H$7,MATCH($B$2,'similar LAs'!$MR$2:$AAE$2,0)),"") -> 1 | I8: =IFERROR(INDEX(INDIRECT($C8),I$7,MATCH($B$2,'similar LAs'!$MR$2:$AAE$2,0)),"") -> 14 | J8: =IFERROR(INDEX(INDIRECT($C8),J$7,MATCH($B$2,'similar LAs'!$MR$2:$AAE$2,0)),"") -> 16 | K8: =IFERROR(INDEX(INDIRECT($C8),K$7,MATCH($B$2,'similar LAs'!$MR$2:$AAE$2,0)),"") -> 9 | L8: =IFERROR(INDEX(INDIRECT($C8),L$7,MATCH($B$2,'similar LAs'!$MR$2:$AAE$2,0)),"") -> 3 | M8: =IFERROR(INDEX(INDIRECT($C8),M$7,MATCH($B$2,'similar LAs'!$MR$2:$AAE$2,0)),"") -> 13 | N8: =IFERROR(INDEX(INDIRECT($C8),N$7,MATCH($B$2,'similar LAs'!$MR$2:$AAE$2,0)),"") -> 12 | O8: =IFERROR(INDEX(INDIRECT($C8),O$7,MATCH($B$2,'similar LAs'!$MR$2:$AAE$2,0)),"") -> 2 | P8: =IFERROR(INDEX(INDIRECT($C8),P$7,MATCH($B$2,'similar LAs'!$MR$2:$AAE$2,0)),"") -> 5 | Q8: =IFERROR(INDEX(INDIRECT($C8),Q$7,MATCH($B$2,'similar LAs'!$MR$2:$AAE$2,0)),"") -> 4 | R8: =IFERROR(INDEX(INDIRECT($C8),R$7,MATCH($B$2,'similar LAs'!$MR$2:$AAE$2,0)),"") -> 10 | S8: =IFERROR(INDEX(INDIRECT($C8),S$7,MATCH($B$2,'similar LAs'!$MR$2:$AAE$2,0)),"") -> 7 | T8: =IFERROR(INDEX(INDIRECT($C8),T$7,MATCH($B$2,'similar LAs'!$MR$2:$AAE$2,0)),"") -> 15 | V8: 16Middle2 | W8: 10 | Y8: 16Middle2 | Z8: 7 | AB8: Position (13) | AC8: =IF(AC$2=2,"",IF(AND(AC$2=0,AC$3=13),INDEX($V$56:$W$72,MATCH(AC$4,$W$56:$W$72,0),1),IF(AND(AC$2=1,AC$3=13),INDEX($Y$56:$Z$72,MATCH(AC$4,$Z$56:$Z$72,0),1),""))) ->  | AD8: =IF(AD$2=2,"",IF(AND(AD$2=0,AD$3=13),INDEX($V$56:$W$72,MATCH(AD$4,$W$56:$W$72,0),1),IF(AND(AD$2=1,AD$3=13),INDEX($Y$56:$Z$72,MATCH(AD$4,$Z$56:$Z$72,0),1),""))) -> 
A9: =IFERROR(MAX($E9:$T9),"") -> 16 | B9: 4 | C9: ="Map_"&B9 -> Map_4 | D9: =IF(VLOOKUP(B9,'Map lookups'!$B$2:$J$104,9,FALSE)="Bad",0,IF(VLOOKUP(B9,'Map lookups'!$B$2:$J$104,9,FALSE)="Good",1,2)) -> 1 | E9: =IFERROR(INDEX(INDIRECT($C9),E$7,MATCH($B$2,'similar LAs'!$MR$2:$AAE$2,0)),"") -> 2 | F9: =IFERROR(INDEX(INDIRECT($C9),F$7,MATCH($B$2,'similar LAs'!$MR$2:$AAE$2,0)),"") -> 1 | G9: =IFERROR(INDEX(INDIRECT($C9),G$7,MATCH($B$2,'similar LAs'!$MR$2:$AAE$2,0)),"") -> 9 | H9: =IFERROR(INDEX(INDIRECT($C9),H$7,MATCH($B$2,'similar LAs'!$MR$2:$AAE$2,0)),"") -> 12 | I9: =IFERROR(INDEX(INDIRECT($C9),I$7,MATCH($B$2,'similar LAs'!$MR$2:$AAE$2,0)),"") -> 8 | J9: =IFERROR(INDEX(INDIRECT($C9),J$7,MATCH($B$2,'similar LAs'!$MR$2:$AAE$2,0)),"") -> 13 | K9: =IFERROR(INDEX(INDIRECT($C9),K$7,MATCH($B$2,'similar LAs'!$MR$2:$AAE$2,0)),"") -> 3 | L9: =IFERROR(INDEX(INDIRECT($C9),L$7,MATCH($B$2,'similar LAs'!$MR$2:$AAE$2,0)),"") -> 16 | M9: =IFERROR(INDEX(INDIRECT($C9),M$7,MATCH($B$2,'similar LAs'!$MR$2:$AAE$2,0)),"") -> 10 | N9: =IFERROR(INDEX(INDIRECT($C9),N$7,MATCH($B$2,'similar LAs'!$MR$2:$AAE$2,0)),"") -> 10 | O9: =IFERROR(INDEX(INDIRECT($C9),O$7,MATCH($B$2,'similar LAs'!$MR$2:$AAE$2,0)),"") -> 5 | P9: =IFERROR(INDEX(INDIRECT($C9),P$7,MATCH($B$2,'similar LAs'!$MR$2:$AAE$2,0)),"") -> 15 | Q9: =IFERROR(INDEX(INDIRECT($C9),Q$7,MATCH($B$2,'similar LAs'!$MR$2:$AAE$2,0)),"") -> 6 | R9: =IFERROR(INDEX(INDIRECT($C9),R$7,MATCH($B$2,'similar LAs'!$MR$2:$AAE$2,0)),"") -> 4 | S9: =IFERROR(INDEX(INDIRECT($C9),S$7,MATCH($B$2,'similar LAs'!$MR$2:$AAE$2,0)),"") -> 14 | T9: =IFERROR(INDEX(INDIRECT($C9),T$7,MATCH($B$2,'similar LAs'!$MR$2:$AAE$2,0)),"") -> 7 | V9: 16Middle3 | W9: 9 | Y9: 16Middle3 | Z9: 8 | AB9: Position (12) | AC9: =IF(AC$2=2,"",IF(AND(AC$2=0,AC$3=12),INDEX($V$74:$W$90,MATCH(AC$4,$W$74:$W$90,0),1),IF(AND(AC$2=1,AC$3=12),INDEX($Y$74:$Z$90,MATCH(AC$4,$Z$74:$Z$90,0),1),""))) ->  | AD9: =IF(AD$2=2,"",IF(AND(AD$2=0,AD$3=12),INDEX($V$74:$W$90,MATCH(AD$4,$W$74:$W$90,0),1),IF(AND(AD$2=1,AD$3=12),INDEX($Y$74:$Z$90,MATCH(AD$4,$Z$74:$Z$90,0),1),""))) -> 
A10: 16 | B10: 20 | C10: Map_20 | D10: =IF(VLOOKUP(B10,'Map lookups'!$B$2:$J$104,9,FALSE)="Bad",0,IF(VLOOKUP(B10,'Map lookups'!$B$2:$J$104,9,FALSE)="Good",1,2)) -> 1 | E10: =IFERROR(INDEX(INDIRECT($C10),E$7,MATCH($B$2,'similar LAs'!$MR$2:$AAE$2,0)),"") -> 9 | F10: =IFERROR(INDEX(INDIRECT($C10),F$7,MATCH($B$2,'similar LAs'!$MR$2:$AAE$2,0)),"") -> 16 | G10: =IFERROR(INDEX(INDIRECT($C10),G$7,MATCH($B$2,'similar LAs'!$MR$2:$AAE$2,0)),"") -> 1 | H10: =IFERROR(INDEX(INDIRECT($C10),H$7,MATCH($B$2,'similar LAs'!$MR$2:$AAE$2,0)),"") -> 3 | I10: =IFERROR(INDEX(INDIRECT($C10),I$7,MATCH($B$2,'similar LAs'!$MR$2:$AAE$2,0)),"") -> 12 | J10: =IFERROR(INDEX(INDIRECT($C10),J$7,MATCH($B$2,'similar LAs'!$MR$2:$AAE$2,0)),"") -> 8 | K10: =IFERROR(INDEX(INDIRECT($C10),K$7,MATCH($B$2,'similar LAs'!$MR$2:$AAE$2,0)),"") -> 2 | L10: =IFERROR(INDEX(INDIRECT($C10),L$7,MATCH($B$2,'similar LAs'!$MR$2:$AAE$2,0)),"") -> 6 | M10: =IFERROR(INDEX(INDIRECT($C10),M$7,MATCH($B$2,'similar LAs'!$MR$2:$AAE$2,0)),"") -> 4 | N10: =IFERROR(INDEX(INDIRECT($C10),N$7,MATCH($B$2,'similar LAs'!$MR$2:$AAE$2,0)),"") -> 14 | O10: =IFERROR(INDEX(INDIRECT($C10),O$7,MATCH($B$2,'similar LAs'!$MR$2:$AAE$2,0)),"") -> 7 | P10: =IFERROR(INDEX(INDIRECT($C10),P$7,MATCH($B$2,'similar LAs'!$MR$2:$AAE$2,0)),"") -> 10 | Q10: =IFERROR(INDEX(INDIRECT($C10),Q$7,MATCH($B$2,'similar LAs'!$MR$2:$AAE$2,0)),"") -> 11 | R10: =IFERROR(INDEX(INDIRECT($C10),R$7,MATCH($B$2,'similar LAs'!$MR$2:$AAE$2,0)),"") -> 15 | S10: =IFERROR(INDEX(INDIRECT($C10),S$7,MATCH($B$2,'similar LAs'!$MR$2:$AAE$2,0)),"") -> 5 | T10: =IFERROR(INDEX(INDIRECT($C10),T$7,MATCH($B$2,'similar LAs'!$MR$2:$AAE$2,0)),"") -> 13 | V10: 16Middle4 | W10: 8 | Y10: 16Middle4 | Z10: 9 | AB10: Position (11) | AC10: =IF(AC$2=2,"",IF(AND(AC$2=0,AC$3=11),INDEX($V$92:$W$108,MATCH(AC$4,$W$92:$W$108,0),1),IF(AND(AC$2=1,AC$3=11),INDEX($Y$92:$Z$108,MATCH(AC$4,$Z$92:$Z$108,0),1),""))) ->  | AD10: =IF(AD$2=2,"",IF(AND(AD$2=0,AD$3=11),INDEX($V$92:$W$108,MATCH(AD$4,$W$92:$W$108,0),1),IF(AND(AD$2=1,AD$3=11),INDEX($Y$92:$Z$108,MATCH(AD$4,$Z$92:$Z$108,0),1),""))) -> 
A11: 16 | B11: 49 | C11: Map_49 | D11: =IF(VLOOKUP(B11,'Map lookups'!$B$2:$J$104,9,FALSE)="Bad",0,IF(VLOOKUP(B11,'Map lookups'!$B$2:$J$104,9,FALSE)="Good",1,2)) -> 0 | E11: =IFERROR(INDEX(INDIRECT($C11),E$7,MATCH($B$2,'similar LAs'!$MR$2:$AAE$2,0)),"") -> 13 | F11: =IFERROR(INDEX(INDIRECT($C11),F$7,MATCH($B$2,'similar LAs'!$MR$2:$AAE$2,0)),"") -> 5 | G11: =IFERROR(INDEX(INDIRECT($C11),G$7,MATCH($B$2,'similar LAs'!$MR$2:$AAE$2,0)),"") -> 1 | H11: =IFERROR(INDEX(INDIRECT($C11),H$7,MATCH($B$2,'similar LAs'!$MR$2:$AAE$2,0)),"") -> 2 | I11: =IFERROR(INDEX(INDIRECT($C11),I$7,MATCH($B$2,'similar LAs'!$MR$2:$AAE$2,0)),"") -> 14 | J11: =IFERROR(INDEX(INDIRECT($C11),J$7,MATCH($B$2,'similar LAs'!$MR$2:$AAE$2,0)),"") -> 10 | K11: =IFERROR(INDEX(INDIRECT($C11),K$7,MATCH($B$2,'similar LAs'!$MR$2:$AAE$2,0)),"") -> 8 | L11: =IFERROR(INDEX(INDIRECT($C11),L$7,MATCH($B$2,'similar LAs'!$MR$2:$AAE$2,0)),"") -> 11 | M11: =IFERROR(INDEX(INDIRECT($C11),M$7,MATCH($B$2,'similar LAs'!$MR$2:$AAE$2,0)),"") -> 3 | N11: =IFERROR(INDEX(INDIRECT($C11),N$7,MATCH($B$2,'similar LAs'!$MR$2:$AAE$2,0)),"") -> 7 | O11: =IFERROR(INDEX(INDIRECT($C11),O$7,MATCH($B$2,'similar LAs'!$MR$2:$AAE$2,0)),"") -> 15 | P11: =IFERROR(INDEX(INDIRECT($C11),P$7,MATCH($B$2,'similar LAs'!$MR$2:$AAE$2,0)),"") -> 16 | Q11: =IFERROR(INDEX(INDIRECT($C11),Q$7,MATCH($B$2,'similar LAs'!$MR$2:$AAE$2,0)),"") -> 9 | R11: =IFERROR(INDEX(INDIRECT($C11),R$7,MATCH($B$2,'similar LAs'!$MR$2:$AAE$2,0)),"") -> 6 | S11: =IFERROR(INDEX(INDIRECT($C11),S$7,MATCH($B$2,'similar LAs'!$MR$2:$AAE$2,0)),"") -> 12 | T11: =IFERROR(INDEX(INDIRECT($C11),T$7,MATCH($B$2,'similar LAs'!$MR$2:$AAE$2,0)),"") -> 4 | V11: 16Middle5 | W11: 7 | Y11: 16Middle5 | Z11: 10 | AB11: Position (10) | AC11: =IF(AC$2=2,"",IF(AND(AC$2=0,AC$3=10),INDEX($V$110:$W$126,MATCH(AC$4,$W$110:$W$126,0),1),IF(AND(AC$2=1,AC$3=10),INDEX($Y$110:$Z$126,MATCH(AC$4,$Z$110:$Z$126,0),1),""))) ->  | AD11: =IF(AD$2=2,"",IF(AND(AD$2=0,AD$3=10),INDEX($V$110:$W$126,MATCH(AD$4,$W$110:$W$126,0),1),IF(AND(AD$2=1,AD$3=10),INDEX($Y$110:$Z$126,MATCH(AD$4,$Z$110:$Z$126,0),1),""))) -> 
A12: 16 | B12: 63 | C12: Map_63 | D12: =IF(VLOOKUP(B12,'Map lookups'!$B$2:$J$104,9,FALSE)="Bad",0,IF(VLOOKUP(B12,'Map lookups'!$B$2:$J$104,9,FALSE)="Good",1,2)) -> 0 | E12: =IFERROR(INDEX(INDIRECT($C12),E$7,MATCH($B$2,'similar LAs'!$MR$2:$AAE$2,0)),"") -> 3 | F12: =IFERROR(INDEX(INDIRECT($C12),F$7,MATCH($B$2,'similar LAs'!$MR$2:$AAE$2,0)),"") -> 13 | G12: =IFERROR(INDEX(INDIRECT($C12),G$7,MATCH($B$2,'similar LAs'!$MR$2:$AAE$2,0)),"") -> 4 | H12: =IFERROR(INDEX(INDIRECT($C12),H$7,MATCH($B$2,'similar LAs'!$MR$2:$AAE$2,0)),"") -> 9 | I12: =IFERROR(INDEX(INDIRECT($C12),I$7,MATCH($B$2,'similar LAs'!$MR$2:$AAE$2,0)),"") -> 6 | J12: =IFERROR(INDEX(INDIRECT($C12),J$7,MATCH($B$2,'similar LAs'!$MR$2:$AAE$2,0)),"") -> 8 | K12: =IFERROR(INDEX(INDIRECT($C12),K$7,MATCH($B$2,'similar LAs'!$MR$2:$AAE$2,0)),"") -> 7 | L12: =IFERROR(INDEX(INDIRECT($C12),L$7,MATCH($B$2,'similar LAs'!$MR$2:$AAE$2,0)),"") -> 15 | M12: =IFERROR(INDEX(INDIRECT($C12),M$7,MATCH($B$2,'similar LAs'!$MR$2:$AAE$2,0)),"") -> 11 | N12: =IFERROR(INDEX(INDIRECT($C12),N$7,MATCH($B$2,'similar LAs'!$MR$2:$AAE$2,0)),"") -> 12 | O12: =IFERROR(INDEX(INDIRECT($C12),O$7,MATCH($B$2,'similar LAs'!$MR$2:$AAE$2,0)),"") -> 10 | P12: =IFERROR(INDEX(INDIRECT($C12),P$7,MATCH($B$2,'similar LAs'!$MR$2:$AAE$2,0)),"") -> 14 | Q12: =IFERROR(INDEX(INDIRECT($C12),Q$7,MATCH($B$2,'similar LAs'!$MR$2:$AAE$2,0)),"") -> 16 | R12: =IFERROR(INDEX(INDIRECT($C12),R$7,MATCH($B$2,'similar LAs'!$MR$2:$AAE$2,0)),"") -> 2 | S12: =IFERROR(INDEX(INDIRECT($C12),S$7,MATCH($B$2,'similar LAs'!$MR$2:$AAE$2,0)),"") -> 5 | T12: =IFERROR(INDEX(INDIRECT($C12),T$7,MATCH($B$2,'similar LAs'!$MR$2:$AAE$2,0)),"") -> 1 | V12: 16Middle6 | W12: 6 | Y12: 16Middle6 | Z12: 11 | AB12: Position (9) | AC12: =IF(AC$2=2,"",IF(AND(AC$2=0,AC$3=9),INDEX($V$128:$W$144,MATCH(AC$4,$W$128:$W$144,0),1),IF(AND(AC$2=1,AC$3=9),INDEX($Y$128:$Z$144,MATCH(AC$4,$Z$128:$Z$144,0),1),""))) ->  | AD12: =IF(AD$2=2,"",IF(AND(AD$2=0,AD$3=9),INDEX($V$128:$W$144,MATCH(AD$4,$W$128:$W$144,0),1),IF(AND(AD$2=1,AD$3=9),INDEX($Y$128:$Z$144,MATCH(AD$4,$Z$128:$Z$144,0),1),""))) -> 
A13: 16 | B13: 64 | C13: Map_64 | D13: =IF(VLOOKUP(B13,'Map lookups'!$B$2:$J$104,9,FALSE)="Bad",0,IF(VLOOKUP(B13,'Map lookups'!$B$2:$J$104,9,FALSE)="Good",1,2)) -> 1 | E13: =IFERROR(INDEX(INDIRECT($C13),E$7,MATCH($B$2,'similar LAs'!$MR$2:$AAE$2,0)),"") -> 8 | F13: =IFERROR(INDEX(INDIRECT($C13),F$7,MATCH($B$2,'similar LAs'!$MR$2:$AAE$2,0)),"") -> 11 | G13: =IFERROR(INDEX(INDIRECT($C13),G$7,MATCH($B$2,'similar LAs'!$MR$2:$AAE$2,0)),"") -> 5 | H13: =IFERROR(INDEX(INDIRECT($C13),H$7,MATCH($B$2,'similar LAs'!$MR$2:$AAE$2,0)),"") -> 16 | I13: =IFERROR(INDEX(INDIRECT($C13),I$7,MATCH($B$2,'similar LAs'!$MR$2:$AAE$2,0)),"") -> 8 | J13: =IFERROR(INDEX(INDIRECT($C13),J$7,MATCH($B$2,'similar LAs'!$MR$2:$AAE$2,0)),"") -> 10 | K13: =IFERROR(INDEX(INDIRECT($C13),K$7,MATCH($B$2,'similar LAs'!$MR$2:$AAE$2,0)),"") -> 13 | L13: =IFERROR(INDEX(INDIRECT($C13),L$7,MATCH($B$2,'similar LAs'!$MR$2:$AAE$2,0)),"") -> 7 | M13: =IFERROR(INDEX(INDIRECT($C13),M$7,MATCH($B$2,'similar LAs'!$MR$2:$AAE$2,0)),"") -> 15 | N13: =IFERROR(INDEX(INDIRECT($C13),N$7,MATCH($B$2,'similar LAs'!$MR$2:$AAE$2,0)),"") -> 2 | O13: =IFERROR(INDEX(INDIRECT($C13),O$7,MATCH($B$2,'similar LAs'!$MR$2:$AAE$2,0)),"") -> 1 | P13: =IFERROR(INDEX(INDIRECT($C13),P$7,MATCH($B$2,'similar LAs'!$MR$2:$AAE$2,0)),"") -> 6 | Q13: =IFERROR(INDEX(INDIRECT($C13),Q$7,MATCH($B$2,'similar LAs'!$MR$2:$AAE$2,0)),"") -> 14 | R13: =IFERROR(INDEX(INDIRECT($C13),R$7,MATCH($B$2,'similar LAs'!$MR$2:$AAE$2,0)),"") -> 4 | S13: =IFERROR(INDEX(INDIRECT($C13),S$7,MATCH($B$2,'similar LAs'!$MR$2:$AAE$2,0)),"") -> 11 | T13: =IFERROR(INDEX(INDIRECT($C13),T$7,MATCH($B$2,'similar LAs'!$MR$2:$AAE$2,0)),"") -> 3 | V13: 16Middle7 | Y13: 16Middle7 | AB13: Position (8) | AC13: =IF(AC$2=2,"",IF(AND(AC$2=0,AC$3=8),INDEX($V$146:$W$162,MATCH(AC$4,$W$146:$W$162,0),1),IF(AND(AC$2=1,AC$3=8),INDEX($Y$146:$Z$162,MATCH(AC$4,$Z$146:$Z$162,0),1),""))) ->  | AD13: =IF(AD$2=2,"",IF(AND(AD$2=0,AD$3=8),INDEX($V$146:$W$162,MATCH(AD$4,$W$146:$W$162,0),1),IF(AND(AD$2=1,AD$3=8),INDEX($Y$146:$Z$162,MATCH(AD$4,$Z$146:$Z$162,0),1),""))) -> 
A14: 16 | B14: 65 | C14: Map_65 | D14: =IF(VLOOKUP(B14,'Map lookups'!$B$2:$J$104,9,FALSE)="Bad",0,IF(VLOOKUP(B14,'Map lookups'!$B$2:$J$104,9,FALSE)="Good",1,2)) -> 1 | E14: =IFERROR(INDEX(INDIRECT($C14),E$7,MATCH($B$2,'similar LAs'!$MR$2:$AAE$2,0)),"") -> 8 | F14: =IFERROR(INDEX(INDIRECT($C14),F$7,MATCH($B$2,'similar LAs'!$MR$2:$AAE$2,0)),"") -> 4 | G14: =IFERROR(INDEX(INDIRECT($C14),G$7,MATCH($B$2,'similar LAs'!$MR$2:$AAE$2,0)),"") -> 6 | H14: =IFERROR(INDEX(INDIRECT($C14),H$7,MATCH($B$2,'similar LAs'!$MR$2:$AAE$2,0)),"") -> 2 | I14: =IFERROR(INDEX(INDIRECT($C14),I$7,MATCH($B$2,'similar LAs'!$MR$2:$AAE$2,0)),"") -> 11 | J14: =IFERROR(INDEX(INDIRECT($C14),J$7,MATCH($B$2,'similar LAs'!$MR$2:$AAE$2,0)),"") -> 13 | K14: =IFERROR(INDEX(INDIRECT($C14),K$7,MATCH($B$2,'similar LAs'!$MR$2:$AAE$2,0)),"") -> 10 | L14: =IFERROR(INDEX(INDIRECT($C14),L$7,MATCH($B$2,'similar LAs'!$MR$2:$AAE$2,0)),"") -> 7 | M14: =IFERROR(INDEX(INDIRECT($C14),M$7,MATCH($B$2,'similar LAs'!$MR$2:$AAE$2,0)),"") -> 12 | N14: =IFERROR(INDEX(INDIRECT($C14),N$7,MATCH($B$2,'similar LAs'!$MR$2:$AAE$2,0)),"") -> 5 | O14: =IFERROR(INDEX(INDIRECT($C14),O$7,MATCH($B$2,'similar LAs'!$MR$2:$AAE$2,0)),"") -> 14 | P14: =IFERROR(INDEX(INDIRECT($C14),P$7,MATCH($B$2,'similar LAs'!$MR$2:$AAE$2,0)),"") -> 15 | Q14: =IFERROR(INDEX(INDIRECT($C14),Q$7,MATCH($B$2,'similar LAs'!$MR$2:$AAE$2,0)),"") -> 3 | R14: =IFERROR(INDEX(INDIRECT($C14),R$7,MATCH($B$2,'similar LAs'!$MR$2:$AAE$2,0)),"") -> 9 | S14: =IFERROR(INDEX(INDIRECT($C14),S$7,MATCH($B$2,'similar LAs'!$MR$2:$AAE$2,0)),"") -> 16 | T14: =IFERROR(INDEX(INDIRECT($C14),T$7,MATCH($B$2,'similar LAs'!$MR$2:$AAE$2,0)),"") -> 1 | V14: 16Bottom1 | W14: 5 | Y14: 16Bottom1 | Z14: 12 | AB14: Position (7) | AC14: =IF(AC$2=2,"",IF(AND(AC$2=0,AC$3=7),INDEX($V$164:$W$180,MATCH(AC$4,$W$164:$W$180,0),1),IF(AND(AC$2=1,AC$3=7),INDEX($Y$164:$Z$180,MATCH(AC$4,$Z$164:$Z$180,0),1),""))) ->  | AD14: =IF(AD$2=2,"",IF(AND(AD$2=0,AD$3=7),INDEX($V$164:$W$180,MATCH(AD$4,$W$164:$W$180,0),1),IF(AND(AD$2=1,AD$3=7),INDEX($Y$164:$Z$180,MATCH(AD$4,$Z$164:$Z$180,0),1),""))) -> 
A15: 16 | B15: 66 | C15: Map_66 | D15: =IF(VLOOKUP(B15,'Map lookups'!$B$2:$J$104,9,FALSE)="Bad",0,IF(VLOOKUP(B15,'Map lookups'!$B$2:$J$104,9,FALSE)="Good",1,2)) -> 0 | E15: =IFERROR(INDEX(INDIRECT($C15),E$7,MATCH($B$2,'similar LAs'!$MR$2:$AAE$2,0)),"") -> 4 | F15: =IFERROR(INDEX(INDIRECT($C15),F$7,MATCH($B$2,'similar LAs'!$MR$2:$AAE$2,0)),"") -> 1 | G15: =IFERROR(INDEX(INDIRECT($C15),G$7,MATCH($B$2,'similar LAs'!$MR$2:$AAE$2,0)),"") -> 16 | H15: =IFERROR(INDEX(INDIRECT($C15),H$7,MATCH($B$2,'similar LAs'!$MR$2:$AAE$2,0)),"") -> 2 | I15: =IFERROR(INDEX(INDIRECT($C15),I$7,MATCH($B$2,'similar LAs'!$MR$2:$AAE$2,0)),"") -> 5 | J15: =IFERROR(INDEX(INDIRECT($C15),J$7,MATCH($B$2,'similar LAs'!$MR$2:$AAE$2,0)),"") -> 14 | K15: =IFERROR(INDEX(INDIRECT($C15),K$7,MATCH($B$2,'similar LAs'!$MR$2:$AAE$2,0)),"") -> 9 | L15: =IFERROR(INDEX(INDIRECT($C15),L$7,MATCH($B$2,'similar LAs'!$MR$2:$AAE$2,0)),"") -> 6 | M15: =IFERROR(INDEX(INDIRECT($C15),M$7,MATCH($B$2,'similar LAs'!$MR$2:$AAE$2,0)),"") -> 13 | N15: =IFERROR(INDEX(INDIRECT($C15),N$7,MATCH($B$2,'similar LAs'!$MR$2:$AAE$2,0)),"") -> 11 | O15: =IFERROR(INDEX(INDIRECT($C15),O$7,MATCH($B$2,'similar LAs'!$MR$2:$AAE$2,0)),"") -> 10 | P15: =IFERROR(INDEX(INDIRECT($C15),P$7,MATCH($B$2,'similar LAs'!$MR$2:$AAE$2,0)),"") -> 3 | Q15: =IFERROR(INDEX(INDIRECT($C15),Q$7,MATCH($B$2,'similar LAs'!$MR$2:$AAE$2,0)),"") -> 12 | R15: =IFERROR(INDEX(INDIRECT($C15),R$7,MATCH($B$2,'similar LAs'!$MR$2:$AAE$2,0)),"") -> 8 | S15: =IFERROR(INDEX(INDIRECT($C15),S$7,MATCH($B$2,'similar LAs'!$MR$2:$AAE$2,0)),"") -> 7 | T15: =IFERROR(INDEX(INDIRECT($C15),T$7,MATCH($B$2,'similar LAs'!$MR$2:$AAE$2,0)),"") -> 15 | V15: 16Bottom2 | W15: 4 | Y15: 16Bottom2 | Z15: 13 | AB15: Position (<=6) | AC15: =IF(AC3<=6,"","") ->  | AD15: =IF(AD3<=6,"","") -> 
A16: 8 | B16: 72 | C16: Map_72 | D16: =IF(VLOOKUP(B16,'Map lookups'!$B$2:$J$104,9,FALSE)="Bad",0,IF(VLOOKUP(B16,'Map lookups'!$B$2:$J$104,9,FALSE)="Good",1,2)) -> 1 | E16: =IFERROR(INDEX(INDIRECT($C16),E$7,MATCH($B$2,'similar LAs'!$MR$2:$AAE$2,0)),"") ->  | F16: =IFERROR(INDEX(INDIRECT($C16),F$7,MATCH($B$2,'similar LAs'!$MR$2:$AAE$2,0)),"") ->  | G16: =IFERROR(INDEX(INDIRECT($C16),G$7,MATCH($B$2,'similar LAs'!$MR$2:$AAE$2,0)),"") ->  | H16: =IFERROR(INDEX(INDIRECT($C16),H$7,MATCH($B$2,'similar LAs'!$MR$2:$AAE$2,0)),"") -> 6 | I16: =IFERROR(INDEX(INDIRECT($C16),I$7,MATCH($B$2,'similar LAs'!$MR$2:$AAE$2,0)),"") -> 3 | J16: =IFERROR(INDEX(INDIRECT($C16),J$7,MATCH($B$2,'similar LAs'!$MR$2:$AAE$2,0)),"") ->  | K16: =IFERROR(INDEX(INDIRECT($C16),K$7,MATCH($B$2,'similar LAs'!$MR$2:$AAE$2,0)),"") ->  | L16: =IFERROR(INDEX(INDIRECT($C16),L$7,MATCH($B$2,'similar LAs'!$MR$2:$AAE$2,0)),"") ->  | M16: =IFERROR(INDEX(INDIRECT($C16),M$7,MATCH($B$2,'similar LAs'!$MR$2:$AAE$2,0)),"") -> 7 | N16: =IFERROR(INDEX(INDIRECT($C16),N$7,MATCH($B$2,'similar LAs'!$MR$2:$AAE$2,0)),"") -> 1 | O16: =IFERROR(INDEX(INDIRECT($C16),O$7,MATCH($B$2,'similar LAs'!$MR$2:$AAE$2,0)),"") -> 4 | P16: =IFERROR(INDEX(INDIRECT($C16),P$7,MATCH($B$2,'similar LAs'!$MR$2:$AAE$2,0)),"") -> 8 | Q16: =IFERROR(INDEX(INDIRECT($C16),Q$7,MATCH($B$2,'similar LAs'!$MR$2:$AAE$2,0)),"") -> 5 | R16: =IFERROR(INDEX(INDIRECT($C16),R$7,MATCH($B$2,'similar LAs'!$MR$2:$AAE$2,0)),"") ->  | S16: =IFERROR(INDEX(INDIRECT($C16),S$7,MATCH($B$2,'similar LAs'!$MR$2:$AAE$2,0)),"") ->  | T16: =IFERROR(INDEX(INDIRECT($C16),T$7,MATCH($B$2,'similar LAs'!$MR$2:$AAE$2,0)),"") -> 2 | V16: 16Bottom3 | W16: 3 | Y16: 16Bottom3 | Z16: 14 | AB16: CONCAT | AC16: =AC5&AC6&AC7&AC8&AC9&AC10&AC11&AC12&AC13&AC14&AC15 -> 16Middle1 | AD16: =AD5&AD6&AD7&AD8&AD9&AD10&AD11&AD12&AD13&AD14&AD15 -> 16Top2 | AE16: 16Middle4 | AF16: 16Top4 | AG16: 16Bottom3 | AH16: 16Middle3 | AI16: 16Middle3 | AJ16: 16Bottom2 | AL16: 16Middle6 | AM16: 16Middle3 | AN16: 16Middle2 | AO16: 16Middle2 | AP16: 16Bottom3 | AQ16: 16Bottom1 | AR16: 16Middle6 | AS16: 16Top5 | AT16: 16Bottom2 | AU16: 16Top1 | AV16: 16Top1 | AW16: 16Top4 | AX16: 16Bottom3
A17: 16 | B17: 70 | C17: Map_70 | D17: =IF(VLOOKUP(B17,'Map lookups'!$B$2:$J$104,9,FALSE)="Bad",0,IF(VLOOKUP(B17,'Map lookups'!$B$2:$J$104,9,FALSE)="Good",1,2)) -> 0 | E17: =IFERROR(INDEX(INDIRECT($C17),E$7,MATCH($B$2,'similar LAs'!$MR$2:$AAE$2,0)),"") -> 6 | F17: =IFERROR(INDEX(INDIRECT($C17),F$7,MATCH($B$2,'similar LAs'!$MR$2:$AAE$2,0)),"") -> 9 | G17: =IFERROR(INDEX(INDIRECT($C17),G$7,MATCH($B$2,'similar LAs'!$MR$2:$AAE$2,0)),"") -> 8 | H17: =IFERROR(INDEX(INDIRECT($C17),H$7,MATCH($B$2,'similar LAs'!$MR$2:$AAE$2,0)),"") -> 12 | I17: =IFERROR(INDEX(INDIRECT($C17),I$7,MATCH($B$2,'similar LAs'!$MR$2:$AAE$2,0)),"") -> 10 | J17: =IFERROR(INDEX(INDIRECT($C17),J$7,MATCH($B$2,'similar LAs'!$MR$2:$AAE$2,0)),"") -> 1 | K17: =IFERROR(INDEX(INDIRECT($C17),K$7,MATCH($B$2,'similar LAs'!$MR$2:$AAE$2,0)),"") -> 15 | L17: =IFERROR(INDEX(INDIRECT($C17),L$7,MATCH($B$2,'similar LAs'!$MR$2:$AAE$2,0)),"") -> 14 | M17: =IFERROR(INDEX(INDIRECT($C17),M$7,MATCH($B$2,'similar LAs'!$MR$2:$AAE$2,0)),"") -> 11 | N17: =IFERROR(INDEX(INDIRECT($C17),N$7,MATCH($B$2,'similar LAs'!$MR$2:$AAE$2,0)),"") -> 4 | O17: =IFERROR(INDEX(INDIRECT($C17),O$7,MATCH($B$2,'similar LAs'!$MR$2:$AAE$2,0)),"") -> 2 | P17: =IFERROR(INDEX(INDIRECT($C17),P$7,MATCH($B$2,'similar LAs'!$MR$2:$AAE$2,0)),"") -> 13 | Q17: =IFERROR(INDEX(INDIRECT($C17),Q$7,MATCH($B$2,'similar LAs'!$MR$2:$AAE$2,0)),"") -> 7 | R17: =IFERROR(INDEX(INDIRECT($C17),R$7,MATCH($B$2,'similar LAs'!$MR$2:$AAE$2,0)),"") -> 3 | S17: =IFERROR(INDEX(INDIRECT($C17),S$7,MATCH($B$2,'similar LAs'!$MR$2:$AAE$2,0)),"") -> 5 | T17: =IFERROR(INDEX(INDIRECT($C17),T$7,MATCH($B$2,'similar LAs'!$MR$2:$AAE$2,0)),"") -> 16 | V17: 16Bottom4 | W17: 2 | Y17: 16Bottom4 | Z17: 15 | AB17: Top | AC17: =IFERROR(IF(FIND($AB17,AC$16)>=1,"G",""),"") ->  | AD17: =IFERROR(IF(FIND($AB17,AD$16)>=1,"G",""),"") -> G | AF17: G | AS17: G | AU17: G | AV17: G | AW17: G
A18: 16 | B18: 76 | C18: Map_76 | D18: =IF(VLOOKUP(B18,'Map lookups'!$B$2:$J$104,9,FALSE)="Bad",0,IF(VLOOKUP(B18,'Map lookups'!$B$2:$J$104,9,FALSE)="Good",1,2)) -> 1 | E18: =IFERROR(INDEX(INDIRECT($C18),E$7,MATCH($B$2,'similar LAs'!$MR$2:$AAE$2,0)),"") -> 8 | F18: =IFERROR(INDEX(INDIRECT($C18),F$7,MATCH($B$2,'similar LAs'!$MR$2:$AAE$2,0)),"") -> 7 | G18: =IFERROR(INDEX(INDIRECT($C18),G$7,MATCH($B$2,'similar LAs'!$MR$2:$AAE$2,0)),"") -> 11 | H18: =IFERROR(INDEX(INDIRECT($C18),H$7,MATCH($B$2,'similar LAs'!$MR$2:$AAE$2,0)),"") -> 14 | I18: =IFERROR(INDEX(INDIRECT($C18),I$7,MATCH($B$2,'similar LAs'!$MR$2:$AAE$2,0)),"") -> 16 | J18: =IFERROR(INDEX(INDIRECT($C18),J$7,MATCH($B$2,'similar LAs'!$MR$2:$AAE$2,0)),"") -> 15 | K18: =IFERROR(INDEX(INDIRECT($C18),K$7,MATCH($B$2,'similar LAs'!$MR$2:$AAE$2,0)),"") -> 6 | L18: =IFERROR(INDEX(INDIRECT($C18),L$7,MATCH($B$2,'similar LAs'!$MR$2:$AAE$2,0)),"") -> 10 | M18: =IFERROR(INDEX(INDIRECT($C18),M$7,MATCH($B$2,'similar LAs'!$MR$2:$AAE$2,0)),"") -> 9 | N18: =IFERROR(INDEX(INDIRECT($C18),N$7,MATCH($B$2,'similar LAs'!$MR$2:$AAE$2,0)),"") -> 13 | O18: =IFERROR(INDEX(INDIRECT($C18),O$7,MATCH($B$2,'similar LAs'!$MR$2:$AAE$2,0)),"") -> 3 | P18: =IFERROR(INDEX(INDIRECT($C18),P$7,MATCH($B$2,'similar LAs'!$MR$2:$AAE$2,0)),"") -> 5 | Q18: =IFERROR(INDEX(INDIRECT($C18),Q$7,MATCH($B$2,'similar LAs'!$MR$2:$AAE$2,0)),"") -> 2 | R18: =IFERROR(INDEX(INDIRECT($C18),R$7,MATCH($B$2,'similar LAs'!$MR$2:$AAE$2,0)),"") -> 12 | S18: =IFERROR(INDEX(INDIRECT($C18),S$7,MATCH($B$2,'similar LAs'!$MR$2:$AAE$2,0)),"") -> 1 | T18: =IFERROR(INDEX(INDIRECT($C18),T$7,MATCH($B$2,'similar LAs'!$MR$2:$AAE$2,0)),"") -> 4 | V18: 16Bottom5 | W18: 1 | Y18: 16Bottom5 | Z18: 16 | AB18: Middle | AC18: =IFERROR(IF(FIND($AB18,AC$16)>=1,"A",""),"") -> A | AD18: =IFERROR(IF(FIND($AB18,AD$16)>=1,"A",""),"") ->  | AE18: A | AH18: A | AI18: A | AL18: A | AM18: A | AN18: A | AO18: A | AR18: A
A19: 16 | B19: 77 | C19: Map_77 | D19: =IF(VLOOKUP(B19,'Map lookups'!$B$2:$J$104,9,FALSE)="Bad",0,IF(VLOOKUP(B19,'Map lookups'!$B$2:$J$104,9,FALSE)="Good",1,2)) -> 1 | E19: =IFERROR(INDEX(INDIRECT($C19),E$7,MATCH($B$2,'similar LAs'!$MR$2:$AAE$2,0)),"") -> 7 | F19: =IFERROR(INDEX(INDIRECT($C19),F$7,MATCH($B$2,'similar LAs'!$MR$2:$AAE$2,0)),"") -> 11 | G19: =IFERROR(INDEX(INDIRECT($C19),G$7,MATCH($B$2,'similar LAs'!$MR$2:$AAE$2,0)),"") -> 12 | H19: =IFERROR(INDEX(INDIRECT($C19),H$7,MATCH($B$2,'similar LAs'!$MR$2:$AAE$2,0)),"") -> 16 | I19: =IFERROR(INDEX(INDIRECT($C19),I$7,MATCH($B$2,'similar LAs'!$MR$2:$AAE$2,0)),"") -> 14 | J19: =IFERROR(INDEX(INDIRECT($C19),J$7,MATCH($B$2,'similar LAs'!$MR$2:$AAE$2,0)),"") -> 15 | K19: =IFERROR(INDEX(INDIRECT($C19),K$7,MATCH($B$2,'similar LAs'!$MR$2:$AAE$2,0)),"") -> 3 | L19: =IFERROR(INDEX(INDIRECT($C19),L$7,MATCH($B$2,'similar LAs'!$MR$2:$AAE$2,0)),"") -> 8 | M19: =IFERROR(INDEX(INDIRECT($C19),M$7,MATCH($B$2,'similar LAs'!$MR$2:$AAE$2,0)),"") -> 10 | N19: =IFERROR(INDEX(INDIRECT($C19),N$7,MATCH($B$2,'similar LAs'!$MR$2:$AAE$2,0)),"") -> 9 | O19: =IFERROR(INDEX(INDIRECT($C19),O$7,MATCH($B$2,'similar LAs'!$MR$2:$AAE$2,0)),"") -> 2 | P19: =IFERROR(INDEX(INDIRECT($C19),P$7,MATCH($B$2,'similar LAs'!$MR$2:$AAE$2,0)),"") -> 5 | Q19: =IFERROR(INDEX(INDIRECT($C19),Q$7,MATCH($B$2,'similar LAs'!$MR$2:$AAE$2,0)),"") -> 4 | R19: =IFERROR(INDEX(INDIRECT($C19),R$7,MATCH($B$2,'similar LAs'!$MR$2:$AAE$2,0)),"") -> 13 | S19: =IFERROR(INDEX(INDIRECT($C19),S$7,MATCH($B$2,'similar LAs'!$MR$2:$AAE$2,0)),"") -> 1 | T19: =IFERROR(INDEX(INDIRECT($C19),T$7,MATCH($B$2,'similar LAs'!$MR$2:$AAE$2,0)),"") -> 6 | AB19: Bottom | AC19: =IFERROR(IF(FIND($AB19,AC$16)>=1,"R",""),"") ->  | AD19: =IFERROR(IF(FIND($AB19,AD$16)>=1,"R",""),"") ->  | AG19: R | AJ19: R | AP19: R | AQ19: R | AT19: R | AX19: R
A20: 16 | B20: 78 | C20: Map_78 | D20: =IF(VLOOKUP(B20,'Map lookups'!$B$2:$J$104,9,FALSE)="Bad",0,IF(VLOOKUP(B20,'Map lookups'!$B$2:$J$104,9,FALSE)="Good",1,2)) -> 1 | E20: =IFERROR(INDEX(INDIRECT($C20),E$7,MATCH($B$2,'similar LAs'!$MR$2:$AAE$2,0)),"") -> 7 | F20: =IFERROR(INDEX(INDIRECT($C20),F$7,MATCH($B$2,'similar LAs'!$MR$2:$AAE$2,0)),"") -> 9 | G20: =IFERROR(INDEX(INDIRECT($C20),G$7,MATCH($B$2,'similar LAs'!$MR$2:$AAE$2,0)),"") -> 14 | H20: =IFERROR(INDEX(INDIRECT($C20),H$7,MATCH($B$2,'similar LAs'!$MR$2:$AAE$2,0)),"") -> 16 | I20: =IFERROR(INDEX(INDIRECT($C20),I$7,MATCH($B$2,'similar LAs'!$MR$2:$AAE$2,0)),"") -> 11 | J20: =IFERROR(INDEX(INDIRECT($C20),J$7,MATCH($B$2,'similar LAs'!$MR$2:$AAE$2,0)),"") -> 15 | K20: =IFERROR(INDEX(INDIRECT($C20),K$7,MATCH($B$2,'similar LAs'!$MR$2:$AAE$2,0)),"") -> 2 | L20: =IFERROR(INDEX(INDIRECT($C20),L$7,MATCH($B$2,'similar LAs'!$MR$2:$AAE$2,0)),"") -> 8 | M20: =IFERROR(INDEX(INDIRECT($C20),M$7,MATCH($B$2,'similar LAs'!$MR$2:$AAE$2,0)),"") -> 10 | N20: =IFERROR(INDEX(INDIRECT($C20),N$7,MATCH($B$2,'similar LAs'!$MR$2:$AAE$2,0)),"") -> 13 | O20: =IFERROR(INDEX(INDIRECT($C20),O$7,MATCH($B$2,'similar LAs'!$MR$2:$AAE$2,0)),"") -> 3 | P20: =IFERROR(INDEX(INDIRECT($C20),P$7,MATCH($B$2,'similar LAs'!$MR$2:$AAE$2,0)),"") -> 4 | Q20: =IFERROR(INDEX(INDIRECT($C20),Q$7,MATCH($B$2,'similar LAs'!$MR$2:$AAE$2,0)),"") -> 5 | R20: =IFERROR(INDEX(INDIRECT($C20),R$7,MATCH($B$2,'similar LAs'!$MR$2:$AAE$2,0)),"") -> 12 | S20: =IFERROR(INDEX(INDIRECT($C20),S$7,MATCH($B$2,'similar LAs'!$MR$2:$AAE$2,0)),"") -> 1 | T20: =IFERROR(INDEX(INDIRECT($C20),T$7,MATCH($B$2,'similar LAs'!$MR$2:$AAE$2,0)),"") -> 6 | V20: 15Top1 | W20: 15 | Y20: 15Top1 | Z20: 1 | AB20: Final | AC20: =AC17&AC18&AC19 -> A | AD20: =AD17&AD18&AD19 -> G | AE20: A | AF20: G | AG20: R | AH20: A | AI20: A | AJ20: R | AL20: A | AM20: A | AN20: A | AO20: A | AP20: R | AQ20: R | AR20: A | AS20: G | AT20: R | AU20: G | AV20: G | AW20: G | AX20: R
A21: 16 | B21: 81 | C21: Map_81 | D21: =IF(VLOOKUP(B21,'Map lookups'!$B$2:$J$104,9,FALSE)="Bad",0,IF(VLOOKUP(B21,'Map lookups'!$B$2:$J$104,9,FALSE)="Good",1,2)) -> 1 | E21: =IFERROR(INDEX(INDIRECT($C21),E$7,MATCH($B$2,'similar LAs'!$MR$2:$AAE$2,0)),"") -> 14 | F21: =IFERROR(INDEX(INDIRECT($C21),F$7,MATCH($B$2,'similar LAs'!$MR$2:$AAE$2,0)),"") -> 5 | G21: =IFERROR(INDEX(INDIRECT($C21),G$7,MATCH($B$2,'similar LAs'!$MR$2:$AAE$2,0)),"") -> 8 | H21: =IFERROR(INDEX(INDIRECT($C21),H$7,MATCH($B$2,'similar LAs'!$MR$2:$AAE$2,0)),"") -> 12 | I21: =IFERROR(INDEX(INDIRECT($C21),I$7,MATCH($B$2,'similar LAs'!$MR$2:$AAE$2,0)),"") -> 7 | J21: =IFERROR(INDEX(INDIRECT($C21),J$7,MATCH($B$2,'similar LAs'!$MR$2:$AAE$2,0)),"") -> 9 | K21: =IFERROR(INDEX(INDIRECT($C21),K$7,MATCH($B$2,'similar LAs'!$MR$2:$AAE$2,0)),"") -> 1 | L21: =IFERROR(INDEX(INDIRECT($C21),L$7,MATCH($B$2,'similar LAs'!$MR$2:$AAE$2,0)),"") -> 4 | M21: =IFERROR(INDEX(INDIRECT($C21),M$7,MATCH($B$2,'similar LAs'!$MR$2:$AAE$2,0)),"") -> 2 | N21: =IFERROR(INDEX(INDIRECT($C21),N$7,MATCH($B$2,'similar LAs'!$MR$2:$AAE$2,0)),"") -> 10 | O21: =IFERROR(INDEX(INDIRECT($C21),O$7,MATCH($B$2,'similar LAs'!$MR$2:$AAE$2,0)),"") -> 13 | P21: =IFERROR(INDEX(INDIRECT($C21),P$7,MATCH($B$2,'similar LAs'!$MR$2:$AAE$2,0)),"") -> 3 | Q21: =IFERROR(INDEX(INDIRECT($C21),Q$7,MATCH($B$2,'similar LAs'!$MR$2:$AAE$2,0)),"") -> 6 | R21: =IFERROR(INDEX(INDIRECT($C21),R$7,MATCH($B$2,'similar LAs'!$MR$2:$AAE$2,0)),"") -> 16 | S21: =IFERROR(INDEX(INDIRECT($C21),S$7,MATCH($B$2,'similar LAs'!$MR$2:$AAE$2,0)),"") -> 15 | T21: =IFERROR(INDEX(INDIRECT($C21),T$7,MATCH($B$2,'similar LAs'!$MR$2:$AAE$2,0)),"") -> 11 | V21: 15Top2 | W21: 14 | Y21: 15Top2 | Z21: 2 | AC21: 3 | AD21: 4 | AE21: 20 | AF21: 49 | AG21: 63 | AH21: 64 | AI21: 65 | AJ21: 66 | AK21: 72 | AL21: 70 | AM21: 76 | AN21: 77 | AO21: 78 | AP21: 81 | AQ21: 80 | AR21: 85 | AS21: 90 | AT21: 91 | AU21: 16 | AV21: 24 | AW21: 25 | AX21: 96
A22: 16 | B22: 80 | C22: Map_80 | D22: =IF(VLOOKUP(B22,'Map lookups'!$B$2:$J$104,9,FALSE)="Bad",0,IF(VLOOKUP(B22,'Map lookups'!$B$2:$J$104,9,FALSE)="Good",1,2)) -> 1 | E22: =IFERROR(INDEX(INDIRECT($C22),E$7,MATCH($B$2,'similar LAs'!$MR$2:$AAE$2,0)),"") -> 12 | F22: =IFERROR(INDEX(INDIRECT($C22),F$7,MATCH($B$2,'similar LAs'!$MR$2:$AAE$2,0)),"") -> 5 | G22: =IFERROR(INDEX(INDIRECT($C22),G$7,MATCH($B$2,'similar LAs'!$MR$2:$AAE$2,0)),"") -> 16 | H22: =IFERROR(INDEX(INDIRECT($C22),H$7,MATCH($B$2,'similar LAs'!$MR$2:$AAE$2,0)),"") -> 8 | I22: =IFERROR(INDEX(INDIRECT($C22),I$7,MATCH($B$2,'similar LAs'!$MR$2:$AAE$2,0)),"") -> 9 | J22: =IFERROR(INDEX(INDIRECT($C22),J$7,MATCH($B$2,'similar LAs'!$MR$2:$AAE$2,0)),"") -> 11 | K22: =IFERROR(INDEX(INDIRECT($C22),K$7,MATCH($B$2,'similar LAs'!$MR$2:$AAE$2,0)),"") -> 1 | L22: =IFERROR(INDEX(INDIRECT($C22),L$7,MATCH($B$2,'similar LAs'!$MR$2:$AAE$2,0)),"") -> 3 | M22: =IFERROR(INDEX(INDIRECT($C22),M$7,MATCH($B$2,'similar LAs'!$MR$2:$AAE$2,0)),"") -> 6 | N22: =IFERROR(INDEX(INDIRECT($C22),N$7,MATCH($B$2,'similar LAs'!$MR$2:$AAE$2,0)),"") -> 13 | O22: =IFERROR(INDEX(INDIRECT($C22),O$7,MATCH($B$2,'similar LAs'!$MR$2:$AAE$2,0)),"") -> 14 | P22: =IFERROR(INDEX(INDIRECT($C22),P$7,MATCH($B$2,'similar LAs'!$MR$2:$AAE$2,0)),"") -> 2 | Q22: =IFERROR(INDEX(INDIRECT($C22),Q$7,MATCH($B$2,'similar LAs'!$MR$2:$AAE$2,0)),"") -> 4 | R22: =IFERROR(INDEX(INDIRECT($C22),R$7,MATCH($B$2,'similar LAs'!$MR$2:$AAE$2,0)),"") -> 15 | S22: =IFERROR(INDEX(INDIRECT($C22),S$7,MATCH($B$2,'similar LAs'!$MR$2:$AAE$2,0)),"") -> 10 | T22: =IFERROR(INDEX(INDIRECT($C22),T$7,MATCH($B$2,'similar LAs'!$MR$2:$AAE$2,0)),"") -> 7 | V22: 15Top3 | W22: 13 | Y22: 15Top3 | Z22: 3
A23: 16 | B23: 85 | C23: Map_85 | D23: =IF(VLOOKUP(B23,'Map lookups'!$B$2:$J$104,9,FALSE)="Bad",0,IF(VLOOKUP(B23,'Map lookups'!$B$2:$J$104,9,FALSE)="Good",1,2)) -> 0 | E23: =IFERROR(INDEX(INDIRECT($C23),E$7,MATCH($B$2,'similar LAs'!$MR$2:$AAE$2,0)),"") -> 6 | F23: =IFERROR(INDEX(INDIRECT($C23),F$7,MATCH($B$2,'similar LAs'!$MR$2:$AAE$2,0)),"") -> 1 | G23: =IFERROR(INDEX(INDIRECT($C23),G$7,MATCH($B$2,'similar LAs'!$MR$2:$AAE$2,0)),"") -> 11 | H23: =IFERROR(INDEX(INDIRECT($C23),H$7,MATCH($B$2,'similar LAs'!$MR$2:$AAE$2,0)),"") -> 12 | I23: =IFERROR(INDEX(INDIRECT($C23),I$7,MATCH($B$2,'similar LAs'!$MR$2:$AAE$2,0)),"") -> 7 | J23: =IFERROR(INDEX(INDIRECT($C23),J$7,MATCH($B$2,'similar LAs'!$MR$2:$AAE$2,0)),"") -> 14 | K23: =IFERROR(INDEX(INDIRECT($C23),K$7,MATCH($B$2,'similar LAs'!$MR$2:$AAE$2,0)),"") -> 8 | L23: =IFERROR(INDEX(INDIRECT($C23),L$7,MATCH($B$2,'similar LAs'!$MR$2:$AAE$2,0)),"") -> 2 | M23: =IFERROR(INDEX(INDIRECT($C23),M$7,MATCH($B$2,'similar LAs'!$MR$2:$AAE$2,0)),"") -> 4 | N23: =IFERROR(INDEX(INDIRECT($C23),N$7,MATCH($B$2,'similar LAs'!$MR$2:$AAE$2,0)),"") -> 10 | O23: =IFERROR(INDEX(INDIRECT($C23),O$7,MATCH($B$2,'similar LAs'!$MR$2:$AAE$2,0)),"") -> 16 | P23: =IFERROR(INDEX(INDIRECT($C23),P$7,MATCH($B$2,'similar LAs'!$MR$2:$AAE$2,0)),"") -> 9 | Q23: =IFERROR(INDEX(INDIRECT($C23),Q$7,MATCH($B$2,'similar LAs'!$MR$2:$AAE$2,0)),"") -> 3 | R23: =IFERROR(INDEX(INDIRECT($C23),R$7,MATCH($B$2,'similar LAs'!$MR$2:$AAE$2,0)),"") -> 13 | S23: =IFERROR(INDEX(INDIRECT($C23),S$7,MATCH($B$2,'similar LAs'!$MR$2:$AAE$2,0)),"") -> 5 | T23: =IFERROR(INDEX(INDIRECT($C23),T$7,MATCH($B$2,'similar LAs'!$MR$2:$AAE$2,0)),"") -> 15 | V23: 15Top4 | W23: 12 | Y23: 15Top4 | Z23: 4
A24: 16 | B24: 90 | C24: Map_90 | D24: =IF(VLOOKUP(B24,'Map lookups'!$B$2:$J$104,9,FALSE)="Bad",0,IF(VLOOKUP(B24,'Map lookups'!$B$2:$J$104,9,FALSE)="Good",1,2)) -> 0 | E24: =IFERROR(INDEX(INDIRECT($C24),E$7,MATCH($B$2,'similar LAs'!$MR$2:$AAE$2,0)),"") -> 12 | F24: =IFERROR(INDEX(INDIRECT($C24),F$7,MATCH($B$2,'similar LAs'!$MR$2:$AAE$2,0)),"") -> 5 | G24: =IFERROR(INDEX(INDIRECT($C24),G$7,MATCH($B$2,'similar LAs'!$MR$2:$AAE$2,0)),"") -> 10 | H24: =IFERROR(INDEX(INDIRECT($C24),H$7,MATCH($B$2,'similar LAs'!$MR$2:$AAE$2,0)),"") -> 7 | I24: =IFERROR(INDEX(INDIRECT($C24),I$7,MATCH($B$2,'similar LAs'!$MR$2:$AAE$2,0)),"") -> 6 | J24: =IFERROR(INDEX(INDIRECT($C24),J$7,MATCH($B$2,'similar LAs'!$MR$2:$AAE$2,0)),"") -> 2 | K24: =IFERROR(INDEX(INDIRECT($C24),K$7,MATCH($B$2,'similar LAs'!$MR$2:$AAE$2,0)),"") -> 14 | L24: =IFERROR(INDEX(INDIRECT($C24),L$7,MATCH($B$2,'similar LAs'!$MR$2:$AAE$2,0)),"") -> 9 | M24: =IFERROR(INDEX(INDIRECT($C24),M$7,MATCH($B$2,'similar LAs'!$MR$2:$AAE$2,0)),"") -> 13 | N24: =IFERROR(INDEX(INDIRECT($C24),N$7,MATCH($B$2,'similar LAs'!$MR$2:$AAE$2,0)),"") -> 3 | O24: =IFERROR(INDEX(INDIRECT($C24),O$7,MATCH($B$2,'similar LAs'!$MR$2:$AAE$2,0)),"") -> 8 | P24: =IFERROR(INDEX(INDIRECT($C24),P$7,MATCH($B$2,'similar LAs'!$MR$2:$AAE$2,0)),"") -> 15 | Q24: =IFERROR(INDEX(INDIRECT($C24),Q$7,MATCH($B$2,'similar LAs'!$MR$2:$AAE$2,0)),"") -> 16 | R24: =IFERROR(INDEX(INDIRECT($C24),R$7,MATCH($B$2,'similar LAs'!$MR$2:$AAE$2,0)),"") -> 11 | S24: =IFERROR(INDEX(INDIRECT($C24),S$7,MATCH($B$2,'similar LAs'!$MR$2:$AAE$2,0)),"") -> 4 | T24: =IFERROR(INDEX(INDIRECT($C24),T$7,MATCH($B$2,'similar LAs'!$MR$2:$AAE$2,0)),"") -> 1 | V24: 15Top5 | W24: 11 | Y24: 15Top5 | Z24: 5
A25: 16 | B25: 91 | C25: Map_91 | D25: =IF(VLOOKUP(B25,'Map lookups'!$B$2:$J$104,9,FALSE)="Bad",0,IF(VLOOKUP(B25,'Map lookups'!$B$2:$J$104,9,FALSE)="Good",1,2)) -> 0 | E25: =IFERROR(INDEX(INDIRECT($C25),E$7,MATCH($B$2,'similar LAs'!$MR$2:$AAE$2,0)),"") -> 4 | F25: =IFERROR(INDEX(INDIRECT($C25),F$7,MATCH($B$2,'similar LAs'!$MR$2:$AAE$2,0)),"") -> 8 | G25: =IFERROR(INDEX(INDIRECT($C25),G$7,MATCH($B$2,'similar LAs'!$MR$2:$AAE$2,0)),"") -> 11 | H25: =IFERROR(INDEX(INDIRECT($C25),H$7,MATCH($B$2,'similar LAs'!$MR$2:$AAE$2,0)),"") -> 10 | I25: =IFERROR(INDEX(INDIRECT($C25),I$7,MATCH($B$2,'similar LAs'!$MR$2:$AAE$2,0)),"") -> 13 | J25: =IFERROR(INDEX(INDIRECT($C25),J$7,MATCH($B$2,'similar LAs'!$MR$2:$AAE$2,0)),"") -> 12 | K25: =IFERROR(INDEX(INDIRECT($C25),K$7,MATCH($B$2,'similar LAs'!$MR$2:$AAE$2,0)),"") -> 15 | L25: =IFERROR(INDEX(INDIRECT($C25),L$7,MATCH($B$2,'similar LAs'!$MR$2:$AAE$2,0)),"") -> 2 | M25: =IFERROR(INDEX(INDIRECT($C25),M$7,MATCH($B$2,'similar LAs'!$MR$2:$AAE$2,0)),"") -> 14 | N25: =IFERROR(INDEX(INDIRECT($C25),N$7,MATCH($B$2,'similar LAs'!$MR$2:$AAE$2,0)),"") -> 3 | O25: =IFERROR(INDEX(INDIRECT($C25),O$7,MATCH($B$2,'similar LAs'!$MR$2:$AAE$2,0)),"") -> 1 | P25: =IFERROR(INDEX(INDIRECT($C25),P$7,MATCH($B$2,'similar LAs'!$MR$2:$AAE$2,0)),"") -> 16 | Q25: =IFERROR(INDEX(INDIRECT($C25),Q$7,MATCH($B$2,'similar LAs'!$MR$2:$AAE$2,0)),"") -> 5 | R25: =IFERROR(INDEX(INDIRECT($C25),R$7,MATCH($B$2,'similar LAs'!$MR$2:$AAE$2,0)),"") -> 7 | S25: =IFERROR(INDEX(INDIRECT($C25),S$7,MATCH($B$2,'similar LAs'!$MR$2:$AAE$2,0)),"") -> 6 | T25: =IFERROR(INDEX(INDIRECT($C25),T$7,MATCH($B$2,'similar LAs'!$MR$2:$AAE$2,0)),"") -> 9 | V25: 15Middle1 | W25: 10 | Y25: 15Middle1 | Z25: 6
A26: 16 | B26: 16 | C26: Map_16 | D26: =IF(VLOOKUP(B26,'Map lookups'!$B$2:$J$104,9,FALSE)="Bad",0,IF(VLOOKUP(B26,'Map lookups'!$B$2:$J$104,9,FALSE)="Good",1,2)) -> 0 | E26: =IFERROR(INDEX(INDIRECT($C26),E$7,MATCH($B$4,'similar LAs'!$MR$2:$AAE$2,0)),"") -> 16 | F26: =IFERROR(INDEX(INDIRECT($C26),F$7,MATCH($B$4,'similar LAs'!$MR$2:$AAE$2,0)),"") -> 6 | G26: =IFERROR(INDEX(INDIRECT($C26),G$7,MATCH($B$4,'similar LAs'!$MR$2:$AAE$2,0)),"") -> 13 | H26: =IFERROR(INDEX(INDIRECT($C26),H$7,MATCH($B$4,'similar LAs'!$MR$2:$AAE$2,0)),"") -> 3 | I26: =IFERROR(INDEX(INDIRECT($C26),I$7,MATCH($B$4,'similar LAs'!$MR$2:$AAE$2,0)),"") -> 7 | J26: =IFERROR(INDEX(INDIRECT($C26),J$7,MATCH($B$4,'similar LAs'!$MR$2:$AAE$2,0)),"") -> 5 | K26: =IFERROR(INDEX(INDIRECT($C26),K$7,MATCH($B$4,'similar LAs'!$MR$2:$AAE$2,0)),"") -> 12 | L26: =IFERROR(INDEX(INDIRECT($C26),L$7,MATCH($B$4,'similar LAs'!$MR$2:$AAE$2,0)),"") -> 4 | M26: =IFERROR(INDEX(INDIRECT($C26),M$7,MATCH($B$4,'similar LAs'!$MR$2:$AAE$2,0)),"") -> 14 | N26: =IFERROR(INDEX(INDIRECT($C26),N$7,MATCH($B$4,'similar LAs'!$MR$2:$AAE$2,0)),"") -> 2 | O26: =IFERROR(INDEX(INDIRECT($C26),O$7,MATCH($B$4,'similar LAs'!$MR$2:$AAE$2,0)),"") -> 1 | P26: =IFERROR(INDEX(INDIRECT($C26),P$7,MATCH($B$4,'similar LAs'!$MR$2:$AAE$2,0)),"") -> 9 | Q26: =IFERROR(INDEX(INDIRECT($C26),Q$7,MATCH($B$4,'similar LAs'!$MR$2:$AAE$2,0)),"") -> 11 | R26: =IFERROR(INDEX(INDIRECT($C26),R$7,MATCH($B$4,'similar LAs'!$MR$2:$AAE$2,0)),"") -> 15 | S26: =IFERROR(INDEX(INDIRECT($C26),S$7,MATCH($B$4,'similar LAs'!$MR$2:$AAE$2,0)),"") -> 8 | T26: =IFERROR(INDEX(INDIRECT($C26),T$7,MATCH($B$4,'similar LAs'!$MR$2:$AAE$2,0)),"") -> 10 | V26: 15Middle2 | W26: 9 | Y26: 15Middle2 | Z26: 7
A27: 16 | B27: 24 | C27: Map_24 | D27: =IF(VLOOKUP(B27,'Map lookups'!$B$2:$J$104,9,FALSE)="Bad",0,IF(VLOOKUP(B27,'Map lookups'!$B$2:$J$104,9,FALSE)="Good",1,2)) -> 0 | E27: =IFERROR(INDEX(INDIRECT($C27),E$7,MATCH($B$4,'similar LAs'!$MR$2:$AAE$2,0)),"") -> 16 | F27: =IFERROR(INDEX(INDIRECT($C27),F$7,MATCH($B$4,'similar LAs'!$MR$2:$AAE$2,0)),"") -> 6 | G27: =IFERROR(INDEX(INDIRECT($C27),G$7,MATCH($B$4,'similar LAs'!$MR$2:$AAE$2,0)),"") -> 14 | H27: =IFERROR(INDEX(INDIRECT($C27),H$7,MATCH($B$4,'similar LAs'!$MR$2:$AAE$2,0)),"") -> 10 | I27: =IFERROR(INDEX(INDIRECT($C27),I$7,MATCH($B$4,'similar LAs'!$MR$2:$AAE$2,0)),"") -> 4 | J27: =IFERROR(INDEX(INDIRECT($C27),J$7,MATCH($B$4,'similar LAs'!$MR$2:$AAE$2,0)),"") -> 2 | K27: =IFERROR(INDEX(INDIRECT($C27),K$7,MATCH($B$4,'similar LAs'!$MR$2:$AAE$2,0)),"") -> 5 | L27: =IFERROR(INDEX(INDIRECT($C27),L$7,MATCH($B$4,'similar LAs'!$MR$2:$AAE$2,0)),"") -> 8 | M27: =IFERROR(INDEX(INDIRECT($C27),M$7,MATCH($B$4,'similar LAs'!$MR$2:$AAE$2,0)),"") -> 12 | N27: =IFERROR(INDEX(INDIRECT($C27),N$7,MATCH($B$4,'similar LAs'!$MR$2:$AAE$2,0)),"") -> 11 | O27: =IFERROR(INDEX(INDIRECT($C27),O$7,MATCH($B$4,'similar LAs'!$MR$2:$AAE$2,0)),"") -> 13 | P27: =IFERROR(INDEX(INDIRECT($C27),P$7,MATCH($B$4,'similar LAs'!$MR$2:$AAE$2,0)),"") -> 1 | Q27: =IFERROR(INDEX(INDIRECT($C27),Q$7,MATCH($B$4,'similar LAs'!$MR$2:$AAE$2,0)),"") -> 15 | R27: =IFERROR(INDEX(INDIRECT($C27),R$7,MATCH($B$4,'similar LAs'!$MR$2:$AAE$2,0)),"") -> 7 | S27: =IFERROR(INDEX(INDIRECT($C27),S$7,MATCH($B$4,'similar LAs'!$MR$2:$AAE$2,0)),"") -> 9 | T27: =IFERROR(INDEX(INDIRECT($C27),T$7,MATCH($B$4,'similar LAs'!$MR$2:$AAE$2,0)),"") -> 3 | V27: 15Middle3 | W27: 8 | Y27: 15Middle3 | Z27: 8
A28: 16 | B28: 25 | C28: Map_25 | D28: =IF(VLOOKUP(B28,'Map lookups'!$B$2:$J$104,9,FALSE)="Bad",0,IF(VLOOKUP(B28,'Map lookups'!$B$2:$J$104,9,FALSE)="Good",1,2)) -> 0 | E28: =IFERROR(INDEX(INDIRECT($C28),E$7,MATCH($B$4,'similar LAs'!$MR$2:$AAE$2,0)),"") -> 13 | F28: =IFERROR(INDEX(INDIRECT($C28),F$7,MATCH($B$4,'similar LAs'!$MR$2:$AAE$2,0)),"") -> 8 | G28: =IFERROR(INDEX(INDIRECT($C28),G$7,MATCH($B$4,'similar LAs'!$MR$2:$AAE$2,0)),"") -> 16 | H28: =IFERROR(INDEX(INDIRECT($C28),H$7,MATCH($B$4,'similar LAs'!$MR$2:$AAE$2,0)),"") -> 4 | I28: =IFERROR(INDEX(INDIRECT($C28),I$7,MATCH($B$4,'similar LAs'!$MR$2:$AAE$2,0)),"") -> 2 | J28: =IFERROR(INDEX(INDIRECT($C28),J$7,MATCH($B$4,'similar LAs'!$MR$2:$AAE$2,0)),"") -> 1 | K28: =IFERROR(INDEX(INDIRECT($C28),K$7,MATCH($B$4,'similar LAs'!$MR$2:$AAE$2,0)),"") -> 15 | L28: =IFERROR(INDEX(INDIRECT($C28),L$7,MATCH($B$4,'similar LAs'!$MR$2:$AAE$2,0)),"") -> 11 | M28: =IFERROR(INDEX(INDIRECT($C28),M$7,MATCH($B$4,'similar LAs'!$MR$2:$AAE$2,0)),"") -> 12 | N28: =IFERROR(INDEX(INDIRECT($C28),N$7,MATCH($B$4,'similar LAs'!$MR$2:$AAE$2,0)),"") -> 6 | O28: =IFERROR(INDEX(INDIRECT($C28),O$7,MATCH($B$4,'similar LAs'!$MR$2:$AAE$2,0)),"") -> 10 | P28: =IFERROR(INDEX(INDIRECT($C28),P$7,MATCH($B$4,'similar LAs'!$MR$2:$AAE$2,0)),"") -> 3 | Q28: =IFERROR(INDEX(INDIRECT($C28),Q$7,MATCH($B$4,'similar LAs'!$MR$2:$AAE$2,0)),"") -> 9 | R28: =IFERROR(INDEX(INDIRECT($C28),R$7,MATCH($B$4,'similar LAs'!$MR$2:$AAE$2,0)),"") -> 5 | S28: =IFERROR(INDEX(INDIRECT($C28),S$7,MATCH($B$4,'similar LAs'!$MR$2:$AAE$2,0)),"") -> 7 | T28: =IFERROR(INDEX(INDIRECT($C28),T$7,MATCH($B$4,'similar LAs'!$MR$2:$AAE$2,0)),"") -> 14 | V28: 15Middle4 | W28: 7 | Y28: 15Middle4 | Z28: 9
A29: 16 | B29: 96 | C29: Map_96 | D29: =IF(VLOOKUP(B29,'Map lookups'!$B$2:$J$104,9,FALSE)="Bad",0,IF(VLOOKUP(B29,'Map lookups'!$B$2:$J$104,9,FALSE)="Good",1,2)) -> 0 | E29: =IFERROR(INDEX(INDIRECT($C29),E$7,MATCH($B$4,'similar LAs'!$MR$2:$AAE$2,0)),"") -> 3 | F29: =IFERROR(INDEX(INDIRECT($C29),F$7,MATCH($B$4,'similar LAs'!$MR$2:$AAE$2,0)),"") -> 11 | G29: =IFERROR(INDEX(INDIRECT($C29),G$7,MATCH($B$4,'similar LAs'!$MR$2:$AAE$2,0)),"") -> 16 | H29: =IFERROR(INDEX(INDIRECT($C29),H$7,MATCH($B$4,'similar LAs'!$MR$2:$AAE$2,0)),"") -> 13 | I29: =IFERROR(INDEX(INDIRECT($C29),I$7,MATCH($B$4,'similar LAs'!$MR$2:$AAE$2,0)),"") -> 12 | J29: =IFERROR(INDEX(INDIRECT($C29),J$7,MATCH($B$4,'similar LAs'!$MR$2:$AAE$2,0)),"") -> 14 | K29: =IFERROR(INDEX(INDIRECT($C29),K$7,MATCH($B$4,'similar LAs'!$MR$2:$AAE$2,0)),"") -> 2 | L29: =IFERROR(INDEX(INDIRECT($C29),L$7,MATCH($B$4,'similar LAs'!$MR$2:$AAE$2,0)),"") -> 1 | M29: =IFERROR(INDEX(INDIRECT($C29),M$7,MATCH($B$4,'similar LAs'!$MR$2:$AAE$2,0)),"") -> 4 | N29: =IFERROR(INDEX(INDIRECT($C29),N$7,MATCH($B$4,'similar LAs'!$MR$2:$AAE$2,0)),"") -> 8 | O29: =IFERROR(INDEX(INDIRECT($C29),O$7,MATCH($B$4,'similar LAs'!$MR$2:$AAE$2,0)),"") -> 9 | P29: =IFERROR(INDEX(INDIRECT($C29),P$7,MATCH($B$4,'similar LAs'!$MR$2:$AAE$2,0)),"") -> 6 | Q29: =IFERROR(INDEX(INDIRECT($C29),Q$7,MATCH($B$4,'similar LAs'!$MR$2:$AAE$2,0)),"") -> 10 | R29: =IFERROR(INDEX(INDIRECT($C29),R$7,MATCH($B$4,'similar LAs'!$MR$2:$AAE$2,0)),"") -> 5 | S29: =IFERROR(INDEX(INDIRECT($C29),S$7,MATCH($B$4,'similar LAs'!$MR$2:$AAE$2,0)),"") -> 7 | T29: =IFERROR(INDEX(INDIRECT($C29),T$7,MATCH($B$4,'similar LAs'!$MR$2:$AAE$2,0)),"") -> 15 | V29: 15Middle5 | W29: 6 | Y29: 15Middle5 | Z29: 10
V30: 15Middle6 | Y30: 15Middle6
V31: 15Middle7 | Y31: 15Middle7
V32: 15Bottom1 | W32: 5 | Y32: 15Bottom1 | Z32: 11
V33: 15Bottom2 | W33: 4 | Y33: 15Bottom2 | Z33: 12
V34: 15Bottom3 | W34: 3 | Y34: 15Bottom3 | Z34: 13
V35: 15Bottom4 | W35: 2 | Y35: 15Bottom4 | Z35: 14
V36: 15Bottom5 | W36: 1 | Y36: 15Bottom5 | Z36: 15
V38: 14Top1 | W38: 14 | Y38: 14Top1 | Z38: 1
V39: 14Top2 | W39: 13 | Y39: 14Top2 | Z39: 2
V40: 14Top3 | W40: 12 | Y40: 14Top3 | Z40: 3
V41: 14Top4 | W41: 11 | Y41: 14Top4 | Z41: 4
V42: 14Top5 | Y42: 14Top5
V43: 14Middle1 | W43: 10 | Y43: 14Middle1 | Z43: 5
V44: 14Middle2 | W44: 9 | Y44: 14Middle2 | Z44: 6
V45: 14Middle3 | W45: 8 | Y45: 14Middle3 | Z45: 7
V46: 14Middle4 | W46: 7 | Y46: 14Middle4 | Z46: 8
V47: 14Middle5 | W47: 6 | Y47: 14Middle5 | Z47: 9
V48: 14Middle6 | W48: 5 | Y48: 14Middle6 | Z48: 10
V49: 14Middle7 | Y49: 14Middle7
V50: 14Bottom1 | W50: 4 | Y50: 14Bottom1 | Z50: 11
V51: 14Bottom2 | W51: 3 | Y51: 14Bottom2 | Z51: 12
V52: 14Bottom3 | W52: 2 | Y52: 14Bottom3 | Z52: 13
V53: 14Bottom4 | W53: 1 | Y53: 14Bottom4 | Z53: 14
V54: 14Bottom5 | Y54: 14Bottom5
V56: 13Top1 | W56: 13 | Y56: 13Top1 | Z56: 1
V57: 13Top2 | W57: 12 | Y57: 13Top2 | Z57: 2
V58: 13Top3 | W58: 11 | Y58: 13Top3 | Z58: 3
V59: 13Top4 | Y59: 13Top4
V60: 13Top5 | Y60: 13Top5
V61: 13Middle1 | W61: 10 | Y61: 13Middle1 | Z61: 4
V62: 13Middle2 | W62: 9 | Y62: 13Middle2 | Z62: 5
V63: 13Middle3 | W63: 8 | Y63: 13Middle3 | Z63: 6
V64: 13Middle4 | W64: 7 | Y64: 13Middle4 | Z64: 7
V65: 13Middle5 | W65: 6 | Y65: 13Middle5 | Z65: 8
V66: 13Middle6 | W66: 5 | Y66: 13Middle6 | Z66: 9
V67: 13Middle7 | W67: 4 | Y67: 13Middle7 | Z67: 10
V68: 13Bottom1 | W68: 3 | Y68: 13Bottom1 | Z68: 11
V69: 13Bottom2 | W69: 2 | Y69: 13Bottom2 | Z69: 12
V70: 13Bottom3 | W70: 1 | Y70: 13Bottom3 | Z70: 13
V71: 13Bottom4 | Y71: 13Bottom4
V72: 13Bottom5 | Y72: 13Bottom5
V74: 12Top1 | W74: 12 | Y74: 12Top1 | Z74: 1
V75: 12Top2 | W75: 11 | Y75: 12Top2 | Z75: 2
V76: 12Top3 | W76: 10 | Y76: 12Top3 | Z76: 3
V77: 12Top4 | Y77: 12Top4
V78: 12Top5 | Y78: 12Top5
V79: 12Middle1 | W79: 9 | Y79: 12Middle1 | Z79: 4
V80: 12Middle2 | W80: 8 | Y80: 12Middle2 | Z80: 5
V81: 12Middle3 | W81: 7 | Y81: 12Middle3 | Z81: 6
V82: 12Middle4 | W82: 6 | Y82: 12Middle4 | Z82: 7
V83: 12Middle5 | W83: 5 | Y83: 12Middle5 | Z83: 8
V84: 12Middle6 | W84: 4 | Y84: 12Middle6 | Z84: 9
V85: 12Middle7 | Y85: 12Middle7
V86: 12Bottom1 | W86: 3 | Y86: 12Bottom1 | Z86: 10
V87: 12Bottom2 | W87: 2 | Y87: 12Bottom2 | Z87: 11
V88: 12Bottom3 | W88: 1 | Y88: 12Bottom3 | Z88: 12
V89: 12Bottom4 | Y89: 12Bottom4
V90: 12Bottom5 | Y90: 12Bottom5
V92: 11Top1 | W92: 11 | Y92: 11Top1 | Z92: 1
V93: 11Top2 | W93: 10 | Y93: 11Top2 | Z93: 2
V94: 11Top3 | W94: 9 | Y94: 11Top3 | Z94: 3
V95: 11Top4 | Y95: 11Top4
V96: 11Top5 | Y96: 11Top5
V97: 11Middle1 | W97: 8 | Y97: 11Middle1 | Z97: 4
V98: 11Middle2 | W98: 7 | Y98: 11Middle2 | Z98: 5
V99: 11Middle3 | W99: 6 | Y99: 11Middle3 | Z99: 6
V100: 11Middle4 | W100: 5 | Y100: 11Middle4 | Z100: 7
V101: 11Middle5 | W101: 4 | Y101: 11Middle5 | Z101: 8
V102: 11Middle6 | Y102: 11Middle6
V103: 11Middle7 | Y103: 11Middle7
V104: 11Bottom1 | W104: 3 | Y104: 11Bottom1 | Z104: 9
V105: 11Bottom2 | W105: 2 | Y105: 11Bottom2 | Z105: 10
V106: 11Bottom3 | W106: 1 | Y106: 11Bottom3 | Z106: 11
V107: 11Bottom4 | Y107: 11Bottom4
V108: 11Bottom5 | Y108: 11Bottom5
V110: 10Top1 | W110: 10 | Y110: 10Top1 | Z110: 1
V111: 10Top2 | W111: 9 | Y111: 10Top2 | Z111: 2
V112: 10Top3 | W112: 8 | Y112: 10Top3 | Z112: 3
V113: 10Top4 | Y113: 10Top4
V114: 10Top5 | Y114: 10Top5
V115: 10Middle1 | W115: 7 | Y115: 10Middle1 | Z115: 4
V116: 10Middle2 | W116: 6 | Y116: 10Middle2 | Z116: 5
V117: 10Middle3 | W117: 5 | Y117: 10Middle3 | Z117: 6
V118: 10Middle4 | W118: 4 | Y118: 10Middle4 | Z118: 7
V119: 10Middle5 | Y119: 10Middle5
V120: 10Middle6 | Y120: 10Middle6
V121: 10Middle7 | Y121: 10Middle7
V122: 10Bottom1 | W122: 3 | Y122: 10Bottom1 | Z122: 8
V123: 10Bottom2 | W123: 2 | Y123: 10Bottom2 | Z123: 9
V124: 10Bottom3 | W124: 1 | Y124: 10Bottom3 | Z124: 10
V125: 10Bottom4 | Y125: 10Bottom4
V126: 10Bottom5 | Y126: 10Bottom5
V128: 9Top1 | W128: 9 | Y128: 9Top1 | Z128: 1
V129: 9Top2 | W129: 8 | Y129: 9Top2 | Z129: 2
V130: 9Top3 | W130: 7 | Y130: 9Top3 | Z130: 3
V131: 9Top4 | Y131: 9Top4
V132: 9Top5 | Y132: 9Top5
V133: 9Middle1 | W133: 6 | Y133: 9Middle1 | Z133: 4
V134: 9Middle2 | W134: 5 | Y134: 9Middle2 | Z134: 5
V135: 9Middle3 | W135: 4 | Y135: 9Middle3 | Z135: 6
V136: 9Middle4 | Y136: 9Middle4
V137: 9Middle5 | Y137: 9Middle5
V138: 9Middle6 | Y138: 9Middle6
V139: 9Middle7 | Y139: 9Middle7
V140: 9Bottom1 | W140: 3 | Y140: 9Bottom1 | Z140: 7
V141: 9Bottom2 | W141: 2 | Y141: 9Bottom2 | Z141: 8
V142: 9Bottom3 | W142: 1 | Y142: 9Bottom3 | Z142: 9
V143: 9Bottom4 | Y143: 9Bottom4
V144: 9Bottom5 | Y144: 9Bottom5
V146: 8Top1 | W146: 8 | Y146: 8Top1 | Z146: 1
V147: 8Top2 | W147: 7 | Y147: 8Top2 | Z147: 2
V148: 8Top3 | Y148: 8Top3
V149: 8Top4 | Y149: 8Top4
V150: 8Top5 | Y150: 8Top5
V151: 8Middle1 | W151: 6 | Y151: 8Middle1 | Z151: 3
V152: 8Middle2 | W152: 5 | Y152: 8Middle2 | Z152: 4
V153: 8Middle3 | W153: 4 | Y153: 8Middle3 | Z153: 5
V154: 8Middle4 | W154: 3 | Y154: 8Middle4 | Z154: 6
V155: 8Middle5 | Y155: 8Middle5
V156: 8Middle6 | Y156: 8Middle6
V157: 8Middle7 | Y157: 8Middle7
V158: 8Bottom1 | W158: 2 | Y158: 8Bottom1 | Z158: 7
V159: 8Bottom2 | W159: 1 | Y159: 8Bottom2 | Z159: 8
V160: 8Bottom3 | Y160: 8Bottom3
V161: 8Bottom4 | Y161: 8Bottom4
V162: 8Bottom5 | Y162: 8Bottom5
V164: 7Top1 | W164: 7 | Y164: 7Top1 | Z164: 1
V165: 7Top2 | W165: 6 | Y165: 7Top2 | Z165: 2
V166: 7Top3 | Y166: 7Top3
V167: 7Top4 | Y167: 7Top4
V168: 7Top5 | Y168: 7Top5
V169: 7Middle1 | W169: 5 | Y169: 7Middle1 | Z169: 3
V170: 7Middle2 | W170: 4 | Y170: 7Middle2 | Z170: 4
V171: 7Middle3 | W171: 3 | Y171: 7Middle3 | Z171: 5
V172: 7Middle4 | Y172: 7Middle4
V173: 7Middle5 | Y173: 7Middle5
V174: 7Middle6 | Y174: 7Middle6
V175: 7Middle7 | Y175: 7Middle7
V176: 7Bottom1 | W176: 2 | Y176: 7Bottom1 | Z176: 6
V177: 7Bottom2 | W177: 1 | Y177: 7Bottom2 | Z177: 7
V178: 7Bottom3 | Y178: 7Bottom3
V179: 7Bottom4 | Y179: 7Bottom4
V180: 7Bottom5 | Y180: 7Bottom5

Sheet tasks (hidden)
B2: Tasks for completion
B3: 1 | C3: need to do lookups for all data for all maps into new data tabs (delete old pasted data) | H3: done
B4: 2 | C4: go through report page and update map numbers and col P formulas | H4: done
B5: 3 | C5: similar ccg coding problems (in indiv maps) for Isles of Scilly / Nothumberland / Gateshead)? | H5: done
B6: 4 | C6: need to refresh all the quintiles | H6: yes all of them + all the CCG ones too
B7: 5 | C7: map lookups updated for # / title / polarity - but still other columns need checking by Ben & Dave et al
B8: 6 | C8: Ben / Jonathan need to check if "Best CCG" still working and feeding report accurately?
B9: 7 | C9: need to agree audit regime
B10: 8 | C10: need to undertake audits
B11: 9 | C11: need to agree which audience members see which columns
B12: 10 | C12: just provide a flat file - just 75 percentile?
B13: 11 | C13: need to sort out formatting

Sheet Map lookups (hidden)
B1: MapNo | C1: New DocID 240615 | D1: New Map Type | E1: New Titles update 240615 | F1: Pathway Settings | G1: New Domain | H1: Programme of Care | I1: Programme Subcategory | J1: Polarity | K1: CFV Pathway | L1: Pathway Links | M1: Pathway Guidance Notes | N1: CFV Hyperlink | O1: Atlas Link | P1: Map change notes | R1: Orig DocID | S1: Orig Map Type | T1: Original Title
B2: 1 | C2: 10 | D2: 0 | E2: #No Data | F2: Primary Care Management | G2: 1, 3 | H2: INFECTIOUS DISEASES | I2: No Subcategory | J2: Bad | K2: No Pathway | L2: No Data | M2: This indicator is not part of the pathways covered by Commissioning for Value. For more information around spend by programme budgeting category, please download the Programme Budgeting Benchmarking Tool | N2: http://www.england.nhs.uk/wp-content/uploads/2015/06/13-14-ccg-prog-bug-benchmarking-tool.xlsm | O2: No Data | R2: 10 | S2: NHS Area Team | T2: Map 1: Mean number of defined daily doses (DDD) of antibiotics prescribed in primary and secondary care per day per population by NHS area team, 2013
B3: 2 | C3: 10E | D3: CCG | E3: Map 2: Percentage of all antibiotic prescription items in primary care that were for key antibiotics by CCG, 2013 | F3: Primary Care Management | G3: 1, 3 | H3: INFECTIOUS DISEASES | I3: No Subcategory | J3: Bad | K3: No Pathway | L3: No Data | M3: This indicator is not part of the pathways covered by Commissioning for Value. For more information around spend by programme budgeting category, please download the Programme Budgeting Benchmarking Tool | N3: http://www.england.nhs.uk/wp-content/uploads/2015/06/13-14-ccg-prog-bug-benchmarking-tool.xlsm | O3: No Data | R3: 10E | S3: CCG | T3: Map 2: Percentage of all antibiotic prescription items in primary care that are for key antibiotics by CCG, 2013
B4: 3 | C4: 1 | D4: UTLA | E4: Map 3: Rate of tuberculosis incidence per 100,000 population by upper-tier local authority, 2011-2013 | F4: Prevention and Early Diagnosis | G4: 1, 3 | H4: Infectious Diseases | I4: No Subcategory | J4: Bad | K4: No Pathway | L4: No Data | M4: This indicator is not part of the pathways covered by Commissioning for Value. For more information around spend by programme budgeting category, please download the Programme Budgeting Benchmarking Tool. Spend for this area within the Programme Budgeting Benchmarking Tool may be included within 11X | N4: http://www.england.nhs.uk/wp-content/uploads/2015/06/13-14-ccg-prog-bug-benchmarking-tool.xlsm http://pathways.nice.org.uk/pathways/tuberculosis | O4: No Data | R4: 1 | S4: local authority | T4: Map 3: Rate of tuberculosis incidence per population by upper-tier local authority, 2011-2013
B5: 4 | C5: 2 | D5: UTLA | E5: Map 4: Percentage of people with drug-sensitive tuberculosis who completed treatment within 12 months of treatment onset by upper-tier local authority, 2012 | F5: Secondary Care Treatment | G5: 1, 3, 4 | H5: Infectious Diseases | I5: No Subcategory | J5: Good | K5: No Pathway | L5: No Data | M5: This indicator is not part of the pathways covered by Commissioning for Value. For more information around spend by programme budgeting category, please download the Programme Budgeting Benchmarking Tool. Spend for this area within the Programme Budgeting Benchmarking Tool may be included within 11X | N5: http://www.england.nhs.uk/wp-content/uploads/2015/06/13-14-ccg-prog-bug-benchmarking-tool.xlsm http://pathways.nice.org.uk/pathways/tuberculosis | O5: No Data | P5: changed | R5: 2 | S5: local authority | T5: Map 4: Percentage of people with drug-sensitive tuberculosis completing treatment within 12 months of treatment onset by upper-tier local authority, 2012
B6: 5 | C6: 6 | D6: CCG | E6: Map 5: Percentage of all people aged 15 years and over newly diagnosed with HIV who had a CD4 count test within one month of diagnosis by CCG, 2011-2013 | F6: Secondary Care Treatment | G6: 1, 2 | H6: No Data | I6: No Subcategory | J6: Good | K6: No Pathway | L6: No Data | M6: This indicator is not part of the pathways covered by Commissioning for Value. For more information around spend by programme budgeting category, please download the Programme Budgeting Benchmarking Tool. Spend for this area within the Programme Budgeting Benchmarking Tool may be included within 1A | N6: http://www.england.nhs.uk/wp-content/uploads/2015/06/13-14-ccg-prog-bug-benchmarking-tool.xlsm | O6: No Data | R6: 6 | S6: CCG | T6: Map 5: Percentage of all people aged 15 years and over newly diagnosed with HIV who had a CD4 count test within one month of diagnosis by CCG, 2011-2013
B7: 6 | C7: 39 | D7: CCG | E7: Map 6: Rate of mortality from cancer in people aged under 75 years per 100,000 population by CCG, 2013 | F7: Outcomes | G7: 1 | H7: No Data | I7: No Subcategory | J7: Bad | K7: Cancer & Tumours | L7: No Data | M7: To help understand the potential drivers of high cancer mortality please visit the Commissioning for Value website and download a 2014 pack. | N7: http://www.england.nhs.uk/resources/resources-for-ccgs/comm-for-value/ http://pathways.nice.org.uk/pathways/suspected-cancer-recognition-and-referral/ | O7: No Data | R7: 39 | S7: CCG | T7: Map 6: Rate of mortality from cancer in people aged under 75 years per population by CCG, 2013
B8: 7 | C8: 40 | D8: CCG | E8: Map 7: Percentage of people aged 15-99 years who survived one year after being diagnosed with any cancer by CCG, 2012 followed up to 2013 | F8: Secondary Care Treatment | G8: 1 | H8: No Data | I8: No Subcategory | J8: Good | K8: Cancer & Tumours | L8: No Data | M8: To help understand the potential drivers of high cancer mortality please visit the Commissioning for Value website and download a 2014 pack. | N8: http://www.england.nhs.uk/resources/resources-for-ccgs/comm-for-value/ http://pathways.nice.org.uk/pathways/suspected-cancer-recognition-and-referral/ | O8: No Data | P8: changed | R8: 40 | S8: CCG | T8: Map 7: Percentage of people aged 15-99 years surviving one year after being diagnosed with any cancer by CCG, 2012 followed up to 2013
B9: 8 | C9: 41 | D9: CCG | E9: Map 8: Percentage of people aged 15-99 years who survived one year after being diagnosed with breast, lung or colorectal cancer by CCG, 2012 followed up to 2013 | F9: Secondary Care Treatment | G9: 1 | H9: No Data | I9: No Subcategory | J9: Good | K9: Cancer & Tumours | L9: No Data | M9: To help understand the potential drivers of high cancer mortality please visit the Commissioning for Value website and download a 2014 pack. | N9: http://www.england.nhs.uk/resources/resources-for-ccgs/comm-for-value/ http://pathways.nice.org.uk/pathways/suspected-cancer-recognition-and-referral/ | O9: No Data | P9: changed | R9: 41 | S9: CCG | T9: Map 8: Percentage of people aged 15-99 years surviving one year after being diagnosed with breast, lung or colorectal cancer by CCG, 2012 followed up to 2013
B10: 10 | C10: 156 | D10: CCG | E10: Map 10: Rate of computed tomography (CT) colonoscopy procedures per 10,000 population by CCG, 2013/14 | F10: Prevention and Early Diagnosis | G10: 1 | H10: No Data | I10: No Subcategory | J10: Requires Local Interpretation | K10: No Pathway | L10: No Data | M10: This indicator is not part of the pathways covered by Commissioning for Value. For more information around spend by programme budgeting category, please download the Programme Budgeting Benchmarking Tool | N10: http://www.england.nhs.uk/wp-content/uploads/2015/06/13-14-ccg-prog-bug-benchmarking-tool.xlsm | O10: No Data | R10: 156 | S10: CCG | T10: Map 10: Rate of computed tomography (CT) colonoscopy procedures per population by CCG, 2013/14
B11: 11 | C11: 157 | D11: CCG | E11: Map 11: Rate of barium enema procedures per 100,000 population by CCG, 2013/14 | F11: Prevention and Early Diagnosis | G11: 1 | H11: No Data | I11: No Subcategory | J11: Bad | K11: No Pathway | L11: No Data | M11: This indicator is not part of the pathways covered by Commissioning for Value. For more information around spend by programme budgeting category, please download the Programme Budgeting Benchmarking Tool | N11: http://www.england.nhs.uk/wp-content/uploads/2015/06/13-14-ccg-prog-bug-benchmarking-tool.xlsm | O11: No Data | R11: 157 | S11: CCG | T11: Map 11: Rate of barium enema procedures per population by CCG, 2013/14
B12: 9A | C12: 158 | D12: CCG | E12: Map 9A: Rate of colonoscopy procedures and flexisigmoidoscopy procedures per 10,000 population by CCG, 2012/13 | F12: Prevention and Early Diagnosis | G12: 1 | H12: No Data | I12: No Subcategory | J12: Requires Local Interpretation | K12: No Pathway | L12: No Data | M12: This indicator is not part of the pathways covered by Commissioning for Value. For more information around spend by programme budgeting category, please download the Programme Budgeting Benchmarking Tool | N12: http://www.england.nhs.uk/wp-content/uploads/2015/06/13-14-ccg-prog-bug-benchmarking-tool.xlsm | O12: No Data | R12: 158 | S12: CCG | T12: Map 9A: Rate of colonoscopy procedures and flexisigmoidoscopy procedures per population by CCG, 2012/13
B13: 9B | C13: 158A | D13: CCG | E13: Map 9B: Ratio of colonoscopy procedures to flexisigmoidoscopy procedures by CCG, 2012/13 | F13: Secondary Care Treatment | G13: 1 | H13: No Data | I13: No Subcategory | J13: Requires Local Interpretation | K13: No Pathway | L13: No Data | M13: This indicator is not part of the pathways covered by Commissioning for Value. For more information around spend by programme budgeting category, please download the Programme Budgeting Benchmarking Tool | N13: http://www.england.nhs.uk/wp-content/uploads/2015/06/13-14-ccg-prog-bug-benchmarking-tool.xlsm | O13: No Data | R13: 158A | S13: CCG | T13: Map 9B: Ratio of colonoscopy procedures to flexisigmoidoscopy procedures by CCG, 2012/13
B14: 12 | C14: 44 | D14: CCG | E14: Map 12: Percentage of all cancer diagnoses that were made at stage 1 or stage 2 by CCG, 2013 | F14: Prevention and Early Diagnosis | G14: 1 | H14: No Data | I14: No Subcategory | J14: Good | K14: Cancer & Tumours | L14: No Data | M14: To help understand how early diagnosis for cancer affects expenditure and outcomes in the CCG please visit the Commissioning for Value website and download a 2014 pack. | N14: http://www.england.nhs.uk/resources/resources-for-ccgs/comm-for-value/ http://pathways.nice.org.uk/pathways/suspected-cancer-recognition-and-referral/ | O14: No Data | R14: 44 | S14: CCG | T14: Map 12: Percentage of all cancer diagnoses that were made at stage 1 or stage 2 by CCG, 2012
B15: 13 | C15: 133 | D15: CCG | E15: Map 13: Percentage of new cases of colorectal cancer that were diagnosed at stage 1 or stage 2 by CCG, 2013 | F15: Prevention and Early Diagnosis | G15: 1 | H15: No Data | I15: No Subcategory | J15: Good | K15: Cancer & Tumours - Lower GI Cancer | L15: No Data | M15: To help understand how early diagnosis for cancer affects expenditure and outcomes in the CCG please visit the Commissioning for Value website and download a 2014 pack. | N15: http://www.england.nhs.uk/resources/resources-for-ccgs/comm-for-value/ http://pathways.nice.org.uk/pathways/colorectal-cancer http://pathways.nice.org.uk/pathways/colonoscopic-surveillance http://pathways.nice.org.uk/pathways/gastrointestinal-conditions | O15: No Data | R15: 133 | S15: CCG | T15: Map 13: Percentage of new cases of colorectal cancer that were diagnosed at stage 1 or stage 2 by CCG, 2012
B16: 14 | C16: 75 | D16: CCG | E16: Map 14: Rate of epilepsy emergency admissions to hospital in people aged 18 years and over per 100,000 population by CCG 2012/13 | F16: Primary Care Management | G16: 2 | H16: No Data | I16: No Subcategory | J16: Bad | K16: Neurology - Epilepsy | L16: No Data | M16: To help understand how the management of epilepsy affects expenditure and outcomes in the CCG please visit the Commissioning for Value tool. | N16: http://www.england.nhs.uk/resources/resources-for-ccgs/comm-for-value/ http://pathways.nice.org.uk/pathways/epilepsy | O16: No Data | P16: changed | R16: 75 | S16: CCG | T16: Map 14: Rate of emergency admissions to hospital in people with epilepsy aged 18 years and over per population by CCG 2012/13
B17: 15 | C17: 81 | D17: CCG | E17: Map 15: Percentage of people with epilepsy aged 18 years and over on GP epilepsy registers who were seizure-free for the preceding 12 months by CCG, 2013/14 | F17: Primary Care Management | G17: 2 | H17: No Data | I17: No Subcategory | J17: Good | K17: Neurology - Epilepsy | L17: No Data | M17: To help understand how the management of epilepsy affects expenditure and outcomes in the CCG please visit the Commissioning for Value tool. | N17: http://www.england.nhs.uk/resources/resources-for-ccgs/comm-for-value/ http://pathways.nice.org.uk/pathways/epilepsy | O17: No Data | R17: 81 | S17: CCG | T17: Map 15: Percentage of people with epilepsy aged 18 years and over on GP epilepsy registers who have been seizure-free for the preceding 12 months by CCG, 2013/14
B18: 16 | C18: 135 | D18: LTLA | E18: Map 16: Rate of years of life lost (YLLs) in people aged under 75 years due to mortality from chronic liver disease including cirrhosis per 10,000 population by lower-tier local authority, 2010-2012 | F18: Outcomes | G18: 1, 2 | H18: Problems of the Gastro-Intestinal System | I18: HepatoBiliary | J18: Bad | K18: No Pathway | L18: No Data | M18: This indicator is not part of the pathways covered by Commissioning for Value. For more information around spend by programme budgeting category, please download the Programme Budgeting Benchmarking Tool. | N18: http://www.england.nhs.uk/wp-content/uploads/2015/06/13-14-ccg-prog-bug-benchmarking-tool.xlsm | O18: No Data | R18: 135 | S18: local authority | T18: Map 16: Rate of years of life lost (YLLs) in people aged under 75 years due to mortality from chronic liver disease including cirrhosis by lower-tier local authority, 2010-2012
B19: 17 | C19: 150 | D19: 0 | E19: #No Data | F19: Primary Care Management | G19: 4 | H19: No Data | I19: No Subcategory | J19: Good | K19: No Pathway | L19: No Data | M19: This indicator is not part of the pathways covered by Commissioning for Value. For more information around spend by programme budgeting category, please download the Programme Budgeting Benchmarking Tool | N19: http://www.england.nhs.uk/wp-content/uploads/2015/06/13-14-ccg-prog-bug-benchmarking-tool.xlsm | O19: No Data | R19: 150 | S19: NHS Area Team | T19: Map 17: Percentage of people who succeeded in gaining access to NHS dentistry services after requesting an appointment in the last two years by NHS area team, January-March 2014
B20: 18 | C20: 149A | D20: CCG | E20: Map 18: Rate of admission to hospital for cataract surgery in people aged 65 years and over per 100,000 population by CCG, 2012/13 | F20: Secondary Care Treatment | G20: 2 | H20: No Data | I20: No Subcategory | J20: Requires Local Intrepretation | K20: No Pathway | L20: No Data | M20: This indicator is not part of the pathways covered by Commissioning for Value. For more information around spend by programme budgeting category, please download the Programme Budgeting Benchmarking Tool | N20: http://www.england.nhs.uk/wp-content/uploads/2015/06/13-14-ccg-prog-bug-benchmarking-tool.xlsm | O20: No Data | R20: 149A | S20: CCG | T20: Map 18: Rate of admission to hospital for cataract surgery in people aged 65 years and over per population by CCG, 2012/13
B21: 19 | C21: 160 | D21: CCG | E21: Map 19: Rate of sleep studies undertaken per 1,000 weighted population by CCG, 2013/14 | F21: Secondary Care Treatment | G21: 2 | H21: No Data | I21: No Subcategory | J21: Requires Local Intrepretation | K21: Respiratory | L21: No Data | M21: To help understand how the management of the problems of the respiratory system affects expenditure and outcomes in the CCG please visit the Commissioning for Value website and download a 2014 pack. | N21: http://www.england.nhs.uk/resources/resources-for-ccgs/comm-for-value/ http://pathways.nice.org.uk/pathways/chronic-obstructive-pulmonary-disease http://pathways.nice.org.uk/pathways/asthma | O21: No Data | R21: 160 | S21: CCG | T21: Map 19: Rate of sleep studies undertaken per weighted population by CCG, 2013/14
B22: 20 | C22: 11 | D22: UTLA | E22: Map 20: Rate of successful smoking quitters at 4 weeks per 100,000 population of smokers aged 16 years and over by upper-tier local authority, 2013/14 | F22: Prevention and Early Diagnosis | G22: 1 | H22: Problems of the Respiratory System | I22: No Subcategory | J22: Good | K22: Dementia and LTCs, Cancer, Respiratory | L22: No Data | M22: To help understand how the management of smoking cessation affects expenditure and outcomes in the CCG across a number of pathways please visit the Commissioning for Value website and download a 2014 and a 2015 pack. | N22: http://www.england.nhs.uk/resources/resources-for-ccgs/comm-for-value/ http://pathways.nice.org.uk/pathways/smoking http://pathways.nice.org.uk/pathways/chronic-obstructive-pulmonary-disease http://pathways.nice.org.uk/pathways/asthma http://pathways.nice.org.uk/pathways/suspected-cancer-recognition-and-referral/ http://pathways.nice.org.uk/pathways/dementia | O22: No Data | R22: 11 | S22: local authority | T22: Map 20: Rate of successful smoking quitters at 4 weeks per population of smokers aged 16 years and over by upper-tier local authority, 2013/14
B23: 21 | C23: 12 | D23: CCG | E23: Map 21: Percentage of patients with COPD who had influenza immunisation in the preceding 1 September to 31 March by CCG (QOF COPD006 with exception-reported patients included), 2013/14 | F23: Primary Care Management | G23: 1, 2 | H23: No Data | I23: No Subcategory | J23: Good | K23: Respiratory System Problems - COPD? | L23: No Data | M23: To help understand how the management of COPD affects expenditure and outcomes in the CCG please visit the Commissioning for Value website and download a 2014 pack. | N23: http://www.england.nhs.uk/resources/resources-for-ccgs/comm-for-value/ http://pathways.nice.org.uk/pathways/chronic-obstructive-pulmonary-disease | O23: No Data | R23: 12 | S23: CCG | T23: Map 21: Percentage of patients with COPD who have had influenza immunisation in the preceding 1 September to 31 March by CCG (QOF COPD006 with exception-reported patients included), 2013/14
B24: 22 | C24: 13 | D24: CCG | E24: Map 22: Rate of COPD emergency admissions to hospital per 100,000 population by CCG, 2012/13 | F24: Primary Care Management | G24: 1, 2 | H24: No Data | I24: No Subcategory | J24: Bad | K24: Respiratory System Problems - COPD | L24: No Data | M24: To help understand how the management of COPD affects expenditure and outcomes in the CCG please visit the Commissioning for Value website and download a 2014 pack. | N24: http://www.england.nhs.uk/resources/resources-for-ccgs/comm-for-value/ http://pathways.nice.org.uk/pathways/chronic-obstructive-pulmonary-disease | O24: No Data | R24: 13 | S24: CCG | T24: Map 22: Rate of COPD emergency admissions to hospital per population by CCG, 2012/13
B25: 23 | C25: 16 | D25: CCG | E25: Map 23: Rate of asthma emergency admissions to hospital in people aged 19 years and over per 100,000 population by CCG, 2012/13 | F25: Primary Care Management | G25: 2, 3 | H25: No Data | I25: No Subcategory | J25: Bad | K25: Respiratory System Problems - Asthma | L25: No Data | M25: To help understand how the management of Asthma affects expenditure and outcomes in the CCG please visit the Commissioning for Value website and download a 2014 pack. | N25: http://www.england.nhs.uk/resources/resources-for-ccgs/comm-for-value/ http://pathways.nice.org.uk/pathways/asthma | O25: No Data | R25: 16 | S25: CCG | T25: Map 23: Rate of asthma emergency admissions to hospital in people aged 19 years and over by CCG, 2012/13
B26: 24 | C26: 53 | D26: LTLA | E26: Map 24: Percentage of people aged 16 years and over who had a body mass index (BMI) greater than or equal to 30 kg/m2 by lower-tier local authority, 2012 | F26: Prevention and Early Diagnosis | G26: 1 | H26: Obesity | I26: No Subcategory | J26: Bad | K26: Dementia and LTCs, Heart Disease, Cancer, Stroke | L26: No Data | M26: To help understand how the management of obesity affects expenditure and outcomes in the CCG across a number of pathways please visit the Commissioning for value webiste and download a 2014 and a 2015 pack. | N26: http://www.england.nhs.uk/resources/resources-for-ccgs/comm-for-value/ http://pathways.nice.org.uk/pathways/hypertension http://pathways.nice.org.uk/pathways/cardiovascular-disease-prevention http://pathways.nice.org.uk/pathways/stroke http://pathways.nice.org.uk/pathways/suspected-cancer-recognition-and-referral/ http://pathways.nice.org.uk/pathways/dementia | O26: No Data | P26: was 34 | R26: 21 | S26: CCG | T26: Map 24: Percentage of patients on the chronic kidney disease (CKD) register whose most recent blood-pressure measurement in the previous 15 months was 140/85 mmHg or less by CCG, 2012/13
B27: 25 | C27: 55 | D27: LTLA | E27: Map 25: Percentage of people aged 16 years and over who were classified as physically inactive by lower-tier local authority, 2013 | F27: Prevention and Early Diagnosis | G27: 1 | H27: Physical Activity | I27: No Subcategory | J27: Bad | K27: Dementia and LTCs, Heart Disease, Cancer, Stroke | L27: No Data | M27: To help understand how the management of obesity and physical inactivity affects expenditure and outcomes in the CCG across a number of pathways please visit the Commissioning for value webiste and download a 2014 and a 2015 pack. | N27: http://www.england.nhs.uk/resources/resources-for-ccgs/comm-for-value/ http://pathways.nice.org.uk/pathways/hypertension http://pathways.nice.org.uk/pathways/cardiovascular-disease-prevention http://pathways.nice.org.uk/pathways/stroke http://pathways.nice.org.uk/pathways/suspected-cancer-recognition-and-referral/ http://pathways.nice.org.uk/pathways/dementia | O27: No Data | P27: Was 35 | R27: 20 | S27: CCG | T27: Map 25: Ratio of reported to expected prevalence of chronic kidney disease (CKD) by CCG, 2012/13
B28: 26 | C28: 21 | D28: CCG | E28: Map 26: Percentage of people on the chronic kidney disease (CKD) register whose most recent blood-pressure measurement in the previous 15 months was 140/85 mmHg or less (QOF CKD3 with exception-reported patients excluded) by CCG, 2012/13 | F28: Primary Care Management | G28: 1, 2 | H28: No Data | I28: No Subcategory | J28: Good | K28: Genitourinary - Renal | L28: No Data | M28: To help understand how the management of chronic kidney disease (CKD) affects expenditure and outcomes in the CCG please visit the Commissioning for Value website and download a 2014 pack. | N28: http://www.england.nhs.uk/resources/resources-for-ccgs/comm-for-value/ http://pathways.nice.org.uk/pathways/chronic-kidney-disease | O28: No Data | P28: was 24 | R28: 24B | S28: CCG | T28: Map 26: Percentage of dialysis patients who are receiving dialysis in the home (home haemodialysis and peritoneal dialysis combined) by CCG, 2013
B29: 27 | C29: 20 | D29: CCG | E29: Map 27: Ratio of reported to expected prevalence of chronic kidney disease (CKD) by CCG, 2012/13 | F29: Prevention and Early Diagnosis | G29: 1, 2 | H29: No Data | I29: No Subcategory | J29: Good | K29: Genitourinary - Renal | L29: No Data | M29: To help understand how the management of chronic kidney disease (CKD) affects expenditure and outcomes in the CCG please visit the Commissioning for Value website and download a 2014 pack. | N29: http://www.england.nhs.uk/resources/resources-for-ccgs/comm-for-value/ http://pathways.nice.org.uk/pathways/chronic-kidney-disease | O29: No Data | P29: was 25 | R29: 24A | S29: CCG | T29: Map 27: Percentage of people receiving renal replacement therapy (RRT) who have a functioning kidney transplant at a Census date by CCG, 2013
B30: 28 | C30: 24B | D30: CCG | E30: Map 28: Percentage of dialysis patients who were receiving dialysis in the home (home haemodialysis and peritoneal dialysis combined) by CCG, 2013 | F30: Secondary Care Treatment | G30: 2 | H30: No Data | I30: No Subcategory | J30: Good | K30: Genitourinary - Renal | L30: No Data | M30: To help understand how the management of chronic kidney disease (CKD) affects expenditure and outcomes in the CCG please visit the Commissioning for Value website and download a 2014 pack. | N30: http://www.england.nhs.uk/resources/resources-for-ccgs/comm-for-value/ http://pathways.nice.org.uk/pathways/chronic-kidney-disease | O30: No Data | P30: was 26 | R30: 47 | S30: CCG | T30: Map 28: Percentage of people in the National Diabetes Audit (NDA) with Type 1 and Type 2 diabetes who are receiving NICE-recommended care processes (excluding eye screening) by CCG, 2012/13
B31: 29 | C31: 24A | D31: CCG | E31: Map 29: Percentage of people receiving renal replacement therapy (RRT) who had a functioning kidney transplant at a Census date by CCG, 2013 | F31: Secondary Care Treatment | G31: 2 | H31: No Data | I31: No Subcategory | J31: Good | K31: Genitourinary - Renal | L31: No Data | M31: To help understand how the management of chronic kidney disease (CKD) affects expenditure and outcomes in the CCG please visit the Commissioning for Value website and download a 2014 pack. | N31: http://www.england.nhs.uk/resources/resources-for-ccgs/comm-for-value/ http://pathways.nice.org.uk/pathways/chronic-kidney-disease | O31: No Data | P31: was 27 | R31: 48 | S31: CCG | T31: Map 29: Percentage of people in the National Diabetes Audit (NDA) with Type 1 and Type 2 diabetes who are meeting HbA1c, blood-pressure and cholesterol targets by CCG, 2012/13
B32: 30 | C32: 47 | D32: CCG | E32: Map 30: Percentage of people in the National Diabetes Audit (NDA) with Type 1 and Type 2 diabetes who received NICE-recommended care processes (excluding eye screening) by CCG, 2012/13 | F32: Primary Care Management | G32: 1 | H32: No Data | I32: No Subcategory | J32: Bad | K32: Endocrine, Nutritional and Metabolic problems - Diabetes | L32: No Data | M32: To help understand how the management of diabetes affects expenditure and outcomes in the CCG please visit the Commissioning for Value webiste and download a 2014 pack. | N32: http://www.england.nhs.uk/resources/resources-for-ccgs/comm-for-value/ http://pathways.nice.org.uk/pathways/diabetes | O32: No Data | P32: was 28 | R32: 49 | S32: CCG | T32: Map 30: Total net ingredient cost of anti-diabetic items per person on GP diabetes registers by CCG, 2013/14
B33: 31 | C33: 48 | D33: CCG | E33: Map 31: Percentage of people in the National Diabetes Audit (NDA) with Type 1 and Type 2 diabetes who met treatment targets for HbA1c, blood-pressure and cholesterol by CCG, 2012/13 | F33: Primary Care Management | G33: 1 | H33: No Data | I33: No Subcategory | J33: Bad | K33: Endocrine, Nutritional and Metabolic problems - Diabetes | L33: No Data | M33: To help understand how the management of diabetes affects expenditure and outcomes in the CCG please visit the Commissioning for Value webiste and download a 2014 pack. | N33: http://www.england.nhs.uk/resources/resources-for-ccgs/comm-for-value/ http://pathways.nice.org.uk/pathways/diabetes | O33: No Data | P33: was 29 | R33: 50 | S33: CCG | T33: Map 31: Additional percentage risk of mortality among people in the National Diabetes Audit (NDA) with Type 1 and Type 2 diabetes compared with the general population by CCG, 2011-2013
B34: 32 | C34: 49 | D34: CCG | E34: Map 32: Total net ingredient cost of anti-diabetic items per person on GP diabetes registers by CCG, 2013/14 | F34: Primary Care Management | G34: 1 | H34: No Data | I34: No Subcategory | J34: Bad | K34: Endocrine, Nutritional and Metabolic problems - Diabetes | L34: No Data | M34: To help understand how the management of diabetes affects expenditure and outcomes in the CCG please visit the Commissioning for Value webiste and download a 2014 pack. | N34: http://www.england.nhs.uk/resources/resources-for-ccgs/comm-for-value/ http://pathways.nice.org.uk/pathways/diabetes | O34: No Data | P34: was 30 | R34: 51 | S34: CCG | T34: Map 32: Relative risk of hospital admission for heart failure in people in the National Diabetes Audit (NDA) with Type 1 and Type 2 diabetes compared with people without diabetes by CCG, 2010/11-2012/13
B35: 33 | C35: 50 | D35: CCG | E35: Map 33: Additional risk of mortality among people in the National Diabetes Audit (NDA) with Type 1 and Type 2 diabetes compared with the general population by CCG, 2011-2013 | F35: Outcomes | G35: 1 | H35: No Data | I35: No Subcategory | J35: Bad | K35: Endocrine, Nutritional and Metabolic problems - Diabetes | L35: No Data | M35: To help understand how the management of diabetes affects expenditure and outcomes in the CCG please visit the Commissioning for Value webiste and download a 2014 pack. | N35: http://www.england.nhs.uk/resources/resources-for-ccgs/comm-for-value/ http://pathways.nice.org.uk/pathways/diabetes | O35: No Data | P35: was 31 | R35: 52 | S35: CCG | T35: Map 33: Relative risk of major lower limb amputation in people with Type 1 and Type 2 diabetes in the National Diabetes Audit (NDA) when compared with people without diabetes by CCG, 2010/11-2012/13
B36: 34 | C36: 51 | D36: CCG | E36: Map 34: Relative risk of hospital admission for heart failure among people in the National Diabetes Audit (NDA) with Type 1 and Type 2 diabetes compared with people without diabetes by CCG, 2010/11-2012/13 | F36: Primary Care Management | G36: 1 | H36: No Data | I36: No Subcategory | J36: Bad | K36: Endocrine, Nutritional and Metabolic problems - Diabetes | L36: No Data | M36: To help understand how the management of diabetes affects expenditure and outcomes in the CCG please visit the Commissioning for Value webiste and download a 2014 pack. | N36: http://www.england.nhs.uk/resources/resources-for-ccgs/comm-for-value/ http://pathways.nice.org.uk/pathways/diabetes | O36: No Data | P36: was 32 | R36: 53 | S36: local authority | T36: Map 34: Percentage of people aged 16 years and over who have a body mass index (BMI) greater than or equal to 30 kg/m2 by lower-tier local authority, 2012
B37: 35 | C37: 52 | D37: CCG | E37: Map 35: Relative risk of major lower limb amputation among people in the National Diabetes Audit (NDA) with Type 1 and Type 2 diabetes compared with people without diabetes by CCG, 2010/11-2012/13 | F37: Primary Care Management | G37: 1 | H37: No Data | I37: No Subcategory | J37: Bad | K37: Endocrine, Nutritional and Metabolic problems - Diabetes | L37: No Data | M37: To help understand how the management of diabetes affects expenditure and outcomes in the CCG please visit the Commissioning for Value webiste and download a 2014 pack. | N37: http://www.england.nhs.uk/resources/resources-for-ccgs/comm-for-value/ http://pathways.nice.org.uk/pathways/diabetes | O37: No Data | P37: was 33 | R37: 55 | S37: local authority | T37: Map 35: Percentage of people aged 16 years and over who are classified as physically inactive by lower-tier local authority, 2013
B38: 36 | C38: 125 | D38: CCG | E38: Map 36: Ratio of reported to expected prevalence of hypertension by CCG, 2013/14 | F38: Prevention and Early Diagnosis | G38: 1, 2 | H38: CARDIOVASCULAR | I38: HEART | J38: Good | K38: Circulation Problems (CVD) - Heart Disease | L38: No Data | M38: To help understand how the management of hypertension and coronary heart disease affects expenditure and outcomes in the CCG please visit the Commissioning for Value website and download a 2014 pack. | N38: http://www.england.nhs.uk/resources/resources-for-ccgs/comm-for-value/ http://pathways.nice.org.uk/pathways/hypertension http://pathways.nice.org.uk/pathways/cardiovascular-disease-prevention http://pathways.nice.org.uk/pathways/smoking | O38: No Data | R38: 125 | S38: CCG | T38: Map 36: Ratio of reported to expected prevalence of hypertension by CCG, 2013/14
B39: 37 | C39: 124 | D39: CCG | E39: Map 37: Ratio of reported to expected prevalence of coronary heart disease (CHD) by CCG, 2013/14 | F39: Prevention and Early Diagnosis | G39: 1 | H39: CARDIOVASCULAR | I39: HEART | J39: Good | K39: Circulation Problems (CVD) - Heart Disease | L39: No Data | M39: To help understand how the management of coronary heart disease affects expenditure and outcomes in the CCG please visit the Commissioning for Value website and download a 2014 pack. | N39: http://www.england.nhs.uk/resources/resources-for-ccgs/comm-for-value/ http://pathways.nice.org.uk/pathways/cardiovascular-disease-prevention http://pathways.nice.org.uk/pathways/smoking | O39: No Data | R39: 124 | S39: CCG | T39: Map 37: Ratio of reported to expected prevalence of coronary heart disease (CHD) by CCG, 2013/14
B40: 38 | C40: 123 | D40: CCG | E40: Map 38: Rate of mortality from coronary heart disease (CHD) in people aged under 75 years per 100,000 population by CCG, 2011-2013 | F40: Outcomes | G40: 1 | H40: CARDIOVASCULAR | I40: HEART | J40: Bad | K40: Circulation Problems (CVD) - Heart Disease | L40: No Data | M40: To help understand how the management of coronary heart disease affects expenditure and outcomes in the CCG please visit the Commissioning for Value website and download a 2014 pack. | N40: http://www.england.nhs.uk/resources/resources-for-ccgs/comm-for-value/ http://pathways.nice.org.uk/pathways/cardiovascular-disease-prevention http://pathways.nice.org.uk/pathways/smoking | O40: No Data | R40: 123 | S40: CCG | T40: Map 38: Rate of mortality from coronary heart disease (CHD) in people aged under 75 years per population by CCG, 2011-2013
B41: 39 | C41: 127 | D41: 0 | E41: #No Data | F41: Secondary Care Treatment | G41: 1 | H41: CARDIOVASCULAR | I41: HEART | J41: Ambiguous - Requires Local Interpretation | K41: Circulation Problems (CVD) - Heart Disease? | L41: No Data | M41: To help understand how the management of coronary heart disease affects expenditure and outcomes in the CCG please visit the Commissioning for Value website and download a 2014 pack. | N41: http://www.england.nhs.uk/resources/resources-for-ccgs/comm-for-value/ http://pathways.nice.org.uk/pathways/cardiovascular-disease-prevention http://pathways.nice.org.uk/pathways/smoking | O41: No Data | R41: 127 | S41: NHS Area Team | T41: Map 39: Rate of transcatheter aortic valve implantation (TAVI) procedures per population by NHS area team, 2013
B42: 40 | C42: 129 | D42: CCG | E42: Map 40: Percentage of people with acute stroke who were directly admitted to a stroke unit within four hours of arrival at hospital by CCG, 2013/14 | F42: Secondary Care Treatment | G42: 1 | H42: No Data | I42: No Subcategory | J42: Good | K42: Circulation Problems (CVD) - Stroke | L42: No Data | M42: To help understand how the management of strokes affects expenditure and outcomes in the CCG please visit the Commissioning for Value website and download a 2014 pack. | N42: http://www.england.nhs.uk/resources/resources-for-ccgs/comm-for-value/ http://pathways.nice.org.uk/pathways/stroke | O42: No Data | R42: 129 | S42: CCG | T42: Map 40: Percentage of people with acute stroke who were directly admitted to a stroke unit within four hours of arrival at hospital by CCG, 2013/14
B43: 41 | C43: 130 | D43: CCG | E43: Map 41: Average composite score for quality of care of stroke services in the Sentinel Stroke National Audit Programme (SSNAP) by CCG, April-June 2014 | F43: Secondary Care Treatment | G43: 1 | H43: No Data | I43: No Subcategory | J43: Good | K43: Circulation Problems (CVD) - Stroke | L43: No Data | M43: To help understand how the management of strokes affects expenditure and outcomes in the CCG please visit the Commissioning for Value website and download a 2014 pack. | N43: http://www.england.nhs.uk/resources/resources-for-ccgs/comm-for-value/ http://pathways.nice.org.uk/pathways/stroke | O43: No Data | R43: 130 | S43: CCG | T43: Map 41: Average composite score for quality of care of stroke services in the Sentinel Stroke National Audit Programme (SSNAP) by CCG, April-June 2014
B44: 42 | C44: 132A | D44: CCG | E44: Map 42: Percentage of people known to have atrial fibrillation (AF) who were prescribed anticoagulation prior to a stroke by CCG, 2013/14 | F44: Secondary Care Treatment | G44: 1 | H44: No Data | I44: No Subcategory | J44: Good | K44: Circulation Problems (CVD) - Stroke | L44: No Data | M44: To help understand how the management of strokes affects expenditure and outcomes in the CCG please visit the Commissioning for Value website and download a 2014 pack. | N44: http://www.england.nhs.uk/resources/resources-for-ccgs/comm-for-value/ http://pathways.nice.org.uk/pathways/stroke | O44: No Data | R44: 132A | S44: CCG | T44: Map 42: Percentage of people known to have atrial fibrillation (AF) who were prescribed anticoagulation prior to a stroke by CCG 2013/14
B45: 43 | C45: 131 | D45: CCG | E45: Map 43: Standardised mortality ratio (SMR) in the 30 days following admission to hospital for a stroke by CCG, 2013/14 | F45: Outcomes | G45: 1 | H45: No Data | I45: No Subcategory | J45: Bad | K45: Circulation Problems (CVD) - Stroke | L45: No Data | M45: To help understand how the management of strokes affects expenditure and outcomes in the CCG please visit the Commissioning for Value website and download a 2014 pack. | N45: http://www.england.nhs.uk/resources/resources-for-ccgs/comm-for-value/ http://pathways.nice.org.uk/pathways/stroke | O45: No Data | R45: 131 | S45: CCG | T45: Map 43: Standardised mortality ratio in the 30 days following admission to hospital for stroke by CCG, 2013/14
B46: 44 | C46: 132 | D46: CCG | E46: Map 44: Percentage of people discharged from hospital following a stroke who were 'newly institutionalised' by CCG, 2013/14 | F46: Secondary Care Treatment | G46: 1 | H46: No Data | I46: No Subcategory | J46: Bad | K46: Circulation Problems (CVD) - Stroke | L46: No Data | M46: To help understand how the management of strokes affects expenditure and outcomes in the CCG please visit the Commissioning for Value website and download a 2014 pack. | N46: http://www.england.nhs.uk/resources/resources-for-ccgs/comm-for-value/ http://pathways.nice.org.uk/pathways/stroke | O46: No Data | P46: changed | R46: 132 | S46: CCG | T46: Map 44: Percentage of people following a stroke who were discharged to an institution and not to their own home by CCG 2013/14
B47: 45 | C47: 58S | D47: CCG | E47: Map 45: Percentage of people who are recorded in GP registers of severe mental illness (SMI) by CCG 2013/14 | F47: Primary Care Management | G47: 1, 2, 5 | H47: No Data | I47: No Subcategory | J47: Good | K47: Mental Health Problems - Psychosis | L47: No Data | M47: To help understand how the management of psychosis affects expenditure and outcomes in the CCG please visit the Commissioning for Value website and download a 2014 pack. | N47: http://www.england.nhs.uk/resources/resources-for-ccgs/comm-for-value/ http://pathways.nice.org.uk/pathways/psychosis-and-schizophrenia | O47: No Data | R47: 58S | S47: CCG | T47: Map 45: Percentage of people who are recorded in GP registers of severe mental illness (SMI) by CCG 2013/14
B48: 46 | C48: 60S | D48: CCG | E48: Map 46: Mean percentage achievement score for physical health checks on people with severe mental illness (SMI) recorded in GP SMI registers by CCG, 2013/14 | F48: Primary Care Management | G48: 1 | H48: No Data | I48: No Subcategory | J48: Good | K48: Mental Health Problems - Psychosis | L48: No Data | M48: To help understand how the management of psychosis affects expenditure and outcomes in the CCG please visit the Commissioning for Value website and download a 2014 pack. | N48: http://www.england.nhs.uk/resources/resources-for-ccgs/comm-for-value/ http://pathways.nice.org.uk/pathways/psychosis-and-schizophrenia | O48: No Data | R48: 60S | S48: CCG | T48: Map 46: Mean percentage achievement score for physical health checks on people with severe mental illness (SMI) recorded in GP SMI registers by CCG, 2013/14
B49: 47 | C49: 60A | D49: CCG | E49: Map 47: Percentage of people with severe mental illness (SMI) recorded in GP SMI registers who were excepted from the calculation of QOF achievement scores by CCG 2013/14 | F49: Primary Care Management | G49: 2 | H49: No Data | I49: No Subcategory | J49: Bad | K49: Mental Health Problems - Psychosis | L49: No Data | M49: To help understand how the management of psychosis affects expenditure and outcomes in the CCG please visit the Commissioning for Value website and download a 2014 pack. | N49: http://www.england.nhs.uk/resources/resources-for-ccgs/comm-for-value/ http://pathways.nice.org.uk/pathways/psychosis-and-schizophrenia | O49: No Data | R49: 60A | S49: CCG | T49: Map 47: Percentage of people with severe mental illness (SMI) recorded in GP SMI registers who are excepted from the calculation of QOF achievement scores by CCG 2013/14
B50: 48 | C50: 61S | D50: CCG | E50: Map 48: Rate of new cases of psychosis in people aged 18 years and over who received early intervention psychosis (EIP) services per 100,000 population by CCG, April 2013-September 2014 | F50: Secondary Care Treatment | G50: 2 | H50: No Data | I50: No Subcategory | J50: Good | K50: Mental Health Problems - Psychosis | L50: No Data | M50: To help understand how the management of psychosis affects expenditure and outcomes in the CCG please visit the Commissioning for Value website and download a 2014 pack. | N50: http://www.england.nhs.uk/resources/resources-for-ccgs/comm-for-value/ http://pathways.nice.org.uk/pathways/psychosis-and-schizophrenia | O50: No Data | P50: changed | R50: 61S | S50: CCG | T50: Map 48: Rate of new cases of psychosis in people aged 18 years and over served by early intervention teams per population by CCG, April 2013-September 2014
B51: 49 | C51: 62S | D51: UTLA | E51: Map 49: Standardised mortality ratio (SMR) in people aged 18-74 years in contact with mental health services by upper-tier local authority, 2012/13 | F51: Outcomes | G51: 2 | H51: Mental Health Disorders | I51: Other Mental Health Disorders | J51: Bad | K51: Mental Health Problems - Common, Psychosis | L51: No Data | M51: To help understand how the management of psychosis and common mental health disorders affect expenditure and outcomes in the CCG please visit the Commissioning for Value website and download a 2014 pack. | N51: http://www.england.nhs.uk/resources/resources-for-ccgs/comm-for-value/ http://pathways.nice.org.uk/pathways/psychosis-and-schizophrenia http://pathways.nice.org.uk/pathways/common-mental-health-disorders-in-primary-care | O51: No Data | P51: changed | R51: 62S | S51: local authority | T51: Map 49: Standardised mortality ratio in people aged 18-74 years in contact with mental health services by upper-tier local authority, 2012/13
B52: 50 | C52: 65 | D52: CCG | E52: Map 50: Ratio of reported to expected prevalence of dementia by CCG, October 2014 | F52: Prevention and Early Diagnosis | G52: 2 | H52: No Data | I52: No Subcategory | J52: Good | K52: Dementia and LTCs | L52: No Data | M52: To help understand how the management of dementia affects expenditure and outcomes in the CCG please visit the Commissioning for Value website and download a 2015 pack. | N52: http://www.england.nhs.uk/resources/resources-for-ccgs/comm-for-value/ http://pathways.nice.org.uk/pathways/dementia | O52: No Data | R52: 65 | S52: CCG | T52: Map 50: Ratio of reported to expected prevalence of dementia by CCG, October 2014
B53: 51 | C53: 66A | D53: 0 | E53: #No Data | F53: Secondary Care Treatment | G53: 2 | H53: No Data | I53: No Subcategory | J53: Good | K53: Dementia and LTCs | L53: No Data | M53: To help understand how the management of dementia affects expenditure and outcomes in the CCG please visit the Commissioning for Value website and download a 2015 pack. | N53: http://www.england.nhs.uk/resources/resources-for-ccgs/comm-for-value/ http://pathways.nice.org.uk/pathways/dementia | O53: No Data | R53: 66A | S53: NHS Hospital Trust | T53: Map 51: Percentage of people aged 75 years and over to whom dementia case-finding is applied following emergency admission to hospital by NHS trust, April-September 2014
B54: 52 | C54: 66B | D54: 0 | E54: #No Data | F54: Secondary Care Treatment | G54: 2 | H54: No Data | I54: No Subcategory | J54: Good | K54: Dementia and LTCs | L54: No Data | M54: To help understand how the management of dementia affects expenditure and outcomes in the CCG please visit the Commissioning for Value website and download a 2015 pack. | N54: http://www.england.nhs.uk/resources/resources-for-ccgs/comm-for-value/ http://pathways.nice.org.uk/pathways/dementia | O54: No Data | R54: 66B | S54: NHS Hospital Trust | T54: Map 52: Percentage of people identified as potentially having dementia who are appropriately assessed following emergency admission to hospital by NHS trust, April-September 2014
B55: 53 | C55: 66C | D55: 0 | E55: #No Data | F55: Secondary Care Treatment | G55: 2 | H55: No Data | I55: No Subcategory | J55: Good | K55: Dementia and LTCs | L55: No Data | M55: To help understand how the management of dementia affects expenditure and outcomes in the CCG please visit the Commissioning for Value website and download a 2015 pack. | N55: http://www.england.nhs.uk/resources/resources-for-ccgs/comm-for-value/ http://pathways.nice.org.uk/pathways/dementia | O55: No Data | P55: changed | R55: 66C | S55: NHS Hospital Trust | T55: Map 53: Percentage of people aged 75 years and over identified with possible dementia and appropriately assessed who are referred for further diagnostic advice following emergency admission to hospital by NHS trust, April-September 2014
B56: 54 | C56: 67 | D56: 0 | E56: #No Data | F56: Primary Care Management | G56: 2 | H56: No Data | I56: No Subcategory | J56: Requires Local Interpretation | K56: Dementia and LTCs | L56: No Data | M56: To help understand how the management of dementia affects expenditure and outcomes in the CCG please visit the Commissioning for Value website and download a 2015 pack. | N56: http://www.england.nhs.uk/resources/resources-for-ccgs/comm-for-value/ http://pathways.nice.org.uk/pathways/dementia | O56: No Data | R56: 67 | S56: NHS Area Team | T56: Map 54: Rate of claims by GPs for Enhanced Services for health checks per estimated population with dementia by NHS area team, 2013/14
B57: 55 | C57: 68 | D57: CCG | E57: Map 55: Rate of emergency admissions to hospital of people with dementia aged 65 years and over per 100,000 population by CCG, 2012/13 | F57: Outcomes | G57: 2 | H57: No Data | I57: No Subcategory | J57: Bad | K57: Dementia and LTCs | L57: No Data | M57: To help understand how the management of dementia affects expenditure and outcomes in the CCG please visit the Commissioning for Value website and download a 2015 pack. | N57: http://www.england.nhs.uk/resources/resources-for-ccgs/comm-for-value/ http://pathways.nice.org.uk/pathways/dementia | O57: No Data | R57: 68 | S57: CCG | T57: Map 55: Rate of emergency admissions to hospital of people with dementia aged 65 years and over per population by CCG, 2012/13
B58: 56 | C58: 145 | D58: CCG | E58: Map 56: Rate of dual-energy X-ray absorptiometry (DEXA) activity per 1,000 weighted population by CCG, 2013/14 | F58: Secondary Care Treatment | G58: 2 | H58: No Data | I58: No Subcategory | J58: Requires Local Interpretation | K58: Musculoskeletal System Problems (Excludes Trauma) | L58: No Data | M58: To help understand how the management of Musculoskeletal System Problems affects expenditure and outcomes in the CCG please visit the Commissioning for Value website and download a 2014 pack. | N58: http://www.england.nhs.uk/resources/resources-for-ccgs/comm-for-value/ http://pathways.nice.org.uk/pathways/musculoskeletal-conditions http://www.arthritisresearchuk.org/mskcalculator | O58: No Data | R58: 145 | S58: CCG | T58: Map 56: Rate of dual-energy X-ray absorptiometry (DEXA) activity per weighted population by CCG, , 2013/14
B59: 57 | C59: 136N | D59: CCG | E59: Map 57: Percentage of patients aged 75 years and over with a fragility fracture on or after 1 April 2012 who were treated with a bone-sparing agent (excluding exceptions) by CCG, 2013/14 | F59: Secondary Care Treatment | G59: 3 | H59: No Data | I59: No Subcategory | J59: Good | K59: Musculoskeletal System Problems (Excludes Trauma) | L59: No Data | M59: To help understand how the management of Musculoskeletal System Problems affects expenditure and outcomes in the CCG please visit the Commissioning for Value website and download a 2014 pack. | N59: http://www.england.nhs.uk/resources/resources-for-ccgs/comm-for-value/ http://pathways.nice.org.uk/pathways/musculoskeletal-conditions http://www.arthritisresearchuk.org/mskcalculator | O59: No Data | R59: 136N | S59: CCG | T59: Map 57: Percentage of patients aged under 75 years with a fragility fracture on or after 1 April 2012 who are being treated with a bone-sparing agent (excluding exceptions) by CCG, 2013/14
B60: 58 | C60: 141 | D60: CCG | E60: Map 58: Mean length of stay (days) for emergency admission to hospital for fractured neck of femur (FNOF) by CCG, 2012/13 | F60: Secondary Care Treatment | G60: 3 | H60: No Data | I60: No Subcategory | J60: Bad | K60: Trauma & Injury | L60: No Data | M60: To help understand how the management of Trauma & Injury affects expenditure and outcomes in the CCG please visit the Commissioning for Value website and download a 2014 pack. | N60: http://www.england.nhs.uk/resources/resources-for-ccgs/comm-for-value/ http://pathways.nice.org.uk/pathways/falls-in-older-people http://pathways.nice.org.uk/pathways/unintentional-injuries-among-under-15s http://pathways.nice.org.uk/pathways/hip-fracture | O60: No Data | R60: 141 | S60: CCG | T60: Map 58: Mean length of stay (days) for emergency admission to hospital for fractured neck of femur (FNOF) by CCG, 2013/14
B61: 59 | C61: 137N | D61: CCG | E61: Map 59: Rate of primary hip replacement procedures per 100,000 population by CCG, 2012/13 | F61: Secondary Care Treatment | G61: 3 | H61: No Data | I61: No Subcategory | J61: Requires Local Interpretation | K61: Musculoskeletal System Problems (Excludes Trauma) | L61: No Data | M61: To help understand how the management of Musculoskeletal System Problems affects expenditure and outcomes in the CCG please visit the Commissioning for Value website and download a 2014 pack. | N61: http://www.england.nhs.uk/resources/resources-for-ccgs/comm-for-value/ http://pathways.nice.org.uk/pathways/musculoskeletal-conditions http://www.arthritisresearchuk.org/mskcalculator | O61: No Data | R61: 137N | S61: CCG | T61: Map 59: Rate of primary hip replacement procedures per population by CCG, 2012/13
B62: 60 | C62: 138N | D62: CCG | E62: Map 60: Mean patient-reported health gain (EQ-5D index score) for primary hip replacement procedures by CCG, 2013/14 | F62: Secondary Care Treatment | G62: 3 | H62: No Data | I62: No Subcategory | J62: Good | K62: Musculoskeletal System Problems (Excludes Trauma) | L62: No Data | M62: To help understand how the management of Musculoskeletal System Problems affects expenditure and outcomes in the CCG please visit the Commissioning for Value website and download a 2014 pack. | N62: http://www.england.nhs.uk/resources/resources-for-ccgs/comm-for-value/ http://pathways.nice.org.uk/pathways/musculoskeletal-conditions http://www.arthritisresearchuk.org/mskcalculator | O62: No Data | R62: 138N | S62: CCG | T62: Map 60: Mean patient-reported health gain (EQ-5D index score) for primary hip replacement procedures by CCG, 2013/14
B63: 61 | C63: 118 | D63: CCG | E63: Map 61: Rate of emergency admission to hospital for people aged 75 years and over with a length of stay of less than 24 hours per 100,000 population by CCG, 2012/13 | F63: Secondary Care Treatment | G63: 2, 3, 5 | H63: No Data | I63: No Subcategory | J63: Bad | K63: Dementia and LTCs | L63: No Data | M63: To help understand how the management of dementia and long-term conditions affects expenditure and outcomes in the CCG please visit the Commissioning for Value website and download a 2015 pack. | N63: http://www.england.nhs.uk/resources/resources-for-ccgs/comm-for-value/ http://pathways.nice.org.uk/pathways/dementia | O63: No Data | R63: 118 | S63: CCG | T63: Map 61: Rate of emergency admission to hospital for people aged over 75 years with a length of stay of less than 24 hours by CCG, 2012/13
B64: 62 | C64: 86 | D64: CCG | E64: Map 62: Rate of admission to hospital for people aged 75 years and over from nursing home or residential care home settings per 1,000 population by CCG, 2012/13 | F64: End of Life, Social Care & Rehabilitation | G64: 2, 3, 5 | H64: No Data | I64: No Subcategory | J64: Bad | K64: Dementia and LTCs | L64: No Data | M64: To help understand how the management of dementia and long-term conditions affects expenditure and outcomes in the CCG please visit the Commissioning for Value website and download a 2015 pack. | N64: http://www.england.nhs.uk/resources/resources-for-ccgs/comm-for-value/ http://pathways.nice.org.uk/pathways/dementia | O64: No Data | R64: 86 | S64: CCG | T64: Map 62: Rate of admission to hospital for people aged 75 years and over from nursing home or residential care home settings per population by CCG, 2012/13
B65: 63 | C65: 116 | D65: UTLA | E65: Map 63: Rate of council-supported permanent admissions of people aged 65 years and over to nursing home and residential care home settings per 100,000 population by upper-tier local authority, 2013/14 | F65: End of Life, Social Care & Rehabilitation | G65: 2, 5 | H65: Care of Older People | I65: No Subcategory | J65: Bad | K65: Dementia and LTCs | L65: No Data | M65: To help understand how the management of dementia and long-term conditions affects expenditure and outcomes in the CCG please visit the Commissioning for Value website and download a 2015 pack. | N65: http://www.england.nhs.uk/resources/resources-for-ccgs/comm-for-value/ http://pathways.nice.org.uk/pathways/dementia | O65: No Data | R65: 116 | S65: local authority | T65: Map 63: Rate of council-supported permanent admissions of people aged 65 years and over to nursing home and residential care home settings per population by upper-tier local authority, 2013/14
B66: 64 | C66: 115A | D66: UTLA | E66: Map 64: Percentage of people aged 65 years and over who were discharged from hospital into re-ablement/rehabilitation services by upper-tier local authority, 2013/14 | F66: End of Life, Social Care & Rehabilitation | G66: 2, 3 | H66: Care of Older People | I66: No Subcategory | J66: Good | K66: Dementia and LTCs | L66: No Data | M66: To help understand how the management of dementia and long-term conditions affects expenditure and outcomes in the CCG please visit the Commissioning for Value website and download a 2015 pack. | N66: http://www.england.nhs.uk/resources/resources-for-ccgs/comm-for-value/ http://pathways.nice.org.uk/pathways/dementia | O66: No Data | R66: 115A | S66: local authority | T66: Map 64: Percentage of people aged 65 years and over who were still at home 91 days after discharge from hospital into re-ablement/rehabilitation services - effectiveness of service by upper-tier local authority, 2013/14
B67: 65 | C67: 115B | D67: UTLA | E67: Map 65: Percentage of people aged 65 years and over who were still at home 91 days after discharge from hospital into re-ablement/rehabilitation services by upper-tier local authority, 2013/14 | F67: End of Life, Social Care & Rehabilitation | G67: 2, 3 | H67: Care of Older People | I67: No Subcategory | J67: Good | K67: Dementia and LTCs | L67: No Data | M67: To help understand how the management of dementia and long-term conditions affects expenditure and outcomes in the CCG please visit the Commissioning for Value website and download a 2015 pack. | N67: http://www.england.nhs.uk/resources/resources-for-ccgs/comm-for-value/ http://pathways.nice.org.uk/pathways/dementia | O67: No Data | R67: 115B | S67: local authority | T67: Map 65: Percentage of people aged 65 years and over who were still at home 91 days after discharge from hospital into re-ablement/rehabilitation services - coverage of service by upper-tier local authority, 2013/14
B68: 66 | C68: 120 | D68: UTLA | E68: Map 66: Percentage of all deaths in an area that occurred in hospital by upper-tier local authority, 2013 | F68: End of Life, Social Care & Rehabilitation | G68: 4 | H68: End-of-Life Care | I68: No Subcategory | J68: Bad | K68: Dementia and LTCs | L68: No Data | M68: To help understand how the management of dementia and long-term conditions affects expenditure and outcomes in the CCG please visit the Commissioning for Value website and download a 2015 pack. | N68: http://www.england.nhs.uk/resources/resources-for-ccgs/comm-for-value/ http://pathways.nice.org.uk/pathways/dementia | O68: No Data | R68: 120 | S68: local authority | T68: Map 66: Percentage of all deaths that occurred in hospital by upper-tier local authority, 2013
B69: 67 | C69: 121 | D69: CCG | E69: Map 67: Percentage of all deaths that occurred in usual place of residence by CCG, 2013 | F69: End of Life, Social Care & Rehabilitation | G69: 4 | H69: No Data | I69: No Subcategory | J69: Good | K69: Dementia and LTCs | L69: No Data | M69: To help understand how the management of dementia and long-term conditions affects expenditure and outcomes in the CCG please visit the Commissioning for Value website and download a 2015 pack. | N69: http://www.england.nhs.uk/resources/resources-for-ccgs/comm-for-value/ http://pathways.nice.org.uk/pathways/dementia | O69: No Data | R69: 121 | S69: CCG | T69: Map 67: Percentage of all deaths that occurred in usual place of residence by CCG, 2013
B70: 68 | C70: 110 | D70: 0 | E70: #No Data | F70: Secondary Care Treatment | G70: 5 | H70: CARE OF MOTHERS, BABIES, CHILDREN AND YOUNG PEOPLE | I70: No Subcategory | J70: Bad | K70: Maternity and Early Years | L70: No Data | M70: To help understand how the management of maternity and early years affects expenditure and outcomes in the Local Authority please visit the Commissioning for Value website and download a 2015 pack. | N70: http://www.england.nhs.uk/resources/resources-for-ccgs/comm-for-value/ http://pathways.nice.org.uk/ https://sustain.sharepoint.com/Documents/HCP%20Integrated%20Com%20and%20Del%20toolkit%20final.pdf | O70: No Data | R70: 114 | S70: CCG | T70: Map 68: Rate of emergency admissions to hospital of babies within 14 days of being born per number of deliveries by CCG, 2012/13
B71: 69 | C71: 26 | D71: 0 | E71: #No Data | F71: Secondary Care Treatment | G71: 5 | H71: CARE OF MOTHERS, BABIES, CHILDREN AND YOUNG PEOPLE | I71: No Subcategory | J71: Bad | K71: Maternity and Early Years | L71: No Data | M71: To help understand how the management of maternity and early years affects expenditure and outcomes in the Local Authority please visit the Commissioning for Value website and download a 2015 pack. | N71: http://www.england.nhs.uk/resources/resources-for-ccgs/comm-for-value/ http://pathways.nice.org.uk/ https://sustain.sharepoint.com/Documents/HCP%20Integrated%20Com%20and%20Del%20toolkit%20final.pdf | O71: No Data | R71: 110 | S71: Neonatal Network | T71: Map 69: Percentage of full-term babies (≥37 weeks’ gestational age at birth) admitted to specialist neonatal care by neonatal network, 2013/14
B72: 70 | C72: 35 | D72: UTLA | E72: Map 70: Rate of stillbirths and neonatal deaths (under 28 days) per 1,000 live-births and stillbirths by upper-tier local authority, 2012 | F72: Secondary Care Treatment | G72: 1 | H72: Care of Mothers, Babies, Children and Young People | I72: No Subcategory | J72: Bad | K72: Maternity and Early Years | L72: No Data | M72: To help understand how the management of maternity and early years affects expenditure and outcomes in the Local Authority please visit the Commissioning for Value website and download a 2015 pack. | N72: http://www.england.nhs.uk/resources/resources-for-ccgs/comm-for-value/ http://pathways.nice.org.uk/ https://sustain.sharepoint.com/Documents/HCP%20Integrated%20Com%20and%20Del%20toolkit%20final.pdf | O72: No Data | R72: 25 | S72: CCG | T72: Map 70: Percentage of re-admissions to hospital following an elective Caesarean section that occur within 28 days of discharge by CCG, 2012/13
B73: 71 | C73: 28 | D73: 0 | E73: #No Data | F73: Secondary Care Treatment | G73: 4, 5 | H73: CARE OF MOTHERS, BABIES, CHILDREN AND YOUNG PEOPLE | I73: No Subcategory | J73: Good | K73: Maternity and Early Years | L73: No Data | M73: To help understand how the management of maternity and early years affects expenditure and outcomes in the Local Authority please visit the Commissioning for Value website and download a 2015 pack. | N73: http://www.england.nhs.uk/resources/resources-for-ccgs/comm-for-value/ http://pathways.nice.org.uk/ https://sustain.sharepoint.com/Documents/HCP%20Integrated%20Com%20and%20Del%20toolkit%20final.pdf | O73: No Data | R73: 26 | S73: Neonatal Network | T73: Map 71: Percentage of normally formed full-term babies (≥37 weeks’ gestational age at birth) admitted to neonatal intensive care who are receiving therapeutic hypothermia by neonatal network, 2013/14
B74: 72 | C74: 37 | D74: UTLA | E74: Map 72: Percentage of infants who were totally or partially breastfeeding at 6-8 weeks by upper-tier local authority, 2012/13 | F74: Prevention and Early Diagnosis | G74: 4, 5 | H74: Care of Mothers, Babies, Children and Young People | I74: No Subcategory | J74: Good | K74: Maternity and Early Years | L74: No Data | M74: To help understand how the management of maternity and early years affects expenditure and outcomes in the Local Authority please visit the Commissioning for Value website and download a 2015 pack. | N74: http://www.england.nhs.uk/resources/resources-for-ccgs/comm-for-value/ http://pathways.nice.org.uk/ https://sustain.sharepoint.com/Documents/HCP%20Integrated%20Com%20and%20Del%20toolkit%20final.pdf | O74: No Data | R74: 35 | S74: local authority | T74: Map 72: Rate of stillbirths and neonatal deaths (under 28 days) per all live-births and stillbirths by upper-tier local authority, 2012
B75: 73 | C75: 32 | D75: 0 | E75: #No Data | F75: Secondary Care Treatment | G75: 4, 5 | H75: CARE OF MOTHERS, BABIES, CHILDREN AND YOUNG PEOPLE | I75: No Subcategory | J75: Good | K75: Maternity and Early Years | L75: No Data | M75: To help understand how the management of maternity and early years affects expenditure and outcomes in the Local Authority please visit the Commissioning for Value website and download a 2015 pack. | N75: http://www.england.nhs.uk/resources/resources-for-ccgs/comm-for-value/ http://pathways.nice.org.uk/ https://sustain.sharepoint.com/Documents/HCP%20Integrated%20Com%20and%20Del%20toolkit%20final.pdf | O75: No Data | R75: 28 | S75: Neonatal Network | T75: Map 73: Percentage of preterm babies (<33 weeks’ gestational age at birth) who are receiving any maternal breast milk at discharge to home from neonatal care by neonatal network, 2013
B76: 74 | C76: 25 | D76: CCG | E76: Map 74: Percentage of re-admissions to hospital following an elective Caesarean section that occurred within 28 days of discharge by CCG, 2012/13 | F76: Prevention and Early Diagnosis | G76: 4, 5 | H76: CARE OF MOTHERS, BABIES, CHILDREN AND YOUNG PEOPLE | I76: No Subcategory | J76: Bad | K76: Maternity and Early Years | L76: No Data | M76: To help understand how the management of maternity and early years affects expenditure and outcomes in the Local Authority please visit the Commissioning for Value website and download a 2015 pack. | N76: http://www.england.nhs.uk/resources/resources-for-ccgs/comm-for-value/ http://pathways.nice.org.uk/ https://sustain.sharepoint.com/Documents/HCP%20Integrated%20Com%20and%20Del%20toolkit%20final.pdf | O76: No Data | R76: 37 | S76: local authority | T76: Map 74: Percentage of infants who are totally or partially breastfeeding at 6-8 weeks by upper-tier local authority, 2012/13
B77: 75 | C77: 114 | D77: CCG | E77: Map 75: Rate of emergency admissions to hospital of babies within 14 days of being born per 1,000 deliveries by CCG, 2012/13 | F77: Secondary Care Treatment | G77: 5 | H77: CARE OF MOTHERS, BABIES, CHILDREN AND YOUNG PEOPLE | I77: No Subcategory | J77: Bad | K77: Maternity and Early Years | L77: No Data | M77: To help understand how the management of maternity and early years affects expenditure and outcomes in the Local Authority please visit the Commissioning for Value website and download a 2015 pack. | N77: http://www.england.nhs.uk/resources/resources-for-ccgs/comm-for-value/ http://pathways.nice.org.uk/ https://sustain.sharepoint.com/Documents/HCP%20Integrated%20Com%20and%20Del%20toolkit%20final.pdf | O77: No Data | R77: 32 | S77: NHS Hospital Trust | T77: Map 75: Score rating women’s experience of labour and birth by NHS trust, February 2013
B78: 76 | C78: 94A | D78: UTLA | E78: Map 76: Percentage of immunisation completion for routine vaccinations against diphtheria, tetanus, pertussis, polio and Haemophilus influenzae type b (DTaP/IPV/Hib) at 2 years by upper-tier local authority, 2012/13 | F78: Prevention and Early Diagnosis | G78: 1, 5 | H78: Care of Mothers, Babies, Children and Young People | I78: No Subcategory | J78: Good | K78: Maternity and Early Years | L78: No Data | M78: To help understand how the management of maternity and early years affects expenditure and outcomes in the Local Authority please visit the Commissioning for Value website and download a 2015 pack. | N78: http://www.england.nhs.uk/resources/resources-for-ccgs/comm-for-value/ http://pathways.nice.org.uk/ https://sustain.sharepoint.com/Documents/HCP%20Integrated%20Com%20and%20Del%20toolkit%20final.pdf | O78: No Data | R78: 94A | S78: local authority | T78: Map 76: Percentage of immunisation completion for routine vaccinations against diphtheria, tetanus, pertussis, polio and Haemophilus influenzae type b (DTaP/IPV/Hib) at 2 years by upper-tier local authority, 2012/13
B79: 77 | C79: 94B | D79: UTLA | E79: Map 77: Percentage of immunisation completion for routine vaccinations against pneumococcal disease (PCV) at 2 years by upper-tier local authority, 2012/13 | F79: Prevention and Early Diagnosis | G79: 1, 5 | H79: Care of Mothers, Babies, Children and Young People | I79: No Subcategory | J79: Good | K79: Maternity and Early Years | L79: No Data | M79: To help understand how the management of maternity and early years affects expenditure and outcomes in the Local Authority please visit the Commissioning for Value website and download a 2015 pack. | N79: http://www.england.nhs.uk/resources/resources-for-ccgs/comm-for-value/ http://pathways.nice.org.uk/ https://sustain.sharepoint.com/Documents/HCP%20Integrated%20Com%20and%20Del%20toolkit%20final.pdf | O79: No Data | R79: 94B | S79: local authority | T79: Map 77: Percentage of immunisation completion for routine vaccinations against pneumococcal disease (PCV) at 2 years by upper-tier local authority, 2012/13
B80: 78 | C80: 94C | D80: UTLA | E80: Map 78: Percentage of immunisation coverage for routine vaccinations against measles, mumps and rubella (MMR) at 2 years by upper-tier local authority, 2012/13 | F80: Prevention and Early Diagnosis | G80: 1, 5 | H80: Care of Mothers, Babies, Children and Young People | I80: No Subcategory | J80: Good | K80: Maternity and Early Years | L80: No Data | M80: To help understand how the management of maternity and early years affects expenditure and outcomes in the Local Authority please visit the Commissioning for Value website and download a 2015 pack. | N80: http://www.england.nhs.uk/resources/resources-for-ccgs/comm-for-value/ http://pathways.nice.org.uk/ https://sustain.sharepoint.com/Documents/HCP%20Integrated%20Com%20and%20Del%20toolkit%20final.pdf | O80: No Data | R80: 94C | S80: local authority | T80: Map 78: Percentage of immunisation coverage for routine vaccinations against mumps, measles and rubella (MMR) at 2 years by upper-tier local authority, 2012/13
B81: 79 | C81: 93 | D81: CCG | E81: Map 79: Rate of admission to hospital for dental caries in children aged 1-4 years per 100,000 population by CCG, 2010/11-2012/13 | F81: Prevention and Early Diagnosis | G81: 5 | H81: CARE OF MOTHERS, BABIES, CHILDREN AND YOUNG PEOPLE | I81: No Subcategory | J81: Bad | K81: Maternity and Early Years | L81: No Data | M81: To help understand how the management of maternity and early years affects expenditure and outcomes in the Local Authority please visit the Commissioning for Value website and download a 2015 pack. | N81: http://www.england.nhs.uk/resources/resources-for-ccgs/comm-for-value/ http://pathways.nice.org.uk/ https://sustain.sharepoint.com/Documents/HCP%20Integrated%20Com%20and%20Del%20toolkit%20final.pdf | O81: No Data | R81: 92A | S81: local authority | T81: Map 79: Percentage of pupils in school reception year (aged 4-5 years) with healthy weight by upper-tier local authority, Academic year 2013/14
B82: 80 | C82: 92A | D82: UTLA | E82: Map 80: Percentage of pupils in school Reception Year (aged 4-5 years) with healthy weight by upper-tier local authority, Academic year 2013/14 | F82: Prevention and Early Diagnosis | G82: 1, 2 | H82: Care of Mothers, Babies, Children and Young People | I82: No Subcategory | J82: Good | K82: Dementia and LTCs | L82: No Data | M82: To help understand how the management of dementia and long-term conditions affects expenditure and outcomes in the CCG please visit the Commissioning for Value website and download a 2015 pack. | N82: http://www.england.nhs.uk/resources/resources-for-ccgs/comm-for-value/ http://pathways.nice.org.uk/pathways/dementia | O82: No Data | R82: 92B | S82: local authority | T82: Map 80: Percentage of pupils in school year 6 (aged 10-11 years) with healthy weight by upper-tier local authority, Academic year 2013/14
B83: 81 | C83: 92B | D83: UTLA | E83: Map 81: Percentage of pupils in school Year 6 (aged 10-11 years) with healthy weight by upper-tier local authority, Academic year 2013/14 | F83: Prevention and Early Diagnosis | G83: 1, 5 | H83: Care of Mothers, Babies, Children and Young People | I83: No Subcategory | J83: Good | K83: Endocrine, Nutritional and Metabolic problems - Diabetes | L83: No Data | M83: To help understand how the management of diabetes affects expenditure and outcomes in the CCG please visit the Commissioning for Value webiste and download a 2014 pack. | N83: http://www.england.nhs.uk/resources/resources-for-ccgs/comm-for-value/ http://pathways.nice.org.uk/pathways/diabetes | O83: No Data | R83: 99 | S83: Paediatric Diabetes Unit | T83: Map 81: Percentage of children and young people aged 0-24 years with Type 1 diabetes whose median HbA1c measurement was less than 58 mmol/mol (7.5%) by paediatric diabetes unit, 2013/14
B84: 82 | C84: 99 | D84: 0 | E84: #No Data | F84: Primary Care Management | G84: 2 | H84: CARE OF MOTHERS, BABIES, CHILDREN AND YOUNG PEOPLE | I84: No Subcategory | J84: Good | K84: Respiratory System Problems - Asthma | L84: No Data | M84: To help understand how the management of Asthma affects expenditure and outcomes in the CCG please visit the Commissioning for Value website and download a 2014 pack. | N84: http://www.england.nhs.uk/resources/resources-for-ccgs/comm-for-value/ http://pathways.nice.org.uk/pathways/asthma | O84: No Data | R84: 17 | S84: CCG | T84: Map 82: Emergency asthma admission rate for children aged 0-18 years per population by CCG, 2012/13
B85: 83 | C85: 17 | D85: CCG | E85: Map 83: Emergency asthma admission rate for children aged 0-18 years per 100,000 population by CCG, 2012/13 | F85: Secondary Care Treatment | G85: 2, 4 | H85: CARE OF MOTHERS, BABIES, CHILDREN AND YOUNG PEOPLE | I85: No Subcategory | J85: Bad | K85: Respiratory System Problems - Asthma | L85: No Data | M85: To help understand how the management of Asthma affects expenditure and outcomes in the CCG please visit the Commissioning for Value website and download a 2014 pack. | N85: http://www.england.nhs.uk/resources/resources-for-ccgs/comm-for-value/ http://pathways.nice.org.uk/pathways/asthma | O85: No Data | R85: 96 | S85: CCG | T85: Map 83: Mean length of stay (days) for asthma in children aged 0-18 years by CCG, 2012/13
B86: 84 | C86: 96 | D86: CCG | E86: Map 84: Mean length of stay (days) for asthma in children aged 0-18 years by CCG, 2012/13 | F86: Prevention and Early Diagnosis | G86: 2, 4 | H86: CARE OF MOTHERS, BABIES, CHILDREN AND YOUNG PEOPLE | I86: No Subcategory | J86: Bad | K86: Mental Health Problems - Common / Psychosis | L86: No Data | M86: To help understand how the management of psychosis and common mental health disorders affect expenditure and outcomes in the CCG please visit the Commissioning for Value website and download a 2014 pack. | N86: http://www.england.nhs.uk/resources/resources-for-ccgs/comm-for-value/ http://pathways.nice.org.uk/pathways/psychosis-and-schizophrenia http://pathways.nice.org.uk/pathways/common-mental-health-disorders-in-primary-care | O86: No Data | R86: 102 | S86: local authority | T86: Map 84: Rate of admission to hospital for self-harm in children and young people aged 10-24 years per population by upper-tier local authority, 2012/13
B87: 85 | C87: 102 | D87: UTLA | E87: Map 85: Rate of admission to hospital for self-harm in children and young people aged 10-24 years per 100,000 population by upper-tier local authority, 2012/13 | F87: Prevention and Early Diagnosis | G87: 2, 4, 5 | H87: Care of Mothers, Babies, Children and Young People | I87: No Subcategory | J87: Bad | K87: Mental Health Problems - Common, Psychosis | L87: No Data | M87: To help understand how the management of psychosis and common mental health disorders affect expenditure and outcomes in the CCG please visit the Commissioning for Value website and download a 2014 pack. | N87: http://www.england.nhs.uk/resources/resources-for-ccgs/comm-for-value/ http://pathways.nice.org.uk/pathways/psychosis-and-schizophrenia http://pathways.nice.org.uk/pathways/common-mental-health-disorders-in-primary-care | O87: No Data | R87: 103 | S87: CCG | T87: Map 85: Rate of children and young people aged 0-18 years with three or more admissions to hospital per year for mental health problems per population by CCG, 2012/13
B88: 86 | C88: 103 | D88: CCG | E88: Map 86: Rate of children and young people aged 0-18 years with three or more admissions to hospital per year for mental health problems per 100,000 population by CCG, 2012/13 | F88: End of Life, Social Care & Rehabilitation | G88: 2 | H88: CARE OF MOTHERS, BABIES, CHILDREN AND YOUNG PEOPLE | I88: No Subcategory | J88: Bad | K88: Maternity and Early Years | L88: No Data | M88: To help understand how the management of maternity and early years affects expenditure and outcomes in the Local Authority please visit the Commissioning for Value website and download a 2015 pack. | N88: http://www.england.nhs.uk/resources/resources-for-ccgs/comm-for-value/ http://pathways.nice.org.uk/ https://sustain.sharepoint.com/Documents/HCP%20Integrated%20Com%20and%20Del%20toolkit%20final.pdf | O88: No Data | R88: 104 | S88: NHS Area Team | T88: Map 86: Percentage of all deaths in children aged 0-17 years with life-limiting conditions that occur in hospital by NHS area team, 2009-2013
B89: 87 | C89: 107 | D89: CCG | E89: Map 87: Rate of accident and emergency (A&E) attendance in children and young people aged 0-19 years per 1,000 population by CCG 2012/13 | F89: Prevention and Early Diagnosis | G89: 3 | H89: CARE OF MOTHERS, BABIES, CHILDREN AND YOUNG PEOPLE | I89: No Subcategory | J89: Bad | K89: Maternity and Early Years | L89: No Data | M89: To help understand how the management of maternity and early years affects expenditure and outcomes in the Local Authority please visit the Commissioning for Value website and download a 2015 pack. | N89: http://www.england.nhs.uk/resources/resources-for-ccgs/comm-for-value/ http://pathways.nice.org.uk/ https://sustain.sharepoint.com/Documents/HCP%20Integrated%20Com%20and%20Del%20toolkit%20final.pdf | O89: No Data | R89: 107 | S89: CCG | T89: Map 87: Rate of accident and emergency (A&E) attendance in children aged 0-19 years per population by CCG 2012/13
B90: 88 | C90: 108 | D90: CCG | E90: Map 88: Rate of elective admission to hospital for tonsillectomy in children aged 0-17 years per 100,000 population by CCG, 2012/12 | F90: Prevention and Early Diagnosis | G90: 2 | H90: CARE OF MOTHERS, BABIES, CHILDREN AND YOUNG PEOPLE | I90: No Subcategory | J90: Bad | K90: Maternity and Early Years | L90: No Data | M90: To help understand how the management of maternity and early years affects expenditure and outcomes in the Local Authority please visit the Commissioning for Value website and download a 2015 pack. | N90: http://www.england.nhs.uk/resources/resources-for-ccgs/comm-for-value/ http://pathways.nice.org.uk/ https://sustain.sharepoint.com/Documents/HCP%20Integrated%20Com%20and%20Del%20toolkit%20final.pdf | O90: No Data | R90: 93 | S90: CCG | T90: Map 88: Rate of admission to hospital for dental caries in children aged 0-4 years per population by CCG, 2010/11-2012/13
B91: 89 | C91: 104 | D91: 0 | E91: #No Data | F91: Secondary Care Treatment | G91: 4 | H91: CARE OF MOTHERS, BABIES, CHILDREN AND YOUNG PEOPLE | I91: No Subcategory | J91: Requires Local Interpretation | K91: Maternity and Early Years | L91: No Data | M91: To help understand how the management of maternity and early years affects expenditure and outcomes in the Local Authority please visit the Commissioning for Value website and download a 2015 pack. | N91: http://www.england.nhs.uk/resources/resources-for-ccgs/comm-for-value/ http://pathways.nice.org.uk/ https://sustain.sharepoint.com/Documents/HCP%20Integrated%20Com%20and%20Del%20toolkit%20final.pdf | O91: No Data | R91: 108 | S91: CCG | T91: Map 89: Rate of elective admission to hospital for tonsillectomy in children aged 0-17 years per population by CCG, 2012/13
B92: 90 | C92: 89 | D92: UTLA | E92: Map 90: Rate of mortality in infants aged under one year per 1,000 live-births by upper-tier local authority, 2010-2012 | F92: Outcomes | G92: 1 | H92: Care of Mothers, Babies, Children and Young People | I92: No Subcategory | J92: Bad | K92: Maternity and Early Years | L92: No Data | M92: To help understand how the management of maternity and early years affects expenditure and outcomes in the Local Authority please visit the Commissioning for Value website and download a 2015 pack. | N92: http://www.england.nhs.uk/resources/resources-for-ccgs/comm-for-value/ http://pathways.nice.org.uk/ https://sustain.sharepoint.com/Documents/HCP%20Integrated%20Com%20and%20Del%20toolkit%20final.pdf | O92: No Data | R92: 89 | S92: local authority | T92: Map 90: Rate of mortality in infants aged under one year per all live-births by upper-tier local authority, 2010-2012
B93: 91 | C93: 91 | D93: UTLA | E93: Map 91: Rate of mortality in children aged 1-17 years per 100,000 population by upper-tier local authority, 2010-2012 | F93: Outcomes | G93: 1 | H93: Care of Mothers, Babies, Children and Young People | I93: No Subcategory | J93: Bad | K93: Maternity and Early Years | L93: No Data | M93: To help understand how the management of maternity and early years affects expenditure and outcomes in the Local Authority please visit the Commissioning for Value website and download a 2015 pack. | N93: http://www.england.nhs.uk/resources/resources-for-ccgs/comm-for-value/ http://pathways.nice.org.uk/ https://sustain.sharepoint.com/Documents/HCP%20Integrated%20Com%20and%20Del%20toolkit%20final.pdf | O93: No Data | R93: 91 | S93: local authority | T93: Map 91: Rate of mortality in children aged 1-17 years per population by upper-tier local authority, 2010-2012
B94: 92 | C94: 70 | D94: CCG | E94: Map 92: Prevalence rate of people with a learning disability aged 18 years and over per 1,000 patients on GP registers by CCG, 2013/14 | F94: Prevention and Early Diagnosis | G94: 2, 5 | H94: No Data | I94: No Subcategory | J94: Ambiguous - Requires Local Interpretation | K94: No Pathway | L94: No Data | M94: This indicator is not part of the pathways covered by Commissioning for Value. For more information around spend by programme budgeting category, please download the Programme Budgeting Benchmarking Tool | N94: http://www.england.nhs.uk/wp-content/uploads/2015/06/13-14-ccg-prog-bug-benchmarking-tool.xlsm | O94: No Data | P94: changed | R94: 70 | S94: CCG | T94: Map 92: Prevalence rate of patients with a learning disability on GP registers by CCG, 2013/14
B95: 93 | C95: 83 | D95: CCG | E95: Map 93: Rate of accident and emergency (A&E) attendances per 1,000 population by CCG, 2012/13 | F95: Secondary Care Treatment | G95: 3 | H95: No Data | I95: No Subcategory | J95: Bad | K95: No Pathway | L95: No Data | M95: This indicator is not part of the pathways covered by Commissioning for Value. For more information around spend by programme budgeting category, please download the Programme Budgeting Benchmarking Tool | N95: http://www.england.nhs.uk/wp-content/uploads/2015/06/13-14-ccg-prog-bug-benchmarking-tool.xlsm | O95: No Data | R95: 83 | S95: CCG | T95: Map 93: Rate of accident and emergency (A&E) attendances per population by CCG, 2012/13
B96: 94 | C96: 84 | D96: CCG | E96: Map 94: Percentage of accident and emergency (A&E) attendances that result in emergency admission to hospital by CCG, 2012/13 | F96: Secondary Care Treatment | G96: 3 | H96: No Data | I96: No Subcategory | J96: Bad | K96: No Pathway | L96: No Data | M96: This indicator is not part of the pathways covered by Commissioning for Value. For more information around spend by programme budgeting category, please download the Programme Budgeting Benchmarking Tool | N96: http://www.england.nhs.uk/wp-content/uploads/2015/06/13-14-ccg-prog-bug-benchmarking-tool.xlsm | O96: No Data | R96: 84 | S96: CCG | T96: Map 94: Percentage of accident and emergency (A&E) attendances that result in emergency admission to hospital by CCG, 2012/13
B97: 95 | C97: 85 | D97: CCG | E97: Map 95: Rate of emergency admission to hospital for ambulatory care-sensitive conditions per 100,000 population by CCG, 2012/13 | F97: Primary Care Management | G97: 3 | H97: No Data | I97: No Subcategory | J97: Bad | K97: Dementia and LTCs? | L97: No Data | M97: To help understand how the management of dementia and long-term conditions affects expenditure and outcomes in the CCG please visit the Commissioning for Value website and download a 2015 pack. | N97: http://www.england.nhs.uk/resources/resources-for-ccgs/comm-for-value/ http://pathways.nice.org.uk/pathways/dementia | O97: No Data | R97: 85 | S97: CCG | T97: Map 95: Rate of emergency admission to hospital for ambulatory care-sensitive conditions per population by CCG, 2012/13
B98: 96 | C98: 82 | D98: LTLA | E98: Map 96: Rate of admission to hospital for alcohol-related causes (broad measure) per 100,000 population by lower-tier local authority, 2012/13 | F98: Prevention and Early Diagnosis | G98: 1, 3 | H98: Care of Alcohol-Related Conditions | I98: No Subcategory | J98: Bad | K98: Dementia and LTCs | L98: No Data | M98: To help understand how the management of dementia and long-term conditions affects expenditure and outcomes in the CCG please visit the Commissioning for Value website and download a 2015 pack. | N98: http://www.england.nhs.uk/resources/resources-for-ccgs/comm-for-value/ http://pathways.nice.org.uk/pathways/dementia | O98: No Data | P98: changed | R98: 82 | S98: local authority | T98: Map 96: Rate of admission to hospital for alcohol-related causes per population by lower-tier local authority, 2012/13
B99: 97 | C99: 88A | D99: CCG | E99: Map 97: Percentage of elective admissions for abdominal aortic aneurysm (AAA) or aorto-bifemoral bifurcation graft procedures that had planned access to adult critical care by CCG, 2013/14 | F99: Secondary Care Treatment | G99: 1, 4 | H99: No Data | I99: No Subcategory | J99: Good | K99: Genitourinary - Renal | L99: No Data | M99: To help understand how the management of the renal system affects expenditure and outcomes in the CCG please visit the Commissioning for Value website and download a 2014 pack. | N99: http://www.england.nhs.uk/resources/resources-for-ccgs/comm-for-value/ http://pathways.nice.org.uk/pathways/chronic-kidney-disease | O99: No Data | R99: 88A | S99: CCG | T99: Map 97: Percentage of elective admissions for abdominal aortic aneurysm (AAA) or aorto-bifemoral bifurcation graft procedures that have planned access to adult critical care by CCG, 2013/14
B100: 98 | C100: 88B | D100: CCG | E100: Map 98: Percentage of emergency admissions for excision colorectal surgery that had planned access to adult critical care by CCG, 2013/14 | F100: Secondary Care Treatment | G100: 1, 4 | H100: No Data | I100: No Subcategory | J100: Good | K100: Genitourinary - Renal / Cancer & Tumours - Lower GI Cancer? | L100: No Data | M100: To help understand how the management of the renal system affects expenditure and outcomes in the CCG please visit the Commissioning for Value website and download a 2014 pack. | N100: http://www.england.nhs.uk/resources/resources-for-ccgs/comm-for-value/ http://pathways.nice.org.uk/pathways/chronic-kidney-disease | O100: No Data | R100: 88B | S100: CCG | T100: Map 98: Percentage of emergency admissions for excision colorectal surgery that have planned access to adult critical care by CCG, 2013/14
B101: 99 | C101: 155A | D101: 0 | E101: #No Data | F101: Secondary Care Treatment | G101: 1 | H101: No Data | I101: No Subcategory | J101: Good | K101: Genitourinary - Renal | L101: No Data | M101: To help understand how the management of the renal system affects expenditure and outcomes in the CCG please visit the Commissioning for Value website and download a 2014 pack. | N101: http://www.england.nhs.uk/resources/resources-for-ccgs/comm-for-value/ http://pathways.nice.org.uk/pathways/chronic-kidney-disease | O101: No Data | R101: 155A | S101: SHA | T101: Map 99: Percentage of NHS hospital Trusts that have 24-hour access to nephrostomy by SHA, November 2013
B102: 100 | C102: 155B | D102: 0 | E102: #No Data | F102: Secondary Care Treatment | G102: 1 | H102: No Data | I102: No Subcategory | J102: Good | K102: No Pathway | L102: No Data | M102: This indicator is not part of the pathways covered by Commissioning for Value. For more information around spend by programme budgeting category, please download the Programme Budgeting Benchmarking Tool | N102: http://www.england.nhs.uk/wp-content/uploads/2015/06/13-14-ccg-prog-bug-benchmarking-tool.xlsm | O102: No Data | R102: 155B | S102: SHA | T102: Map 100: Percentage of NHS hospital Trusts that have 24-hour access to embolisation for haemorrhage by SHA, November 2013
B103: 101 | C103: 155C | D103: 0 | E103: #No Data | F103: Secondary Care Treatment | G103: 1 | H103: No Data | I103: No Subcategory | J103: Good | K103: No Pathway | L103: No Data | M103: This indicator is not part of the pathways covered by Commissioning for Value. For more information around spend by programme budgeting category, please download the Programme Budgeting Benchmarking Tool | N103: http://www.england.nhs.uk/wp-content/uploads/2015/06/13-14-ccg-prog-bug-benchmarking-tool.xlsm | O103: No Data | R103: 155C | S103: SHA | T103: Map 101: Percentage of NHS hospital Trusts that have 24-hour access to endovascular intervention by SHA, November 2013
B104: 102 | C104: 155D | D104: 0 | E104: #No Data | F104: Secondary Care Treatment | G104: 1 | H104: No Data | I104: No Subcategory | J104: Good | K104: No Pathway | L104: No Data | M104: This indicator is not part of the pathways covered by Commissioning for Value. For more information around spend by programme budgeting category, please download the Programme Budgeting Benchmarking Tool | N104: http://www.england.nhs.uk/wp-content/uploads/2015/06/13-14-ccg-prog-bug-benchmarking-tool.xlsm | O104: No Data | R104: 155D | S104: SHA | T104: Map 102: Percentage of NHS hospital Trusts that have 24-hour access to embolisation for postpartum haemorrhage by SHA, November 2013

Sheet LA UT Data (hidden)
B1: By Local Authority Upper Tier area | C1: Map 3: Rate of tuberculosis incidence per population by upper-tier local authority, 2011-2013 | H1: Map 4: Percentage of people with drug-sensitive tuberculosis who completed treatment within 12 months of treatment onset by upper-tier local authority, 2012 | M1: Map 20: Rate of successful smoking quitters at 4 weeks per population of smokers aged 16 years and over by upper-tier local authority, 2013/14 | R1: Map 49: Standardised mortality ratio (SMR) in people aged 18-74 years in contact with mental health services by upper-tier local authority, 2012/13 | W1: Map 63: Rate of council-supported permanent admissions of people aged 65 years and over to nursing home and residential care home settings per population by upper-tier local authority, 2013/14 | AB1: Map 64: Percentage of people aged 65 years and over who were discharged from hospital into re-ablement/rehabilitation services by upper-tier local authority, 2013/14 | AG1: Map 65: Percentage of people aged 65 years and over who were still at home 91 days after discharge from hospital into re-ablement/rehabilitation services by upper-tier local authority, 2013/14 | AL1: Map 66: Percentage of all deaths in an area that occurred in hospital by upper-tier local authority, 2013 | AQ1: Map 72: Percentage of infants who were totally or partially breastfeeding at 6-8 weeks by upper-tier local authority, 2012/13 | AV1: Map 70: Rate of stillbirths and neonatal deaths (under 28 days) per all live-births and stillbirths by upper-tier local authority, 2012 | BA1: Map 76: Percentage of immunisation completion for routine vaccinations against diphtheria, tetanus, pertussis, polio and Haemophilus influenzae type b (DTaP/IPV/Hib) at 2 years by upper-tier local authority, 2012/13 | BF1: Map 77: Percentage of immunisation completion for routine vaccinations against pneumococcal disease (PCV) at 2 years by upper-tier local authority, 2012/13 | BK1: Map 78: Percentage of immunisation coverage for routine vaccinations against measles, mumps and rubella (MMR) at 2 years by upper-tier local authority, 2012/13 | BP1: Map 81: Percentage of pupils in school Year 6 (aged 10-11 years) with healthy weight by upper-tier local authority, Academic year 2013/14 | BU1: Map 80: Percentage of pupils in school Reception Year (aged 4-5 years) with healthy weight by upper-tier local authority, Academic year 2013/14 | BZ1: Map 85: Rate of admission to hospital for self-harm in children and young people aged 10-24 years per population by upper-tier local authority, 2012/13 | CE1: Map 90: Rate of mortality in infants aged under one year per all live-births by upper-tier local authority, 2010-2012 | CJ1: Map 91: Rate of mortality in children aged 1-17 years per population by upper-tier local authority, 2010-2012
C2: =C1&"_"&C6 -> Map 3: Rate of tuberculosis incidence per population by upper-tier local authority, 2011-2013_numeric | H2: =H1&"_"&H6 -> Map 4: Percentage of people with drug-sensitive tuberculosis who completed treatment within 12 months of treatment onset by upper-tier local authority, 2012_numeric | M2: =M1&"_"&M6 -> Map 20: Rate of successful smoking quitters at 4 weeks per population of smokers aged 16 years and over by upper-tier local authority, 2013/14_numeric | R2: =R1&"_"&R6 -> Map 49: Standardised mortality ratio (SMR) in people aged 18-74 years in contact with mental health services by upper-tier local authority, 2012/13_numeric | W2: =W1&"_"&W6 -> Map 63: Rate of council-supported permanent admissions of people aged 65 years and over to nursing home and residential care home settings per population by upper-tier local authority, 2013/14_numeric | AB2: =AB1&"_"&AB6 -> Map 64: Percentage of people aged 65 years and over who were discharged from hospital into re-ablement/rehabilitation services by upper-tier local authority, 2013/14_numeric | AG2: =AG1&"_"&AG6 -> Map 65: Percentage of people aged 65 years and over who were still at home 91 days after discharge from hospital into re-ablement/rehabilitation services by upper-tier local authority, 2013/14_numeric | AL2: =AL1&"_"&AL6 -> Map 66: Percentage of all deaths in an area that occurred in hospital by upper-tier local authority, 2013_numeric | AQ2: =AQ1&"_"&AQ6 -> Map 72: Percentage of infants who were totally or partially breastfeeding at 6-8 weeks by upper-tier local authority, 2012/13_numeric | AV2: =AV1&"_"&AV6 -> Map 70: Rate of stillbirths and neonatal deaths (under 28 days) per all live-births and stillbirths by upper-tier local authority, 2012_numeric | BA2: =BA1&"_"&BA6 -> Map 76: Percentage of immunisation completion for routine vaccinations against diphtheria, tetanus, pertussis, polio and Haemophilus influenzae type b (DTaP/IPV/Hib) at 2 years by upper-tier local authority, 2012/13_numeric | BF2: =BF1&"_"&BF6 -> Map 77: Percentage of immunisation completion for routine vaccinations against pneumococcal disease (PCV) at 2 years by upper-tier local authority, 2012/13_numeric | BK2: =BK1&"_"&BK6 -> Map 78: Percentage of immunisation coverage for routine vaccinations against measles, mumps and rubella (MMR) at 2 years by upper-tier local authority, 2012/13_numeric | BP2: =BP1&"_"&BP6 -> Map 81: Percentage of pupils in school Year 6 (aged 10-11 years) with healthy weight by upper-tier local authority, Academic year 2013/14_numeric | BU2: =BU1&"_"&BU6 -> Map 80: Percentage of pupils in school Reception Year (aged 4-5 years) with healthy weight by upper-tier local authority, Academic year 2013/14_numeric | BZ2: =BZ1&"_"&BZ6 -> Map 85: Rate of admission to hospital for self-harm in children and young people aged 10-24 years per population by upper-tier local authority, 2012/13_numeric | CE2: =CE1&"_"&CE6 -> Map 90: Rate of mortality in infants aged under one year per all live-births by upper-tier local authority, 2010-2012_numeric | CJ2: =CJ1&"_"&CJ6 -> Map 91: Rate of mortality in children aged 1-17 years per population by upper-tier local authority, 2010-2012_numeric
